Workbook

Sheet PI vs y
A1: Measurement | B1: Hall
A2: Type | B2: Off-axis
A4: PS type | B4: HXR
A5: PS serial no | B5: 16329
A7: Measurement date | B7: ='DF raw data'!B2 -> 4. okt 2017
C11: Nominal gap [mm] | D11: Encoder [counts] | E11: Encoder [mm] | F11: PI [T^2mm^3] | G11: y [mm] | H11: Encoder offset
C12: 10 | D12: =' 10 y=-0.2'!B3 -> 1635119 | E12: =(D12-$H$12)*-0.00025+10 -> 10.0025 | F12: =' 10 y=-0.2'!Q3 -> 702.8051787 | G12: -0.2 | H12: 1635129
C13: 10 | D13: ='10 y=-0.1'!B3 -> 1635122 | E13: =(D13-$H$12)*-0.00025+10 -> 10.00175 | F13: ='10 y=-0.1'!Q3 -> 702.7037096 | G13: -0.1
C14: 10 | D14: ='10 y=0'!B3 -> 1635124 | E14: 10.00125 | F14: ='10 y=0'!Q3 -> 702.5243322 | G14: 0
C15: 10 | D15: ='10 y=0.1'!B3 -> 1635125 | E15: 10.001 | F15: ='10 y=0.1'!Q3 -> 702.7692193 | G15: 0.1
C16: 10 | D16: ='10 y=0.2'!B3 -> 1635118 | E16: 10.00275 | F16: ='10 y=0.2'!Q3 -> 703.2891294 | G16: 0.2
A41: Measuring series at 10 mm gap:
A42: Reference magnet
A43: Tref | B43: 20.65 | C43: degC
A44: Hall ref field | B44: 0.50564 | C44: T
A45: NMR ref field | B45: 0.5066325 | C45: T
A53: Offset from Faro | B53: 1.109666667

Sheet 10 y=-0.2
A1: dz | B1: ='DF raw data'!B7 -> 0.50022 | C1: mm | F1: T_coeff | G1: -0.0008 | H1: /degC | L1: Hallref | M1: ='PI vs y'!B44 -> 0.50564 | N1: T | P1: IBy total | Q1: =L1203*1000 -> 13.11203441 | R1: muTm | X1: DF ref | Y1: 18
A2: Tref | B2: ='DF raw data'!B8 -> 21.32 | C2: degC | F2: Tcorr | G2: 20 | H2: degC | L2: NMRref | M2: ='PI vs y'!B45 -> 0.5066325 | N2: T | P2: JBy total | Q2: =M1203 -> 1.438196444 | R2: muTm^2
A3: Encoder | B3: ='DF raw data'!B9 -> 1635119 | P3: PI total | Q3: =N1203 -> 702.8051787 | R3: T^2mm^3
A5: z [mm] | B5: Bx | C5: By | D5: Bz | F5: Bx_corr | G5: By_corr | H5: Bz_corr | J5: Ix | K5: Jx | L5: Iy | M5: Jy | N5: PI
A6: ='PI vs y'!B53 -> 1.109666667 | B6: ='DF raw data'!A11 -> -5.8371302e-06 | C6: ='DF raw data'!B11 -> -9.5570722e-06 | D6: ='DF raw data'!C11 -> -6.2674817e-06 | F6: =(1-$G$1*($B$2-$G$2))*B6 -> -5.843294209e-06 | G6: =(1-$G$1*($B$2-$G$2))*C6*$M$2/$M$1 -> -9.585943463e-06 | H6: =(1-$G$1*($B$2-$G$2))*D6 -> -6.274100161e-06 | J6: =F6*$B$1 -> -2.922932629e-06 | K6: =J6*$B$1 -> -1.46210936e-06 | L6: =G6*$B$1 -> -4.795080639e-06 | M6: =L6*$B$1 -> -2.398595237e-06 | N6: =(J6^2+L6^2)*$B$1 -> 1.577510474e-11
A7: =A6+$B$1 -> 1.609886667 | B7: ='DF raw data'!A12 -> -6.0044772e-06 | C7: ='DF raw data'!B12 -> -7.0501087e-06 | D7: ='DF raw data'!C12 -> -1.8445486e-05 | F7: =(1-$G$1*($B$2-$G$2))*B7 -> -6.010817928e-06 | G7: =(1-$G$1*($B$2-$G$2))*C7*$M$2/$M$1 -> -7.071406597e-06 | H7: =(1-$G$1*($B$2-$G$2))*D7 -> -1.846496443e-05 | J7: =F7*$B$1+J6 -> -5.929663973e-06 | K7: =J7*$B$1+K6 -> -4.428245873e-06 | L7: =G7*$B$1+L6 -> -8.332339647e-06 | M7: =L7*$B$1+M6 -> -6.566598175e-06 | N7: =(J7^2+L7^2)*$B$1+N6 -> 6.809251369e-11
A8: =A7+$B$1 -> 2.110106667 | B8: ='DF raw data'!A13 -> -6.0656243e-06 | C8: ='DF raw data'!B13 -> -5.338105e-06 | D8: ='DF raw data'!C13 -> -1.8112043e-05 | F8: -6.072029599e-06 | G8: -5.354231051e-06 | H8: -1.813116932e-05 | J8: =F8*$B$1+J7 -> -8.96701462e-06 | K8: =J8*$B$1+K7 -> -8.913725926e-06 | L8: =G8*$B$1+L7 -> -1.10106331e-05 | M8: =L8*$B$1+M7 -> -1.207433707e-05 | N8: =(J8^2+L8^2)*$B$1+N7 -> 1.689575711e-10
A9: 2.610326667 | B9: ='DF raw data'!A14 -> -5.8840601e-06 | C9: ='DF raw data'!B14 -> -9.9887093e-06 | D9: ='DF raw data'!C14 -> -1.650557e-05 | F9: -5.890273667e-06 | G9: -1.001888451e-05 | H9: -1.652299988e-05 | J9: -1.191344731e-05 | K9: -1.487307054e-05 | L9: -1.602227951e-05 | M9: -2.008900172e-05 | N9: 3.683671065e-10
A10: 3.110546667 | B10: ='DF raw data'!A15 -> -6.2040567e-06 | C10: ='DF raw data'!B15 -> -4.5213554e-07 | D10: ='DF raw data'!C15 -> -1.1927711e-05 | F10: -6.210608184e-06 | G10: -4.535014106e-07 | H10: -1.194030666e-05 | J10: -1.502011774e-05 | K10: -2.238643384e-05 | L10: -1.624912999e-05 | M10: -2.821714153e-05 | N10: 6.13293908e-10
A11: 3.610766667 | B11: ='DF raw data'!A16 -> -6.1823016e-06 | C11: ='DF raw data'!B16 -> 3.9677357e-08 | D11: ='DF raw data'!C16 -> -5.4300335e-06 | F11: =(1-$G$1*($B$2-$G$2))*B11 -> -6.18883011e-06 | G11: 3.979721959e-08 | H11: =(1-$G$1*($B$2-$G$2))*D11 -> -5.435767615e-06 | J11: -1.811589434e-05 | K11: -3.14483665e-05 | L11: -1.622922262e-05 | M11: -3.633532327e-05 | N11: 9.092107014e-10
A12: 4.110986667 | B12: ='DF raw data'!A17 -> -6.2214754e-06 | C12: ='DF raw data'!B17 -> 1.2586677e-06 | D12: ='DF raw data'!C17 -> -3.9790912e-06 | F12: -6.228045278e-06 | G12: 1.262470049e-06 | H12: -3.98329312e-06 | J12: -2.123128715e-05 | K12: -4.206868096e-05 | L12: -1.559770985e-05 | M12: -4.413760969e-05 | N12: 1.256391447e-09
A13: 4.611206667 | B13: ='DF raw data'!A18 -> -6.7548758e-06 | C13: ='DF raw data'!B18 -> 1.5869076e-05 | D13: ='DF raw data'!C18 -> -2.9646044e-06 | F13: -6.762008949e-06 | G13: 1.59170154e-05 | H13: -2.967735022e-06 | J13: -2.461377926e-05 | K13: -5.438098562e-05 | L13: -7.635700414e-06 | M13: -4.795713975e-05 | N13: 1.588608583e-09
A14: 5.111426667 | B14: ='DF raw data'!A19 -> -5.4264897e-06 | C14: ='DF raw data'!B19 -> -2.0445663e-05 | D14: ='DF raw data'!C19 -> -3.7089494e-06 | F14: -5.432220073e-06 | G14: -2.050742795e-05 | H14: -3.712866051e-06 | J14: -2.733108439e-05 | K14: -6.805254065e-05 | L14: -1.789392602e-05 | M14: -5.690803943e-05 | N14: 2.122433744e-09
A15: 5.611646667 | B15: ='DF raw data'!A20 -> -6.3838747e-06 | C15: ='DF raw data'!B20 -> 6.5447853e-06 | D15: ='DF raw data'!C20 -> 8.5632098e-07 | F15: -6.390616072e-06 | G15: 6.56455665e-06 | H15: 8.57225255e-07 | J15: -3.052779836e-05 | K15: -8.332315595e-05 | L15: -1.46102035e-05 | M15: -6.421635542e-05 | N15: 2.695387993e-09
A16: 6.111866667 | B16: ='DF raw data'!A21 -> -6.2093973e-06 | C16: ='DF raw data'!B21 -> 2.5108818e-06 | D16: ='DF raw data'!C21 -> 5.372086e-06 | F16: -6.215954424e-06 | G16: 2.518467003e-06 | H16: 5.377758923e-06 | J16: -3.363714308e-05 | K16: -0.0001001491277 | L16: -1.335041593e-05 | M16: -7.089450048e-05 | N16: 3.350521625e-09
A17: 6.612086667 | B17: ='DF raw data'!A22 -> -6.2489785e-06 | C17: ='DF raw data'!B22 -> 3.05353e-06 | D17: ='DF raw data'!C22 -> 2.6037005e-06 | F17: -6.255577421e-06 | G17: 3.062754506e-06 | H17: 2.606450008e-06 | J17: -3.676630802e-05 | K17: -0.0001185403703 | L17: -1.181836487e-05 | M17: -7.680628295e-05 | N17: 4.096567317e-09
A18: 7.112306667 | B18: ='DF raw data'!A23 -> -5.994058e-06 | C18: ='DF raw data'!B23 -> -5.3557183e-06 | D18: ='DF raw data'!C23 -> -6.2520421e-06 | F18: -6.000387725e-06 | G18: -5.371897559e-06 | H18: -6.258644256e-06 | J18: -3.976782197e-05 | K18: -0.0001384330302 | L18: -1.450549547e-05 | M18: -8.40622219e-05 | N18: 4.992906064e-09
A19: 7.612526667 | B19: ='DF raw data'!A24 -> -6.2660042e-06 | C19: ='DF raw data'!B24 -> 1.9757051e-06 | D19: ='DF raw data'!C24 -> -7.0299293e-06 | F19: -6.2726211e-06 | G19: 1.98167357e-06 | H19: -7.037352905e-06 | J19: -4.290551249e-05 | K19: -0.0001598952256 | L19: -1.351422272e-05 | M19: -9.082230639e-05 | N19: 6.005109847e-09
A20: 8.112746667 | B20: ='DF raw data'!A25 -> -6.2711993e-06 | C20: ='DF raw data'!B25 -> 2.1138028e-06 | D20: ='DF raw data'!C25 -> -6.9227108e-06 | F20: -6.277821686e-06 | G20: 2.120188454e-06 | H20: -6.930021183e-06 | J20: -4.604580446e-05 | K20: -0.0001829282579 | L20: -1.245366205e-05 | M20: -9.705187722e-05 | N20: 7.143265319e-09
A21: 8.612966667 | B21: ='DF raw data'!A26 -> -6.2596596e-06 | C21: ='DF raw data'!B26 -> 1.7889076e-06 | D21: ='DF raw data'!C26 -> -6.7878145e-06 | F21: -6.266269801e-06 | G21: 1.794311768e-06 | H21: -6.794982432e-06 | J21: -4.918031794e-05 | K21: -0.0002075292366 | L21: -1.155611142e-05 | M21: -0.0001028324753 | N21: 8.419950505e-09
A22: 9.113186667 | B22: ='DF raw data'!A27 -> -2.4524711e-06 | C22: ='DF raw data'!B27 -> -2.8857141e-06 | D22: ='DF raw data'!C27 -> -1.1532248e-05 | F22: -2.455060909e-06 | G22: -2.894431645e-06 | H22: -1.154442605e-05 | J22: -5.04083885e-05 | K22: -0.0002327445207 | L22: -1.300396401e-05 | M22: -0.0001093373181 | N22: 9.775601085e-09
A23: 9.613406667 | B23: ='DF raw data'!A28 -> 3.3378413e-07 | C23: ='DF raw data'!B28 -> 1.1109639e-06 | D23: ='DF raw data'!C28 -> -6.1144829e-06 | F23: 3.34136606e-07 | G23: 1.114320046e-06 | H23: -6.120939794e-06 | J23: -5.024124669e-05 | K23: -0.0002578761971 | L23: -1.244655884e-05 | M23: -0.0001155633358 | N23: 1.111574033e-08
A24: 10.11362667 | B24: ='DF raw data'!A29 -> -8.4878193e-06 | C24: ='DF raw data'!B29 -> 3.1329189e-06 | D24: ='DF raw data'!C29 -> -1.6388523e-06 | F24: -8.496782437e-06 | G24: 3.142383234e-06 | H24: -1.640582928e-06 | J24: -5.44915072e-05 | K24: -0.0002851339388 | L24: -1.08746759e-05 | M24: -0.0001210030662 | N24: 1.266021107e-08
A25: 10.61384667 | B25: ='DF raw data'!A30 -> -1.0914904e-05 | C25: ='DF raw data'!B30 -> 1.502706e-06 | D25: ='DF raw data'!C30 -> -1.6629502e-06 | F25: -1.092643014e-05 | G25: 1.507245572e-06 | H25: -1.664706275e-06 | J25: -5.995712609e-05 | K25: -0.0003151256924 | L25: -1.012072152e-05 | M25: -0.0001260656535 | N25: 1.450966746e-08
A26: 11.11406667 | B26: ='DF raw data'!A31 -> -5.7308721e-06 | C26: ='DF raw data'!B31 -> -9.5302158e-07 | D26: ='DF raw data'!C31 -> -1.091773e-06 | F26: -5.736923901e-06 | G26: -9.559005931e-07 | H26: -1.092925912e-06 | J26: -6.282685016e-05 | K26: -0.0003465529394 | L26: -1.059888211e-05 | M26: -0.0001313674263 | N26: 1.654033526e-08
A27: 11.61428667 | B27: ='DF raw data'!A32 -> -5.973176e-06 | C27: ='DF raw data'!B32 -> -6.7955302e-06 | D27: ='DF raw data'!C32 -> -1.7730937e-06 | F27: -5.979483674e-06 | G27: -6.816059033e-06 | H27: -1.774966087e-06 | J27: -6.581790748e-05 | K27: -0.0003794763731 | L27: -1.400841116e-05 | M27: -0.0001383747138 | N27: 1.880544774e-08
A28: 12.11450667 | B28: ='DF raw data'!A33 -> -7.2811895e-06 | C28: ='DF raw data'!B33 -> 9.6296217e-06 | D28: ='DF raw data'!C33 -> 3.0267247e-06 | F28: -7.288878436e-06 | G28: 9.65871213e-06 | H28: 3.029920921e-06 | J28: -6.946395025e-05 | K28: -0.0004142236303 | L28: -9.176930182e-06 | M28: -0.0001429651978 | N28: 2.126125603e-08
A29: 12.61472667 | B29: ='DF raw data'!A34 -> -3.2131434e-06 | C29: ='DF raw data'!B34 -> 1.428236e-05 | D29: ='DF raw data'!C34 -> 4.050059e-06 | F29: -3.216536479e-06 | G29: 1.432550603e-05 | H29: 4.054335862e-06 | J29: -7.107292613e-05 | K29: -0.0004497757294 | L29: -2.011025553e-06 | M29: -0.000143971153 | N29: 2.379007075e-08
A30: 13.11494667 | B30: ='DF raw data'!A35 -> -6.163507e-08 | C30: ='DF raw data'!B35 -> 1.4634342e-05 | D30: ='DF raw data'!C35 -> 5.9210723e-08 | F30: -6.170015663e-08 | G30: 1.467855135e-05 | H30: 5.927324952e-08 | J30: -7.110378978e-05 | K30: -0.0004853432671 | L30: 5.331479402e-06 | M30: -0.0001413042403 | N30: 2.633327606e-08
A31: 13.61516667 | B31: ='DF raw data'!A36 -> -2.1876666e-07 | C31: ='DF raw data'!B36 -> 1.217261e-05 | D31: ='DF raw data'!C36 -> -5.2651894e-06 | F31: -2.189976776e-07 | G31: 1.220938262e-05 | H31: -5.27074944e-06 | J31: -7.12133368e-05 | K31: -0.0005209656025 | L31: 1.143885678e-05 | M31: -0.0001355822954 | N31: 2.893551394e-08
A32: 14.11538667 | B32: ='DF raw data'!A37 -> -3.8236399e-06 | C32: ='DF raw data'!B37 -> 1.77045e-05 | D32: ='DF raw data'!C37 -> -7.0451797e-06 | F32: -3.827677664e-06 | G32: 1.775798409e-05 | H32: -7.05261941e-06 | J32: -7.312801772e-05 | K32: -0.0005575456995 | L32: 2.032175558e-05 | M32: -0.0001254169468 | N32: 3.181712165e-08
A33: 14.61560667 | B33: ='DF raw data'!A38 -> -6.9764869e-06 | C33: ='DF raw data'!B38 -> -2.723333e-06 | D33: ='DF raw data'!C38 -> -4.3483315e-06 | F33: -6.98385407e-06 | G33: -2.731560003e-06 | H33: -4.352923338e-06 | J33: -7.662148121e-05 | K33: -0.0005958732968 | L33: 1.895537463e-05 | M33: -0.0001159350893 | N33: 3.493357109e-08
A34: 15.11582667 | B34: ='DF raw data'!A39 -> -8.5123829e-06 | C34: ='DF raw data'!B39 -> 6.6275102e-06 | D34: ='DF raw data'!C39 -> 7.4242855e-08 | F34: -8.521371976e-06 | G34: 6.647531456e-06 | H34: 7.432125545e-08 | J34: -8.08840419e-05 | K34: -0.0006363331123 | L34: 2.228060282e-05 | M34: -0.0001047898862 | N34: 3.845444634e-08
A35: 15.61604667 | B35: ='DF raw data'!A40 -> -3.2511239e-06 | C35: ='DF raw data'!B40 -> 4.4731946e-06 | D35: ='DF raw data'!C40 -> -3.318085e-06 | F35: -3.254557087e-06 | G35: 4.486707816e-06 | H35: -3.321588898e-06 | J35: -8.251203644e-05 | K35: -0.0006776072831 | L35: 2.45249438e-05 | M35: -9.25220188e-05 | N35: 4.216093099e-08
A36: 16.11626667 | B36: ='DF raw data'!A41 -> -9.347209e-07 | C36: ='DF raw data'!B41 -> 1.1589666e-05 | D36: ='DF raw data'!C41 -> -1.9306908e-06 | F36: -9.357079653e-07 | G36: 1.162467759e-05 | H36: -1.932729609e-06 | J36: -8.298009628e-05 | K36: -0.0007191155869 | L36: 3.033984003e-05 | M36: -7.734542402e-05 | N36: 4.606574949e-08
A37: 16.61648667 | B37: ='DF raw data'!A42 -> -1.8582582e-06 | C37: ='DF raw data'!B42 -> 5.2538776e-06 | D37: ='DF raw data'!C42 -> -2.0269954e-06 | F37: -1.860220521e-06 | G37: 5.269749206e-06 | H37: -2.029135907e-06 | J37: -8.391061579e-05 | K37: -0.0007610893551 | L37: 3.297587397e-05 | M37: -6.085023235e-05 | N37: 5.013173759e-08
A38: 17.11670667 | B38: ='DF raw data'!A43 -> -1.4163893e-06 | C38: ='DF raw data'!B43 -> 6.1677197e-06 | D38: ='DF raw data'!C43 -> 1.0584471e-06 | F38: -1.417885007e-06 | G38: 6.18635196e-06 | H38: 1.05956482e-06 | J38: -8.461987023e-05 | K38: -0.0008034179066 | L38: 3.607041095e-05 | M38: -4.280709138e-05 | N38: 5.436439763e-08
A39: 17.61692667 | B39: ='DF raw data'!A44 -> 1.5148466e-06 | C39: ='DF raw data'!B44 -> -5.0545718e-06 | D39: ='DF raw data'!C44 -> 2.8435597e-06 | F39: 1.516446278e-06 | G39: -5.069841316e-06 | H39: 2.846562499e-06 | J39: -8.386131347e-05 | K39: -0.0008453670128 | L39: 3.353437493e-05 | M39: -2.603252635e-05 | N39: 5.844482933e-08
A40: 18.11714667 | B40: ='DF raw data'!A45 -> 4.4100375e-06 | C40: ='DF raw data'!B45 -> -5.8694118e-06 | D40: ='DF raw data'!C45 -> 1.807245e-06 | F40: 4.4146945e-06 | G40: -5.887142892e-06 | H40: 1.809153451e-06 | J40: -8.165299499e-05 | K40: -0.000886211474 | L40: 3.058950831e-05 | M40: -1.073104251e-05 | N40: 6.224796678e-08
A41: 18.61736667 | B41: ='DF raw data'!A46 -> 5.65459e-06 | C41: ='DF raw data'!B46 -> 7.2139223e-06 | D41: ='DF raw data'!C46 -> -5.1432589e-06 | F41: 5.660561247e-06 | G41: 7.235715067e-06 | H41: -5.148690181e-06 | J41: -7.882146904e-05 | K41: -0.0009256395492 | L41: 3.42089577e-05 | M41: 6.380962313e-06 | N41: 6.594112944e-08
A42: 19.11758667 | B42: ='DF raw data'!A47 -> 4.6379932e-06 | C42: ='DF raw data'!B47 -> 5.1177817e-06 | D42: ='DF raw data'!C47 -> -2.8457443e-06 | F42: 4.642890921e-06 | G42: 5.133242169e-06 | H42: -2.848749406e-06 | J42: -7.649900215e-05 | K42: -0.0009639058801 | L42: 3.67767081e-05 | M42: 2.477740724e-05 | N42: 6.954502626e-08
A43: 19.61780667 | B43: ='DF raw data'!A48 -> 8.2749033e-08 | C43: ='DF raw data'!B48 -> 3.0078979e-06 | D43: ='DF raw data'!C48 -> -8.3248699e-07 | F43: 8.283641598e-08 | G43: 3.016984554e-06 | H43: -8.333660963e-07 | J43: -7.645756571e-05 | K43: -0.001002151484 | L43: 3.828586411e-05 | M43: 4.392876218e-05 | N43: 7.320241817e-08
A44: 20.11802667 | B44: ='DF raw data'!A49 -> -6.1880351e-06 | C44: ='DF raw data'!B49 -> 6.8195118e-06 | D44: ='DF raw data'!C49 -> -4.6717914e-06 | F44: -6.194569665e-06 | G44: 6.84011308e-06 | H44: -4.676724812e-06 | J44: -7.955621335e-05 | K44: -0.001041947093 | L44: 4.170742548e-05 | M44: 6.479165056e-05 | N44: 7.72385435e-08
A45: 20.61824667 | B45: ='DF raw data'!A50 -> -5.3959889e-06 | C45: ='DF raw data'!B50 -> -2.6287328e-06 | D45: ='DF raw data'!C50 -> -3.5673302e-06 | F45: -5.401687064e-06 | G45: -2.636674022e-06 | H45: -3.571097301e-06 | J45: -8.225824525e-05 | K45: -0.001083094312 | L45: 4.03885084e-05 | M45: 8.499479023e-05 | N45: 8.143921624e-08
A46: 21.11846667 | B46: ='DF raw data'!A51 -> -3.039801e-06 | C46: ='DF raw data'!B51 -> 7.8393413e-07 | D46: ='DF raw data'!C51 -> -6.4706649e-07 | F46: -3.04301103e-06 | G46: 7.863023415e-07 | H46: -6.477497922e-07 | J46: -8.378042023e-05 | K46: -0.001125002954 | L46: 4.078183255e-05 | M46: 0.0001053946785 | N46: 8.578228469e-08
A47: 21.61868667 | B47: ='DF raw data'!A52 -> 2.3083044e-06 | C47: ='DF raw data'!B52 -> -6.5458885e-06 | D47: ='DF raw data'!C52 -> -1.3587279e-06 | F47: 2.310741969e-06 | G47: -6.565663182e-06 | H47: -1.360162717e-06 | J47: -8.262454088e-05 | K47: -0.001166333402 | L47: 3.749755652e-05 | M47: 0.0001241517062 | N47: 8.990053668e-08
A48: 22.11890667 | B48: ='DF raw data'!A53 -> 4.336754e-06 | C48: ='DF raw data'!B53 -> 3.4995771e-06 | D48: ='DF raw data'!C53 -> 7.6441108e-07 | F48: 4.341333612e-06 | G48: 3.510149084e-06 | H48: 7.652182981e-07 | J48: -8.045291898e-05 | K48: -0.001206577561 | L48: 3.925340329e-05 | M48: 0.0001437870436 | N48: 9.390905057e-08
A49: 22.61912667 | B49: ='DF raw data'!A54 -> -3.3103467e-07 | C49: ='DF raw data'!B54 -> -2.1778817e-06 | D49: ='DF raw data'!C54 -> -2.4955962e-06 | F49: -3.313842426e-07 | G49: -2.184460932e-06 | H49: -2.49823155e-06 | J49: -8.061868401e-05 | K49: -0.001246904639 | L49: 3.816069224e-05 | M49: 0.0001628757851 | N49: 9.788860613e-08
A50: 23.11934667 | B50: ='DF raw data'!A55 -> -5.0195163e-06 | C50: ='DF raw data'!B55 -> -1.6270953e-06 | D50: ='DF raw data'!C55 -> -3.8989683e-06 | F50: -5.024816909e-06 | G50: -1.632010644e-06 | H50: -3.903085611e-06 | J50: -8.313219792e-05 | K50: -0.001288489027 | L50: 3.734432788e-05 | M50: 0.0001815561648 | N50: 1.020432139e-07
A51: 23.61956667 | B51: ='DF raw data'!A56 -> -2.4363185e-06 | C51: ='DF raw data'!B56 -> -3.1916627e-06 | D51: ='DF raw data'!C56 -> -4.0331952e-06 | F51: -2.438891252e-06 | G51: -3.201304495e-06 | H51: -4.037454254e-06 | J51: -8.435218011e-05 | K51: -0.001330683675 | L51: 3.574297135e-05 | M51: 0.0001994355139 | N51: 1.062414855e-07
A52: 24.11978667 | B52: ='DF raw data'!A57 -> 4.1294655e-07 | C52: ='DF raw data'!B57 -> -4.3075129e-06 | D52: ='DF raw data'!C57 -> -2.0963498e-06 | F52: 4.133826216e-07 | G52: -4.320525602e-06 | H52: -2.098563545e-06 | J52: -8.414539785e-05 | K52: -0.001372774885 | L52: 3.358175803e-05 | M52: 0.0002162337809 | N52: 1.103473825e-07
A53: 24.62000667 | B53: ='DF raw data'!A58 -> -2.2880636e-06 | C53: ='DF raw data'!B58 -> 5.6081267e-06 | D53: ='DF raw data'!C58 -> -3.1930258e-06 | F53: -2.290479795e-06 | G53: 5.625068468e-06 | H53: -3.196397635e-06 | J53: -8.529114165e-05 | K53: -0.00141543922 | L53: 3.639552978e-05 | M53: 0.0002344395528 | N53: 1.146488811e-07
A54: 25.12022667 | B54: ='DF raw data'!A59 -> -5.8471419e-06 | C54: ='DF raw data'!B59 -> 5.9398267e-06 | D54: ='DF raw data'!C59 -> -3.4373379e-06 | F54: -5.853316482e-06 | G54: 5.957770511e-06 | H54: -3.440967729e-06 | J54: -8.821908763e-05 | K54: -0.001459568172 | L54: 3.937572574e-05 | M54: 0.0002541360784 | N54: 1.193174619e-07
A55: 25.62044667 | B55: ='DF raw data'!A60 -> -1.1107409e-06 | C55: ='DF raw data'!B60 -> -1.2066303e-05 | D55: ='DF raw data'!C60 -> 2.4853061e-06 | F55: -1.111913842e-06 | G55: -1.210275448e-05 | H55: 2.487930583e-06 | J55: -8.877528917e-05 | K55: -0.001503975348 | L55: 3.33216859e-05 | M55: 0.0002708042521 | N55: 1.238151334e-07
A56: 26.12066667 | B56: ='DF raw data'!A61 -> 6.9607408e-06 | C56: ='DF raw data'!B61 -> -1.1507644e-05 | D56: ='DF raw data'!C61 -> 9.9237213e-06 | F56: 6.968091342e-06 | G56: -1.154240781e-05 | H56: 9.93420075e-06 | J56: -8.528971052e-05 | K56: -0.001546638967 | L56: 2.754794266e-05 | M56: 0.000284584284 | N56: 1.278335126e-07
A57: 26.62088667 | B57: ='DF raw data'!A62 -> 8.7419539e-06 | C57: ='DF raw data'!B62 -> -2.4068434e-06 | D57: ='DF raw data'!C62 -> 6.0173907e-06 | F57: 8.751185403e-06 | G57: -2.41411431e-06 | H57: 6.023745065e-06 | J57: -8.091219255e-05 | K57: -0.001587112863 | L57: 2.63403544e-05 | M57: 0.000297760256 | N57: 1.314554042e-07
A58: 27.12110667 | B58: ='DF raw data'!A63 -> 2.4816468e-06 | C58: ='DF raw data'!B63 -> -4.1630124e-06 | D58: ='DF raw data'!C63 -> 5.4881521e-06 | F58: 2.484267419e-06 | G58: -4.175588576e-06 | H58: 5.493947589e-06 | J58: -7.966951231e-05 | K58: -0.001626965147 | L58: 2.425164149e-05 | M58: 0.0003098914121 | N58: 1.349246166e-07
A59: 27.62132667 | B59: ='DF raw data'!A64 -> -1.2807509e-06 | C59: ='DF raw data'!B64 -> 1.2562657e-06 | D59: ='DF raw data'!C64 -> -1.6289424e-06 | F59: -1.282103373e-06 | G59: 1.260060793e-06 | H59: -1.630662563e-06 | J59: -8.031084605e-05 | K59: -0.001667138238 | L59: 2.48819491e-05 | M59: 0.0003223378607 | N59: 1.384606435e-07
A60: 28.12154667 | B60: ='DF raw data'!A65 -> 4.8441793e-06 | C60: ='DF raw data'!B65 -> -3.2324899e-06 | D60: ='DF raw data'!C65 -> -6.0513858e-06 | F60: 4.849294753e-06 | G60: -3.242255031e-06 | H60: -6.057776063e-06 | J60: -7.788513183e-05 | K60: -0.001706097939 | L60: 2.326010829e-05 | M60: 0.0003339730321 | N60: 1.417656602e-07
A61: 28.62176667 | B61: ='DF raw data'!A66 -> 7.9755337e-06 | C61: ='DF raw data'!B66 -> 2.5527777e-06 | D61: ='DF raw data'!C66 -> -1.3265827e-06 | F61: 7.983955864e-06 | G61: 2.560489467e-06 | H61: -1.327983571e-06 | J61: -7.389139743e-05 | K61: -0.001743059894 | L61: 2.454091633e-05 | M61: 0.0003462488892 | N61: 1.447980915e-07
A62: 29.12198667 | B62: ='DF raw data'!A67 -> 5.2449536e-06 | C62: ='DF raw data'!B67 -> 3.6767685e-06 | D62: ='DF raw data'!C67 -> 9.4217728e-07 | F62: 5.250492271e-06 | G62: 3.687875767e-06 | H62: 9.431722192e-07 | J62: -7.126499619e-05 | K62: -0.00177870807 | L62: 2.638566554e-05 | M62: 0.0003594475269 | N62: 1.476868135e-07
A63: 29.62220667 | B63: ='DF raw data'!A68 -> -4.5772364e-07 | C63: ='DF raw data'!B68 -> 1.7823693e-06 | D63: ='DF raw data'!C68 -> 1.0575158e-06 | F63: -4.582069962e-07 | G63: 1.787753716e-06 | H63: 1.058632537e-06 | J63: -7.149420049e-05 | K63: -0.001814470899 | L63: 2.727993571e-05 | M63: 0.0003730934963 | N63: 1.506159095e-07
A64: 30.12242667 | B64: ='DF raw data'!A69 -> -6.3862176e-06 | C64: ='DF raw data'!B69 -> -1.6297638e-06 | D64: ='DF raw data'!C69 -> -2.6817588e-06 | F64: -6.392961446e-06 | G64: -1.634687205e-06 | H64: -2.684590737e-06 | J64: -7.469208767e-05 | K64: -0.001851833375 | L64: 2.646223247e-05 | M64: 0.0003863304342 | N64: 1.537568698e-07
A65: 30.62264667 | B65: ='DF raw data'!A70 -> -5.6046488e-06 | C65: ='DF raw data'!B70 -> 2.8420479e-06 | D65: ='DF raw data'!C70 -> -1.8249422e-06 | F65: -5.610567309e-06 | G65: 2.850633533e-06 | H65: -1.826869339e-06 | J65: -7.749860564e-05 | K65: -0.001890599728 | L65: 2.788817638e-05 | M65: 0.0004002806578 | N65: 1.571502544e-07
A66: 31.12286667 | B66: ='DF raw data'!A71 -> 2.6058765e-06 | C66: ='DF raw data'!B71 -> 1.4081499e-07 | D66: ='DF raw data'!C71 -> 4.2355377e-06 | F66: 2.608628306e-06 | G66: 1.412403825e-07 | H66: 4.240010428e-06 | J66: -7.619371759e-05 | K66: -0.001928713349 | L66: 2.795882764e-05 | M66: 0.0004142662226 | N66: 1.604452929e-07
A67: 31.62308667 | B67: ='DF raw data'!A72 -> 7.0844321e-06 | C67: ='DF raw data'!B72 -> -4.031052e-06 | D67: ='DF raw data'!C72 -> 5.9027943e-06 | F67: 7.09191326e-06 | G67: -4.043229533e-06 | H67: 5.909027651e-06 | J67: -7.264620074e-05 | K67: -0.001965052432 | L67: 2.593632337e-05 | M67: 0.0004272400903 | N67: 1.634216836e-07
A68: 32.12330667 | B68: ='DF raw data'!A73 -> 5.3991312e-06 | C68: ='DF raw data'!B73 -> 2.1542307e-06 | D68: ='DF raw data'!C73 -> 4.2524471e-06 | F68: 5.404832683e-06 | G68: 2.160738484e-06 | H68: 4.256937684e-06 | J68: -6.994259534e-05 | K68: -0.002000039117 | L68: 2.701716797e-05 | M68: 0.000440754618 | N68: 1.662338674e-07
A69: 32.62352667 | B69: ='DF raw data'!A74 -> 4.1047965e-06 | C69: ='DF raw data'!B74 -> 1.048916e-05 | D69: ='DF raw data'!C74 -> -1.0052565e-07 | F69: 4.109131165e-06 | G69: 1.052084704e-05 | H69: -1.006318051e-07 | J69: -6.788712575e-05 | K69: -0.002033997615 | L69: 3.227990607e-05 | M69: 0.0004569016726 | N69: 1.690604376e-07
A70: 33.12374667 | B70: ='DF raw data'!A75 -> 5.8630349e-07 | C70: ='DF raw data'!B75 -> 3.945624e-06 | D70: ='DF raw data'!C75 -> -1.792797e-06 | F70: 5.869226265e-07 | G70: 3.957543461e-06 | H70: -1.794690194e-06 | J70: -6.759353531e-05 | K70: -0.002067809253 | L70: 3.425954846e-05 | M70: 0.000474038984 | N70: 1.719330023e-07
A71: 33.62396667 | B71: ='DF raw data'!A76 -> 4.5763804e-06 | C71: ='DF raw data'!B76 -> -1.018538e-05 | D71: ='DF raw data'!C76 -> 6.5373742e-06 | F71: 4.581213058e-06 | G71: =(1-$G$1*($B$2-$G$2))*C71*$M$2/$M$1 -> -1.021614934e-05 | H71: 6.544277667e-06 | J71: -6.530192092e-05 | K71: -0.00210047458 | L71: 2.914922624e-05 | M71: 0.0004886200099 | N71: 1.744911366e-07
A72: =A71+$B$1 -> 34.12418667 | B72: ='DF raw data'!A77 -> 7.7961813e-06 | C72: ='DF raw data'!B77 -> -1.4933652e-05 | D72: ='DF raw data'!C77 -> 3.8545832e-06 | F72: 7.804414067e-06 | G72: -1.497876554e-05 | H72: 3.85865364e-06 | J72: =F72*$B$1+J71 -> -6.139799691e-05 | K72: =J72*$B$1+K71 -> -0.002131187086 | L72: =G72*$B$1+L71 -> 2.165654814e-05 | M72: =L72*$B$1+M71 -> 0.0004994530484 | N72: =(J72^2+L72^2)*$B$1+N71 -> 1.766114291e-07
A73: 34.62440667 | B73: ='DF raw data'!A78 -> 6.9564771e-06 | C73: ='DF raw data'!B78 -> -8.8572469e-06 | D73: ='DF raw data'!C78 -> 3.015738e-06 | F73: 6.96382314e-06 | G73: -8.884004038e-06 | H73: 3.018922619e-06 | J73: -5.79145533e-05 | K73: -0.002160157104 | L73: 1.721259164e-05 | M73: 0.000508063131 | N73: 1.784374166e-07
A74: 35.12462667 | B74: ='DF raw data'!A79 -> 5.6158092e-06 | C74: ='DF raw data'!B79 -> 5.147936e-06 | D74: ='DF raw data'!C79 -> -1.0063824e-06 | F74: 5.621739495e-06 | G74: 5.163487563e-06 | H74: -1.00744514e-06 | J74: -5.510244677e-05 | K74: -0.00218772045 | L74: 1.979547139e-05 | M74: 0.0005179652217 | N74: 1.80152241e-07
A75: 35.62484667 | B75: ='DF raw data'!A80 -> 3.609653e-06 | C75: ='DF raw data'!B80 -> -3.0901231e-06 | D75: ='DF raw data'!C80 -> -2.927206e-06 | F75: =(1-$G$1*($B$2-$G$2))*B75 -> 3.613464794e-06 | G75: -3.099458151e-06 | H75: =(1-$G$1*($B$2-$G$2))*D75 -> -2.93029713e-06 | J75: -5.329491941e-05 | K75: -0.002214379634 | L75: 1.824506044e-05 | M75: 0.0005270917658 | N75: 1.817395544e-07
A76: 36.12506667 | B76: ='DF raw data'!A81 -> 9.2505752e-07 | C76: ='DF raw data'!B81 -> -7.0617175e-06 | D76: ='DF raw data'!C81 -> -7.7651503e-06 | F76: 9.260343807e-07 | G76: -7.083050466e-06 | H76: -7.773350299e-06 | J76: -5.283169849e-05 | K76: -0.002240807107 | L76: 1.470197693e-05 | M76: 0.0005344459887 | N76: 1.832438843e-07
A77: 36.62528667 | B77: ='DF raw data'!A82 -> -2.1285309e-06 | C77: ='DF raw data'!B82 -> 3.4590155e-06 | D77: ='DF raw data'!C82 -> -4.8428928e-06 | F77: -2.130778629e-06 | G77: 3.46946495e-06 | H77: -4.848006895e-06 | J77: -5.389755658e-05 | K77: -0.002267767742 | L77: 1.643747269e-05 | M77: 0.0005426683413 | N77: 1.848321513e-07
A78: 37.12550667 | B78: ='DF raw data'!A83 -> -4.7956496e-06 | C78: ='DF raw data'!B83 -> -3.1450966e-06 | D78: ='DF raw data'!C83 -> -5.5431165e-06 | F78: -4.800713806e-06 | G78: -3.154597722e-06 | H78: -5.548970031e-06 | J78: -5.629896964e-05 | K78: -0.002295929613 | L78: 1.485947982e-05 | M78: 0.0005501013503 | N78: 1.865280863e-07
A79: 37.62572667 | B79: ='DF raw data'!A84 -> -6.0630196e-06 | C79: ='DF raw data'!B84 -> -5.4563211e-06 | D79: ='DF raw data'!C84 -> -6.9105693e-07 | F79: -6.069422149e-06 | G79: -5.472804274e-06 | H79: -6.917866861e-07 | J79: -5.933501599e-05 | K79: -0.002325610175 | L79: 1.212187366e-05 | M79: 0.000556164954 | N79: 1.883626851e-07
A80: 38.12594667 | B80: ='DF raw data'!A85 -> -9.8542441e-06 | C80: ='DF raw data'!B85 -> -6.1678503e-07 | D80: ='DF raw data'!C85 -> 4.1134181e-06 | F80: -9.864650182e-06 | G80: -6.186482955e-07 | H80: 4.11776187e-06 | J80: -6.42695113e-05 | K80: -0.002357759069 | L80: 1.181241341e-05 | M80: 0.0005620737594 | N80: 1.904986762e-07
A81: 38.62616667 | B81: ='DF raw data'!A86 -> -1.2359953e-05 | C81: ='DF raw data'!B86 -> -7.6290494e-06 | D81: ='DF raw data'!C86 -> 1.7824194e-06 | F81: -1.237300511e-05 | G81: -7.652096237e-06 | H81: 1.784301635e-06 | J81: -7.045873592e-05 | K81: -0.002393003938 | L81: 7.984681831e-06 | M81: 0.000566067857 | N81: 1.930138767e-07
A82: 39.12638667 | B82: ='DF raw data'!A87 -> -1.4167475e-05 | C82: ='DF raw data'!B87 -> -3.4171537e-06 | D82: ='DF raw data'!C87 -> -3.6872525e-06 | F82: -1.418243585e-05 | G82: -3.427476688e-06 | H82: -3.691146239e-06 | J82: -7.755307398e-05 | K82: -0.002431797537 | L82: 6.270189442e-06 | M82: 0.0005692043311 | N82: 1.960421058e-07
A83: 39.62660667 | B83: ='DF raw data'!A88 -> -1.1765289e-05 | C83: ='DF raw data'!B88 -> 1.0223906e-05 | D83: ='DF raw data'!C88 -> -2.9063094e-06 | F83: -1.177771315e-05 | G83: 1.025479172e-05 | H83: -2.909378463e-06 | J83: -8.344452165e-05 | K83: -0.002473538156 | L83: 1.139984136e-05 | M83: 0.0005749067598 | N83: 1.995901385e-07
A84: 40.12682667 | B84: ='DF raw data'!A89 -> -7.2710468e-06 | C84: ='DF raw data'!B89 -> 1.7113859e-06 | D84: ='DF raw data'!C89 -> 7.4482368e-06 | F84: -7.278725025e-06 | G84: 1.71655588e-06 | H84: 7.456102138e-06 | J84: -8.708548548e-05 | K84: -0.002517100057 | L84: 1.225849694e-05 | M84: 0.0005810387051 | N84: 2.034589163e-07
A85: 40.62704667 | B85: ='DF raw data'!A90 -> -2.8510917e-06 | C85: ='DF raw data'!B90 -> -2.5773627e-06 | D85: ='DF raw data'!C90 -> 6.7490173e-06 | F85: -2.854102453e-06 | G85: -2.585148737e-06 | H85: 6.756144262e-06 | J85: -8.851316461e-05 | K85: -0.002561376112 | L85: 1.096535384e-05 | M85: 0.0005865237944 | N85: 2.07438076e-07
A86: 41.12726667 | B86: ='DF raw data'!A91 -> 3.9977963e-06 | C86: ='DF raw data'!B91 -> -3.0098001e-06 | D86: ='DF raw data'!C91 -> -4.4763883e-06 | F86: 4.002017973e-06 | G86: -3.018892501e-06 | H86: -4.481115366e-06 | J86: -8.651127518e-05 | K86: -0.002604650782 | L86: 9.455243432e-06 | M86: 0.0005912534963 | N86: 2.112265434e-07
A87: 41.62748667 | B87: ='DF raw data'!A92 -> -3.8183541e-07 | C87: ='DF raw data'!B92 -> 1.1832815e-06 | D87: ='DF raw data'!C92 -> -4.8103548e-06 | F87: -3.822386282e-07 | G87: 1.186856113e-06 | H87: -4.815434535e-06 | J87: -8.670247858e-05 | K87: -0.002648021096 | L87: 1.00489326e-05 | M87: 0.0005962801733 | N87: 2.150373698e-07
A88: 42.12770667 | B88: ='DF raw data'!A93 -> -1.1324613e-05 | C88: ='DF raw data'!B93 -> 1.2772141e-06 | D88: ='DF raw data'!C93 -> 1.1669316e-06 | F88: -1.133657179e-05 | G88: 1.281072477e-06 | H88: 1.16816388e-06 | J88: -9.237325853e-05 | K88: -0.002694228048 | L88: 1.068975067e-05 | M88: 0.0006016274004 | N88: 2.19362817e-07
A89: 42.62792667 | B89: ='DF raw data'!A94 -> -1.2035154e-05 | C89: ='DF raw data'!B94 -> -1.7574532e-06 | D89: ='DF raw data'!C94 -> 4.2228921e-06 | F89: -1.204786312e-05 | G89: -1.762762346e-06 | H89: 4.227351474e-06 | J89: -9.839984062e-05 | K89: -0.002743449616 | L89: 9.80798169e-06 | M89: 0.000606533549 | N89: 2.242543309e-07
A90: 43.12814667 | B90: ='DF raw data'!A95 -> -3.863352e-06 | C90: ='DF raw data'!B95 -> 1.035444e-06 | D90: ='DF raw data'!C95 -> 2.6009793e-06 | F90: -3.8674317e-06 | G90: 1.038572006e-06 | H90: 2.603725934e-06 | J90: -0.0001003344073 | K90: -0.002793638893 | L90: 1.032749618e-05 | M90: 0.0006116995692 | N90: 2.293433943e-07
A91: 43.62836667 | B91: ='DF raw data'!A96 -> 3.4848995e-06 | C91: ='DF raw data'!B96 -> 1.509911e-06 | D91: ='DF raw data'!C96 -> -7.7844118e-07 | F91: 3.488579554e-06 | G91: 1.514472338e-06 | H91: -7.792632139e-07 | J91: -9.858935004e-05 | K91: -0.002842955258 | L91: 1.108506553e-05 | M91: 0.0006172445406 | N91: 2.34266929e-07
A92: 44.12858667 | B92: ='DF raw data'!A97 -> 4.4233234e-06 | C92: ='DF raw data'!B97 -> 5.4513498e-06 | D92: ='DF raw data'!C97 -> 1.521198e-06 | F92: 4.42799443e-06 | G92: 5.467817956e-06 | H92: 1.522804385e-06 | J92: -9.637437866e-05 | K92: -0.00289116365 | L92: 1.382017743e-05 | M92: 0.0006241576698 | N92: 2.390085235e-07
A93: 44.62880667 | B93: ='DF raw data'!A98 -> 6.0173111e-06 | C93: ='DF raw data'!B98 -> 1.0176806e-05 | D93: ='DF raw data'!C98 -> 2.6781772e-06 | F93: 6.023665381e-06 | G93: 1.020754944e-05 | H93: 2.681005355e-06 | J93: -9.336122077e-05 | K93: -0.002937864799 | L93: 1.892619781e-05 | M93: 0.0006336249325 | N93: 2.435477792e-07
A94: 45.12902667 | B94: ='DF raw data'!A99 -> 1.1534423e-05 | C94: ='DF raw data'!B99 -> -1.0007882e-06 | D94: ='DF raw data'!C99 -> 3.2402304e-06 | F94: 1.154660335e-05 | G94: -1.003811513e-06 | H94: 3.243652083e-06 | J94: -8.758537884e-05 | K94: -0.002981676758 | L94: 1.842407121e-05 | M94: 0.0006428410214 | N94: 2.47554864e-07
A95: 45.62924667 | B95: ='DF raw data'!A100 -> 1.3956749e-05 | C95: ='DF raw data'!B100 -> -2.6031141e-06 | D95: ='DF raw data'!C100 -> 1.8085838e-06 | F95: 1.397148733e-05 | G95: -2.61097793e-06 | H95: 1.810493664e-06 | J95: -8.059656145e-05 | K95: -0.00302199277 | L95: 1.711800783e-05 | M95: 0.0006514037912 | N95: 2.509507735e-07
A96: 46.12946667 | B96: ='DF raw data'!A101 -> 1.3512668e-05 | C96: ='DF raw data'!B101 -> -5.0285548e-06 | D96: ='DF raw data'!C101 -> 5.373352e-06 | F96: 1.352693738e-05 | G96: -5.043745721e-06 | H96: 5.37902626e-06 | J96: -7.383011683e-05 | K96: -0.003058924071 | L96: 1.459502535e-05 | M96: 0.0006587045148 | N96: 2.5378397e-07
A97: 46.62968667 | B97: ='DF raw data'!A102 -> 9.6602234e-06 | C97: ='DF raw data'!B102 -> -1.7088862e-06 | D97: ='DF raw data'!C102 -> 5.3121903e-06 | F97: 9.670424596e-06 | G97: -1.714048629e-06 | H97: 5.317799973e-06 | J97: -6.899277704e-05 | K97: -0.003093435638 | L97: 1.373762394e-05 | M97: 0.0006655763491 | N97: 2.562594215e-07
A98: 47.12990667 | B98: ='DF raw data'!A103 -> 2.9988219e-06 | C98: ='DF raw data'!B103 -> -3.7072243e-06 | D98: ='DF raw data'!C103 -> 4.7555359e-06 | F98: 3.001988656e-06 | G98: -3.718423572e-06 | H98: 4.760557746e-06 | J98: -6.749112228e-05 | K98: -0.003127196047 | L98: 1.187759411e-05 | M98: 0.0006715177592 | N98: 2.586085191e-07
A99: 47.63012667 | B99: ='DF raw data'!A104 -> -7.010899e-07 | C99: ='DF raw data'!B104 -> -8.9403711e-06 | D99: ='DF raw data'!C104 -> 4.4724138e-06 | F99: -7.018302509e-07 | G99: -8.967379351e-06 | H99: 4.477136669e-06 | J99: -6.784219181e-05 | K99: -0.003161132068 | L99: 7.391931606e-06 | M99: 0.0006752153512 | N99: 2.609381455e-07
A100: 48.13034667 | B100: ='DF raw data'!A105 -> -3.8494695e-06 | C100: ='DF raw data'!B105 -> -5.1590455e-06 | D100: ='DF raw data'!C105 -> -3.7875443e-06 | F100: -3.85353454e-06 | G100: -5.174630624e-06 | H100: -3.791543947e-06 | J100: -6.976980685e-05 | K100: -0.003196032321 | L100: 4.803477876e-06 | M100: 0.0006776181469 | N100: 2.633846712e-07
A101: 48.63056667 | B101: ='DF raw data'!A106 -> -7.0311439e-06 | C101: ='DF raw data'!B106 -> 4.4142664e-07 | D101: ='DF raw data'!C106 -> -8.2244378e-06 | F101: -7.038568788e-06 | G101: 4.427601597e-07 | H101: -8.233122806e-06 | J101: -7.329063973e-05 | K101: -0.003232693765 | L101: 5.024955363e-06 | M101: 0.0006801317301 | N101: 2.660842425e-07
A102: 49.13078667 | B102: ='DF raw data'!A107 -> -9.206582e-06 | C102: ='DF raw data'!B107 -> 1.1626226e-05 | D102: ='DF raw data'!C107 -> -1.9281588e-06 | F102: -9.216304151e-06 | G102: 1.166134804e-05 | H102: -1.930194936e-06 | J102: -7.790081939e-05 | K102: -0.003271661312 | L102: 1.085819488e-05 | M102: 0.0006855632163 | N102: 2.691788225e-07
A103: 49.63100667 | B103: ='DF raw data'!A108 -> -8.9303721e-06 | C103: ='DF raw data'!B108 -> -4.8887218e-06 | D103: ='DF raw data'!C108 -> 9.5739078e-06 | F103: -8.939802573e-06 | G103: -4.903490295e-06 | H103: 9.584017847e-06 | J103: -8.237268744e-05 | K103: -0.003312865778 | L103: 8.405370961e-06 | M103: 0.000689767751 | N103: 2.726082858e-07
A104: 50.13122667 | B104: ='DF raw data'!A109 -> -4.4881967e-06 | C104: ='DF raw data'!B109 -> -9.4600709e-06 | D104: ='DF raw data'!C109 -> 5.0250082e-06 | F104: -4.492936236e-06 | G104: -9.488649128e-06 | H104: 5.030314609e-06 | J104: -8.4620144e-05 | K104: -0.003355194467 | L104: 3.658958894e-06 | M104: 0.0006915980354 | N104: 2.761968424e-07
A105: 50.63144667 | B105: ='DF raw data'!A110 -> 8.7613398e-07 | C105: ='DF raw data'!B110 -> 9.9825365e-06 | D105: ='DF raw data'!C110 -> -5.6867439e-06 | F105: 8.770591775e-07 | G105: 1.001269306e-05 | H105: -5.692749102e-06 | J105: -8.418142146e-05 | K105: -0.003397303697 | L105: 8.667508218e-06 | M105: 0.0006959336964 | N105: 2.797792367e-07
A106: 51.13166667 | B106: ='DF raw data'!A111 -> 4.6154378e-06 | C106: ='DF raw data'!B111 -> -4.5376751e-06 | D106: ='DF raw data'!C111 -> -7.5204307e-06 | F106: 4.620311702e-06 | G106: -4.551383107e-06 | H106: -7.528372275e-06 | J106: -8.187024914e-05 | K106: -0.003438256833 | L106: 6.39081536e-06 | M106: 0.00069913051 | N106: 2.831525104e-07
A107: 51.63188667 | B107: ='DF raw data'!A112 -> 5.5218911e-06 | C107: ='DF raw data'!B112 -> 9.3838489e-06 | D107: ='DF raw data'!C112 -> -1.4159116e-07 | F107: 5.527722217e-06 | G107: 9.412196867e-06 | H107: -1.417406803e-07 | J107: -7.910517193e-05 | K107: -0.003477826822 | L107: 1.109898448e-05 | M107: 0.000704682444 | N107: 2.86344322e-07
A108: 52.13210667 | B108: ='DF raw data'!A113 -> 5.4558691e-06 | C108: ='DF raw data'!B113 -> 3.6185945e-06 | D108: ='DF raw data'!C113 -> 3.8709541e-06 | F108: 5.461630498e-06 | G108: 3.629526027e-06 | H108: 3.875041828e-06 | J108: -7.637315512e-05 | K108: -0.003516030202 | L108: 1.291454599e-05 | M108: 0.0007111425582 | N108: 2.893454641e-07
A109: 52.63232667 | B109: ='DF raw data'!A114 -> -8.0875952e-07 | C109: ='DF raw data'!B114 -> -5.5245023e-06 | D109: ='DF raw data'!C114 -> -1.9952431e-06 | F109: -8.096135701e-07 | G109: -5.541191444e-06 | H109: -1.997350077e-06 | J109: -7.677814002e-05 | K109: -0.003554436163 | L109: 1.01427312e-05 | M109: 0.0007162161552 | N109: 2.923456625e-07
A110: 53.13254667 | B110: ='DF raw data'!A115 -> -7.578034e-06 | C110: ='DF raw data'!B115 -> -1.0653443e-05 | D110: ='DF raw data'!C115 -> -3.8457229e-06 | F110: -7.586036404e-06 | G110: -1.068562632e-05 | H110: -3.849783983e-06 | J110: -8.057282715e-05 | K110: -0.003594740303 | L110: 4.797567202e-06 | M110: 0.0007186159943 | N110: 2.956045943e-07
A111: 53.63276667 | B111: ='DF raw data'!A116 -> -1.1128293e-05 | C111: ='DF raw data'!B116 -> -1.2063995e-06 | D111: ='DF raw data'!C116 -> 1.5916875e-06 | F111: -1.114004448e-05 | G111: -1.210043951e-06 | H111: 1.593368322e-06 | J111: -8.61453002e-05 | K111: -0.003637831905 | L111: 4.192279017e-06 | M111: 0.0007207130561 | N111: 2.993255248e-07
A112: 54.13298667 | B112: ='DF raw data'!A117 -> -5.973307e-06 | C112: ='DF raw data'!B117 -> 1.1118669e-05 | D112: ='DF raw data'!C117 -> -9.8822159e-07 | F112: -5.979614812e-06 | G112: 1.115225774e-05 | H112: -9.89265152e-07 | J112: -8.913642312e-05 | K112: -0.003682419726 | L112: 9.770861384e-06 | M112: 0.0007256006364 | N112: 3.033476796e-07
A113: 54.63320667 | B113: ='DF raw data'!A118 -> 3.0703882e-06 | C113: ='DF raw data'!B118 -> 9.0692274e-06 | D113: ='DF raw data'!C118 -> -9.0163769e-07 | F113: 3.07363053e-06 | G113: 9.096624917e-06 | H113: -9.025898194e-07 | J113: -8.759893166e-05 | K113: -0.003726238464 | L113: 1.43211751e-05 | M113: 0.0007327643746 | N113: 3.072887474e-07
A114: 55.13342667 | B114: ='DF raw data'!A119 -> 7.5926578e-06 | C114: ='DF raw data'!B119 -> -4.9423602e-06 | D114: ='DF raw data'!C119 -> 9.2500602e-07 | F114: 7.600675647e-06 | G114: -4.957290733e-06 | H114: 9.259828264e-07 | J114: -8.379692169e-05 | K114: -0.00376815536 | L114: 1.184143913e-05 | M114: 0.0007386876993 | N114: 3.108713949e-07
A115: 55.63364667 | B115: ='DF raw data'!A120 -> 8.353607e-06 | C115: ='DF raw data'!B120 -> -4.1836925e-06 | D115: ='DF raw data'!C120 -> 5.6266572e-06 | F115: 8.362428409e-06 | G115: -4.196331149e-06 | H115: 5.63259895e-06 | J115: -7.961386775e-05 | K115: -0.003807979809 | L115: 9.742350362e-06 | M115: 0.0007435610178 | N115: 3.140894509e-07
A116: 56.13386667 | B116: ='DF raw data'!A121 -> 5.1066377e-06 | C116: ='DF raw data'!B121 -> 6.3506491e-06 | D116: ='DF raw data'!C121 -> 7.9595038e-06 | F116: 5.112030309e-06 | G116: 6.369833977e-06 | H116: 7.967909036e-06 | J116: -7.705672795e-05 | K116: -0.003846525126 | L116: 1.292866871e-05 | M116: 0.0007500281965 | N116: 3.171432389e-07
A117: 56.63408667 | B117: ='DF raw data'!A122 -> 2.0000512e-06 | C117: ='DF raw data'!B122 -> -4.8839197e-06 | D117: ='DF raw data'!C122 -> -1.2407992e-06 | F117: 2.002163254e-06 | G117: -4.898673688e-06 | H117: -1.242109484e-06 | J117: -7.605520585e-05 | K117: -0.003884569461 | L117: 1.047825416e-05 | M117: 0.0007552696287 | N117: 3.200916297e-07
A118: 57.13430667 | B118: ='DF raw data'!A123 -> 1.5525652e-06 | C118: ='DF raw data'!B123 -> -1.306202e-06 | D118: ='DF raw data'!C123 -> -2.5243507e-06 | F118: 1.554204709e-06 | G118: -1.310147947e-06 | H118: -2.527016414e-06 | J118: -7.527776157e-05 | K118: -0.003922224903 | L118: 9.822891955e-06 | M118: 0.0007601832358 | N118: 3.229745129e-07
A119: 57.63452667 | B119: ='DF raw data'!A124 -> 4.3079849e-06 | C119: ='DF raw data'!B124 -> 8.3323093e-06 | D119: ='DF raw data'!C124 -> -8.5504246e-07 | F119: 4.312534132e-06 | G119: 8.357480638e-06 | H119: -8.559453848e-07 | J119: -7.312054574e-05 | K119: -0.003958801262 | L119: 1.400347092e-05 | M119: 0.000767188052 | N119: 3.25747088e-07
A120: 58.13474667 | B120: ='DF raw data'!A125 -> 6.9392477e-06 | C120: ='DF raw data'!B125 -> 6.9653896e-07 | D120: ='DF raw data'!C125 -> -6.4095084e-06 | F120: 6.946575546e-06 | G120: 6.986431566e-07 | H120: -6.416276841e-06 | J120: -6.964572972e-05 | K120: -0.003993639449 | L120: 1.43529462e-05 | M120: 0.0007743676827 | N120: 3.282764678e-07
A121: 58.63496667 | B121: ='DF raw data'!A126 -> 7.9261445e-06 | C121: ='DF raw data'!B126 -> -1.2626297e-05 | D121: ='DF raw data'!C126 -> -1.0841915e-06 | F121: 7.934514509e-06 | G121: -1.266444018e-05 | H121: -1.085336406e-06 | J121: -6.567672688e-05 | K121: -0.004026492261 | L121: 8.017939932e-06 | M121: 0.0007783784166 | N121: 3.304662908e-07
A122: 59.13518667 | B122: ='DF raw data'!A127 -> 6.9668818e-06 | C122: ='DF raw data'!B127 -> -5.9637446e-06 | D122: ='DF raw data'!C127 -> 9.1789107e-06 | F122: 6.974238827e-06 | G122: -5.981760665e-06 | H122: 9.18860363e-06 | J122: -6.218807313e-05 | K122: -0.004057599979 | L122: 5.025743612e-06 | M122: 0.0007808923941 | N122: 3.324134544e-07
A123: 59.63540667 | B123: ='DF raw data'!A128 -> 6.1234964e-06 | C123: ='DF raw data'!B128 -> -1.3125582e-05 | D123: ='DF raw data'!C128 -> 4.7459462e-06 | F123: 6.129962812e-06 | G123: -1.316523349e-05 | H123: 4.750957919e-06 | J123: -5.912174313e-05 | K123: -0.004087173857 | L123: -1.559769483e-06 | M123: 0.0007801121662 | N123: 3.341631306e-07
A124: 60.13562667 | B124: ='DF raw data'!A129 -> 2.4980031e-06 | C124: ='DF raw data'!B129 -> -1.6042566e-05 | D124: ='DF raw data'!C129 -> -6.1550827e-06 | F124: 2.500640991e-06 | G124: -1.60910295e-05 | H124: -6.161582467e-06 | J124: -5.78708725e-05 | K124: -0.004116122025 | L124: -9.608824257e-06 | M124: 0.0007753056402 | N124: 3.358845714e-07
A125: 60.63584667 | B125: ='DF raw data'!A130 -> -4.1662647e-06 | C125: ='DF raw data'!B130 -> -1.0202677e-06 | D125: ='DF raw data'!C130 -> 1.0621879e-08 | F125: -4.170664276e-06 | G125: -1.023349859e-06 | H125: 1.06330957e-08 | J125: -5.995712218e-05 | K125: -0.004146113777 | L125: -1.012072432e-05 | M125: 0.0007702430514 | N125: 3.377340276e-07
A126: 61.13606667 | B126: ='DF raw data'!A131 -> -1.2039168e-06 | C126: ='DF raw data'!B131 -> -7.8442681e-06 | D126: ='DF raw data'!C131 -> 5.1926609e-06 | F126: -1.205188136e-06 | G126: -7.867965098e-06 | H126: 5.19814435e-06 | J126: -6.055998139e-05 | K126: -0.004176407091 | L126: -1.405643783e-05 | M126: 0.0007632117401 | N126: 3.396674253e-07
A127: 61.63628667 | B127: ='DF raw data'!A132 -> 2.0409711e-06 | C127: ='DF raw data'!B132 -> -1.4393807e-05 | D127: ='DF raw data'!C132 -> 2.3071325e-06 | F127: 2.043126365e-06 | G127: -1.443728971e-05 | H127: 2.309568832e-06 | J127: -5.953796872e-05 | K127: -0.004206189174 | L127: -2.127825888e-05 | M127: 0.0007525679294 | N127: 3.416670718e-07
A128: 62.13650667 | B128: ='DF raw data'!A133 -> 7.064441e-07 | C128: ='DF raw data'!B133 -> -8.1451453e-06 | D128: ='DF raw data'!C133 -> -2.1461319e-06 | F128: 7.07190105e-07 | G128: -8.169751228e-06 | H128: -2.148398215e-06 | J128: -5.918421808e-05 | K128: -0.004235794303 | L128: -2.536493184e-05 | M128: 0.0007398798832 | N128: 3.437410597e-07
A129: 62.63672667 | B129: ='DF raw data'!A134 -> -2.4746919e-06 | C129: ='DF raw data'!B134 -> -6.6264221e-08 | D129: ='DF raw data'!C134 -> 5.1058005e-06 | F129: -2.477305175e-06 | G129: -6.646440069e-08 | H129: 5.111192225e-06 | J129: -6.042341568e-05 | K129: -0.004266019304 | L129: -2.539817867e-05 | M129: 0.0007271752063 | N129: 3.458900331e-07
A130: 63.13694667 | B130: ='DF raw data'!A135 -> -4.5362472e-06 | C130: ='DF raw data'!B135 -> -7.402758e-06 | D130: ='DF raw data'!C135 -> 9.9654417e-06 | F130: -4.541037477e-06 | G130: -7.425121227e-06 | H130: 9.975965206e-06 | J130: -6.269493344e-05 | K130: -0.004297380564 | L130: -2.911237281e-05 | M130: 0.0007126126152 | N130: 3.482801768e-07
A131: 63.63716667 | B131: ='DF raw data'!A136 -> -1.4753973e-06 | C131: ='DF raw data'!B136 -> -6.0698189e-06 | D131: ='DF raw data'!C136 -> 2.8178029e-06 | F131: -1.47695532e-06 | G131: -6.088155409e-06 | H131: 2.8207785e-06 | J131: -6.343373603e-05 | K131: -0.004329111387 | L131: -3.21577899e-05 | M131: 0.0006965266455 | N131: 3.508102707e-07
A132: 64.13738667 | B132: ='DF raw data'!A137 -> 2.1140654e-06 | C132: ='DF raw data'!B137 -> -3.41502e-06 | D132: ='DF raw data'!C137 -> -3.8664157e-06 | F132: 2.116297853e-06 | G132: -3.425336542e-06 | H132: -3.870498635e-06 | J132: -6.237512152e-05 | K132: -0.00436031267 | L132: -3.387121175e-05 | M132: 0.000679583588 | N132: 3.533303364e-07
A133: 64.63760667 | B133: ='DF raw data'!A138 -> 2.3675743e-06 | C133: ='DF raw data'!B138 -> -1.5136062e-05 | D133: ='DF raw data'!C138 -> -1.0540521e-05 | F133: 2.370074458e-06 | G133: -1.518178701e-05 | H133: -1.055165179e-05 | J133: -6.118956288e-05 | K133: -0.004390920914 | L133: -4.146544525e-05 | M133: 0.000658841743 | N133: 3.560633113e-07
A134: 65.13782667 | B134: ='DF raw data'!A139 -> -1.649933e-06 | C134: ='DF raw data'!B139 -> -1.2962933e-05 | D134: ='DF raw data'!C139 -> -1.0597098e-05 | F134: -1.651675329e-06 | G134: -1.300209314e-05 | H134: -1.060828854e-05 | J134: -6.201576391e-05 | K134: -0.004421942439 | L134: -4.796935228e-05 | M134: 0.0006348465136 | N134: 3.591381705e-07
A135: 65.63804667 | B135: ='DF raw data'!A140 -> -4.2466932e-06 | C135: ='DF raw data'!B140 -> -5.7046295e-06 | D135: ='DF raw data'!C140 -> 7.1136935e-07 | F135: -4.251177708e-06 | G135: =(1-$G$1*($B$2-$G$2))*C135*$M$2/$M$1 -> -5.721862796e-06 | H135: 7.12120556e-07 | J135: -6.414228802e-05 | K135: -0.004454027694 | L135: -5.083154248e-05 | M135: 0.0006094195594 | N135: 3.624886835e-07
A136: =A135+$B$1 -> 66.13826667 | B136: ='DF raw data'!A141 -> -4.5602869e-06 | C136: ='DF raw data'!B141 -> -1.3946649e-06 | D136: ='DF raw data'!C141 -> 2.4172177e-06 | F136: -4.565102563e-06 | G136: -1.398878087e-06 | H136: 2.419770282e-06 | J136: =F136*$B$1+J135 -> -6.642584363e-05 | K136: =J136*$B$1+K135 -> -0.00448725523 | L136: =G136*$B$1+L135 -> -5.153128928e-05 | M136: =L136*$B$1+M135 -> 0.0005836425779 | N136: =(J136^2+L136^2)*$B$1+N135 -> 3.660241717e-07
A137: 66.63848667 | B137: ='DF raw data'!A142 -> -4.3990226e-06 | C137: ='DF raw data'!B142 -> -7.3556571e-06 | D137: ='DF raw data'!C142 -> -1.8842412e-06 | F137: -4.403667968e-06 | G137: -7.377878038e-06 | H137: -1.886230959e-06 | J137: -6.862864642e-05 | K137: -0.004521584651 | L137: -5.522185143e-05 | M137: 0.0005560195033 | N137: 3.699055507e-07
A138: 67.13870667 | B138: ='DF raw data'!A143 -> -4.5766433e-06 | C138: ='DF raw data'!B143 -> -6.0177831e-06 | D138: ='DF raw data'!C143 -> -5.7339212e-06 | F138: -4.581476235e-06 | G138: -6.035962412e-06 | H138: -5.739976221e-06 | J138: -7.092039246e-05 | K138: -0.00455706045 | L138: -5.824116055e-05 | M138: 0.00052688611 | N138: 3.741182709e-07
A139: 67.63892667 | B139: ='DF raw data'!A144 -> -5.8670344e-06 | C139: ='DF raw data'!B144 -> -1.1334188e-05 | D139: ='DF raw data'!C144 -> -1.2190737e-05 | F139: =(1-$G$1*($B$2-$G$2))*B139 -> -5.873229988e-06 | G139: -1.136842781e-05 | H139: =(1-$G$1*($B$2-$G$2))*D139 -> -1.220361042e-05 | J139: -7.385829957e-05 | K139: -0.004594005849 | L139: -6.392787551e-05 | M139: 0.0004949081081 | N139: 3.78891281e-07
A140: 68.13914667 | B140: ='DF raw data'!A145 -> -6.4917481e-06 | C140: ='DF raw data'!B145 -> -8.5244792e-06 | D140: ='DF raw data'!C145 -> -1.0279168e-05 | F140: -6.498603386e-06 | G140: -8.55023107e-06 | H140: -1.02900228e-05 | J140: -7.710903095e-05 | K140: -0.004632577328 | L140: -6.820487209e-05 | M140: 0.000460790667 | N140: 3.841924661e-07
A141: 68.63936667 | B141: ='DF raw data'!A146 -> -6.0633542e-06 | C141: ='DF raw data'!B146 -> 4.0223445e-06 | D141: ='DF raw data'!C146 -> -2.834161e-06 | F141: -6.069757102e-06 | G141: 4.034495728e-06 | H141: -2.837153874e-06 | J141: -8.014524485e-05 | K141: -0.004672667582 | L141: -6.618673664e-05 | M141: 0.0004276827376 | N141: 3.895968151e-07
A142: 69.13958667 | B142: ='DF raw data'!A147 -> -5.8805822e-06 | C142: ='DF raw data'!B147 -> 3.6663612e-06 | D142: ='DF raw data'!C147 -> -3.8184328e-07 | F142: -5.886792095e-06 | G142: 3.677437027e-06 | H142: -3.822465065e-07 | J142: -8.308993599e-05 | K142: -0.00471423083 | L142: -6.434720909e-05 | M142: 0.0003954949767 | N142: 3.951214953e-07
A143: 69.63980667 | B143: ='DF raw data'!A148 -> -5.7118527e-06 | C143: ='DF raw data'!B148 -> 1.9713023e-06 | D143: ='DF raw data'!C148 -> -4.0720051e-06 | F143: -5.717884416e-06 | G143: 1.97725747e-06 | H143: -4.076305137e-06 | J143: -8.595013613e-05 | K143: -0.004757224807 | L143: -6.335814536e-05 | M143: 0.0003638019652 | N143: 4.008248439e-07
A144: 70.14002667 | B144: ='DF raw data'!A149 -> -6.3161356e-06 | C144: ='DF raw data'!B149 -> 1.17581e-06 | D144: ='DF raw data'!C149 -> -6.0031316e-06 | F144: -6.322805439e-06 | G144: 1.179362042e-06 | H144: -6.009470907e-06 | J144: -8.911292987e-05 | K144: -0.004801800877 | L144: -6.276820488e-05 | M144: 0.0003324040537 | N144: 4.067679386e-07
A145: 70.64024667 | B145: ='DF raw data'!A150 -> -3.3778856e-06 | C145: ='DF raw data'!B150 -> 1.7053824e-06 | D145: ='DF raw data'!C150 -> -4.1743633e-06 | F145: -3.381452647e-06 | G145: 1.710534244e-06 | H145: -4.178771428e-06 | J145: -9.080440011e-05 | K145: -0.004847223054 | L145: -6.191256144e-05 | M145: 0.0003014341523 | N145: 4.128098981e-07
A146: 71.14046667 | B146: ='DF raw data'!A151 -> 4.2991664e-06 | C146: ='DF raw data'!B151 -> 9.3408853e-06 | D146: ='DF raw data'!C151 -> -4.737275e-06 | F146: 4.30370632e-06 | G146: 9.369103477e-06 | H146: -4.742277562e-06 | J146: -8.865160014e-05 | K146: -0.004891568358 | L146: -5.72259485e-05 | M146: 0.0002728085883 | N146: 4.183793053e-07
A147: 71.64068667 | B147: ='DF raw data'!A152 -> 7.2687903e-06 | C147: ='DF raw data'!B152 -> 4.3022751e-06 | D147: ='DF raw data'!C152 -> -8.1697465e-07 | F147: 7.276466143e-06 | G147: 4.315271979e-06 | H147: -8.178373752e-07 | J147: -8.501176624e-05 | K147: -0.004934092943 | L147: -5.506736315e-05 | M147: 0.0002452627919 | N147: 4.235112698e-07
A148: 72.14090667 | B148: ='DF raw data'!A153 -> 3.2645544e-06 | C148: ='DF raw data'!B153 -> 6.349715e-06 | D148: ='DF raw data'!C153 -> 4.5300394e-06 | F148: 3.268001769e-06 | G148: 6.368897056e-06 | H148: 4.534823122e-06 | J148: -8.33770464e-05 | K148: -0.004975799809 | L148: -5.188151346e-05 | M148: 0.0002193106212 | N148: 4.28335103e-07
A149: 72.64112667 | B149: ='DF raw data'!A154 -> -2.0163939e-06 | C149: ='DF raw data'!B154 -> 9.7799939e-06 | D149: ='DF raw data'!C154 -> 4.1050362e-06 | F149: -2.018523212e-06 | G149: 9.809538594e-06 | H149: 4.109371118e-06 | J149: -8.438675208e-05 | K149: -0.005018011751 | L149: -4.697458607e-05 | M149: 0.0001958129938 | N149: 4.330010229e-07
A150: 73.14134667 | B150: ='DF raw data'!A155 -> -4.4871199e-06 | C150: ='DF raw data'!B155 -> -4.8342849e-06 | D150: ='DF raw data'!C155 -> 4.6381892e-06 | F150: -4.491858299e-06 | G150: -4.848888945e-06 | H150: 4.643087128e-06 | J150: -8.663366944e-05 | K150: -0.005061347645 | L150: -4.94000973e-05 | M150: 0.0001711020771 | N150: 4.379760921e-07
A151: 73.64156667 | B151: ='DF raw data'!A156 -> -1.0795707e-06 | C151: ='DF raw data'!B156 -> -1.2608951e-05 | D151: ='DF raw data'!C156 -> -2.7116141e-07 | F151: -1.080710727e-06 | G151: -1.264704178e-05 | H151: -2.714477564e-07 | J151: -8.717426256e-05 | K151: -0.005104953954 | L151: -5.572640054e-05 | M151: 0.0001432266171 | N151: 4.433308391e-07
A152: 74.14178667 | B152: ='DF raw data'!A157 -> 2.1157389e-06 | C152: ='DF raw data'!B157 -> -6.5482895e-06 | D152: ='DF raw data'!C157 -> 1.8336131e-06 | F152: 2.11797312e-06 | G152: -6.568071436e-06 | H152: 1.835549395e-06 | J152: -8.611481004e-05 | K152: -0.005148030305 | L152: -5.901188123e-05 | M152: 0.0001137076938 | N152: 4.48782318e-07
A153: 74.64200667 | B153: ='DF raw data'!A158 -> 4.8103493e-07 | C153: ='DF raw data'!B158 -> -4.1949011e-06 | D153: ='DF raw data'!C158 -> 6.912348e-06 | F153: 4.815429029e-07 | G153: -4.20757361e-06 | H153: 6.919647439e-06 | J153: -8.587393265e-05 | K153: -0.005190986163 | L153: -6.11165937e-05 | M153: 8.313595133e-05 | N153: 4.543395472e-07
A154: 75.14222667 | B154: ='DF raw data'!A159 -> 5.3457143e-07 | C154: ='DF raw data'!B159 -> 5.3229058e-07 | D154: ='DF raw data'!C159 -> -1.3230466e-06 | F154: 5.351359374e-07 | G154: 5.338985935e-07 | H154: -1.324443737e-06 | J154: -8.560624695e-05 | K154: -0.00523380812 | L154: -6.084952695e-05 | M154: 5.269780096e-05 | N154: 4.598575213e-07
A155: 75.64244667 | B155: ='DF raw data'!A160 -> 4.4473632e-06 | C155: ='DF raw data'!B160 -> -2.3614778e-06 | D155: ='DF raw data'!C160 -> -7.0781107e-06 | F155: 4.452059616e-06 | G155: -2.368611663e-06 | H155: -7.085585185e-06 | J155: -8.337923769e-05 | K155: -0.005275516082 | L155: -6.203435387e-05 | M155: 2.166697647e-05 | N155: 4.652600766e-07
A156: 76.14266667 | B156: ='DF raw data'!A161 -> 6.7211145e-06 | C156: ='DF raw data'!B161 -> -3.1105376e-06 | D156: ='DF raw data'!C161 -> -2.1513124e-06 | F156: 6.728211997e-06 | G156: -3.119934322e-06 | H156: -2.153584186e-06 | J156: -8.001365149e-05 | K156: -0.005315540511 | L156: -6.359500742e-05 | M156: -1.014451814e-05 | N156: 4.704856295e-07
A157: 76.64288667 | B157: ='DF raw data'!A162 -> 2.8061254e-06 | C157: ='DF raw data'!B162 -> -2.6223281e-06 | D157: ='DF raw data'!C162 -> 3.4762334e-06 | F157: 2.809088668e-06 | G157: -2.630249974e-06 | H157: 3.479904302e-06 | J157: -7.860848915e-05 | K157: -0.00535486205 | L157: -6.491071106e-05 | M157: -4.261415403e-05 | N157: 4.756842634e-07
A158: 77.14310667 | B158: ='DF raw data'!A163 -> -4.8224688e-06 | C158: ='DF raw data'!B163 -> 1.6433385e-06 | D158: ='DF raw data'!C163 -> -3.2407218e-07 | F158: -4.827561327e-06 | G158: 1.648302913e-06 | H158: -3.244144002e-07 | J158: -8.102333188e-05 | K158: -0.005395391541 | L158: -6.408619698e-05 | M158: -7.467135148e-05 | N158: 4.810225216e-07
A159: 77.64332667 | B159: ='DF raw data'!A164 -> -9.0318281e-06 | C159: ='DF raw data'!B164 -> 4.998671e-07 | D159: ='DF raw data'!C164 -> -4.6948126e-06 | F159: -9.04136571e-06 | G159: 5.013771644e-07 | H159: -4.699770322e-06 | J159: -8.554600384e-05 | K159: -0.005438183363 | L159: -6.383539809e-05 | M159: -0.0001066030943 | N159: 4.867215665e-07
A160: 78.14354667 | B160: ='DF raw data'!A165 -> -8.3148116e-06 | C160: ='DF raw data'!B165 -> -2.4033745e-06 | D160: ='DF raw data'!C165 -> -2.9210796e-06 | F160: -8.323592041e-06 | G160: -2.41063493e-06 | H160: -2.92416426e-06 | J160: -8.970963105e-05 | K160: -0.005483057914 | L160: -6.50412459e-05 | M160: -0.0001391380263 | N160: 4.928633585e-07
A161: 78.64376667 | B161: ='DF raw data'!A166 -> -8.1102262e-06 | C161: ='DF raw data'!B166 -> 1.4213153e-06 | D161: ='DF raw data'!C166 -> -6.0499888e-06 | F161: -8.118790599e-06 | G161: 1.425608996e-06 | H161: -6.056377588e-06 | J161: -9.377081248e-05 | K161: -0.00552996395 | L161: -6.432812776e-05 | M161: -0.0001713162424 | N161: 4.9933174e-07
A162: 79.14398667 | B162: ='DF raw data'!A167 -> -8.5061838e-06 | C162: ='DF raw data'!B167 -> 6.1388996e-06 | D162: ='DF raw data'!C167 -> -1.1127137e-05 | F162: -8.51516633e-06 | G162: 6.157444797e-06 | H162: -1.113888726e-05 | J162: -9.803026898e-05 | K162: -0.005579000651 | L162: -6.124805073e-05 | M162: -0.0002019537423 | N162: 5.060153082e-07
A163: 79.64420667 | B163: ='DF raw data'!A168 -> -2.560068e-06 | C163: ='DF raw data'!B168 -> 3.697183e-06 | D163: ='DF raw data'!C168 -> -5.3222184e-06 | F163: -2.562771432e-06 | G163: 3.708351937e-06 | H163: -5.327838663e-06 | J163: -9.931221851e-05 | K163: -0.005628678609 | L163: -5.939305892e-05 | M163: -0.0002316633383 | N163: 5.127134801e-07
A164: 80.14442667 | B164: ='DF raw data'!A169 -> 2.2174568e-06 | C164: ='DF raw data'!B169 -> 1.2589351e-06 | D164: ='DF raw data'!C169 -> -1.8077947e-07 | F164: 2.219798434e-06 | G164: 1.262738257e-06 | H164: -1.809703731e-07 | J164: -9.820183094e-05 | K164: -0.005677801129 | L164: -5.876141199e-05 | M164: -0.0002610569718 | N164: 5.192646129e-07
A165: 80.64464667 | B165: ='DF raw data'!A170 -> 4.7543247e-07 | C165: ='DF raw data'!B170 -> -1.1227579e-05 | D165: ='DF raw data'!C170 -> 6.7084227e-07 | F165: 4.759345267e-07 | G165: -1.126149675e-05 | H165: 6.715506794e-07 | J165: -9.796375897e-05 | K165: -0.005726804561 | L165: -6.43946379e-05 | M165: -0.0002932684576 | N165: 5.261394203e-07
A166: 81.14486667 | B166: ='DF raw data'!A171 -> -3.999962e-07 | C166: ='DF raw data'!B171 -> -4.2039742e-06 | D166: ='DF raw data'!C171 -> 7.3412948e-06 | F166: -4.00418596e-07 | G166: -4.216674119e-06 | H166: 7.349047207e-06 | J166: -9.816405636e-05 | K166: -0.005775908185 | L166: -6.650390262e-05 | M166: -0.0003265350397 | N166: 5.331719887e-07
A167: 81.64508667 | B167: ='DF raw data'!A172 -> 2.2742674e-06 | C167: ='DF raw data'!B172 -> -5.8903611e-06 | D167: ='DF raw data'!C172 -> 7.0601664e-06 | F167: 2.276669026e-06 | G167: -5.908155479e-06 | H167: 7.067621936e-06 | J167: -9.702522098e-05 | K167: -0.005824442141 | L167: -6.945928016e-05 | M167: -0.0003612799608 | N167: 5.402943638e-07
A168: 82.14530667 | B168: ='DF raw data'!A173 -> 4.1954404e-06 | C168: ='DF raw data'!B173 -> -8.5926604e-06 | D168: ='DF raw data'!C173 -> 3.146778e-06 | F168: 4.199870785e-06 | G168: -8.61861824e-06 | H168: 3.150100998e-06 | J168: -9.492436161e-05 | K168: -0.005871925205 | L168: -7.377048537e-05 | M168: -0.000398181433 | N168: 5.475239028e-07
A169: 82.64552667 | B169: ='DF raw data'!A174 -> 4.2860261e-06 | C169: ='DF raw data'!B174 -> -3.8499916e-06 | D169: ='DF raw data'!C174 -> 8.291089e-07 | F169: 4.290552144e-06 | G169: -3.861622162e-06 | H169: 8.29984439e-07 | J169: -9.277814162e-05 | K169: -0.005918334687 | L169: -7.570214601e-05 | M169: -0.0004360491605 | N169: 5.546963566e-07
A170: 83.14574667 | B170: ='DF raw data'!A175 -> -1.1905727e-06 | C170: ='DF raw data'!B175 -> 4.1819235e-06 | D170: ='DF raw data'!C175 -> 2.4590108e-06 | F170: -1.191829945e-06 | G170: 4.194556805e-06 | H170: 2.461607515e-06 | J170: -9.337431879e-05 | K170: -0.005965042389 | L170: -7.360394481e-05 | M170: -0.0004728673258 | N170: 5.617676186e-07
A171: 83.64596667 | B171: ='DF raw data'!A176 -> -1.0189928e-05 | C171: ='DF raw data'!B176 -> 5.111377e-06 | D171: ='DF raw data'!C176 -> -8.5021757e-06 | F171: -1.020068856e-05 | G171: 5.126818121e-06 | H171: -8.511153998e-06 | J171: -9.847690723e-05 | K171: -0.006014302507 | L171: -7.103940784e-05 | M171: -0.0005084026584 | N171: 5.691430117e-07
A172: 84.14618667 | B172: ='DF raw data'!A177 -> -1.1741598e-05 | C172: ='DF raw data'!B177 -> 1.0892152e-06 | D172: ='DF raw data'!C177 -> -1.7330503e-05 | F172: -1.175399713e-05 | G172: 1.092505645e-06 | H172: -1.734880401e-05 | J172: -0.0001043564917 | K172: -0.006066503712 | L172: -7.049291467e-05 | M172: -0.0005436646242 | N172: 5.77076265e-07
A173: 84.64640667 | B173: ='DF raw data'!A178 -> -6.2041295e-06 | C173: ='DF raw data'!B178 -> 1.3000259e-05 | D173: ='DF raw data'!C178 -> -1.9410452e-05 | F173: -6.210681061e-06 | G173: 1.303953189e-05 | H173: -1.943094944e-05 | J173: -0.0001074631986 | K173: -0.006120258953 | L173: -6.397028003e-05 | M173: -0.0005756638376 | N173: 5.848999738e-07
A174: 85.14662667 | B174: ='DF raw data'!A179 -> -2.6728017e-06 | C174: ='DF raw data'!B179 -> 3.9832932e-07 | D174: ='DF raw data'!C179 -> -1.6027583e-05 | F174: -2.675624179e-06 | G174: 3.995326457e-07 | H174: -1.604450813e-05 | J174: -0.0001088015993 | K174: -0.006174683689 | L174: -6.377042581e-05 | M174: -0.00060756308 | N174: 5.928557004e-07
A175: 85.64684667 | B175: ='DF raw data'!A180 -> -9.931905e-07 | C175: ='DF raw data'!B180 -> 4.2554868e-07 | D175: ='DF raw data'!C180 -> -4.9384698e-06 | F175: -9.942393092e-07 | G175: 4.268342335e-07 | H175: -4.943684824e-06 | J175: -0.0001092989377 | K175: -0.006229357203 | L175: -6.355691479e-05 | M175: -0.0006393555199 | N175: 6.008520868e-07
A176: 86.14706667 | B176: ='DF raw data'!A181 -> 3.657718e-06 | C176: ='DF raw data'!B181 -> 5.848829e-06 | D176: ='DF raw data'!C181 -> -4.4746566e-06 | F176: 3.66158055e-06 | G176: 5.866497913e-06 | H176: -4.479381837e-06 | J176: -0.0001074673418 | K176: -0.006283114517 | L176: -6.06223752e-05 | M176: -0.0006696800445 | N176: 6.084675872e-07
A177: 86.64728667 | B177: ='DF raw data'!A182 -> 8.4697458e-06 | C177: ='DF raw data'!B182 -> -7.2045833e-07 | D177: ='DF raw data'!C182 -> -2.097936e-06 | F177: 8.478689852e-06 | G177: -7.226347854e-07 | H177: -2.10015142e-06 | J177: -0.0001032261316 | K177: -0.006334750293 | L177: -6.098385157e-05 | M177: -0.0007001853867 | N177: 6.156580818e-07
A178: 87.14750667 | B178: ='DF raw data'!A183 -> 7.9032397e-06 | C178: ='DF raw data'!B183 -> -1.320079e-06 | D178: ='DF raw data'!C183 -> 1.1773217e-06 | F178: 7.911585521e-06 | G178: -1.324066869e-06 | H178: 1.178564952e-06 | J178: -9.92685983e-05 | K178: -0.006384406431 | L178: -6.16461763e-05 | M178: -0.000731022037 | N178: 6.224883386e-07
A179: 87.64772667 | B179: ='DF raw data'!A184 -> 3.0295264e-06 | C179: ='DF raw data'!B184 -> 2.0657687e-06 | D179: ='DF raw data'!C184 -> -6.7782248e-06 | F179: 3.03272558e-06 | G179: 2.072009246e-06 | H179: -6.785382605e-06 | J179: -9.775156831e-05 | K179: -0.00643330372 | L179: -6.060971584e-05 | M179: -0.0007613402291 | N179: 6.291057023e-07
A180: 88.14794667 | B180: ='DF raw data'!A185 -> 4.8711763e-07 | C180: ='DF raw data'!B185 -> 6.6650032e-06 | D180: ='DF raw data'!C185 -> -1.1594283e-05 | F180: 4.876320262e-07 | G180: 6.68513772e-06 | H180: -1.160652656e-05 | J180: -9.750764501e-05 | K180: -0.006482078995 | L180: -5.726567625e-05 | M180: -0.0007899856656 | N180: 6.355020648e-07
A181: 88.64816667 | B181: ='DF raw data'!A186 -> -3.8663754e-07 | C181: ='DF raw data'!B186 -> 1.1266507e-05 | D181: ='DF raw data'!C186 -> -5.7543521e-06 | F181: -3.870458292e-07 | G181: 1.130054235e-05 | H181: -5.760428696e-06 | J181: -9.770125308e-05 | K181: -0.006530951115 | L181: -5.161291895e-05 | M181: -0.00081580348 | N181: 6.41609465e-07
A182: 89.14838667 | B182: ='DF raw data'!A187 -> 2.6360426e-06 | C182: ='DF raw data'!B187 -> 1.0904519e-05 | D182: ='DF raw data'!C187 -> -4.0387249e-06 | F182: 2.638826261e-06 | G182: 1.093746081e-05 | H182: -4.042989793e-06 | J182: -9.638125941e-05 | K182: -0.006579162949 | L182: -4.614178231e-05 | M182: -0.0008388845223 | N182: 6.473211826e-07
A183: 89.64860667 | B183: ='DF raw data'!A188 -> 5.165311e-06 | C183: ='DF raw data'!B188 -> 2.4488379e-06 | D183: ='DF raw data'!C188 -> -2.6761709e-06 | F183: 5.170765568e-06 | G183: 2.456235672e-06 | H183: -2.678996936e-06 | J183: -9.379473905e-05 | K183: -0.006626080953 | L183: -4.49131241e-05 | M183: -0.0008613509652 | N183: 6.527308827e-07
A184: 90.14882667 | B184: ='DF raw data'!A189 -> 1.7541529e-06 | C184: ='DF raw data'!B189 -> -1.1291452e-06 | D184: ='DF raw data'!C189 -> 2.6720509e-06 | F184: 1.756005285e-06 | G184: -1.132556271e-06 | H184: 2.674872586e-06 | J184: -9.291635009e-05 | K184: -0.00667255957 | L184: -4.54796514e-05 | M184: -0.0008841007965 | N184: 6.580841606e-07
A185: 90.64904667 | B185: ='DF raw data'!A190 -> -5.1079451e-07 | C185: ='DF raw data'!B190 -> 6.1272917e-06 | D185: ='DF raw data'!C190 -> -5.4949351e-06 | F185: -5.11333909e-07 | G185: 6.14580183e-06 | H185: -5.500737751e-06 | J185: -9.317212954e-05 | K185: -0.006719166133 | L185: -4.240539841e-05 | M185: -0.0009053128248 | N185: 6.633260978e-07
A186: 91.14926667 | B186: ='DF raw data'!A191 -> -4.1674545e-07 | C186: ='DF raw data'!B191 -> -9.1139219e-07 | D186: ='DF raw data'!C191 -> -1.3168946e-05 | F186: -4.171855332e-07 | G186: -9.141454436e-07 | H186: -1.318285241e-05 | J186: -9.338081408e-05 | K186: -0.006765877083 | L186: -4.286267224e-05 | M186: -0.0009267535908 | N186: 6.686070129e-07
A187: 91.64948667 | B187: ='DF raw data'!A192 -> -1.0785666e-06 | C187: ='DF raw data'!B192 -> 5.5047208e-06 | D187: ='DF raw data'!C192 -> -5.8875312e-06 | F187: -1.079705566e-06 | G187: 5.521350186e-06 | H187: -5.893748433e-06 | J187: -9.39209044e-05 | K187: -0.006812858198 | L187: -4.010078245e-05 | M187: -0.0009468128042 | N187: 6.738239118e-07
A188: 92.14970667 | B188: ='DF raw data'!A193 -> -3.0814451e-07 | C188: ='DF raw data'!B193 -> 1.5229868e-06 | D188: ='DF raw data'!C193 -> -1.339563e-06 | F188: -3.084699106e-07 | G188: 1.527587639e-06 | H188: -1.340977579e-06 | J188: -9.407520722e-05 | K188: -0.006859916498 | L188: -3.933665256e-05 | M188: -0.0009664897845 | N188: 6.790249577e-07
A189: 92.64992667 | B189: ='DF raw data'!A194 -> 9.0825345e-08 | C189: ='DF raw data'!B194 -> -7.3363103e-06 | D189: ='DF raw data'!C194 -> -1.7785453e-07 | F189: 9.092125656e-08 | G189: -7.358472793e-06 | H189: -1.780423444e-07 | J189: -9.402972659e-05 | K189: -0.006906952048 | L189: -4.301750782e-05 | M189: -0.0009880080023 | N189: 6.843733577e-07
A190: 93.15014667 | B190: ='DF raw data'!A195 -> -2.4427213e-06 | C190: ='DF raw data'!B195 -> 1.4366594e-06 | D190: ='DF raw data'!C195 -> -3.9619927e-06 | F190: -2.445300814e-06 | G190: 1.44099945e-06 | H190: -3.966176564e-06 | J190: -9.525291496e-05 | K190: -0.006954599461 | L190: -4.229669108e-05 | M190: -0.001009165653 | N190: 6.898068113e-07
A191: 93.65036667 | B191: ='DF raw data'!A196 -> -3.4790796e-06 | C191: ='DF raw data'!B196 -> -1.0083842e-05 | D191: ='DF raw data'!C196 -> -5.763869e-06 | F191: -3.482753508e-06 | G191: -1.01143046e-05 | H191: -5.769955646e-06 | J191: -9.699505792e-05 | K191: -0.007003118329 | L191: -4.735606852e-05 | M191: -0.001032854106 | N191: 6.956346937e-07
A192: 94.15058667 | B192: ='DF raw data'!A197 -> 2.0499206e-06 | C192: ='DF raw data'!B197 -> -1.3094626e-05 | D192: ='DF raw data'!C197 -> -3.7767031e-06 | F192: 2.052085316e-06 | G192: -1.313418397e-05 | H192: -3.780691298e-06 | J192: -9.596856381e-05 | K192: -0.007051123724 | L192: -5.392605003e-05 | M192: -0.001059828994 | N192: 7.016963517e-07
A193: 94.65080667 | B193: ='DF raw data'!A198 -> 6.0157104e-06 | C193: ='DF raw data'!B198 -> 1.5048406e-06 | D193: ='DF raw data'!C198 -> -1.4124972e-06 | F193: 6.02206299e-06 | G193: 1.509386621e-06 | H193: -1.413988797e-06 | J193: -9.295620746e-05 | K193: -0.007097622278 | L193: -5.317102465e-05 | M193: -0.001086426204 | N193: 7.074328819e-07
A194: 95.15102667 | B194: ='DF raw data'!A199 -> 2.3543612e-06 | C194: ='DF raw data'!B199 -> 3.3169151e-06 | D194: ='DF raw data'!C199 -> -3.7818254e-06 | F194: 2.356847405e-06 | G194: 3.326935274e-06 | H194: -3.785819008e-06 | J194: -9.177726525e-05 | K194: -0.007143531102 | L194: -5.150682509e-05 | M194: -0.001112190948 | N194: 7.129733283e-07
A195: 95.65124667 | B195: ='DF raw data'!A200 -> -3.8709627e-06 | C195: ='DF raw data'!B200 -> -5.4108227e-06 | D195: ='DF raw data'!C200 -> -3.5212734e-06 | F195: -3.875050437e-06 | G195: -5.427168426e-06 | H195: -3.524991865e-06 | J195: -9.371564298e-05 | K195: -0.007190409541 | L195: -5.422160328e-05 | M195: -0.001139313679 | N195: 7.188372093e-07
A196: 96.15146667 | B196: ='DF raw data'!A201 -> -9.2502378e-06 | C196: ='DF raw data'!B201 -> 3.4715574e-06 | D196: ='DF raw data'!C201 -> -3.3798381e-07 | F196: -9.260006051e-06 | G196: 3.482044738e-06 | H196: -3.383407209e-07 | J196: -9.83476832e-05 | K196: -0.007239605019 | L196: -5.247981486e-05 | M196: -0.001165565132 | N196: 7.25053142e-07
A197: 96.65168667 | B197: ='DF raw data'!A202 -> -1.0536292e-05 | C197: ='DF raw data'!B202 -> 1.8285977e-05 | D197: ='DF raw data'!C202 -> -6.2261543e-06 | F197: -1.054741832e-05 | G197: 1.834121769e-05 | H197: -6.232729119e-06 | J197: -0.0001036237128 | K197: -0.007291439673 | L197: -4.330517095e-05 | M197: -0.001187227244 | N197: 7.313625227e-07
A198: 97.15190667 | B198: ='DF raw data'!A203 -> -6.4902056e-06 | C198: ='DF raw data'!B203 -> 1.0014198e-06 | D198: ='DF raw data'!C203 -> -7.9807223e-06 | F198: -6.497059257e-06 | G198: 1.004445021e-06 | H198: -7.989149943e-06 | J198: -0.0001068736718 | K198: -0.007344900021 | L198: -4.280272746e-05 | M198: -0.001208638025 | N198: 7.379924662e-07
A199: 97.65212667 | B199: ='DF raw data'!A204 -> -1.148052e-06 | C199: ='DF raw data'!B204 -> -6.6560992e-06 | D199: ='DF raw data'!C204 -> -4.4963535e-06 | F199: -1.149264343e-06 | G199: =(1-$G$1*($B$2-$G$2))*C199*$M$2/$M$1 -> -6.676206821e-06 | H199: -4.501101649e-06 | J199: -0.0001074485568 | K199: -0.007398647938 | L199: -4.614229964e-05 | M199: -0.001231719326 | N199: 7.448326266e-07
A200: =A199+$B$1 -> 98.15234667 | B200: ='DF raw data'!A205 -> 9.1964421e-07 | C200: ='DF raw data'!B205 -> 4.3500418e-06 | D200: ='DF raw data'!C205 -> -7.2833654e-06 | F200: 9.206153543e-07 | G200: 4.363182979e-06 | H200: -7.291056634e-06 | J200: =F200*$B$1+J199 -> -0.0001069880466 | K200: =J200*$B$1+K199 -> -0.007452165498 | L200: =G200*$B$1+L199 -> -4.395974825e-05 | M200: =L200*$B$1+M199 -> -0.001253708871 | N200: =(J200^2+L200^2)*$B$1+N199 -> 7.515250208e-07
A201: 98.65256667 | B201: ='DF raw data'!A206 -> -1.959525e-06 | C201: ='DF raw data'!B206 -> 9.270836e-06 | D201: ='DF raw data'!C206 -> -9.2494456e-06 | F201: -1.961594258e-06 | G201: 9.298842563e-06 | H201: -9.259213015e-06 | J201: -0.0001079692753 | K201: -0.007506173889 | L201: -3.930828122e-05 | M201: -0.00127337166 | N201: 7.58129178e-07
... 1002 more rows

Sheet 10 y=-0.1
A1: dz | B1: ='DF raw data'!E7 -> 0.50016 | C1: mm | F1: T_coeff | G1: -0.0008 | H1: /degC | L1: Hallref | M1: ='PI vs y'!B44 -> 0.50564 | N1: T | P1: IBy total | Q1: =L1203*1000 -> 11.37139148 | R1: muTm | X1: DF ref | Y1: 19
A2: Tref | B2: ='DF raw data'!E8 -> 21.36 | C2: degC | F2: Tcorr | G2: 20 | H2: degC | L2: NMRref | M2: ='PI vs y'!B45 -> 0.5066325 | N2: T | P2: JBy total | Q2: =M1203 -> 0.8051363515 | R2: muTm^2
A3: Encoder | B3: ='DF raw data'!E9 -> 1635122 | P3: PI total | Q3: =N1203 -> 702.7037096 | R3: T^2mm^3
A5: z [mm] | B5: Bx | C5: By | D5: Bz | F5: Bx_corr | G5: By_corr | H5: Bz_corr | J5: Ix | K5: Jx | L5: Iy | M5: Jy | N5: PI
A6: ='PI vs y'!B53 -> 1.109666667 | B6: ='DF raw data'!D11 -> -1.7196248e-06 | C6: ='DF raw data'!E11 -> 1.1712506e-06 | D6: ='DF raw data'!F11 -> -1.1166267e-06 | F6: =(1-$G$1*($B$2-$G$2))*B6 -> -1.721495752e-06 | G6: =(1-$G$1*($B$2-$G$2))*C6*$M$2/$M$1 -> 1.174826422e-06 | H6: =(1-$G$1*($B$2-$G$2))*D6 -> -1.11784159e-06 | J6: =F6*$B$1 -> -8.610233152e-07 | K6: =J6*$B$1 -> -4.306494213e-07 | L6: =G6*$B$1 -> 5.876011831e-07 | M6: =L6*$B$1 -> 2.938946077e-07 | N6: =(J6^2+L6^2)*$B$1 -> 5.434920117e-13
A7: =A6+$B$1 -> 1.609826667 | B7: ='DF raw data'!D12 -> -1.9139366e-06 | C7: ='DF raw data'!E12 -> 6.4116025e-06 | D7: ='DF raw data'!F12 -> -1.1293305e-06 | F7: =(1-$G$1*($B$2-$G$2))*B7 -> -1.916018963e-06 | G7: =(1-$G$1*($B$2-$G$2))*C7*$M$2/$M$1 -> 6.431177087e-06 | H7: -1.130559212e-06 | J7: =F7*$B$1+J6 -> -1.81933936e-06 | K7: =J7*$B$1+K6 -> -1.340610196e-06 | L7: =G7*$B$1+L6 -> 3.804218715e-06 | M7: =L7*$B$1+M6 -> 2.19661264e-06 | N7: =(J7^2+L7^2)*$B$1+N6 -> 9.437375013e-12
A8: =A7+$B$1 -> 2.109986667 | B8: ='DF raw data'!D13 -> -1.8283567e-06 | C8: ='DF raw data'!E13 -> 2.9326227e-06 | D8: ='DF raw data'!F13 -> -7.4371928e-06 | F8: -1.830345952e-06 | G8: 2.941575981e-06 | H8: -7.445284466e-06 | J8: =F8*$B$1+J7 -> -2.734805191e-06 | K8: =J8*$B$1+K7 -> -2.70845036e-06 | L8: =G8*$B$1+L7 -> 5.275477358e-06 | M8: =L8*$B$1+M7 -> 4.835195396e-06 | N8: =(J8^2+L8^2)*$B$1+N7 -> 2.709793498e-11
A9: 2.610146667 | B9: ='DF raw data'!D14 -> -1.5773799e-06 | C9: ='DF raw data'!E14 -> -2.8032784e-06 | D9: ='DF raw data'!F14 -> -9.1563561e-07 | F9: -1.579096089e-06 | G9: -2.811836794e-06 | H9: -9.166318215e-07 | J9: -3.524605891e-06 | K9: -4.471317242e-06 | L9: 3.869109067e-06 | M9: 6.770368987e-06 | N9: 4.079874366e-11
A10: 3.110306667 | B10: ='DF raw data'!D15 -> -1.47946e-06 | C10: ='DF raw data'!E15 -> -5.8491546e-06 | D10: ='DF raw data'!F15 -> -4.0022715e-06 | F10: -1.481069652e-06 | G10: -5.867012037e-06 | H10: -4.006625971e-06 | J10: -4.265377689e-06 | K10: -6.604688547e-06 | L10: 9.346643267e-07 | M10: 7.237850696e-06 | N10: 5.033531651e-11
A11: 3.610466667 | B11: ='DF raw data'!D16 -> -1.7351808e-06 | C11: ='DF raw data'!E16 -> 4.4754111e-07 | D11: ='DF raw data'!F16 -> -8.4992062e-06 | F11: -1.737068677e-06 | G11: 4.489074506e-07 | H11: -8.508453336e-06 | J11: -5.134189958e-06 | K11: -9.172604997e-06 | L11: 1.159189877e-06 | M11: 7.817631105e-06 | N11: 6.419156293e-11
A12: 4.110626667 | B12: ='DF raw data'!D17 -> -2.3050775e-06 | C12: ='DF raw data'!E17 -> 1.7169168e-05 | D12: ='DF raw data'!F17 -> -6.7237124e-07 | F12: -2.307585424e-06 | G12: 1.722158538e-05 | H12: -6.731027799e-07 | J12: -6.288351884e-06 | K12: -1.231778707e-05 | L12: 9.772738019e-06 | M12: 1.270556375e-05 | N12: 1.317380598e-10
A13: 4.610786667 | B13: ='DF raw data'!D18 -> -1.815813e-06 | C13: ='DF raw data'!E18 -> 4.3701671e-06 | D13: ='DF raw data'!F18 -> 3.7078862e-06 | F13: -1.817788605e-06 | G13: 4.383509196e-06 | H13: 3.71192038e-06 | J13: -7.197537032e-06 | K13: -1.59177072e-05 | L13: 1.196519398e-05 | M13: 1.869007517e-05 | N13: 2.292544582e-10
A14: 5.110946667 | B14: ='DF raw data'!D19 -> -1.4772481e-06 | C14: ='DF raw data'!E19 -> -4.9509213e-06 | D14: ='DF raw data'!F19 -> 3.2826065e-06 | F14: -1.478855346e-06 | G14: -4.966036436e-06 | H14: 3.286177976e-06 | J14: -7.937201322e-06 | K14: -1.988757781e-05 | L14: 9.481381195e-06 | M14: 2.343228279e-05 | N14: 3.057267986e-10
A15: 5.611106667 | B15: ='DF raw data'!D20 -> -1.420452e-06 | C15: ='DF raw data'!E20 -> -7.1323225e-06 | D15: ='DF raw data'!F20 -> -1.2133241e-06 | F15: -1.421997452e-06 | G15: -7.154097442e-06 | H15: -1.214644197e-06 | J15: -8.648427567e-06 | K15: -2.421317534e-05 | L15: 5.903187818e-06 | M15: 2.638482121e-05 | N15: 3.605658044e-10
A16: 6.111266667 | B16: ='DF raw data'!D21 -> -1.4272623e-06 | C16: ='DF raw data'!E21 -> -7.4604209e-06 | D16: ='DF raw data'!F21 -> -4.7808862e-06 | F16: -1.428815161e-06 | G16: -7.483197524e-06 | H16: -4.786087804e-06 | J16: -9.363063759e-06 | K16: -2.889620531e-05 | L16: 2.160391745e-06 | M16: 2.746536275e-05 | N16: 4.067477056e-10
A17: 6.611426667 | B17: ='DF raw data'!D22 -> -1.7070665e-06 | C17: ='DF raw data'!E22 -> -2.4014238e-07 | D17: ='DF raw data'!F22 -> -7.0274837e-06 | F17: -1.708923788e-06 | G17: -2.408755334e-07 | H17: -7.035129602e-06 | J17: -1.021779908e-05 | K17: -3.40067397e-05 | L17: 2.039915438e-06 | M17: 2.848564685e-05 | N17: 4.610474125e-10
A18: 7.111586667 | B18: ='DF raw data'!D23 -> -1.5456712e-06 | C18: ='DF raw data'!E23 -> -2.7912695e-06 | D18: ='DF raw data'!F23 -> 4.2423053e-06 | F18: -1.54735289e-06 | G18: -2.799791231e-06 | H18: 4.246920928e-06 | J18: -1.09917231e-05 | K18: -3.950435993e-05 | L18: 6.39571856e-07 | M18: 2.880553511e-05 | N18: 5.216803232e-10
A19: 7.611746667 | B19: ='DF raw data'!D24 -> -1.0204926e-06 | C19: ='DF raw data'!E24 -> -1.6875041e-05 | D19: ='DF raw data'!F24 -> 5.2106043e-06 | F19: -1.021602896e-06 | G19: -1.692656041e-05 | H19: 5.216273437e-06 | J19: -1.150268801e-05 | K19: -4.525754436e-05 | L19: -7.826416598e-06 | M19: 2.489107459e-05 | N19: 6.184936076e-10
A20: 8.111906667 | B20: ='DF raw data'!D25 -> -1.7204252e-06 | C20: ='DF raw data'!E25 -> 9.2507679e-07 | D20: ='DF raw data'!F25 -> -2.7563219e-06 | F20: -1.722297023e-06 | G20: 9.279010444e-07 | H20: -2.759320778e-06 | J20: -1.236411209e-05 | K20: -5.144157866e-05 | L20: -7.362317611e-06 | M20: 2.120873781e-05 | N20: 7.220642338e-10
A21: 8.612066667 | B21: ='DF raw data'!D26 -> -1.8122769e-06 | C21: ='DF raw data'!E26 -> 2.93876e-06 | D21: ='DF raw data'!F26 -> -5.1093957e-06 | F21: -1.814248657e-06 | G21: 2.947732018e-06 | H21: -5.114954723e-06 | J21: -1.327152669e-05 | K21: -5.807946545e-05 | L21: -5.887979965e-06 | M21: 1.826380575e-05 | N21: 8.274988265e-10
A22: 9.112226667 | B22: ='DF raw data'!D27 -> -2.2341223e-06 | C22: ='DF raw data'!E27 -> -9.0506046e-06 | D22: ='DF raw data'!F27 -> 1.4764373e-07 | F22: -2.236553025e-06 | G22: -9.078236046e-06 | H22: 1.478043664e-07 | J22: -1.439016105e-05 | K22: -6.527684841e-05 | L22: -1.042855051e-05 | M22: 1.304786193e-05 | N22: 9.854650599e-10
A23: 9.612386667 | B23: ='DF raw data'!D28 -> -2.8145837e-06 | C23: ='DF raw data'!E28 -> -1.0595958e-05 | D23: ='DF raw data'!F28 -> 1.0366057e-06 | F23: =(1-$G$1*($B$2-$G$2))*B23 -> -2.817645967e-06 | G23: -1.06283074e-05 | H23: 1.037733527e-06 | J23: -1.579943486e-05 | K23: -7.317909375e-05 | L23: -1.574440474e-05 | M23: 5.173140455e-06 | N23: 1.234298873e-09
A24: 10.11254667 | B24: ='DF raw data'!D29 -> 1.2401765e-06 | C24: ='DF raw data'!E29 -> 3.7829309e-07 | D24: ='DF raw data'!F29 -> 3.8601574e-06 | F24: 1.241525812e-06 | G24: 3.794480167e-07 | H24: 3.864357251e-06 | J24: -1.517847331e-05 | K24: -8.077075896e-05 | L24: -1.555462002e-05 | M24: -2.606658292e-06 | N24: 1.470540574e-09
A25: 10.61270667 | B25: ='DF raw data'!D30 -> 4.6274549e-06 | C25: ='DF raw data'!E30 -> 2.7467584e-06 | D25: ='DF raw data'!F30 -> -3.986308e-06 | F25: 4.632489571e-06 | G25: 2.755144238e-06 | H25: -3.990645103e-06 | J25: -1.286148733e-05 | K25: -8.720356046e-05 | L25: -1.417660707e-05 | M25: -9.697230086e-06 | N25: 1.653796219e-09
A26: 11.11286667 | B26: ='DF raw data'!D31 -> -1.175616e-06 | C26: ='DF raw data'!E31 -> 3.413227e-06 | D26: ='DF raw data'!F31 -> 1.094304e-07 | F26: -1.17689507e-06 | G26: 3.423647563e-06 | H26: 1.095494603e-07 | J26: -1.345012317e-05 | K26: -9.393077406e-05 | L26: -1.246423551e-05 | M26: -1.593134212e-05 | N26: 1.821981511e-09
A27: 11.61302667 | B27: ='DF raw data'!D32 -> -7.5704843e-06 | C27: ='DF raw data'!E32 -> -7.236396e-06 | D27: ='DF raw data'!F32 -> 3.3228716e-06 | F27: -7.578720987e-06 | G27: -7.258488677e-06 | H27: 3.326486884e-06 | J27: -1.724069625e-05 | K27: -0.0001025538807 | L27: -1.609464121e-05 | M27: -2.398123786e-05 | N27: 2.100210057e-09
A28: 12.11318667 | B28: ='DF raw data'!D33 -> -9.27172e-06 | C28: ='DF raw data'!E33 -> 3.3495824e-06 | D28: ='DF raw data'!F33 -> -7.6330616e-06 | F28: -9.281807631e-06 | G28: 3.359808657e-06 | H28: -7.641366371e-06 | J28: -2.188308516e-05 | K28: -0.0001134989246 | L28: -1.441419931e-05 | M28: -3.119064379e-05 | N28: 2.443639198e-09
A29: 12.61334667 | B29: ='DF raw data'!D34 -> -5.9367262e-06 | C29: ='DF raw data'!E34 -> 1.2074094e-06 | D29: ='DF raw data'!F34 -> -6.4370834e-06 | F29: -5.943185358e-06 | G29: 1.211095614e-06 | H29: -6.444086947e-06 | J29: -2.485562875e-05 | K29: -0.0001259307158 | L29: -1.380845773e-05 | M29: -3.809708201e-05 | N29: 2.848006447e-09
A30: 13.11350667 | B30: ='DF raw data'!D35 -> -2.8750615e-06 | C30: ='DF raw data'!E35 -> 8.7892749e-06 | D30: ='DF raw data'!F35 -> 1.1257216e-06 | F30: -2.878189567e-06 | G30: 8.816108508e-06 | H30: 1.126946385e-06 | J30: -2.629518404e-05 | K30: -0.0001390825151 | L30: -9.398992894e-06 | M30: -4.279808229e-05 | N30: 3.238020097e-09
A31: 13.61366667 | B31: ='DF raw data'!D36 -> -6.1033311e-06 | C31: ='DF raw data'!E36 -> 1.7884846e-06 | D31: ='DF raw data'!F36 -> 2.3469183e-06 | F31: -6.109971524e-06 | G31: 1.793944834e-06 | H31: 2.349471747e-06 | J31: -2.93511474e-05 | K31: -0.000153762785 | L31: -8.501733446e-06 | M31: -4.705030929e-05 | N31: 3.705054163e-09
A32: 14.11382667 | B32: ='DF raw data'!D37 -> -1.1069158e-05 | C32: ='DF raw data'!E37 -> -1.0453745e-06 | D32: ='DF raw data'!F37 -> 7.6841534e-06 | F32: -1.108120124e-05 | G32: -1.048566023e-06 | H32: 7.692513759e-06 | J32: -3.489352101e-05 | K32: -0.0001712151285 | L32: -9.026184228e-06 | M32: -5.156484559e-05 | N32: 4.354776913e-09
A33: 14.61398667 | B33: ='DF raw data'!D38 -> -7.6285464e-06 | C33: ='DF raw data'!E38 -> 4.9584473e-06 | D33: ='DF raw data'!F38 -> 1.0437288e-05 | F33: -7.636846258e-06 | G33: 4.973585413e-06 | H33: 1.044864377e-05 | J33: -3.871316604e-05 | K33: -0.0001905779056 | L33: -6.538595748e-06 | M33: -5.483518964e-05 | N33: 5.125754776e-09
A34: 15.11414667 | B34: ='DF raw data'!D39 -> -4.8164616e-06 | C34: ='DF raw data'!E39 -> -5.6810615e-07 | D34: ='DF raw data'!F39 -> 6.9018715e-06 | F34: -4.82170191e-06 | G34: -5.69840575e-07 | H34: 6.909380736e-06 | J34: -4.112478847e-05 | K34: -0.0002111468798 | L34: -6.82360721e-06 | M34: -5.824808503e-05 | N34: 5.994937747e-09
A35: 15.61430667 | B35: ='DF raw data'!D40 -> -2.4662836e-06 | C35: ='DF raw data'!E40 -> 7.3195747e-06 | D35: ='DF raw data'!F40 -> -9.3925337e-07 | F35: -2.468966917e-06 | G35: 7.341921322e-06 | H35: -9.402752777e-07 | J35: -4.235966696e-05 | K35: -0.0002323334908 | L35: -3.151471841e-06 | M35: -5.982432518e-05 | N35: 6.89736301e-09
A36: 16.11446667 | B36: ='DF raw data'!D41 -> 4.4422818e-06 | C36: ='DF raw data'!E41 -> 7.8986604e-09 | D36: ='DF raw data'!F41 -> 4.3969194e-06 | F36: 4.447115003e-06 | G36: 7.922774967e-09 | H36: 4.401703248e-06 | J36: -4.013539792e-05 | K36: -0.0002524076114 | L36: -3.147509186e-06 | M36: -6.139858338e-05 | N36: 7.708000821e-09
A37: 16.61462667 | B37: ='DF raw data'!D42 -> 4.2663346e-06 | C37: ='DF raw data'!E42 -> -9.9667168e-06 | D37: ='DF raw data'!F42 -> 1.238726e-05 | F37: 4.270976372e-06 | G37: -9.997145132e-06 | H37: 1.240073734e-05 | J37: -3.799922638e-05 | K37: -0.0002714133045 | L37: -8.147681296e-06 | M37: -6.547372765e-05 | N37: 8.463405431e-09
A38: 17.11478667 | B38: ='DF raw data'!D43 -> -1.8011953e-07 | C38: ='DF raw data'!E43 -> 2.2365082e-07 | D38: ='DF raw data'!F43 -> 6.0492457e-06 | F38: -1.803155e-07 | G38: 2.243336247e-07 | H38: 6.055827279e-06 | J38: -3.808941298e-05 | K38: -0.0002904641053 | L38: -8.03547859e-06 | M38: -6.949275262e-05 | N38: 9.22133404e-09
A39: 17.61494667 | B39: ='DF raw data'!D44 -> -2.8872049e-07 | C39: ='DF raw data'!E44 -> -6.0725101e-06 | D39: ='DF raw data'!F44 -> -1.3232057e-06 | F39: -2.890346179e-07 | G39: -6.09104944e-06 | H39: -1.324645348e-06 | J39: -3.823397653e-05 | K39: -0.000309587211 | L39: -1.108197788e-05 | M39: -7.503551468e-05 | N39: 1.001391118e-08
A40: 18.11510667 | B40: ='DF raw data'!D45 -> 2.6569364e-06 | C40: ='DF raw data'!E45 -> 1.9795523e-06 | D40: ='DF raw data'!F45 -> -8.4932108e-06 | F40: 2.659827147e-06 | G40: 1.985595862e-06 | H40: -8.502451413e-06 | J40: -3.690363739e-05 | K40: -0.0003280449343 | L40: -1.008886225e-05 | M40: -8.008156002e-05 | N40: 1.074597716e-08
A41: 18.61526667 | B41: ='DF raw data'!D46 -> 5.7074544e-06 | C41: ='DF raw data'!E46 -> -2.2376801e-06 | D41: ='DF raw data'!F46 -> -9.8360033e-06 | F41: 5.71366411e-06 | G41: -2.244511725e-06 | H41: -9.846704872e-06 | J41: -3.404589114e-05 | K41: -0.0003450733272 | L41: -1.121147724e-05 | M41: -8.568909248e-05 | N41: 1.13885927e-08
A42: 19.11542667 | B42: ='DF raw data'!D47 -> 5.0916901e-06 | C42: ='DF raw data'!E47 -> -5.8080582e-06 | D42: ='DF raw data'!F47 -> -7.4530399e-06 | F42: 5.097229859e-06 | G42: -5.82579017e-06 | H42: -7.461148807e-06 | J42: -3.149646066e-05 | K42: -0.0003608265969 | L42: -1.412530445e-05 | M42: -9.275400475e-05 | N42: 1.198455898e-08
A43: 19.61558667 | B43: ='DF raw data'!D48 -> -1.0762847e-06 | C43: ='DF raw data'!E48 -> -6.3799266e-06 | D43: ='DF raw data'!F48 -> -2.9215007e-06 | F43: -1.077455698e-06 | G43: -6.399404481e-06 | H43: -2.924679293e-06 | J43: -3.20353609e-05 | K43: -0.0003768494031 | L43: -1.732603059e-05 | M43: -0.0001014197922 | N43: 1.264799905e-08
A44: 20.11574667 | B44: ='DF raw data'!D49 -> -9.3134404e-06 | C44: ='DF raw data'!E49 -> -1.4688169e-05 | D44: ='DF raw data'!F49 -> -2.4370529e-06 | F44: -9.323573423e-06 | G44: -1.47330119e-05 | H44: -2.439704414e-06 | J44: -3.669863938e-05 | K44: -0.0003952045945 | L44: -2.469489382e-05 | M44: -0.0001137711903 | N44: 1.362662607e-08
A45: 20.61590667 | B45: ='DF raw data'!D50 -> -1.2620611e-05 | C45: ='DF raw data'!E50 -> 6.4915253e-06 | D45: ='DF raw data'!F50 -> 5.3551048e-07 | F45: -1.263434222e-05 | G45: 6.511343891e-06 | H45: 5.360931154e-07 | J45: -4.301783199e-05 | K45: -0.0004167203934 | L45: -2.143818006e-05 | M45: -0.0001244937104 | N45: 1.478206041e-08
A46: 21.11606667 | B46: ='DF raw data'!D51 -> -8.8820489e-06 | C46: ='DF raw data'!E51 -> 8.4845269e-06 | D46: ='DF raw data'!F51 -> 4.2709871e-07 | F46: -8.891712569e-06 | G46: 8.510430114e-06 | H46: 4.275633934e-07 | J46: -4.746511095e-05 | K46: -0.0004404605433 | L46: -1.718160334e-05 | M46: -0.0001330872612 | N46: 1.605654023e-08
A47: 21.61622667 | B47: ='DF raw data'!D52 -> -6.0092821e-06 | C47: ='DF raw data'!E52 -> 4.0843656e-06 | D47: ='DF raw data'!F52 -> -1.0771619e-06 | F47: -6.015820199e-06 | G47: 4.096835146e-06 | H47: -1.078333852e-06 | J47: -5.047398358e-05 | K47: -0.0004657056109 | L47: -1.513253027e-05 | M47: -0.0001406559475 | N47: 1.744529274e-08
A48: 22.11638667 | B48: ='DF raw data'!D53 -> -6.8443874e-06 | C48: ='DF raw data'!E53 -> 1.1509698e-06 | D48: ='DF raw data'!F53 -> -9.573123e-06 | F48: -6.851834093e-06 | G48: 1.154483705e-06 | H48: -9.583538558e-06 | J48: -5.390099692e-05 | K48: -0.0004926647335 | L48: -1.45551037e-05 | M48: -0.0001479358282 | N48: 1.900437574e-08
A49: 22.61654667 | B49: ='DF raw data'!D54 -> -4.2874703e-06 | C49: ='DF raw data'!E54 -> 1.4699432e-05 | D49: ='DF raw data'!F54 -> -5.2411779e-06 | F49: -4.292135068e-06 | G49: 1.474430929e-05 | H49: -5.246880302e-06 | J49: -5.60477512e-05 | K49: -0.0005206975768 | L49: -7.180589969e-06 | M49: -0.0001515272721 | N49: 2.060134225e-08
A50: 23.11670667 | B50: ='DF raw data'!D55 -> 3.0459528e-06 | C50: ='DF raw data'!E55 -> -3.1768734e-06 | D50: ='DF raw data'!F55 -> 3.9625156e-06 | F50: 3.049266797e-06 | G50: -3.186572377e-06 | H50: 3.966826817e-06 | J50: -5.452262991e-05 | K50: -0.0005479676153 | L50: -8.774386009e-06 | M50: -0.000155915869 | N50: 2.212668372e-08
A51: 23.61686667 | B51: ='DF raw data'!D56 -> 3.8698386e-06 | C51: ='DF raw data'!E56 -> 9.1500615e-06 | D51: ='DF raw data'!F56 -> 1.3398487e-05 | F51: 3.874048984e-06 | G51: 9.177996588e-06 | H51: 1.341306455e-05 | J51: -5.258498557e-05 | K51: -0.0005742685217 | L51: -4.183919236e-06 | M51: -0.000158008498 | N51: 2.351847189e-08
A52: 24.11702667 | B52: ='DF raw data'!D57 -> -1.0845065e-06 | C52: ='DF raw data'!E57 -> 1.4117422e-05 | D52: ='DF raw data'!F57 -> 7.6552678e-06 | F52: -1.085686443e-06 | G52: 1.416052241e-05 | H52: 7.663596731e-06 | J52: -5.312800251e-05 | K52: -0.0006008410235 | L52: 2.898607654e-06 | M52: -0.0001565587304 | N52: 2.493441814e-08
A53: 24.61718667 | B53: ='DF raw data'!D58 -> 1.6042363e-06 | C53: ='DF raw data'!E58 -> 3.0619137e-06 | D53: ='DF raw data'!F58 -> -1.0211224e-06 | F53: 1.605981709e-06 | G53: 3.071261706e-06 | H53: -1.022233381e-06 | J53: -5.232475469e-05 | K53: -0.0006270117728 | L53: 4.434729909e-06 | M53: -0.0001543406559 | N53: 2.631363273e-08
A54: 25.11734667 | B54: ='DF raw data'!D59 -> 7.6923934e-06 | C54: ='DF raw data'!E59 -> -5.3728195e-06 | D54: ='DF raw data'!F59 -> -3.002162e-06 | F54: 7.700762724e-06 | G54: -5.389222689e-06 | H54: -3.005428352e-06 | J54: -4.847314121e-05 | K54: -0.0006512560991 | L54: 1.739256289e-06 | M54: -0.0001534707495 | N54: 2.749034438e-08
A55: 25.61750667 | B55: ='DF raw data'!D60 -> 8.9635614e-06 | C55: ='DF raw data'!E60 -> 6.9483799e-06 | D55: ='DF raw data'!F60 -> -1.6878621e-06 | F55: 8.973313755e-06 | G55: 6.969593266e-06 | H55: -1.689698494e-06 | J55: -4.39850486e-05 | K55: -0.000673255661 | L55: 5.225168057e-06 | M55: -0.0001508573294 | N55: 2.847165174e-08
A56: 26.11766667 | B56: ='DF raw data'!D61 -> 2.2629142e-06 | C56: ='DF raw data'!E61 -> 6.1970518e-06 | D56: ='DF raw data'!F61 -> 3.64671e-07 | F56: 2.265376251e-06 | G56: 6.215971365e-06 | H56: 3.65067762e-07 | J56: -4.285199802e-05 | K56: -0.0006946885163 | L56: 8.334148295e-06 | M56: -0.0001466889218 | N56: 2.942483254e-08
A57: 26.61782667 | B57: ='DF raw data'!D62 -> -5.9329864e-06 | C57: ='DF raw data'!E62 -> 1.1705059e-05 | D57: ='DF raw data'!F62 -> 6.7929941e-06 | F57: -5.939441489e-06 | G57: 1.174079448e-05 | H57: 6.800384878e-06 | J57: -4.582266907e-05 | K57: -0.0007176071825 | L57: 1.420642406e-05 | M57: -0.0001395834367 | N57: 3.057597053e-08
A58: 27.11798667 | B58: ='DF raw data'!D63 -> -2.4449214e-06 | C58: ='DF raw data'!E63 -> 8.3547029e-06 | D58: ='DF raw data'!F63 -> -2.4723267e-06 | F58: -2.447581474e-06 | G58: 8.380209762e-06 | H58: -2.475016591e-06 | J58: -4.704685142e-05 | K58: -0.0007411381357 | L58: 1.839786978e-05 | M58: -0.0001303815582 | N58: 3.185232275e-08
A59: 27.61814667 | B59: ='DF raw data'!D64 -> -7.3713773e-07 | C59: ='DF raw data'!E64 -> 3.61657e-06 | D59: ='DF raw data'!F64 -> -6.7343208e-06 | F59: -7.379397359e-07 | G59: 3.627611368e-06 | H59: -6.741647741e-06 | J59: -4.741593936e-05 | K59: -0.0007648536919 | L59: 2.021225588e-05 | M59: -0.0001202721963 | N59: 3.318115113e-08
A60: 28.11830667 | B60: ='DF raw data'!D65 -> -4.4024887e-06 | C60: ='DF raw data'!E65 -> 2.3045811e-06 | D60: ='DF raw data'!F65 -> -1.5793776e-06 | F60: -4.407278608e-06 | G60: 2.311616974e-06 | H60: -1.581095963e-06 | J60: -4.962028383e-05 | K60: -0.0007896717731 | L60: 2.136843422e-05 | M60: -0.0001095845602 | N60: 3.464100941e-08
A61: 28.61846667 | B61: ='DF raw data'!D66 -> -5.3697545e-06 | C61: ='DF raw data'!E66 -> 2.0329232e-06 | D61: ='DF raw data'!F66 -> 4.2589527e-06 | F61: -5.375596793e-06 | G61: 2.039129703e-06 | H61: 4.263586441e-06 | J61: -5.230894232e-05 | K61: -0.0008158346137 | L61: 2.238832534e-05 | M61: -9.838681543e-05 | N61: 3.626025869e-08
A62: 29.11862667 | B62: ='DF raw data'!D67 -> -2.8848694e-06 | C62: ='DF raw data'!E67 -> -4.0302743e-06 | D62: ='DF raw data'!F67 -> 1.010792e-05 | F62: -2.888008138e-06 | G62: -4.042578705e-06 | H62: 1.011891742e-05 | J62: -5.375340847e-05 | K62: -0.0008427199184 | L62: 2.036638917e-05 | M62: -8.820036222e-05 | N62: 3.791289673e-08
A63: 29.61878667 | B63: ='DF raw data'!D68 -> 1.3507496e-07 | C63: ='DF raw data'!E68 -> -2.1581575e-06 | D63: ='DF raw data'!F68 -> 2.8918585e-06 | F63: 1.352219216e-07 | G63: -2.164746343e-06 | H63: 2.895004842e-06 | J63: -5.368577588e-05 | K63: -0.0008695713961 | L63: 1.928366964e-05 | M63: -7.855544202e-05 | N63: 3.954042859e-08
A64: 30.11894667 | B64: ='DF raw data'!D69 -> 4.4852682e-06 | C64: ='DF raw data'!E69 -> -4.5244883e-06 | D64: ='DF raw data'!F69 -> -7.7814184e-06 | F64: 4.490148172e-06 | G64: -4.538301538e-06 | H64: -7.789884583e-06 | J64: -5.143998337e-05 | K64: -0.0008952996182 | L64: 1.701379274e-05 | M64: -7.004582344e-05 | N64: 4.10086688e-08
A65: 30.61910667 | B65: ='DF raw data'!D70 -> 4.0339842e-06 | C65: ='DF raw data'!E70 -> 6.7089849e-07 | D65: ='DF raw data'!F70 -> -4.2149768e-06 | F65: 4.038373175e-06 | G65: 6.729467394e-07 | H65: -4.219562695e-06 | J65: -4.942015064e-05 | K65: -0.0009200176007 | L65: 1.735037378e-05 | M65: -6.136786049e-05 | N65: 4.238080112e-08
A66: 31.11926667 | B66: ='DF raw data'!D71 -> -1.5661021e-06 | C66: ='DF raw data'!E71 -> -4.4037365e-06 | D66: ='DF raw data'!F71 -> 6.5830827e-06 | F66: -1.567806019e-06 | G66: -4.417181083e-06 | H66: 6.590245094e-06 | J66: -5.02043045e-05 | K66: -0.0009451277857 | L66: 1.514107649e-05 | M66: -5.379489967e-05 | N66: 4.375610327e-08
A67: 31.61942667 | B67: ='DF raw data'!D72 -> -4.5015436e-06 | C67: ='DF raw data'!E72 -> -1.0871619e-05 | D67: ='DF raw data'!F72 -> 1.1645388e-05 | F67: -4.506441279e-06 | G67: -1.090480999e-05 | H67: 1.165805818e-05 | J67: -5.245824617e-05 | K67: -0.0009713653021 | L67: 9.686926728e-06 | M67: -4.894988639e-05 | N67: 4.517941065e-08
A68: 32.11958667 | B68: ='DF raw data'!D73 -> 7.6993138e-07 | C68: ='DF raw data'!E73 -> -1.2726316e-07 | D68: ='DF raw data'!F73 -> 1.0542513e-05 | F68: 7.707690653e-07 | G68: -1.276516937e-07 | H68: 1.055398325e-05 | J68: -5.207273831e-05 | K68: -0.0009974100029 | L68: 9.623080457e-06 | M68: -4.413680647e-05 | N68: 4.65819462e-08
A69: 32.61974667 | B69: ='DF raw data'!D74 -> 4.2566576e-06 | C69: ='DF raw data'!E74 -> -6.5990326e-07 | D69: ='DF raw data'!F74 -> 1.1211057e-05 | F69: 4.261288843e-06 | G69: -6.619179411e-07 | H69: 1.122325463e-05 | J69: -4.994141208e-05 | K69: -0.0010223887 | L69: 9.292015579e-06 | M69: -3.948931196e-05 | N69: 4.787260217e-08
A70: 33.11990667 | B70: ='DF raw data'!D75 -> 4.0887139e-06 | C70: ='DF raw data'!E75 -> -3.3984973e-06 | D70: ='DF raw data'!F75 -> 9.934738e-06 | F70: 4.093162421e-06 | G70: -3.408872894e-06 | H70: 9.945546995e-06 | J70: -4.789417597e-05 | K70: -0.001046343451 | L70: 7.587033713e-06 | M70: -3.569458118e-05 | N70: 4.904868598e-08
A71: 33.62006667 | B71: ='DF raw data'!D76 -> 6.5927493e-06 | C71: ='DF raw data'!E76 -> 8.1673414e-07 | D71: ='DF raw data'!F76 -> 1.3491372e-06 | F71: 6.599922211e-06 | G71: =(1-$G$1*($B$2-$G$2))*C71*$M$2/$M$1 -> 8.192276249e-07 | H71: 1.350605061e-06 | J71: -4.459315887e-05 | K71: -0.001068647165 | L71: 7.996778602e-06 | M71: -3.169491239e-05 | N71: 5.007526353e-08
A72: =A71+$B$1 -> 34.12022667 | B72: ='DF raw data'!D77 -> 8.6597174e-06 | C72: ='DF raw data'!E77 -> -5.2247156e-06 | D72: ='DF raw data'!F77 -> 2.4257752e-06 | F72: 8.669139173e-06 | G72: -5.240666628e-06 | H72: 2.428414443e-06 | J72: =F72*$B$1+J71 -> -4.025720223e-05 | K72: =J72*$B$1+K71 -> -0.001088782207 | L72: =G72*$B$1+L71 -> 5.375606781e-06 | M72: =L72*$B$1+M71 -> -2.900624891e-05 | N72: =(J72^2+L72^2)*$B$1+N71 -> 5.090029719e-08
A73: 34.62038667 | B73: ='DF raw data'!D78 -> 7.419851e-06 | C73: ='DF raw data'!E78 -> 5.5539326e-06 | D73: ='DF raw data'!F78 -> 5.8694277e-06 | F73: 7.427923798e-06 | G73: 5.570888726e-06 | H73: 5.875813637e-06 | J73: -3.654205186e-05 | K73: -0.00110705908 | L73: 8.161942486e-06 | M73: -2.492397175e-05 | N73: 5.160149093e-08
A74: 35.12054667 | B74: ='DF raw data'!D79 -> 4.6261162e-06 | C74: ='DF raw data'!E79 -> -7.3235543e-07 | D74: ='DF raw data'!F79 -> -1.098786e-06 | F74: 4.631149414e-06 | G74: -7.345913071e-07 | H74: -1.099981479e-06 | J74: -3.422573617e-05 | K74: -0.001124177424 | L74: 7.794529298e-06 | M74: -2.102545998e-05 | N74: 5.221776593e-08
A75: 35.62070667 | B75: ='DF raw data'!D80 -> 4.3842197e-06 | C75: ='DF raw data'!E80 -> -1.9735053e-05 | D75: ='DF raw data'!F80 -> -6.232236e-06 | F75: 4.388989731e-06 | G75: -1.979530401e-05 | H75: -6.239016673e-06 | J75: -3.203053906e-05 | K75: -0.001140197818 | L75: -2.106289955e-06 | M75: -2.207894196e-05 | N75: 5.273312674e-08
A76: 36.12086667 | B76: ='DF raw data'!D81 -> 2.8912368e-06 | C76: ='DF raw data'!E81 -> -6.16631e-06 | D76: ='DF raw data'!F81 -> -4.9287773e-06 | F76: 2.894382466e-06 | G76: -6.185135711e-06 | H76: -4.93413981e-06 | J76: -3.058288473e-05 | K76: -0.001155494154 | L76: -5.199847432e-06 | M76: -2.467969766e-05 | N76: 5.321445634e-08
A77: 36.62102667 | B77: ='DF raw data'!D82 -> -2.617609e-06 | C77: ='DF raw data'!E82 -> 4.2998504e-06 | D77: ='DF raw data'!F82 -> 2.9206712e-06 | F77: -2.620456959e-06 | G77: 4.31297782e-06 | H77: 2.92384889e-06 | J77: -3.189353248e-05 | K77: -0.001171446023 | L77: -3.042668446e-06 | M77: -2.620151871e-05 | N77: 5.372784819e-08
A78: 37.12118667 | B78: ='DF raw data'!D83 -> -4.7487806e-06 | C78: ='DF raw data'!E83 -> -2.8447732e-06 | D78: ='DF raw data'!F83 -> 6.740418e-06 | F78: -4.753947273e-06 | G78: -2.853458277e-06 | H78: 6.747751575e-06 | J78: -3.427126675e-05 | K78: -0.00118858714 | L78: -4.469854138e-06 | M78: -2.843716095e-05 | N78: 5.432528897e-08
A79: 37.62134667 | B79: ='DF raw data'!D84 -> 3.2804789e-07 | C79: ='DF raw data'!E84 -> 6.5990675e-06 | D79: ='DF raw data'!F84 -> -1.192835e-06 | F79: 3.284048061e-07 | G79: 6.619214417e-06 | H79: -1.194132804e-06 | J79: -3.41070118e-05 | K79: -0.001205646103 | L79: -1.159187855e-06 | M79: -2.901694035e-05 | N79: 5.49077913e-08
A80: 38.12150667 | B80: ='DF raw data'!D85 -> 9.4450261e-06 | C80: ='DF raw data'!E85 -> 1.817171e-06 | D80: ='DF raw data'!F85 -> -5.8101432e-06 | F80: 9.455302288e-06 | G80: 1.822718813e-06 | H80: -5.816464636e-06 | J80: -2.937784781e-05 | K80: -0.001220339727 | L80: -2.475368135e-07 | M80: -2.914074836e-05 | N80: 5.533948901e-08
A81: 38.62166667 | B81: ='DF raw data'!D86 -> 1.0622349e-05 | C81: ='DF raw data'!E86 -> 1.2491879e-05 | D81: ='DF raw data'!F86 -> -3.7660793e-06 | F81: 1.063390612e-05 | G81: 1.253001664e-05 | H81: -3.770176794e-06 | J81: -2.405919333e-05 | K81: -0.001232373174 | L81: 6.019476308e-06 | M81: -2.613004709e-05 | N81: 5.564712686e-08
A82: 39.12182667 | B82: ='DF raw data'!D87 -> 7.1166764e-06 | C82: ='DF raw data'!E87 -> 1.8150364e-06 | D82: ='DF raw data'!F87 -> -1.2572564e-06 | F82: 7.124419344e-06 | G82: 1.820577696e-06 | H82: -1.258624295e-06 | J82: -2.049584375e-05 | K82: -0.001242624375 | L82: 6.930056449e-06 | M82: -2.266391006e-05 | N82: 5.58812544e-08
A83: 39.62198667 | B83: ='DF raw data'!D88 -> 4.0101481e-06 | C83: ='DF raw data'!E88 -> -9.8843273e-08 | D83: ='DF raw data'!F88 -> 5.6167482e-07 | F83: 4.014511141e-06 | G83: -9.914504097e-08 | H83: 5.622859222e-07 | J83: -1.848794586e-05 | K83: -0.001251871306 | L83: 6.880468065e-06 | M83: -1.922257515e-05 | N83: 5.607588916e-08
A84: 40.12214667 | B84: ='DF raw data'!D89 -> 2.8693362e-06 | C84: ='DF raw data'!E89 -> 6.6912658e-06 | D84: ='DF raw data'!F89 -> 2.4587207e-06 | F84: 2.872458038e-06 | G84: 6.711694198e-06 | H84: 2.461395788e-06 | J84: -1.705125724e-05 | K84: -0.001260399663 | L84: 1.023738904e-05 | M84: -1.410224265e-05 | N84: 5.62737272e-08
A85: 40.62230667 | B85: ='DF raw data'!D90 -> 3.5445014e-06 | C85: ='DF raw data'!E90 -> -1.6734542e-05 | D85: ='DF raw data'!F90 -> -6.6145731e-07 | F85: 3.548357818e-06 | G85: -1.678563247e-05 | H85: -6.621769756e-07 | J85: -1.52765106e-05 | K85: -0.001268040362 | L85: 1.841887101e-06 | M85: -1.31810044e-05 | N85: 5.639214724e-08
A86: 41.12246667 | B86: ='DF raw data'!D91 -> 4.5998208e-06 | C86: ='DF raw data'!E91 -> -1.0717645e-05 | D86: ='DF raw data'!F91 -> 6.4898632e-07 | F86: 4.604825405e-06 | G86: -1.075036591e-05 | H86: 6.496924171e-07 | J86: -1.297336112e-05 | K86: -0.001274529118 | L86: -3.535015913e-06 | M86: -1.494907796e-05 | N86: 5.648257839e-08
A87: 41.62262667 | B87: ='DF raw data'!D92 -> 6.2070799e-06 | C87: ='DF raw data'!E92 -> -1.1413601e-05 | D87: ='DF raw data'!F92 -> -5.6797726e-06 | F87: =(1-$G$1*($B$2-$G$2))*B87 -> 6.213833203e-06 | G87: -1.144844666e-05 | H87: -5.685952193e-06 | J87: -9.865450309e-06 | K87: -0.001279463422 | L87: -9.261070995e-06 | M87: -1.958109523e-05 | N87: 5.657415496e-08
A88: 42.12278667 | B88: ='DF raw data'!D93 -> 4.6759856e-06 | C88: ='DF raw data'!E93 -> 2.0992363e-06 | D88: ='DF raw data'!F93 -> -5.3566473e-06 | F88: 4.681073072e-06 | G88: 2.105645257e-06 | H88: -5.362475332e-06 | J88: -7.524164801e-06 | K88: -0.001283226708 | L88: -8.207911464e-06 | M88: -2.368636422e-05 | N88: 5.663616623e-08
A89: 42.62294667 | B89: ='DF raw data'!D94 -> 3.2772409e-06 | C89: ='DF raw data'!E94 -> 9.5384685e-06 | D89: ='DF raw data'!F94 -> -8.1586477e-06 | F89: 3.280806538e-06 | G89: 9.567589392e-06 | H89: -8.167524309e-06 | J89: -5.883236603e-06 | K89: -0.001286169268 | L89: -3.422585953e-06 | M89: -2.539820481e-05 | N89: 5.665933692e-08
A90: 43.12310667 | B90: ='DF raw data'!D95 -> 7.5865364e-07 | C90: ='DF raw data'!E95 -> 7.810987e-06 | D90: ='DF raw data'!F95 -> -7.7352306e-06 | F90: 7.594790552e-07 | G90: 7.834833901e-06 | H90: -7.743646531e-06 | J90: -5.503375559e-06 | K90: -0.001288921836 | L90: 4.960845706e-07 | M90: -2.515008315e-05 | N90: 5.667460843e-08
A91: 43.62326667 | B91: ='DF raw data'!D96 -> -2.6111916e-06 | C91: ='DF raw data'!E96 -> 1.2981396e-06 | D91: ='DF raw data'!F96 -> -8.5985812e-07 | F91: -2.614032576e-06 | G91: 1.302102813e-06 | H91: -8.607936456e-07 | J91: -6.810810092e-06 | K91: -0.001292328331 | L91: 1.147344314e-06 | M91: -2.457622742e-05 | N91: 5.669846783e-08
A92: 44.12342667 | B92: ='DF raw data'!D97 -> -2.1854607e-06 | C92: ='DF raw data'!E97 -> -1.5188655e-05 | D92: ='DF raw data'!F97 -> 6.5108034e-06 | F92: -2.187838481e-06 | G92: -1.523502588e-05 | H92: 6.517887154e-06 | J92: -7.905079387e-06 | K92: -0.001296282136 | L92: -6.472606231e-06 | M92: -2.781356616e-05 | N92: 5.675067699e-08
A93: 44.62358667 | B93: ='DF raw data'!D98 -> -4.8869288e-07 | C93: ='DF raw data'!E98 -> -7.4514805e-06 | D93: ='DF raw data'!F98 -> 9.0671529e-06 | F93: -4.892245779e-07 | G93: -7.474229829e-06 | H93: 9.077017962e-06 | J93: -8.149769952e-06 | K93: -0.001300358325 | L93: -1.021091702e-05 | M93: -3.292065841e-05 | N93: 5.683604509e-08
A94: 45.12374667 | B94: ='DF raw data'!D99 -> 1.2868445e-06 | C94: ='DF raw data'!E99 -> -5.7485499e-06 | D94: ='DF raw data'!F99 -> 8.3853956e-07 | F94: 1.288244587e-06 | G94: -5.766100191e-06 | H94: 8.39451891e-07 | J94: -7.505441539e-06 | K94: -0.001304112246 | L94: -1.309488969e-05 | M94: -3.947019844e-05 | N94: 5.694998543e-08
A95: 45.62390667 | B95: ='DF raw data'!D100 -> -2.3314456e-06 | C95: ='DF raw data'!E100 -> -6.5109521e-06 | D95: ='DF raw data'!F100 -> -6.5443746e-06 | F95: -2.333982213e-06 | G95: -6.530830001e-06 | H95: -6.55149488e-06 | J95: -8.672806083e-06 | K95: -0.001308450037 | L95: -1.636134963e-05 | M95: -4.765349107e-05 | N95: 5.712149596e-08
A96: 46.12406667 | B96: ='DF raw data'!D101 -> -5.6052481e-06 | C96: ='DF raw data'!E101 -> 2.9114078e-06 | D96: ='DF raw data'!F101 -> -5.4896227e-06 | F96: -5.61134661e-06 | G96: 2.920296312e-06 | H96: -5.495595409e-06 | J96: -1.14793772e-05 | K96: -0.001314191562 | L96: -1.490073422e-05 | M96: -5.51062423e-05 | N96: 5.729845656e-08
A97: 46.62422667 | B97: ='DF raw data'!D102 -> -2.8668396e-06 | C97: ='DF raw data'!E102 -> 2.6337455e-06 | D97: ='DF raw data'!F102 -> -8.7493099e-06 | F97: -2.869958721e-06 | G97: 2.641786311e-06 | H97: -8.758829149e-06 | J97: -1.291481576e-05 | K97: -0.001320651036 | L97: -1.357941838e-05 | M97: -6.18981242e-05 | N97: 5.747410928e-08
A98: 47.12438667 | B98: ='DF raw data'!D103 -> 3.6388926e-07 | C98: ='DF raw data'!E103 -> -8.5404037e-07 | D98: ='DF raw data'!F103 -> -7.0300885e-06 | F98: 3.642851715e-07 | G98: -8.566477506e-07 | H98: -7.037737236e-06 | J98: -1.273261489e-05 | K98: -0.001327019381 | L98: -1.400787932e-05 | M98: -6.890430512e-05 | N98: 5.76533367e-08
A99: 47.62454667 | B99: ='DF raw data'!D104 -> 3.4316949e-06 | C99: ='DF raw data'!E104 -> 2.6991254e-06 | D99: ='DF raw data'!F104 -> -4.6766654e-06 | F99: 3.435428584e-06 | G99: 2.707365815e-06 | H99: -4.681753612e-06 | J99: -1.101435093e-05 | K99: -0.001332528319 | L99: -1.265376324e-05 | M99: -7.523321134e-05 | N99: 5.779409856e-08
A100: 48.12470667 | B100: ='DF raw data'!D105 -> 3.6792812e-06 | C100: ='DF raw data'!E105 -> 6.3770444e-06 | D100: ='DF raw data'!F105 -> -2.8176146e-06 | F100: 3.683284258e-06 | G100: 6.396513482e-06 | H100: -2.820680165e-06 | J100: -9.172119471e-06 | K100: -0.001337115846 | L100: -9.454483053e-06 | M100: -7.996196559e-05 | N100: 5.788088383e-08
A101: 48.62486667 | B101: ='DF raw data'!D106 -> 1.2809655e-06 | C101: ='DF raw data'!E106 -> -9.8398259e-06 | D101: ='DF raw data'!F106 -> 1.8277933e-06 | F101: 1.28235919e-06 | G101: -9.869866835e-06 | H101: 1.829781939e-06 | J101: -8.530734698e-06 | K101: -0.001341382578 | L101: -1.439099565e-05 | M101: -8.715976597e-05 | N101: 5.802086571e-08
A102: 49.12502667 | B102: ='DF raw data'!D107 -> 1.3226859e-06 | C102: ='DF raw data'!E107 -> -6.4040773e-06 | D102: ='DF raw data'!F107 -> 4.7260837e-06 | F102: 1.324124982e-06 | G102: -6.423628913e-06 | H102: 4.731225679e-06 | J102: -7.868460347e-06 | K102: -0.001345318067 | L102: -1.760383789e-05 | M102: -9.596450153e-05 | N102: 5.820682908e-08
A103: 49.62518667 | B103: ='DF raw data'!D108 -> 2.0049961e-06 | C103: ='DF raw data'!E108 -> -7.9855899e-06 | D103: ='DF raw data'!F108 -> -7.1084651e-07 | F103: 2.007177536e-06 | G103: -8.009969862e-06 | H103: -7.11619911e-07 | J103: -6.864550431e-06 | K103: -0.001348751441 | L103: -2.161010441e-05 | M103: -0.0001067730113 | N103: 5.846397067e-08
A104: 50.12534667 | B104: ='DF raw data'!D109 -> 2.4901644e-07 | C104: ='DF raw data'!E109 -> -5.6028471e-06 | D104: ='DF raw data'!F109 -> -2.6237394e-06 | F104: 2.492873699e-07 | G104: -5.619952562e-06 | H104: -2.626594028e-06 | J104: -6.73986686e-06 | K104: -0.001352122453 | L104: -2.442097989e-05 | M104: -0.0001189874086 | N104: 5.87849784e-08
A105: 50.62550667 | B105: ='DF raw data'!D110 -> -4.3303183e-07 | C105: ='DF raw data'!E110 -> 3.826985e-06 | D105: ='DF raw data'!F110 -> -5.1630195e-07 | F105: -4.335029686e-07 | G105: 3.838668764e-06 | H105: -5.168636865e-07 | J105: -6.956687705e-06 | K105: -0.00135560191 | L105: -2.250103132e-05 | M105: -0.0001302415245 | N105: 5.90624131e-08
A106: 51.12566667 | B106: ='DF raw data'!D111 -> -3.7353852e-06 | C106: ='DF raw data'!E111 -> 5.5448595e-06 | D106: ='DF raw data'!F111 -> -9.9164026e-07 | F106: -3.739449299e-06 | G106: 5.561787926e-06 | H106: -9.927191646e-07 | J106: -8.827010666e-06 | K106: -0.001360016827 | L106: -1.971924747e-05 | M106: -0.0001401043033 | N106: 5.929587021e-08
A107: 51.62582667 | B107: ='DF raw data'!D112 -> -6.4241863e-06 | C107: ='DF raw data'!E112 -> -8.0697035e-08 | D107: ='DF raw data'!F112 -> -2.3812172e-06 | F107: -6.431175815e-06 | G107: -8.094340261e-08 | H107: -2.383807964e-06 | J107: -1.204362756e-05 | K107: -0.001366040568 | L107: -1.975973212e-05 | M107: -0.0001499873309 | N107: 5.956370387e-08
A108: 52.12598667 | B108: ='DF raw data'!D113 -> -3.0397309e-06 | C108: ='DF raw data'!E113 -> 1.3224231e-06 | D108: ='DF raw data'!F113 -> -5.3249096e-06 | F108: -3.043038127e-06 | G108: 1.326460451e-06 | H108: -5.330703102e-06 | J108: -1.356563351e-05 | K108: -0.001372825555 | L108: -1.909628966e-05 | M108: -0.0001595385311 | N108: 5.983813901e-08
A109: 52.62614667 | B109: ='DF raw data'!D114 -> 1.6015588e-06 | C109: ='DF raw data'!E114 -> 3.1731913e-06 | D109: ='DF raw data'!F114 -> -8.2629413e-06 | F109: 1.603301296e-06 | G109: 3.182879036e-06 | H109: -8.27193138e-06 | J109: -1.276372633e-05 | K109: -0.001379209461 | L109: -1.750434088e-05 | M109: -0.0001682935023 | N109: 6.007287143e-08
A110: 53.12630667 | B110: ='DF raw data'!D115 -> 5.6901085e-06 | C110: ='DF raw data'!E115 -> -6.3245548e-06 | D110: ='DF raw data'!F115 -> -5.6551507e-06 | F110: 5.696299338e-06 | G110: -6.343863631e-06 | H110: -5.661303504e-06 | J110: -9.914665258e-06 | K110: -0.00138416838 | L110: -2.067728772e-05 | M110: -0.0001786354545 | N110: 6.033588097e-08
A111: 53.62646667 | B111: ='DF raw data'!D116 -> 4.4892117e-06 | C111: ='DF raw data'!E116 -> -7.461354e-06 | D111: ='DF raw data'!F116 -> -5.348993e-06 | F111: 4.494095962e-06 | G111: -7.484133473e-06 | H111: -5.354812704e-06 | J111: -7.666898222e-06 | K111: -0.001388003056 | L111: -2.442055191e-05 | M111: -0.0001908496377 | N111: 6.066355814e-08
A112: 54.12662667 | B112: ='DF raw data'!D117 -> -6.1832134e-07 | C112: ='DF raw data'!E117 -> -1.2221369e-05 | D112: ='DF raw data'!F117 -> -4.6382629e-06 | F112: -6.189940736e-07 | G112: -1.225868077e-05 | H112: -4.64330933e-06 | J112: -7.976494297e-06 | K112: -0.001391992579 | L112: -3.055185369e-05 | M112: -0.0002061304529 | N112: 6.116223778e-08
A113: 54.62678667 | B113: ='DF raw data'!D118 -> -5.2636856e-06 | C113: ='DF raw data'!E118 -> -1.3348962e-05 | D113: ='DF raw data'!F118 -> -5.0463132e-06 | F113: -5.26941249e-06 | G113: -1.338971631e-05 | H113: -5.051803589e-06 | J113: -1.061204365e-05 | K113: -0.001397300299 | L113: -3.72488542e-05 | M113: -0.0002247608398 | N113: 6.19125241e-08
A114: 55.12694667 | B114: ='DF raw data'!D119 -> -5.4457155e-06 | C114: ='DF raw data'!E119 -> -8.8726129e-06 | D114: ='DF raw data'!F119 -> -5.4278644e-06 | F114: -5.451640438e-06 | G114: -8.899700939e-06 | H114: -5.433769916e-06 | J114: -1.333873613e-05 | K114: -0.001403971801 | L114: -4.170012862e-05 | M114: -0.0002456175761 | N114: 6.287124209e-08
A115: 55.62710667 | B115: ='DF raw data'!D120 -> -4.389261e-06 | C115: ='DF raw data'!E120 -> -1.7754895e-06 | D115: ='DF raw data'!F120 -> 1.6337872e-06 | F115: -4.394036516e-06 | G115: -1.78091006e-06 | H115: 1.63556476e-06 | J115: -1.553645743e-05 | K115: -0.001411742516 | L115: -4.259086859e-05 | M115: -0.000266919825 | N115: 6.389925275e-08
A116: 56.12726667 | B116: ='DF raw data'!D121 -> -6.7058822e-06 | C116: ='DF raw data'!E121 -> 1.1089693e-05 | D116: ='DF raw data'!F121 -> 3.7653226e-06 | F116: -6.7131782e-06 | G116: 1.112354977e-05 | H116: 3.769419271e-06 | J116: -1.889412064e-05 | K116: -0.001421192599 | L116: -3.702731394e-05 | M116: -0.0002854394063 | N116: 6.476353412e-08
A117: 56.62742667 | B117: ='DF raw data'!D122 -> -6.347032e-06 | C117: ='DF raw data'!E122 -> 8.0005583e-07 | D117: ='DF raw data'!F122 -> 1.4244142e-06 | F117: -6.353937571e-06 | G117: 8.024983961e-07 | H117: 1.425963963e-06 | J117: -2.207210606e-05 | K117: -0.001432232183 | L117: -3.662593634e-05 | M117: -0.0003037582346 | N117: 6.567814524e-08
A118: 57.12758667 | B118: ='DF raw data'!D123 -> 1.092453e-07 | C118: ='DF raw data'!E123 -> -5.2409937e-06 | D118: ='DF raw data'!F123 -> 3.7391583e-06 | F118: 1.093641589e-07 | G118: -5.256994425e-06 | H118: 3.743226504e-06 | J118: -2.201740648e-05 | K118: -0.00144324441 | L118: -3.925527467e-05 | M118: -0.0003233921528 | N118: 6.669134075e-08
A119: 57.62774667 | B119: ='DF raw data'!D124 -> 5.234197e-06 | C119: ='DF raw data'!E124 -> -6.7212345e-06 | D119: ='DF raw data'!F124 -> 4.6609348e-06 | F119: 5.239891806e-06 | G119: -6.741754392e-06 | H119: 4.666005897e-06 | J119: -1.939662219e-05 | K119: -0.001452945824 | L119: -4.262723055e-05 | M119: -0.0003447125884 | N119: 6.778834655e-08
A120: 58.12790667 | B120: ='DF raw data'!D125 -> 4.2777579e-06 | C120: ='DF raw data'!E125 -> 1.0607724e-06 | D120: ='DF raw data'!F125 -> 1.1795782e-07 | F120: 4.282412101e-06 | G120: 1.064010932e-06 | H120: 1.180861581e-07 | J120: -1.725473096e-05 | K120: -0.00146157595 | L120: -4.209505484e-05 | M120: -0.0003657668511 | N120: 6.882353739e-08
A121: 58.62806667 | B121: ='DF raw data'!D126 -> 3.1171844e-06 | C121: ='DF raw data'!E126 -> 1.2784618e-05 | D121: ='DF raw data'!F126 -> 3.7167338e-06 | F121: 3.120575897e-06 | G121: 1.282364937e-05 | H121: 3.720777606e-06 | J121: -1.569394372e-05 | K121: -0.001469425433 | L121: -3.568117838e-05 | M121: -0.0003836131493 | N121: 6.958350368e-08
A122: 59.12822667 | B122: ='DF raw data'!D127 -> 5.2068394e-06 | C122: ='DF raw data'!E127 -> 1.1646617e-05 | D122: ='DF raw data'!F127 -> 1.1783224e-05 | F122: 5.212504441e-06 | G122: 1.168217406e-05 | H122: 1.179604415e-05 | J122: -1.30868575e-05 | K122: -0.001475970956 | L122: -2.98382222e-05 | M122: -0.0003985370345 | N122: 7.011446621e-08
A123: 59.62838667 | B123: ='DF raw data'!D128 -> 4.417398e-06 | C123: ='DF raw data'!E128 -> 1.1686912e-05 | D123: ='DF raw data'!F128 -> 6.102302e-06 | F123: 4.422204129e-06 | G123: 1.172259208e-05 | H123: 6.108941305e-06 | J123: -1.087504788e-05 | K123: -0.00148141022 | L123: -2.397505054e-05 | M123: -0.0004105283957 | N123: 7.046111196e-08
A124: 60.12854667 | B124: ='DF raw data'!D129 -> -4.7721142e-07 | C124: ='DF raw data'!E129 -> 1.2490545e-05 | D124: ='DF raw data'!F129 -> -4.2849279e-06 | F124: -4.77730626e-07 | G124: 1.252867857e-05 | H124: -4.289589902e-06 | J124: -1.111398963e-05 | K124: -0.001486968993 | L124: -1.770870667e-05 | M124: -0.0004193855825 | N124: 7.067974143e-08
A125: 60.62870667 | B125: ='DF raw data'!D130 -> -3.4900836e-06 | C125: ='DF raw data'!E130 -> 7.0404444e-06 | D125: ='DF raw data'!F130 -> -6.845803e-06 | F125: -3.493880811e-06 | G125: 7.061938838e-06 | H125: -6.853251234e-06 | J125: -1.286148906e-05 | K125: -0.001493401795 | L125: -1.417660734e-05 | M125: -0.0004264761544 | N125: 7.08629971e-08
A126: 61.12886667 | B126: ='DF raw data'!D131 -> -3.7475361e-06 | C126: ='DF raw data'!E131 -> 5.085069e-06 | D126: ='DF raw data'!F131 -> -7.9599849e-06 | F126: -3.751613419e-06 | G126: 5.100593688e-06 | H126: -7.968645364e-06 | J126: -1.473789602e-05 | K126: -0.001500773101 | L126: -1.16254944e-05 | M126: -0.0004322907617 | N126: 7.103923232e-08
A127: 61.62902667 | B127: ='DF raw data'!D132 -> -5.2435894e-06 | C127: ='DF raw data'!E132 -> 1.3298312e-05 | D127: ='DF raw data'!F132 -> -9.6814038e-06 | F127: -5.249294425e-06 | G127: 1.333891167e-05 | H127: -9.691937167e-06 | J127: -1.736338312e-05 | K127: -0.001509457571 | L127: -4.953904342e-06 | M127: -0.0004347685065 | N127: 7.120229861e-08
A128: 62.12918667 | B128: ='DF raw data'!D133 -> -5.0538906e-06 | C128: ='DF raw data'!E133 -> 1.3473102e-05 | D128: ='DF raw data'!F133 -> -4.6397327e-06 | F128: -5.059389233e-06 | G128: 1.351423531e-05 | H128: -4.644780729e-06 | J128: -1.989388724e-05 | K128: -0.001519407698 | L128: 1.805375589e-06 | M128: -0.0004338655298 | N128: 7.140187552e-08
A129: 62.62934667 | B129: ='DF raw data'!D134 -> -1.8565293e-06 | C129: ='DF raw data'!E134 -> 2.5939842e-06 | D129: ='DF raw data'!F134 -> 5.3997501e-06 | F129: -1.858549204e-06 | G129: 2.60190362e-06 | H129: 5.405625028e-06 | J129: -2.082345921e-05 | K129: -0.001529822759 | L129: 3.106743704e-06 | M129: -0.0004323116609 | N129: 7.16235806e-08
A130: 63.12950667 | B130: ='DF raw data'!D135 -> 1.3168797e-06 | C130: ='DF raw data'!E135 -> -5.0650028e-06 | D130: ='DF raw data'!F135 -> 1.1632539e-05 | F130: 1.318312465e-06 | G130: -5.080466226e-06 | H130: 1.16451952e-05 | J130: -2.016409205e-05 | K130: -0.001539908031 | L130: 5.656977161e-07 | M130: -0.0004320287215 | N130: 7.182710101e-08
A131: 63.62966667 | B131: ='DF raw data'!D136 -> 3.6454335e-06 | C131: ='DF raw data'!E136 -> -5.5315973e-06 | D131: ='DF raw data'!F136 -> 6.6889043e-06 | F131: 3.649399732e-06 | G131: -5.548485236e-06 | H131: 6.696181828e-06 | J131: -1.833880828e-05 | K131: -0.00154908037 | L131: -2.20943266e-06 | M131: -0.0004331337914 | N131: 7.199775234e-08
A132: 64.12982667 | B132: ='DF raw data'!D137 -> 5.3440785e-06 | C132: ='DF raw data'!E137 -> -5.9038589e-06 | D132: ='DF raw data'!F137 -> 1.4755933e-06 | F132: 5.349892857e-06 | G132: -5.921883349e-06 | H132: 1.477198746e-06 | J132: -1.566300587e-05 | K132: -0.001556914379 | L132: -5.171321836e-06 | M132: -0.0004357202797 | N132: 7.213383204e-08
A133: 64.62998667 | B133: ='DF raw data'!D138 -> 5.6925678e-06 | C133: ='DF raw data'!E138 -> -7.1755526e-06 | D133: ='DF raw data'!F138 -> -2.5579211e-06 | F133: 5.698761314e-06 | G133: -7.197459523e-06 | H133: -2.560704118e-06 | J133: -1.281271341e-05 | K133: -0.001563322785 | L133: -8.771203191e-06 | M133: -0.0004401072847 | N133: 7.225442043e-08
A134: 65.13014667 | B134: ='DF raw data'!D139 -> 6.372346e-06 | C134: ='DF raw data'!E139 -> 8.0750098e-08 | D134: ='DF raw data'!F139 -> 1.833323e-06 | F134: 6.379279112e-06 | G134: 8.099662761e-08 | H134: 1.835317655e-06 | J134: -9.622053168e-06 | K134: -0.001568135351 | L134: -8.730691917e-06 | M134: -0.0004444740276 | N134: 7.233885188e-08
A135: 65.63030667 | B135: ='DF raw data'!D140 -> 3.2749708e-06 | C135: ='DF raw data'!E140 -> 8.0792842e-07 | D135: ='DF raw data'!F140 -> -1.5205442e-06 | F135: 3.278533968e-06 | G135: =(1-$G$1*($B$2-$G$2))*C135*$M$2/$M$1 -> 8.103950211e-07 | H135: -1.522198552e-06 | J135: -7.982261618e-06 | K135: -0.001572127759 | L135: -8.325364744e-06 | M135: -0.000448638042 | N135: 7.240538727e-08
A136: =A135+$B$1 -> 66.13046667 | B136: ='DF raw data'!D141 -> -4.1019043e-06 | C136: ='DF raw data'!E141 -> -3.5261867e-06 | D136: ='DF raw data'!F141 -> -5.5591809e-06 | F136: -4.106367172e-06 | G136: -3.536952129e-06 | H136: -5.565229289e-06 | J136: =F136*$B$1+J135 -> -1.003610222e-05 | K136: =J136*$B$1+K135 -> -0.001577147416 | L136: =G136*$B$1+L135 -> -1.009440672e-05 | M136: =L136*$B$1+M135 -> -0.0004536868604 | N136: =(J136^2+L136^2)*$B$1+N135 -> 7.250672988e-08
A137: 66.63062667 | B137: ='DF raw data'!D142 -> -6.7083415e-06 | C137: ='DF raw data'!E142 -> 2.764561e-08 | D137: ='DF raw data'!F142 -> -2.5426125e-06 | F137: -6.715640176e-06 | G137: 2.77300119e-08 | H137: -2.545378862e-06 | J137: -1.339499681e-05 | K137: -0.001583847058 | L137: -1.008053728e-05 | M137: -0.000458728742 | N137: 7.264729644e-08
A138: 67.13078667 | B138: ='DF raw data'!D143 -> -2.8010359e-06 | C138: ='DF raw data'!E143 -> 4.2905108e-06 | D138: ='DF raw data'!F143 -> -1.6784761e-06 | F138: -2.804083427e-06 | G138: 4.303609706e-06 | H138: -1.680302282e-06 | J138: -1.479748718e-05 | K138: -0.001591248169 | L138: -7.928043847e-06 | M138: -0.0004626940324 | N138: 7.278825128e-08
A139: 67.63094667 | B139: ='DF raw data'!D144 -> 3.3111834e-07 | C139: ='DF raw data'!E144 -> 2.9144765e-06 | D139: ='DF raw data'!F144 -> -7.3600677e-07 | F139: 3.314785968e-07 | G139: 2.923374381e-06 | H139: -7.368075454e-07 | J139: -1.463169485e-05 | K139: -0.001598566358 | L139: -6.465888917e-06 | M139: -0.0004659280114 | N139: 7.291623933e-08
A140: 68.13110667 | B140: ='DF raw data'!D145 -> -4.1814522e-07 | C140: ='DF raw data'!E145 -> 1.7960898e-06 | D140: ='DF raw data'!F145 -> -6.3615444e-06 | F140: -4.18600162e-07 | G140: 1.801573252e-06 | H140: -6.36846576e-06 | J140: -1.48410619e-05 | K140: -0.001605989263 | L140: -5.564814039e-06 | M140: -0.0004687113088 | N140: 7.304189166e-08
A141: 68.63126667 | B141: ='DF raw data'!D146 -> -2.0931579e-06 | C141: ='DF raw data'!E146 -> -6.6950829e-06 | D141: ='DF raw data'!F146 -> -1.0095828e-05 | F141: -2.095435256e-06 | G141: -6.715522952e-06 | H141: -1.010681226e-05 | J141: -1.58891148e-05 | K141: -0.001613936363 | L141: -8.923649998e-06 | M141: -0.0004731745616 | N141: 7.320799255e-08
A142: 69.13142667 | B142: ='DF raw data'!D147 -> -1.131029e-06 | C142: ='DF raw data'!E147 -> -7.8719432e-07 | D142: ='DF raw data'!F147 -> -5.7660218e-06 | F142: -1.13225956e-06 | G142: -7.8959762e-07 | H142: -5.772295232e-06 | J142: -1.645542574e-05 | K142: -0.001622166709 | L142: -9.318575144e-06 | M142: -0.0004778353401 | N142: 7.33868582e-08
A143: 69.63158667 | B143: ='DF raw data'!D148 -> -1.0034594e-07 | C143: ='DF raw data'!E148 -> 7.2592652e-06 | D143: ='DF raw data'!F148 -> -3.2252574e-06 | F143: -1.004551164e-07 | G143: 7.281427697e-06 | H143: -3.22876648e-06 | J143: -1.650566937e-05 | K143: -0.001630422184 | L143: -5.676696267e-06 | M143: -0.0004806745965 | N143: 7.353923795e-08
A144: 70.13174667 | B144: ='DF raw data'!D149 -> 1.9593467e-06 | C144: ='DF raw data'!E149 -> -3.7396907e-07 | D144: ='DF raw data'!F149 -> -3.4089462e-06 | F144: 1.961478469e-06 | G144: -3.751107955e-07 | H144: -3.412655133e-06 | J144: -1.55246163e-05 | K144: -0.001638186976 | L144: -5.864311682e-06 | M144: -0.0004836076906 | N144: 7.367698395e-08
A145: 70.63190667 | B145: ='DF raw data'!D150 -> 4.3413643e-06 | C145: ='DF raw data'!E150 -> -1.3850816e-06 | D145: ='DF raw data'!F150 -> -1.3832469e-06 | F145: 4.346087704e-06 | G145: -1.389310247e-06 | H145: -1.384751873e-06 | J145: -1.335087707e-05 | K145: -0.001644864551 | L145: -6.559189095e-06 | M145: -0.0004868883347 | N145: 7.378765379e-08
A146: 71.13206667 | B146: ='DF raw data'!D151 -> 2.6348466e-06 | C146: ='DF raw data'!E151 -> 1.6728033e-06 | D146: ='DF raw data'!F151 -> -3.6649144e-06 | F146: 2.637713313e-06 | G146: 1.677910359e-06 | H146: -3.668901827e-06 | J146: -1.203159838e-05 | K146: -0.001650882275 | L146: -5.71996545e-06 | M146: -0.0004897492326 | N146: 7.387642087e-08
A147: 71.63222667 | B147: ='DF raw data'!D152 -> 2.4262595e-06 | C147: ='DF raw data'!E152 -> -4.0835125e-06 | D147: ='DF raw data'!F152 -> -1.3488316e-06 | F147: 2.42889927e-06 | G147: -4.095979441e-06 | H147: -1.350299129e-06 | J147: -1.081676012e-05 | K147: -0.001656292386 | L147: -7.768610527e-06 | M147: -0.0004936347808 | N147: 7.396512605e-08
A148: 72.13238667 | B148: ='DF raw data'!D153 -> 6.8614941e-06 | C148: ='DF raw data'!E153 -> -1.9432075e-06 | D148: ='DF raw data'!F153 -> 1.3891258e-07 | F148: 6.868959406e-06 | G148: -1.949140102e-06 | H148: 1.390637169e-07 | J148: -7.381181389e-06 | K148: -0.001659984158 | L148: -8.743492441e-06 | M148: -0.000498007926 | N148: 7.403061225e-08
A149: 72.63254667 | B149: ='DF raw data'!D154 -> 7.5172325e-06 | C149: ='DF raw data'!E154 -> 2.3663576e-06 | D149: ='DF raw data'!F154 -> -4.3582113e-06 | F149: 7.525411249e-06 | G149: 2.373582077e-06 | H149: -4.362953034e-06 | J149: -3.617271698e-06 | K149: -0.001661793372 | L149: -7.556321629e-06 | M149: -0.0005017872958 | N149: 7.40657148e-08
A150: 73.13270667 | B150: ='DF raw data'!D155 -> 5.4624147e-06 | C150: ='DF raw data'!E155 -> 7.9271712e-07 | D150: ='DF raw data'!F155 -> -7.8837911e-07 | F150: 5.468357807e-06 | G150: 7.95137281e-07 | H150: -7.892368665e-07 | J150: -8.822178575e-07 | K150: -0.001662234622 | L150: -7.158625767e-06 | M150: -0.0005053677541 | N150: 7.409173524e-08
A151: 73.63286667 | B151: ='DF raw data'!D156 -> 4.040387e-06 | C151: ='DF raw data'!E156 -> -4.4205494e-06 | D151: ='DF raw data'!F156 -> 9.584619e-07 | F151: =(1-$G$1*($B$2-$G$2))*B151 -> 4.044782941e-06 | G151: -4.434045313e-06 | H151: 9.595047065e-07 | J151: 1.140820778e-06 | K151: -0.001661664029 | L151: -9.37635787e-06 | M151: -0.0005100574332 | N151: 7.41363583e-08
A152: 74.13302667 | B152: ='DF raw data'!D157 -> 4.6889588e-07 | C152: ='DF raw data'!E157 -> -1.8167169e-06 | D152: ='DF raw data'!F157 -> 1.1677766e-06 | F152: 4.694060387e-07 | G152: -1.822263327e-06 | H152: 1.169047141e-06 | J152: 1.375598903e-06 | K152: -0.00166097601 | L152: -1.02877811e-05 | M152: -0.0005152029698 | N152: 7.419024089e-08
A153: 74.63318667 | B153: ='DF raw data'!D158 -> -2.348806e-06 | C153: ='DF raw data'!E158 -> 2.6035912e-06 | D153: ='DF raw data'!F158 -> 2.3310131e-06 | F153: -2.351361501e-06 | G153: 2.61153995e-06 | H153: 2.333549242e-06 | J153: 1.995419343e-07 | K153: -0.001660876207 | L153: -8.981593275e-06 | M153: -0.0005196952035 | N153: 7.423060822e-08
A154: 75.13334667 | B154: ='DF raw data'!D159 -> -1.2555788e-06 | C154: ='DF raw data'!E159 -> -5.7968496e-06 | D154: ='DF raw data'!F159 -> 5.3988188e-06 | F154: -1.25694487e-06 | G154: -5.81454735e-06 | H154: 5.404692715e-06 | J154: -4.291316118e-07 | K154: -0.001661090841 | L154: -1.188979728e-05 | M154: -0.0005256420045 | N154: 7.430140659e-08
A155: 75.63350667 | B155: ='DF raw data'!D160 -> 1.2463902e-06 | C155: ='DF raw data'!E160 -> -8.888358e-06 | D155: ='DF raw data'!F160 -> 7.7157019e-06 | F155: 1.247746273e-06 | G155: -8.915494108e-06 | H155: 7.724096584e-06 | J155: 1.949411639e-07 | K155: -0.00166099334 | L155: -1.634897081e-05 | M155: -0.0005338191058 | N155: 7.443511278e-08
A156: 76.13366667 | B156: ='DF raw data'!D161 -> 3.7737888e-07 | C156: ='DF raw data'!E161 -> -4.3668055e-07 | D156: ='DF raw data'!F161 -> -1.8702121e-06 | F156: 3.777894682e-07 | G156: -4.380137333e-07 | H156: -1.872246891e-06 | J156: 3.838963443e-07 | K156: -0.00166080133 | L156: -1.656804776e-05 | M156: -0.0005421057805 | N156: 7.457248052e-08
A157: 76.63382667 | B157: ='DF raw data'!D162 -> -3.1068153e-06 | C157: ='DF raw data'!E162 -> 3.9521397e-06 | D157: ='DF raw data'!F162 -> -9.998068e-06 | F157: -3.110195515e-06 | G157: 3.964205561e-06 | H157: -1.00089459e-05 | J157: -1.171699044e-06 | K157: -0.001661387367 | L157: -1.458531071e-05 | M157: -0.0005494007695 | N157: 7.467956686e-08
A158: 77.13398667 | B158: ='DF raw data'!D163 -> -4.4315198e-06 | C158: ='DF raw data'!E163 -> 9.4615888e-07 | D158: ='DF raw data'!F163 -> -2.8718496e-06 | F158: -4.436341294e-06 | G158: 9.490474979e-07 | H158: -2.874974172e-06 | J158: -3.390579506e-06 | K158: -0.001663083199 | L158: -1.411063511e-05 | M158: -0.0005564583448 | N158: 7.478490358e-08
A159: 77.63414667 | B159: ='DF raw data'!D164 -> -6.6068856e-06 | C159: ='DF raw data'!E164 -> 2.4394756e-06 | D159: ='DF raw data'!F164 -> 3.5253179e-06 | F159: -6.614073892e-06 | G159: 2.446923306e-06 | H159: 3.529153446e-06 | J159: -6.698674703e-06 | K159: -0.001666433608 | L159: -1.288678195e-05 | M159: -0.0005629037977 | N159: 7.489040803e-08
A160: 78.13430667 | B160: ='DF raw data'!D165 -> -6.5189047e-06 | C160: ='DF raw data'!E165 -> 6.9351704e-06 | D160: ='DF raw data'!F165 -> -1.7930142e-06 | F160: -6.525997268e-06 | G160: 6.956343437e-06 | H160: -1.794964999e-06 | J160: -9.962717497e-06 | K160: -0.001671416561 | L160: -9.407497215e-06 | M160: -0.0005676090515 | N160: 7.498431644e-08
A161: 78.63446667 | B161: ='DF raw data'!D166 -> 3.6303069e-07 | C161: ='DF raw data'!E166 -> 4.3901805e-06 | D161: ='DF raw data'!F166 -> -4.7720387e-06 | F161: 3.634256674e-07 | G161: 4.403583697e-06 | H161: -4.777230678e-06 | J161: -9.780946515e-06 | K161: -0.001676308599 | L161: -7.205000793e-06 | M161: -0.0005712127047 | N161: 7.505812953e-08
A162: 79.13462667 | B162: ='DF raw data'!D167 -> 1.6964809e-06 | C162: ='DF raw data'!E167 -> -4.6750151e-07 | D162: ='DF raw data'!F167 -> 6.0453021e-07 | F162: 1.698326671e-06 | G162: -4.689287896e-07 | H162: 6.051879389e-07 | J162: -8.931511447e-06 | K162: -0.001680775784 | L162: -7.439540217e-06 | M162: -0.0005749336651 | N162: 7.512571048e-08
A163: 79.63478667 | B163: ='DF raw data'!D168 -> -2.3307762e-06 | C163: ='DF raw data'!E168 -> 4.3041205e-06 | D163: ='DF raw data'!F168 -> -5.3287658e-07 | F163: -2.333312085e-06 | G163: 4.317260956e-06 | H163: -5.334563497e-07 | J163: -1.009854082e-05 | K163: -0.00168582667 | L163: -5.280218977e-06 | M163: -0.0005775746194 | N163: 7.519066187e-08
A164: 80.13494667 | B164: ='DF raw data'!D169 -> -2.774726e-06 | C164: ='DF raw data'!E169 -> 3.6830168e-06 | D164: ='DF raw data'!F169 -> -1.7793063e-06 | F164: -2.777744902e-06 | G164: 3.69426103e-06 | H164: -1.781242185e-06 | J164: -1.148785771e-05 | K164: -0.001691572437 | L164: -3.43249738e-06 | M164: -0.0005792914173 | N164: 7.526256133e-08
A165: 80.63510667 | B165: ='DF raw data'!D170 -> -1.2992346e-06 | C165: ='DF raw data'!E170 -> -4.9032892e-06 | D165: ='DF raw data'!F170 -> 1.1496741e-06 | F165: -1.300648167e-06 | G165: -4.918258915e-06 | H165: 1.150924945e-06 | J165: -1.21383899e-05 | K165: -0.001697643574 | L165: -5.892413759e-06 | M165: -0.000582238567 | N165: 7.535362098e-08
A166: 81.13526667 | B166: ='DF raw data'!D171 -> 2.3103098e-06 | C166: ='DF raw data'!E171 -> -1.5893578e-06 | D166: ='DF raw data'!F171 -> 1.2607779e-07 | F166: 2.312823417e-06 | G166: -1.594210101e-06 | H166: 1.262149626e-07 | J166: -1.098160814e-05 | K166: -0.001703136135 | L166: -6.689773883e-06 | M166: -0.0005855845243 | N166: 7.543632184e-08
A167: 81.63542667 | B167: ='DF raw data'!D172 -> 7.4815948e-06 | C167: ='DF raw data'!E172 -> -7.7815794e-06 | D167: ='DF raw data'!F172 -> 3.5001576e-06 | F167: 7.489734775e-06 | G167: -7.805336519e-06 | H167: 3.503965771e-06 | J167: -7.235542392e-06 | K167: -0.001706755064 | L167: -1.0593691e-05 | M167: -0.0005908830648 | N167: 7.551863785e-08
A168: 82.13558667 | B168: ='DF raw data'!D173 -> 6.0201751e-06 | C168: ='DF raw data'!E173 -> -5.548543e-06 | D168: ='DF raw data'!F173 -> 2.4786277e-06 | F168: 6.026725051e-06 | G168: -5.565482671e-06 | H168: 2.481324447e-06 | J168: -4.22121559e-06 | K168: -0.001708866348 | L168: -1.337732281e-05 | M168: -0.0005975738665 | N168: 7.561705505e-08
A169: 82.63574667 | B169: ='DF raw data'!D174 -> 9.8772989e-07 | C169: ='DF raw data'!E174 -> 1.1382941e-06 | D169: ='DF raw data'!F174 -> 8.71878e-07 | F169: 9.888045401e-07 | G169: 1.141769306e-06 | H169: 8.728266033e-07 | J169: -3.726655112e-06 | K169: -0.001710730271 | L169: -1.280625547e-05 | M169: -0.0006039790433 | N169: 7.570602758e-08
A170: 83.13590667 | B170: ='DF raw data'!D175 -> -7.1314865e-08 | C170: ='DF raw data'!E175 -> -3.7201892e-06 | D170: ='DF raw data'!F175 -> 1.957902e-06 | F170: -7.139245557e-08 | G170: -3.731546917e-06 | H170: 1.960032197e-06 | J170: -3.762362762e-06 | K170: -0.001712612055 | L170: -1.467262598e-05 | M170: -0.0006113177039 | N170: 7.582078495e-08
A171: 83.63606667 | B171: ='DF raw data'!D176 -> 3.0141788e-07 | C171: ='DF raw data'!E176 -> -3.6015729e-06 | D171: ='DF raw data'!F176 -> 4.2477623e-06 | F171: 3.017458227e-07 | G171: -3.612568482e-06 | H171: 4.252383865e-06 | J171: -3.611441572e-06 | K171: -0.001714418353 | L171: -1.647948823e-05 | M171: -0.0006195600847 | N171: 7.596313851e-08
A172: 84.13622667 | B172: ='DF raw data'!D177 -> 6.4137976e-07 | C172: ='DF raw data'!E177 -> 4.5222737e-06 | D172: ='DF raw data'!F177 -> 5.6592398e-08 | F172: 6.420775812e-07 | G172: 4.536080177e-06 | H172: 5.665397053e-08 | J172: -3.290300049e-06 | K172: -0.00171606403 | L172: -1.421072237e-05 | M172: -0.0006266677196 | N172: 7.606955791e-08
A173: 84.63638667 | B173: ='DF raw data'!D178 -> 5.3557278e-07 | C173: ='DF raw data'!E178 -> 1.0471628e-06 | D173: ='DF raw data'!F178 -> -3.5107078e-06 | F173: 5.361554832e-07 | G173: 1.050359782e-06 | H173: -3.51452745e-06 | J173: -3.022136522e-06 | K173: -0.001717575582 | L173: -1.368537442e-05 | M173: -0.0006335125965 | N173: 7.616780073e-08
A174: 85.13654667 | B174: ='DF raw data'!D179 -> 2.3476314e-08 | C174: ='DF raw data'!E179 -> 2.1602125e-06 | D174: ='DF raw data'!F179 -> -5.0075032e-06 | F174: 2.350185623e-08 | G174: 2.166807617e-06 | H174: -5.012951363e-06 | J174: -3.010381834e-06 | K174: -0.001719081254 | L174: -1.260162392e-05 | M174: -0.0006398154247 | N174: 7.625175925e-08
A175: 85.63670667 | B175: ='DF raw data'!D180 -> 1.9716867e-06 | C175: ='DF raw data'!E180 -> 3.916381e-06 | D175: ='DF raw data'!F180 -> -1.7910206e-06 | F175: 1.973831895e-06 | G175: 3.92833769e-06 | H175: -1.79296923e-06 | J175: -2.023150073e-06 | K175: -0.001720093153 | L175: -1.063682655e-05 | M175: -0.0006451355399 | N175: 7.631039561e-08
A176: 86.13686667 | B176: ='DF raw data'!D181 -> 4.1639473e-06 | C176: ='DF raw data'!E181 -> 5.8713554e-06 | D176: ='DF raw data'!F181 -> 5.5257988e-06 | F176: 4.168477675e-06 | G176: 5.889280616e-06 | H176: 5.531810869e-06 | J176: 6.175572074e-08 | K176: -0.001720062265 | L176: -7.691243952e-06 | M176: -0.0006489823925 | N176: 7.63399846e-08
A177: 86.63702667 | B177: ='DF raw data'!D182 -> 3.3466681e-06 | C177: ='DF raw data'!E182 -> 3.5282417e-06 | D177: ='DF raw data'!F182 -> 2.3061875e-06 | F177: 3.350309275e-06 | G177: 3.539013403e-06 | H177: 2.308696632e-06 | J177: 1.737446408e-06 | K177: -0.001719193264 | L177: -5.921171009e-06 | M177: -0.0006519439253 | N177: 7.635903019e-08
A178: 87.13718667 | B178: ='DF raw data'!D183 -> -1.2895575e-06 | C178: ='DF raw data'!E183 -> -9.1863012e-06 | D178: ='DF raw data'!F183 -> -2.9848015e-06 | F178: -1.290960539e-06 | G178: -9.214346927e-06 | H178: -2.988048964e-06 | J178: 1.091759585e-06 | K178: -0.00171864721 | L178: -1.052981877e-05 | M178: -0.0006572105195 | N178: 7.641508263e-08
A179: 87.63734667 | B179: ='DF raw data'!D184 -> -4.5899901e-06 | C179: ='DF raw data'!E184 -> -6.1920883e-07 | D179: ='DF raw data'!F184 -> -2.1189335e-06 | F179: -4.594984009e-06 | G179: -6.210992712e-07 | H179: -2.1212389e-06 | J179: -1.206467617e-06 | K179: -0.001719250636 | L179: -1.084046778e-05 | M179: -0.0006626324879 | N179: 7.647458732e-08
A180: 88.13750667 | B180: ='DF raw data'!D185 -> -2.2958079e-06 | C180: ='DF raw data'!E185 -> 6.5646432e-06 | D180: ='DF raw data'!F185 -> -1.4956458e-06 | F180: -2.298305739e-06 | G180: 6.58468502e-06 | H180: -1.497273063e-06 | J180: -2.355988216e-06 | K180: -0.001720429007 | L180: -7.54707172e-06 | M180: -0.0006664072313 | N180: 7.65058518e-08
A181: 88.63766667 | B181: ='DF raw data'!D186 -> 3.0430861e-06 | C181: ='DF raw data'!E186 -> 6.2372133e-06 | D181: ='DF raw data'!F186 -> -1.0618882e-05 | F181: 3.046396978e-06 | G181: 6.256255478e-06 | H181: -1.063043534e-05 | J181: -8.323023034e-07 | K181: -0.001720845292 | L181: -4.41794298e-06 | M181: -0.0006686169096 | N181: 7.651596051e-08
A182: 89.13782667 | B182: ='DF raw data'!D187 -> 7.4938766e-06 | C182: ='DF raw data'!E187 -> -4.0452192e-06 | D182: ='DF raw data'!F187 -> -9.9832832e-06 | F182: 7.502029938e-06 | G182: -4.057569232e-06 | H182: -9.994145012e-06 | J182: 2.91991299e-06 | K182: -0.001719384868 | L182: -6.447376807e-06 | M182: -0.0006718416296 | N182: 7.654101581e-08
A183: 89.63798667 | B183: ='DF raw data'!D188 -> 5.7455077e-06 | C183: ='DF raw data'!E188 -> -1.0153514e-05 | D183: ='DF raw data'!F188 -> -6.0412858e-06 | F183: 5.751758812e-06 | G183: -1.018451262e-05 | H183: -6.047858719e-06 | J183: 5.796712678e-06 | K183: -0.001716485584 | L183: -1.154126264e-05 | M183: -0.0006776141075 | N183: 7.662444381e-08
A184: 90.13814667 | B184: ='DF raw data'!D189 -> 1.655299e-06 | C184: ='DF raw data'!E189 -> -9.7937946e-06 | D184: ='DF raw data'!F189 -> -1.0208649e-05 | F184: 1.657099965e-06 | G184: -9.823695001e-06 | H184: -1.021975601e-05 | J184: 6.625527796e-06 | K184: -0.00171317176 | L184: -1.645468193e-05 | M184: -0.0006858440812 | N184: 7.678182124e-08
A185: 90.63830667 | B185: ='DF raw data'!D190 -> -1.6409787e-07 | C185: ='DF raw data'!E190 -> -3.831768e-07 | D185: ='DF raw data'!F190 -> 2.474364e-06 | F185: -1.642764085e-07 | G185: -3.843466367e-07 | H185: 2.477056108e-06 | J185: 6.543363308e-06 | K185: -0.001709899032 | L185: -1.664691675e-05 | M185: -0.0006941702031 | N185: 7.694184015e-08
A186: 91.13846667 | B186: ='DF raw data'!D191 -> -1.2709311e-06 | C186: ='DF raw data'!E191 -> 2.4996514e-06 | D186: ='DF raw data'!F191 -> 1.4510064e-05 | F186: -1.272313873e-06 | G186: 2.507282822e-06 | H186: 1.452585095e-05 | J186: 5.907002801e-06 | K186: -0.001706944585 | L186: -1.539287417e-05 | M186: -0.0007018691031 | N186: 7.707780027e-08
A187: 91.63862667 | B187: ='DF raw data'!D192 -> -3.4701329e-06 | C187: ='DF raw data'!E192 -> 8.554286e-07 | D187: ='DF raw data'!F192 -> 8.7011722e-06 | F187: -3.473908405e-06 | G187: 8.580402188e-07 | H187: 8.710639075e-06 | J187: 4.169492774e-06 | K187: -0.001704859172 | L187: -1.496371677e-05 | M187: -0.0007093533556 | N187: 7.719848762e-08
A188: 92.13878667 | B188: ='DF raw data'!D193 -> -6.8981858e-06 | C188: ='DF raw data'!E193 -> 1.1000029e-05 | D188: ='DF raw data'!F193 -> 3.0987139e-06 | F188: -6.905691026e-06 | G188: 1.103361203e-05 | H188: 3.102085301e-06 | J188: 7.1554235e-07 | K188: -0.001704501286 | L188: -9.445145382e-06 | M188: -0.0007140774396 | N188: 7.724336336e-08
A189: 92.63894667 | B189: ='DF raw data'!D194 -> -7.6334218e-06 | C189: ='DF raw data'!E194 -> -7.762098e-06 | D189: ='DF raw data'!F194 -> -2.0321459e-06 | F189: -7.641726963e-06 | G189: -7.785795643e-06 | H189: -2.034356875e-06 | J189: -3.106543808e-06 | K189: -0.001706055055 | L189: -1.333928893e-05 | M189: -0.0007207492183 | N189: 7.7337187e-08
A190: 93.13910667 | B190: ='DF raw data'!D195 -> -5.5938976e-06 | C190: ='DF raw data'!E195 -> -7.8440235e-06 | D190: ='DF raw data'!F195 -> -2.9248331e-06 | F190: -5.599983761e-06 | G190: -7.867971261e-06 | H190: -2.928015318e-06 | J190: -5.907431685e-06 | K190: -0.001709009716 | L190: -1.727453344e-05 | M190: -0.000729389249 | N190: 7.750389396e-08
A191: 93.63926667 | B191: ='DF raw data'!D196 -> -5.2130158e-06 | C191: ='DF raw data'!E196 -> 1.0763839e-06 | D191: ='DF raw data'!F196 -> -2.5349582e-06 | F191: -5.218687561e-06 | G191: 1.079670094e-06 | H191: -2.537716235e-06 | J191: -8.517610456e-06 | K191: -0.001713269884 | L191: -1.673452564e-05 | M191: -0.0007377591893 | N191: 7.768024739e-08
A192: 94.13942667 | B192: ='DF raw data'!D197 -> -5.44979e-06 | C192: ='DF raw data'!E197 -> -8.1547961e-07 | D192: ='DF raw data'!F197 -> -3.3760007e-06 | F192: -5.455719372e-06 | G192: -8.179692648e-07 | H192: -3.379673789e-06 | J192: -1.124634306e-05 | K192: -0.001718894855 | L192: -1.714364115e-05 | M192: -0.0007463337529 | N192: 7.789050698e-08
A193: 94.63958667 | B193: ='DF raw data'!D198 -> -5.2019022e-08 | C193: ='DF raw data'!E198 -> 7.4627419e-06 | D193: ='DF raw data'!F198 -> -8.6974032e-06 | F193: -5.20756187e-08 | G193: 7.48552561e-06 | H193: -8.706865975e-06 | J193: -1.12723892e-05 | K193: -0.001724532853 | L193: -1.339968066e-05 | M193: -0.0007530357371 | N193: 7.804386514e-08
A194: 95.13974667 | B194: ='DF raw data'!D199 -> 5.0777494e-06 | C194: ='DF raw data'!E199 -> -2.0191267e-06 | D194: ='DF raw data'!F199 -> -8.142466e-06 | F194: 5.083273991e-06 | G194: -2.025291083e-06 | H194: -8.151325003e-06 | J194: -8.729938879e-06 | K194: -0.001728899219 | L194: -1.441265025e-05 | M194: -0.0007602443683 | N194: 7.818587873e-08
A195: 95.63990667 | B195: ='DF raw data'!D200 -> 3.6447641e-06 | C195: ='DF raw data'!E200 -> -6.2625109e-06 | D195: ='DF raw data'!F200 -> -9.3160925e-06 | F195: 3.648729603e-06 | G195: -6.281630312e-06 | H195: -9.326228409e-06 | J195: -6.90499028e-06 | K195: -0.001732352819 | L195: -1.755447047e-05 | M195: -0.0007690244122 | N195: 7.836385483e-08
A196: 96.14006667 | B196: ='DF raw data'!D201 -> -2.2986746e-06 | C196: ='DF raw data'!E201 -> -2.3683053e-06 | D196: ='DF raw data'!F201 -> -9.6794101e-06 | F196: -2.301175558e-06 | G196: -2.375535723e-06 | H196: -9.689941298e-06 | J196: -8.055946248e-06 | K196: -0.001736382081 | L196: -1.874261841e-05 | M196: -0.0007783987203 | N196: 7.857201342e-08
A197: 96.64022667 | B197: ='DF raw data'!D202 -> -1.0714251e-05 | C197: ='DF raw data'!E202 -> 6.8431059e-06 | D197: ='DF raw data'!F202 -> -1.8060528e-06 | F197: -1.072590811e-05 | G197: 6.863997865e-06 | H197: -1.808017785e-06 | J197: -1.342061645e-05 | K197: -0.001743094537 | L197: -1.530952124e-05 | M197: -0.0007860559304 | N197: 7.877932694e-08
A198: 97.14038667 | B198: ='DF raw data'!D203 -> -1.3029592e-05 | C198: ='DF raw data'!E203 -> 3.9713527e-06 | D198: ='DF raw data'!F203 -> -3.9211591e-07 | F198: -1.30437682e-05 | G198: 3.983477218e-06 | H198: -3.925425321e-07 | J198: -1.994458755e-05 | K198: -0.001753070022 | L198: -1.331714528e-05 | M198: -0.0007927166338 | N198: 7.906698542e-08
A199: 97.64054667 | B199: ='DF raw data'!D204 -> -6.2549184e-06 | C199: ='DF raw data'!E204 -> -2.7727231e-06 | D199: ='DF raw data'!F204 -> 2.5340705e-06 | F199: -6.261723751e-06 | G199: =(1-$G$1*($B$2-$G$2))*C199*$M$2/$M$1 -> -2.781188208e-06 | H199: 2.536827569e-06 | J199: -2.30764513e-05 | K199: -0.00176461194 | L199: -1.470818437e-05 | M199: -0.0008000730793 | N199: 7.944153189e-08
A200: =A199+$B$1 -> 98.14070667 | B200: ='DF raw data'!D205 -> 1.8514006e-06 | C200: ='DF raw data'!E205 -> -1.5805521e-06 | D200: ='DF raw data'!F205 -> 2.0700099e-07 | F200: 1.853414924e-06 | G200: -1.585377517e-06 | H200: 2.072262071e-07 | J200: =F200*$B$1+J199 -> -2.214944729e-05 | K200: =J200*$B$1+K199 -> -0.001775690207 | L200: =G200*$B$1+L199 -> -1.550112679e-05 | M200: =L200*$B$1+M199 -> -0.0008078261229 | N200: =(J200^2+L200^2)*$B$1+N199 -> 7.98070903e-08
A201: 98.64086667 | B201: ='DF raw data'!D206 -> 6.625462e-06 | C201: ='DF raw data'!E206 -> -3.8324029e-06 | D201: ='DF raw data'!F206 -> -6.1318133e-06 | F201: 6.632670503e-06 | G201: -3.844103205e-06 | H201: -6.138484713e-06 | J201: -1.883205081e-05 | K201: -0.001785109246 | L201: -1.742379345e-05 | M201: -0.0008165408074 | N201: 8.013631298e-08
... 1002 more rows

Sheet 10 y=0
A1: dz | B1: ='DF raw data'!H7 -> 0.50015 | C1: mm | F1: T_coeff | G1: -0.0008 | H1: /degC | L1: Hallref | M1: ='PI vs y'!B44 -> 0.50564 | N1: T | P1: IBy total | Q1: =L1203*1000 -> 11.14155411 | R1: muTm | X1: DF ref | Y1: 20
A2: Tref | B2: ='DF raw data'!H8 -> 21.32 | C2: degC | F2: Tcorr | G2: 20 | H2: degC | L2: NMRref | M2: ='PI vs y'!B45 -> 0.5066325 | N2: T | P2: JBy total | Q2: =M1203 -> 0.7340121286 | R2: muTm^2
A3: Encoder | B3: ='DF raw data'!H9 -> 1635124 | P3: PI total | Q3: =N1203 -> 702.5243322 | R3: T^2mm^3
A5: z [mm] | B5: Bx | C5: By | D5: Bz | F5: Bx_corr | G5: By_corr | H5: Bz_corr | J5: Ix | K5: Jx | L5: Iy | M5: Jy | N5: PI
A6: ='PI vs y'!B53 -> 1.109666667 | B6: ='DF raw data'!G11 -> -1.6139666e-05 | C6: ='DF raw data'!H11 -> -1.0128875e-05 | D6: ='DF raw data'!I11 -> -6.9902303e-06 | F6: =(1-$G$1*($B$2-$G$2))*B6 -> -1.615670949e-05 | G6: =(1-$G$1*($B$2-$G$2))*C6*$M$2/$M$1 -> -1.015947364e-05 | H6: =(1-$G$1*($B$2-$G$2))*D6 -> -6.997611983e-06 | J6: =F6*$B$1 -> -8.08077825e-06 | K6: =J6*$B$1 -> -4.041601242e-06 | L6: =G6*$B$1 -> -5.081260741e-06 | M6: =L6*$B$1 -> -2.54139256e-06 | N6: =(J6^2+L6^2)*$B$1 -> 4.557276165e-11
A7: =A6+$B$1 -> 1.609816667 | B7: ='DF raw data'!G12 -> -1.6458396e-05 | C7: ='DF raw data'!H12 -> -7.9711197e-07 | D7: ='DF raw data'!I12 -> -2.9125945e-06 | F7: =(1-$G$1*($B$2-$G$2))*B7 -> -1.647577607e-05 | G7: =(1-$G$1*($B$2-$G$2))*C7*$M$2/$M$1 -> -7.995199908e-07 | H7: -2.9156702e-06 | J7: =F7*$B$1+J6 -> -1.632113765e-05 | K7: =J7*$B$1+K6 -> -1.220461824e-05 | L7: =G7*$B$1+L6 -> -5.481140664e-06 | M7: =L7*$B$1+M6 -> -5.282785063e-06 | N7: =(J7^2+L7^2)*$B$1+N6 -> 1.938284436e-10
A8: =A7+$B$1 -> 2.109966667 | B8: ='DF raw data'!G13 -> -1.6312222e-05 | C8: ='DF raw data'!H13 -> -4.4810367e-06 | D8: ='DF raw data'!I13 -> -8.1873395e-07 | F8: -1.632944771e-05 | G8: -4.494573606e-06 | H8: -8.195985331e-07 | J8: =F8*$B$1+J7 -> -2.448831092e-05 | K8: =J8*$B$1+K7 -> -2.445244694e-05 | L8: =G8*$B$1+L7 -> -7.729101653e-06 | M8: =L8*$B$1+M7 -> -9.148495255e-06 | N8: =(J8^2+L8^2)*$B$1+N7 -> 5.236355481e-10
A9: 2.610116667 | B9: ='DF raw data'!G14 -> -1.630694e-05 | C9: ='DF raw data'!H14 -> -4.3959099e-06 | D9: ='DF raw data'!I14 -> 5.2539735e-07 | F9: -1.632416013e-05 | G9: -4.409189644e-06 | H9: 5.259521696e-07 | J9: -3.265283961e-05 | K9: -4.078376467e-05 | L9: -9.934357854e-06 | M9: -1.411716434e-05 | N9: 1.106259983e-09
A10: 3.110266667 | B10: ='DF raw data'!G15 -> -1.665444e-05 | C10: ='DF raw data'!H15 -> 6.165651e-06 | D10: ='DF raw data'!I15 -> 7.2932748e-06 | F10: -1.667202709e-05 | G10: 6.184277011e-06 | H10: 7.300976498e-06 | J10: -4.099135396e-05 | K10: -6.128559036e-05 | L10: -6.841291707e-06 | M10: -1.753883638e-05 | N10: 1.970066233e-09
A11: 3.610416667 | B11: ='DF raw data'!G16 -> -1.6544165e-05 | C11: ='DF raw data'!H16 -> 3.5506121e-06 | D11: ='DF raw data'!I16 -> 1.0107906e-05 | F11: -1.656163564e-05 | G11: 3.561338257e-06 | H11: 1.011857995e-05 | J11: -4.927465602e-05 | K11: -8.593030956e-05 | L11: -5.060088378e-06 | M11: -2.006963958e-05 | N11: 3.197232383e-09
A12: 4.110566667 | B12: ='DF raw data'!G17 -> -1.6175711e-05 | C12: ='DF raw data'!H17 -> -7.5437238e-06 | D12: ='DF raw data'!I17 -> 3.6885763e-06 | F12: -1.619279255e-05 | G12: -7.566512875e-06 | H12: 3.692471437e-06 | J12: -5.737348122e-05 | K12: -0.0001146256562 | L12: -8.844479792e-06 | M12: -2.449320615e-05 | N12: 4.882708459e-09
A13: 4.610716667 | B13: ='DF raw data'!G18 -> -1.6482625e-05 | C13: ='DF raw data'!H18 -> 4.2988373e-07 | D13: ='DF raw data'!I18 -> 7.7050981e-07 | F13: -1.650003065e-05 | G13: 4.311823794e-07 | H13: 7.713234684e-07 | J13: -6.562597155e-05 | K13: -0.0001474484859 | L13: -8.628823925e-06 | M13: -2.880891244e-05 | N13: 7.073978014e-09
A14: 5.110866667 | B14: ='DF raw data'!G19 -> -1.6631084e-05 | C14: ='DF raw data'!H19 -> 4.2915326e-06 | D14: ='DF raw data'!I19 -> -4.1554406e-07 | F14: -1.664864642e-05 | G14: 4.304497027e-06 | H14: -4.159828745e-07 | J14: -7.395279206e-05 | K14: -0.0001844359748 | L14: -6.475929737e-06 | M14: -3.20478487e-05 | N14: 9.830281217e-09
A15: 5.611016667 | B15: ='DF raw data'!G20 -> -1.6666663e-05 | C15: ='DF raw data'!H20 -> 4.5641245e-06 | D15: ='DF raw data'!I20 -> -4.1829767e-06 | F15: -1.6684263e-05 | G15: 4.577912409e-06 | H15: -4.187393923e-06 | J15: -8.229742619e-05 | K15: -0.0002255970325 | L15: -4.186286846e-06 | M15: -3.414162006e-05 | N15: 1.322649545e-08
A16: 6.111166667 | B16: ='DF raw data'!G21 -> -1.6722324e-05 | C16: ='DF raw data'!H21 -> 6.8039662e-06 | D16: ='DF raw data'!I21 -> 5.8069463e-07 | F16: -1.673998277e-05 | G16: 6.824520517e-06 | H16: 5.813078435e-07 | J16: -9.066992858e-05 | K16: -0.0002709455973 | L16: -7.730029089e-07 | M16: -3.452823747e-05 | N16: 1.733854544e-08
A17: 6.611316667 | B17: ='DF raw data'!G22 -> -1.6473079e-05 | C17: ='DF raw data'!H22 -> -3.0706232e-08 | D17: ='DF raw data'!I22 -> 4.3920633e-07 | F17: -1.649047457e-05 | G17: -3.079899343e-08 | H17: 4.396701319e-07 | J17: -9.891763943e-05 | K17: -0.0003204192547 | L17: -7.884070255e-07 | M17: -3.492255924e-05 | N17: 2.223267373e-08
A18: 7.111466667 | B18: ='DF raw data'!G23 -> -1.6392723e-05 | C18: ='DF raw data'!H23 -> -2.7989206e-06 | D18: ='DF raw data'!I23 -> -3.360095e-06 | F18: -1.641003372e-05 | G18: -2.807375948e-06 | H18: -3.36364326e-06 | J18: -0.0001071251178 | K18: -0.0003739978823 | L18: -2.192516106e-06 | M18: -3.601914617e-05 | N18: 2.797469481e-08
A19: 7.611616667 | B19: ='DF raw data'!G24 -> -1.6560987e-05 | C19: ='DF raw data'!H24 -> 1.9210659e-06 | D19: ='DF raw data'!I24 -> -3.0275255e-06 | F19: -1.65784754e-05 | G19: 1.926869309e-06 | H19: -3.030722567e-06 | J19: -0.0001154168423 | K19: -0.000431723616 | L19: -1.228792421e-06 | M19: -3.66337267e-05 | N19: 3.46379719e-08
A20: 8.111766667 | B20: ='DF raw data'!G25 -> -1.6570868e-05 | C20: ='DF raw data'!H25 -> 1.5245206e-06 | D20: ='DF raw data'!I25 -> -7.2366088e-06 | F20: -1.658836684e-05 | G20: 1.529126073e-06 | H20: -7.244250659e-06 | J20: -0.0001237135139 | K20: -0.00049359893 | L20: -4.640000158e-07 | M20: -3.686579631e-05 | N20: 4.22928921e-08
A21: 8.611916667 | B21: ='DF raw data'!G26 -> -1.6740951e-05 | C21: ='DF raw data'!H26 -> 7.5049929e-06 | D21: ='DF raw data'!I26 -> 8.8498973e-07 | F21: -1.675862944e-05 | G21: 7.527664971e-06 | H21: 8.859242792e-07 | J21: -0.0001320953425 | K21: -0.0005596664155 | L21: 3.30096162e-06 | M21: -3.521482035e-05 | N21: 5.102554904e-08
A22: 9.112066667 | B22: ='DF raw data'!G27 -> -1.5115996e-05 | C22: ='DF raw data'!H27 -> 1.0818791e-05 | D22: ='DF raw data'!I27 -> 2.3862381e-06 | F22: -1.513195849e-05 | G22: 1.085147383e-05 | H22: 2.388757967e-06 | J22: -0.0001396635915 | K22: -0.0006295191608 | L22: 8.728326255e-06 | M22: -3.084934798e-05 | N22: 6.081953759e-08
A23: 9.612216667 | B23: ='DF raw data'!G28 -> -9.7160273e-06 | C23: ='DF raw data'!H28 -> 7.7691784e-06 | D23: ='DF raw data'!I28 -> -4.9554069e-06 | F23: =(1-$G$1*($B$2-$G$2))*B23 -> -9.726287425e-06 | G23: 7.792648558e-06 | H23: -4.96063981e-06 | J23: -0.0001445281942 | K23: -0.0007018049371 | L23: 1.262581943e-05 | M23: -2.453454439e-05 | N23: 7.134659987e-08
A24: 10.11236667 | B24: ='DF raw data'!G29 -> -4.2296938e-06 | C24: ='DF raw data'!H29 -> 7.4023603e-07 | D24: ='DF raw data'!I29 -> -3.2719104e-06 | F24: -4.234160357e-06 | G24: 7.424722325e-07 | H24: -3.275365537e-06 | J24: -0.0001466459095 | K24: -0.0007751498887 | L24: 1.299716692e-05 | M24: -1.803401136e-05 | N24: 8.218682551e-08
A25: 10.61251667 | B25: ='DF raw data'!G30 -> -2.5659585e-06 | C25: ='DF raw data'!H30 -> 1.3177516e-05 | D25: ='DF raw data'!I30 -> 1.5831324e-06 | F25: -2.568668152e-06 | G25: 1.321732438e-05 | H25: 1.584804188e-06 | J25: -0.0001479306288 | K25: -0.0008491373927 | L25: 1.960781171e-05 | M25: -8.227164331e-06 | N25: 9.332413432e-08
A26: 11.11266667 | B26: ='DF raw data'!G31 -> -2.1648641e-06 | C26: ='DF raw data'!H31 -> -3.9277147e-06 | D26: ='DF raw data'!I31 -> 1.9180302e-06 | F26: -2.167150196e-06 | G26: -3.939580058e-06 | H26: 1.92005564e-06 | J26: -0.000149014529 | K26: -0.0009236670094 | L26: 1.763743074e-05 | M26: 5.94196653e-07 | N26: 1.045857162e-07
A27: 11.61281667 | B27: ='DF raw data'!G32 -> -1.8449402e-06 | C27: ='DF raw data'!H32 -> -8.8771037e-07 | D27: ='DF raw data'!I32 -> 3.8371222e-06 | F27: -1.846888457e-06 | G27: -8.903920824e-07 | H27: 3.841174201e-06 | J27: -0.0001499382503 | K27: -0.0009986586253 | L27: 1.719210114e-05 | M27: 9.192826038e-06 | N27: 1.159776564e-07
A28: 12.11296667 | B28: ='DF raw data'!G33 -> -8.6371915e-07 | C28: ='DF raw data'!H33 -> -7.0357953e-07 | D28: ='DF raw data'!I33 -> 3.756199e-06 | F28: -8.646312374e-07 | G28: -7.057049957e-07 | H28: 3.760165546e-06 | J28: -0.0001503706956 | K28: -0.001073866529 | L28: 1.683914279e-05 | M28: 1.76149233e-05 | N28: 1.27428542e-07
A29: 12.61311667 | B29: ='DF raw data'!G34 -> -3.5124006e-06 | C29: ='DF raw data'!H34 -> -3.1241015e-08 | D29: ='DF raw data'!I34 -> 5.6407448e-06 | F29: -3.516109695e-06 | G29: -3.133539197e-08 | H29: 5.646701427e-06 | J29: -0.0001521292778 | K29: -0.001149953987 | L29: 1.682347039e-05 | M29: 2.602918202e-05 | N29: 1.391452291e-07
A30: 13.11326667 | B30: ='DF raw data'!G35 -> -6.2604136e-06 | C30: ='DF raw data'!H35 -> 1.1179311e-05 | D30: ='DF raw data'!I35 -> 6.961171e-06 | F30: -6.267024597e-06 | G30: 1.121308294e-05 | H30: 6.968521997e-06 | J30: -0.0001552637302 | K30: -0.001227609142 | L30: 2.243169382e-05 | M30: 3.724839368e-05 | N30: 1.51453924e-07
A31: 13.61341667 | B31: ='DF raw data'!G36 -> -5.6790209e-06 | C31: ='DF raw data'!H36 -> 2.8724019e-06 | D31: ='DF raw data'!I36 -> -1.4278335e-06 | F31: -5.685017946e-06 | G31: 2.88107923e-06 | H31: -1.429341292e-06 | J31: -0.0001581070919 | K31: -0.001306686404 | L31: 2.38726656e-05 | M31: 4.918830738e-05 | N31: 1.642416375e-07
A32: 14.11356667 | B32: ='DF raw data'!G37 -> -6.826454e-06 | C32: ='DF raw data'!H37 -> 1.4392504e-05 | D32: ='DF raw data'!I37 -> -2.0219591e-06 | F32: -6.833662735e-06 | G32: 1.443598277e-05 | H32: -2.024094289e-06 | J32: -0.0001615249483 | K32: -0.001387473107 | L32: 3.109282238e-05 | M32: 6.473938249e-05 | N32: 1.777742324e-07
A33: 14.61371667 | B33: ='DF raw data'!G38 -> -6.2668164e-06 | C33: ='DF raw data'!H38 -> 1.5671936e-05 | D33: ='DF raw data'!I38 -> 2.7345818e-06 | F33: -6.273434158e-06 | G33: 1.571927985e-05 | H33: 2.737469518e-06 | J33: -0.0001646626064 | K33: -0.001469829109 | L33: 3.89548202e-05 | M33: 8.422263581e-05 | N33: 1.92094153e-07
A34: 15.11386667 | B34: ='DF raw data'!G39 -> -4.4700623e-06 | C34: ='DF raw data'!H39 -> -2.1766152e-06 | D34: ='DF raw data'!I39 -> -9.7513794e-07 | F34: -4.474782686e-06 | G34: -2.183190606e-06 | H34: -9.761676857e-07 | J34: -0.000166900669 | K34: -0.001553304479 | L34: 3.786289741e-05 | M34: 0.000103159764 | N34: 2.067432626e-07
A35: 15.61401667 | B35: ='DF raw data'!G40 -> -1.59456e-06 | C35: ='DF raw data'!H40 -> 7.5017906e-06 | D35: ='DF raw data'!I40 -> -8.8637171e-06 | F35: -1.596243855e-06 | G35: 7.524452997e-06 | H35: -8.873077185e-06 | J35: -0.0001676990304 | K35: -0.001637179149 | L35: 4.162625258e-05 | M35: 0.0001239791342 | N35: 2.216755958e-07
A36: 16.11416667 | B36: ='DF raw data'!G41 -> 3.0399922e-06 | C36: ='DF raw data'!H41 -> -4.5593588e-06 | D36: ='DF raw data'!I41 -> -7.6319411e-06 | F36: 3.043202432e-06 | G36: -4.573132312e-06 | H36: -7.64000043e-06 | J36: -0.0001661769727 | K36: -0.001720292562 | L36: 3.933900046e-05 | M36: 0.0001436545353 | N36: 2.362611418e-07
A37: 16.61431667 | B37: ='DF raw data'!G42 -> 4.6752198e-06 | C37: ='DF raw data'!H42 -> 9.9460431e-06 | D37: ='DF raw data'!I42 -> -4.6839264e-06 | F37: 4.680156832e-06 | G37: 9.976089417e-06 | H37: -4.688872626e-06 | J37: -0.0001638361922 | K37: -0.001802235233 | L37: 4.432854158e-05 | M37: 0.0001658254553 | N37: 2.506691216e-07
A38: 17.11446667 | B38: ='DF raw data'!G43 -> 2.436306e-06 | C38: ='DF raw data'!H43 -> 1.4748858e-06 | D38: ='DF raw data'!I43 -> -2.7649071e-06 | F38: 2.438878739e-06 | G38: 1.479341329e-06 | H38: -2.767826842e-06 | J38: -0.000162616387 | K38: -0.001883567819 | L38: 4.506843414e-05 | M38: 0.0001883664327 | N38: 2.649110194e-07
A39: 17.61461667 | B39: ='DF raw data'!G44 -> -1.2066059e-06 | C39: ='DF raw data'!H44 -> -7.1430422e-06 | D39: ='DF raw data'!I44 -> -2.9698999e-06 | F39: -1.207880076e-06 | G39: -7.164620843e-06 | H39: -2.973036114e-06 | J39: -0.0001632205082 | K39: -0.001965202556 | L39: 4.148504903e-05 | M39: 0.0002091151799 | N39: 2.790962455e-07
A40: 18.11476667 | B40: ='DF raw data'!G45 -> -9.5698198e-08 | C40: ='DF raw data'!H45 -> 1.2680722e-06 | D40: ='DF raw data'!I45 -> -4.8684883e-06 | F40: -9.57992553e-08 | G40: 1.27190296e-06 | H40: -4.873629424e-06 | J40: -0.0001632684222 | K40: -0.002046861258 | L40: 4.212119129e-05 | M40: 0.0002301820938 | N40: 2.933158964e-07
A41: 18.61491667 | B41: ='DF raw data'!G46 -> 5.8243118e-06 | C41: ='DF raw data'!H46 -> -1.0506245e-06 | D41: ='DF raw data'!I46 -> -4.4969051e-06 | F41: 5.830462273e-06 | G41: -1.053798365e-06 | H41: -4.501653832e-06 | J41: -0.0001603523165 | K41: -0.002127061469 | L41: 4.159413404e-05 | M41: 0.0002509853999 | N41: 3.070414815e-07
A42: 19.11506667 | B42: ='DF raw data'!G47 -> 4.8942261e-06 | C42: ='DF raw data'!H47 -> -9.7893044e-06 | D42: ='DF raw data'!I47 -> -5.3124672e-06 | F42: 4.899394403e-06 | G42: -9.81887722e-06 | H42: -5.318077165e-06 | J42: -0.0001579018844 | K42: -0.002206036096 | L42: 3.66832226e-05 | M42: 0.0002693325137 | N42: 3.201847553e-07
A43: 19.61521667 | B43: ='DF raw data'!G48 -> 8.0441055e-07 | C43: ='DF raw data'!H48 -> 3.3435329e-06 | D43: ='DF raw data'!I48 -> -1.1375669e-05 | F43: 8.052600075e-07 | G43: 3.353633485e-06 | H43: -1.138768171e-05 | J43: -0.0001574991336 | K43: -0.002284809288 | L43: 3.836054239e-05 | M43: 0.000288518539 | N43: 3.33327451e-07
A44: 20.11536667 | B44: ='DF raw data'!G49 -> -1.8674957e-06 | C44: ='DF raw data'!H49 -> 2.2894585e-06 | D44: ='DF raw data'!I49 -> -1.2533055e-05 | F44: -1.869467775e-06 | G44: 2.296374798e-06 | H44: -1.254628991e-05 | J44: -0.0001584341479 | K44: -0.002364050127 | L44: 3.950907424e-05 | M44: 0.0003082790024 | N44: 3.466626235e-07
A45: 20.61551667 | B45: ='DF raw data'!G50 -> -4.4299427e-06 | C45: ='DF raw data'!H50 -> 5.0690132e-06 | D45: ='DF raw data'!I50 -> -8.5931097e-06 | F45: -4.434620719e-06 | G45: 5.084326343e-06 | H45: -8.602184024e-06 | J45: -0.0001606521235 | K45: -0.002444400287 | L45: 4.205200006e-05 | M45: 0.0003293113103 | N45: 3.604554979e-07
A46: 21.11566667 | B46: ='DF raw data'!G51 -> -3.1555003e-06 | C46: ='DF raw data'!H51 -> -2.5907736e-06 | D46: ='DF raw data'!I51 -> -1.042668e-05 | F46: -3.158832508e-06 | G46: -2.59860015e-06 | H46: -1.043769057e-05 | J46: -0.0001622320136 | K46: -0.002525540628 | L46: 4.07523102e-05 | M46: 0.0003496935782 | N46: 3.744496834e-07
A47: 21.61581667 | B47: ='DF raw data'!G52 -> 1.4316563e-06 | C47: ='DF raw data'!H52 -> -1.5777949e-06 | D47: ='DF raw data'!I52 -> -7.5262501e-06 | F47: 1.433168129e-06 | G47: -1.582561311e-06 | H47: -7.53419782e-06 | J47: -0.0001615152145 | K47: -0.002606322463 | L47: 3.996079216e-05 | M47: 0.0003696799684 | N47: 3.882958507e-07
A48: 22.11596667 | B48: ='DF raw data'!G53 -> 7.9217089e-06 | C48: ='DF raw data'!H53 -> -3.0929948e-06 | D48: ='DF raw data'!I53 -> -8.7959779e-06 | F48: 7.930074225e-06 | G48: -3.102338526e-06 | H48: -8.805266453e-06 | J48: -0.0001575489879 | K48: -0.002685120589 | L48: 3.840915754e-05 | M48: 0.0003888903086 | N48: 4.014482687e-07
A49: 22.61611667 | B49: ='DF raw data'!G54 -> 8.1488643e-06 | C49: ='DF raw data'!H54 -> 2.3998057e-08 | D49: ='DF raw data'!I54 -> -2.0171715e-06 | F49: 8.157469501e-06 | G49: 2.407055349e-08 | H49: -2.019301633e-06 | J49: -0.0001534690295 | K49: -0.002761878124 | L49: 3.842119643e-05 | M49: 0.00040810667 | N49: 4.139664887e-07
A50: 23.11626667 | B50: ='DF raw data'!G55 -> 3.6532244e-06 | C50: ='DF raw data'!H55 -> -1.5294509e-05 | D50: ='DF raw data'!I55 -> 4.5422644e-06 | F50: 3.657082205e-06 | G50: -1.534071267e-05 | H50: 4.547061031e-06 | J50: -0.0001516399399 | K50: -0.00283772084 | L50: 3.074853899e-05 | M50: 0.0004234855517 | N50: 4.259401518e-07
A51: 23.61641667 | B51: ='DF raw data'!G56 -> 5.3394865e-07 | C51: ='DF raw data'!H56 -> -7.8635494e-06 | D51: ='DF raw data'!I56 -> 7.912633e-06 | F51: 5.345124998e-07 | G51: -7.887304646e-06 | H51: 7.92098874e-06 | J51: -0.0001513726034 | K51: -0.002913429848 | L51: 2.680370357e-05 | M51: 0.0004368914241 | N51: 4.377597484e-07
A52: 24.11656667 | B52: ='DF raw data'!G57 -> -3.9229103e-06 | C52: ='DF raw data'!H57 -> 7.6094666e-06 | D52: ='DF raw data'!I57 -> 2.7951469e-06 | F52: -3.927052893e-06 | G52: 7.632454279e-06 | H52: 2.798098575e-06 | J52: -0.0001533367189 | K52: -0.002990121208 | L52: 3.062107558e-05 | M52: 0.000452206555 | N52: 4.499883157e-07
A53: 24.61671667 | B53: ='DF raw data'!G58 -> -5.7418997e-06 | C53: ='DF raw data'!H58 -> -7.0104568e-07 | D53: ='DF raw data'!I58 -> 2.6406783e-06 | F53: -5.747963146e-06 | G53: -7.031634911e-07 | H53: 2.643466856e-06 | J53: -0.0001562115627 | K53: -0.003068250421 | L53: 3.026938836e-05 | M53: 0.0004673457896 | N53: 4.626512575e-07
A54: 25.11686667 | B54: ='DF raw data'!G59 -> -6.4352985e-06 | C54: ='DF raw data'!H59 -> -3.3587801e-06 | D54: ='DF raw data'!I59 -> -5.2490168e-07 | F54: -6.442094175e-06 | G54: -3.368926745e-06 | H54: -5.254559762e-07 | J54: -0.0001594335761 | K54: -0.003147991124 | L54: 2.858441965e-05 | M54: 0.0004816422871 | N54: 4.7577326e-07
A55: 25.61701667 | B55: ='DF raw data'!G60 -> -2.4618978e-06 | C55: ='DF raw data'!H60 -> -8.6902935e-07 | D55: ='DF raw data'!I60 -> -8.5886568e-06 | F55: -2.464497564e-06 | G55: -8.716546283e-07 | H55: -8.597726422e-06 | J55: -0.0001606661946 | K55: -0.003228348321 | L55: 2.814846159e-05 | M55: 0.0004957207402 | N55: 4.890802319e-07
A56: 26.11716667 | B56: ='DF raw data'!G61 -> 5.753343e-07 | C56: ='DF raw data'!H61 -> -1.3627103e-06 | D56: ='DF raw data'!I61 -> 1.1470697e-06 | F56: 5.75941853e-07 | G56: -1.366826955e-06 | H56: 1.148281006e-06 | J56: -0.0001603781373 | K56: -0.003308561447 | L56: 2.746484308e-05 | M56: 0.0005094572814 | N56: 5.023219355e-07
A57: 26.61731667 | B57: ='DF raw data'!G62 -> 1.2993648e-06 | C57: ='DF raw data'!H62 -> -2.1353878e-06 | D57: ='DF raw data'!I62 -> 4.0773161e-06 | F57: 1.300736929e-06 | G57: -2.141838661e-06 | H57: 4.081621746e-06 | J57: -0.0001597275737 | K57: -0.003388449193 | L57: 2.639360248e-05 | M57: 0.0005226580417 | N57: 5.154306269e-07
A58: 27.11746667 | B58: ='DF raw data'!G63 -> 2.2685078e-06 | C58: ='DF raw data'!H63 -> -8.3516261e-06 | D58: ='DF raw data'!I63 -> 9.9220824e-07 | F58: 2.270903344e-06 | G58: -8.376855792e-06 | H58: 9.932560119e-07 | J58: -0.0001585917814 | K58: -0.003467768872 | L58: 2.220391805e-05 | M58: 0.0005337633313 | N58: 5.282566572e-07
A59: 27.61761667 | B59: ='DF raw data'!G64 -> 6.405297e-06 | C59: ='DF raw data'!H64 -> 2.6370355e-06 | D59: ='DF raw data'!I64 -> 4.9550772e-07 | F59: 6.412060994e-06 | G59: 2.645001804e-06 | H59: 4.960309762e-07 | J59: -0.0001553847891 | K59: -0.003545484574 | L59: 2.352681571e-05 | M59: 0.0005455302682 | N59: 5.406093337e-07
A60: 28.11776667 | B60: ='DF raw data'!G65 -> 5.8789105e-06 | C60: ='DF raw data'!H65 -> 1.0465848e-06 | D60: ='DF raw data'!I65 -> -7.647609e-07 | F60: 5.885118629e-06 | G60: 1.049746461e-06 | H60: -7.655684875e-07 | J60: -0.000152441347 | K60: -0.003621728114 | L60: 2.40518464e-05 | M60: 0.0005575597992 | N60: 5.52521334e-07
A61: 28.61791667 | B61: ='DF raw data'!G66 -> 1.0963802e-06 | C61: ='DF raw data'!H66 -> 3.3915669e-06 | D61: ='DF raw data'!I66 -> -1.2117336e-07 | F61: 1.097537977e-06 | G61: 3.401812592e-06 | H61: -1.213013191e-07 | J61: -0.0001518924134 | K61: -0.003697697104 | L61: 2.575326297e-05 | M61: 0.0005704402937 | N61: 5.643921621e-07
A62: 29.11806667 | B62: ='DF raw data'!G67 -> 9.6027611e-07 | C62: ='DF raw data'!H67 -> 5.2832966e-06 | D62: ='DF raw data'!I67 -> 2.9433727e-06 | F62: 9.612901616e-07 | G62: 5.299257078e-06 | H62: 2.946480902e-06 | J62: -0.0001514116241 | K62: -0.003773425628 | L62: 2.840368639e-05 | M62: 0.0005846463974 | N62: 5.762618466e-07
A63: 29.61821667 | B63: ='DF raw data'!G68 -> -8.6338446e-07 | C63: ='DF raw data'!H68 -> 3.924074e-06 | D63: ='DF raw data'!I68 -> 4.0103628e-06 | F63: -8.64296194e-07 | G63: 3.93592836e-06 | H63: 4.014597743e-06 | J63: -0.0001518439018 | K63: -0.003849370356 | L63: 3.037224096e-05 | M63: 0.0005998370737 | N63: 5.882549652e-07
A64: 30.11836667 | B64: ='DF raw data'!G69 -> -6.5507679e-06 | C64: ='DF raw data'!H69 -> 4.3879609e-08 | D64: ='DF raw data'!I69 -> 4.4299818e-06 | F64: -6.557685511e-06 | G64: 4.40121663e-08 | H64: 4.434659861e-06 | J64: -0.0001551237282 | K64: -0.003926955488 | L64: 3.039425365e-05 | M64: 0.0006150387597 | N64: 6.007523042e-07
A65: 30.61851667 | B65: ='DF raw data'!G70 -> -5.1087168e-06 | C65: ='DF raw data'!H70 -> -6.7348883e-06 | D65: ='DF raw data'!I70 -> 4.6619248e-06 | F65: -5.114111605e-06 | G65: -6.755233938e-06 | H65: 4.666847793e-06 | J65: -0.0001576815512 | K65: -0.004005819916 | L65: 2.701562339e-05 | M65: 0.0006285506237 | N65: 6.135528009e-07
A66: 31.11866667 | B66: ='DF raw data'!G71 -> 1.1173349e-06 | C66: ='DF raw data'!H71 -> -8.0934442e-06 | D66: ='DF raw data'!I71 -> 6.5662321e-06 | F66: 1.118514806e-06 | G66: -8.117893942e-06 | H66: 6.573166041e-06 | J66: -0.000157122126 | K66: -0.004084404548 | L66: 2.295545874e-05 | M66: 0.0006400317964 | N66: 6.261637408e-07
A67: 31.61881667 | B67: ='DF raw data'!G72 -> 2.155032e-06 | C67: ='DF raw data'!H72 -> 5.222156e-07 | D67: ='DF raw data'!I72 -> -8.3031728e-07 | F67: 2.157307714e-06 | G67: 5.237931777e-07 | H67: -8.31194095e-07 | J67: -0.0001560431485 | K67: -0.004162449528 | L67: 2.32174339e-05 | M67: 0.000651643996 | N67: 6.386117308e-07
A68: 32.11896667 | B68: ='DF raw data'!G73 -> -2.8653201e-07 | C68: ='DF raw data'!H73 -> -3.9367878e-06 | D68: ='DF raw data'!I73 -> -6.7356591e-06 | F68: -2.868345878e-07 | G68: -3.948680567e-06 | H68: -6.742771956e-06 | J68: -0.0001561866088 | K68: -0.004240566261 | L68: 2.124250131e-05 | M68: 0.000662268433 | N68: 6.51038208e-07
A69: 32.61911667 | B69: ='DF raw data'!G74 -> 2.1412804e-06 | C69: ='DF raw data'!H74 -> -1.2939387e-05 | D69: ='DF raw data'!I74 -> -5.0202939e-06 | F69: 2.143541592e-06 | G69: -1.2978476e-05 | H69: -5.02559533e-06 | J69: -0.0001551145165 | K69: -0.004318146786 | L69: 1.475131654e-05 | M69: 0.000669646304 | N69: 6.63180907e-07
A70: 33.11926667 | B70: ='DF raw data'!G75 -> 4.5049478e-06 | C70: ='DF raw data'!H75 -> -6.8368263e-06 | D70: ='DF raw data'!I75 -> -4.348432e-06 | F70: 4.509705025e-06 | G70: -6.857479886e-06 | H70: -4.353023944e-06 | J70: -0.0001528589875 | K70: -0.004394599209 | L70: 1.132154797e-05 | M70: 0.0006753087762 | N70: 6.749314548e-07
A71: 33.61941667 | B71: ='DF raw data'!G76 -> 2.3661512e-06 | C71: ='DF raw data'!H76 -> 1.2539867e-05 | D71: ='DF raw data'!I76 -> -9.4422721e-06 | F71: 2.368649856e-06 | G71: =(1-$G$1*($B$2-$G$2))*C71*$M$2/$M$1 -> 1.257774908e-05 | H71: -9.452243139e-06 | J71: -0.0001516743073 | K71: -0.004470459114 | L71: 1.761230918e-05 | M71: 0.0006841175726 | N71: 6.865925966e-07
A72: =A71+$B$1 -> 34.11956667 | B72: ='DF raw data'!G77 -> -4.4686502e-07 | C72: ='DF raw data'!H77 -> 1.7552058e-05 | D72: ='DF raw data'!I77 -> -8.3189807e-06 | F72: -4.473369095e-07 | G72: 1.760508157e-05 | H72: -8.327765544e-06 | J72: =F72*$B$1+J71 -> -0.0001518980429 | K72: =J72*$B$1+K71 -> -0.00454643092 | L72: =G72*$B$1+L71 -> 2.641749072e-05 | M72: =L72*$B$1+M71 -> 0.0006973302806 | N72: =(J72^2+L72^2)*$B$1+N71 -> 6.984816119e-07
A73: 34.61971667 | B73: ='DF raw data'!G78 -> -1.3951114e-06 | C73: ='DF raw data'!H78 -> 8.8639481e-06 | D73: ='DF raw data'!I78 -> -1.7269917e-06 | F73: -1.396584638e-06 | G73: 8.890725482e-06 | H73: -1.728815403e-06 | J73: -0.0001525965447 | K73: -0.004622752082 | L73: 3.086418707e-05 | M73: 0.0007127670038 | N73: 7.106043994e-07
A74: 35.11986667 | B74: ='DF raw data'!G79 -> 5.487625e-07 | C74: ='DF raw data'!H79 -> 9.140914e-07 | D74: ='DF raw data'!I79 -> -9.4299276e-07 | F74: 5.493419932e-07 | G74: 9.168528077e-07 | H74: -9.439885604e-07 | J74: -0.0001523217913 | K74: -0.004698935825 | L74: 3.1322751e-05 | M74: 0.0007284330777 | N74: 7.226995482e-07
A75: 35.62001667 | B75: ='DF raw data'!G80 -> 4.3599671e-06 | C75: ='DF raw data'!H80 -> -7.0200222e-06 | D75: ='DF raw data'!I80 -> 1.1767556e-06 | F75: 4.364571225e-06 | G75: -7.041229208e-06 | H75: 1.177998254e-06 | J75: -0.000150138851 | K75: -0.004774027772 | L75: 2.780108022e-05 | M75: 0.000742337788 | N75: 7.343603327e-07
A76: 36.12016667 | B76: ='DF raw data'!G81 -> 5.000295e-06 | C76: ='DF raw data'!H81 -> -1.8353093e-06 | D76: ='DF raw data'!I81 -> 5.410388e-06 | F76: 5.005575312e-06 | G76: -1.840853644e-06 | H76: 5.41610137e-06 | J76: -0.0001476353125 | K76: -0.004847867573 | L76: 2.688037727e-05 | M76: 0.0007557820087 | N76: 7.456230806e-07
A77: 36.62031667 | B77: ='DF raw data'!G82 -> 3.0850449e-06 | C77: ='DF raw data'!H82 -> -8.7212193e-06 | D77: ='DF raw data'!I82 -> 2.4376936e-06 | F77: 3.088302707e-06 | G77: -8.747565508e-06 | H77: 2.440267804e-06 | J77: -0.0001460906979 | K77: -0.004920934836 | L77: 2.250528238e-05 | M77: 0.0007670380256 | N77: 7.565508479e-07
A78: 37.12046667 | B78: ='DF raw data'!G83 -> 1.2978951e-06 | C78: ='DF raw data'!H83 -> 9.4531254e-07 | D78: ='DF raw data'!I83 -> -8.6525642e-07 | F78: 1.299265677e-06 | G78: 9.481682646e-07 | H78: -8.661701308e-07 | J78: -0.0001454408702 | K78: -0.004993677087 | L78: 2.297950873e-05 | M78: 0.0007785312269 | N78: 7.673946523e-07
A79: 37.62061667 | B79: ='DF raw data'!G84 -> 3.7009402e-06 | C79: ='DF raw data'!H84 -> 2.4602452e-06 | D79: ='DF raw data'!I84 -> -5.0262747e-06 | F79: 3.704848393e-06 | G79: 2.467677433e-06 | H79: -5.031582446e-06 | J79: -0.0001435878902 | K79: -0.00506549257 | L79: 2.42137176e-05 | M79: 0.0007906417178 | N79: 7.77999726e-07
A80: 38.12076667 | B80: ='DF raw data'!G85 -> 1.7648078e-06 | C80: ='DF raw data'!H85 -> 6.8275831e-06 | D80: ='DF raw data'!I85 -> -6.7015203e-06 | F80: 1.766671437e-06 | G80: 6.848208762e-06 | H80: -6.708597105e-06 | J80: -0.0001427042895 | K80: -0.005136866121 | L80: 2.763884922e-05 | M80: 0.0008044652882 | N80: 7.885671054e-07
A81: 38.62091667 | B81: ='DF raw data'!G86 -> -1.4230075e-06 | C81: ='DF raw data'!H86 -> 1.2056299e-06 | D81: ='DF raw data'!I86 -> 2.7870269e-06 | F81: -1.424510196e-06 | G81: 1.209272026e-06 | H81: 2.78997e-06 | J81: -0.0001434167583 | K81: -0.005208596012 | L81: 2.824366662e-05 | M81: 0.0008185913581 | N81: 7.99253346e-07
A82: 39.12106667 | B82: ='DF raw data'!G87 -> -3.2688306e-06 | C82: ='DF raw data'!H87 -> -5.3025487e-06 | D82: ='DF raw data'!I87 -> 2.6690254e-06 | F82: -3.272282485e-06 | G82: -5.318567338e-06 | H82: 2.671843891e-06 | J82: -0.0001450533904 | K82: -0.005281144466 | L82: 2.558358516e-05 | M82: 0.0008313869882 | N82: 8.101041032e-07
A83: 39.62121667 | B83: ='DF raw data'!G88 -> -5.7042539e-06 | C83: ='DF raw data'!H88 -> -5.1338957e-06 | D83: ='DF raw data'!I88 -> -4.838133e-06 | F83: -5.710277592e-06 | G83: -5.149404848e-06 | H83: -4.843242068e-06 | J83: -0.0001479093857 | K83: -0.005355121345 | L83: 2.300811033e-05 | M83: 0.0008428944946 | N83: 8.213107439e-07
A84: 40.12136667 | B84: ='DF raw data'!G89 -> -5.2075679e-06 | C84: ='DF raw data'!H89 -> 1.432032e-05 | D84: ='DF raw data'!I89 -> -6.8955846e-06 | F84: -5.213067092e-06 | G84: 1.436358071e-05 | H84: -6.902866337e-06 | J84: -0.0001505167012 | K84: -0.005430402273 | L84: 3.019205522e-05 | M84: 0.000857995051 | N84: 8.330976977e-07
A85: 40.62151667 | B85: ='DF raw data'!G90 -> -7.1654108e-07 | C85: ='DF raw data'!H90 -> 1.0613179e-05 | D85: ='DF raw data'!I90 -> -6.4890041e-06 | F85: -7.172977474e-07 | G85: 1.064524069e-05 | H85: -6.495856488e-06 | J85: -0.0001508754577 | K85: -0.005505862633 | L85: 3.551627235e-05 | M85: 0.0008757585146 | N85: 8.451137061e-07
A86: 41.12166667 | B86: ='DF raw data'!G91 -> 4.4149006e-06 | C86: ='DF raw data'!H91 -> 7.4923173e-06 | D86: ='DF raw data'!I91 -> 3.3055553e-06 | F86: 4.419562735e-06 | G86: 7.514951079e-06 | H86: 3.309045966e-06 | J86: -0.0001486650134 | K86: -0.00558021744 | L86: 3.927487513e-05 | M86: 0.0008954018434 | N86: 8.569391537e-07
A87: 41.62181667 | B87: ='DF raw data'!G92 -> 9.2648506e-06 | C87: ='DF raw data'!H92 -> -2.6202613e-06 | D87: ='DF raw data'!I92 -> 9.4183488e-06 | F87: =(1-$G$1*($B$2-$G$2))*B87 -> 9.274634282e-06 | G87: -2.628176931e-06 | H87: 9.428294576e-06 | J87: -0.0001440263051 | K87: -0.005652252196 | L87: 3.796039244e-05 | M87: 0.0009143877337 | N87: 8.680347653e-07
A88: 42.12196667 | B88: ='DF raw data'!G93 -> 5.7472885e-06 | C88: ='DF raw data'!H93 -> 4.7039557e-06 | D88: ='DF raw data'!I93 -> 7.1830004e-06 | F88: 5.753357637e-06 | G88: 4.718166029e-06 | H88: 7.190585648e-06 | J88: -0.0001411487632 | K88: -0.00572284775 | L88: 4.032018318e-05 | M88: 0.0009345538733 | N88: 8.788123429e-07
A89: 42.62211667 | B89: ='DF raw data'!G94 -> -1.8666954e-06 | C89: ='DF raw data'!H94 -> -2.1746143e-06 | D89: ='DF raw data'!I94 -> 6.8685918e-06 | F89: -1.86866663e-06 | G89: -2.181183661e-06 | H89: 6.875845033e-06 | J89: -0.0001420833769 | K89: -0.005793910751 | L89: 3.922926417e-05 | M89: 0.0009541743898 | N89: 8.896789125e-07
A90: 43.12226667 | B90: ='DF raw data'!G95 -> -5.9055797e-06 | C90: ='DF raw data'!H95 -> 2.4548731e-07 | D90: ='DF raw data'!I95 -> 1.514913e-06 | F90: -5.911815992e-06 | G90: 2.462289104e-07 | H90: 1.516512748e-06 | J90: -0.0001450401716 | K90: -0.005866452593 | L90: 3.935241556e-05 | M90: 0.0009738565004 | N90: 9.009749323e-07
A91: 43.62241667 | B91: ='DF raw data'!G96 -> -6.4293613e-06 | C91: ='DF raw data'!H96 -> -2.5714269e-06 | D91: ='DF raw data'!I96 -> -4.3793693e-06 | F91: -6.436150706e-06 | G91: -2.579195005e-06 | H91: -4.383993914e-06 | J91: -0.0001482592124 | K91: -0.005940604438 | L91: 3.806243118e-05 | M91: 0.0009928934254 | N91: 9.12693218e-07
A92: 44.12256667 | B92: ='DF raw data'!G97 -> -7.1102018e-06 | C92: ='DF raw data'!H97 -> 1.5355946e-06 | D92: ='DF raw data'!I97 -> 7.3684209e-06 | F92: -7.117710173e-06 | G92: 1.540233526e-06 | H92: 7.376201952e-06 | J92: -0.0001518191351 | K92: -0.006016536778 | L92: 3.883277898e-05 | M92: 0.00101231564 | N92: 9.249754189e-07
A93: 44.62271667 | B93: ='DF raw data'!G98 -> -6.1616206e-06 | C93: ='DF raw data'!H98 -> 2.0677019e-06 | D93: ='DF raw data'!I98 -> 8.9147361e-06 | F93: -6.168127271e-06 | G93: 2.073948286e-06 | H93: 8.924150061e-06 | J93: -0.000154904124 | K93: -0.006094012076 | L93: 3.987006422e-05 | M93: 0.001032256652 | N93: 9.377717114e-07
A94: 45.12286667 | B94: ='DF raw data'!G99 -> -6.1434016e-06 | C94: ='DF raw data'!H99 -> 3.0245085e-06 | D94: ='DF raw data'!I99 -> 3.0761444e-06 | F94: -6.149889032e-06 | G94: 3.033645334e-06 | H94: 3.079392808e-06 | J94: -0.000157979991 | K94: -0.006173025768 | L94: 4.138734193e-05 | M94: 0.001052956531 | N94: 9.511110068e-07
A95: 45.62301667 | B95: ='DF raw data'!G100 -> -6.0212528e-06 | C95: ='DF raw data'!H100 -> 1.9952515e-06 | D95: ='DF raw data'!I100 -> 2.2246536e-06 | F95: -6.027611243e-06 | G95: 2.001279019e-06 | H95: 2.227002834e-06 | J95: -0.0001609947008 | K95: -0.006253547268 | L95: 4.238828163e-05 | M95: 0.001074157031 | N95: 9.649731943e-07
A96: 46.12316667 | B96: ='DF raw data'!G101 -> -5.0667927e-06 | C96: ='DF raw data'!H101 -> 6.8845566e-06 | D96: ='DF raw data'!I101 -> -8.7583567e-07 | F96: -5.072143233e-06 | G96: 6.905354375e-06 | H96: -8.767605525e-07 | J96: -0.0001635315332 | K96: -0.006335337564 | L96: 4.584199462e-05 | M96: 0.001097084904 | N96: 9.793995463e-07
A97: 46.62331667 | B97: ='DF raw data'!G102 -> -3.70565e-06 | C97: ='DF raw data'!H102 -> 1.2008027e-05 | D97: ='DF raw data'!I102 -> -1.3183594e-06 | F97: -3.709563166e-06 | G97: 1.204430243e-05 | H97: -1.319751588e-06 | J97: -0.0001653868712 | K97: -0.006418055808 | L97: 5.186595248e-05 | M97: 0.00112302566 | N97: 9.944254998e-07
A98: 47.12346667 | B98: ='DF raw data'!G103 -> -3.0735293e-06 | C98: ='DF raw data'!H103 -> 7.0087772e-06 | D98: ='DF raw data'!I103 -> -3.3268546e-07 | F98: -3.076774947e-06 | G98: 7.029950237e-06 | H98: -3.330367758e-07 | J98: -0.0001669257202 | K98: -0.006501543707 | L98: 5.538198209e-05 | M98: 0.001150724959 | N98: 1.00989582e-06
A99: 47.62361667 | B99: ='DF raw data'!G104 -> -3.3727022e-06 | C99: ='DF raw data'!H104 -> 6.6008897e-06 | D99: ='DF raw data'!I104 -> -1.0440849e-06 | F99: -3.376263774e-06 | G99: 6.620830537e-06 | H99: -1.045187454e-06 | J99: -0.0001686143585 | K99: -0.006585876178 | L99: 5.869339049e-05 | M99: 0.001180080458 | N99: 1.025838459e-06
A100: 48.12376667 | B100: ='DF raw data'!G105 -> 2.7098529e-06 | C100: ='DF raw data'!H105 -> 7.0315928e-06 | D100: ='DF raw data'!I105 -> -7.0233318e-07 | F100: 2.712714505e-06 | G100: 7.052834762e-06 | H100: -7.030748438e-07 | J100: -0.0001672575944 | K100: -0.006669530064 | L100: 6.222086579e-05 | M100: 0.001211200224 | N100: 1.041766505e-06
A101: 48.62391667 | B101: ='DF raw data'!G106 -> 9.2303335e-06 | C101: ='DF raw data'!H106 -> 7.2329033e-07 | D101: ='DF raw data'!I106 -> 1.2047575e-07 | F101: 9.240080732e-06 | G101: 7.254753407e-07 | H101: 1.206029724e-07 | J101: -0.000162636168 | K101: -0.006750872544 | L101: 6.258371228e-05 | M101: 0.001242501468 | N101: 1.056954683e-06
A102: 49.12406667 | B102: ='DF raw data'!G107 -> 7.9691772e-06 | C102: ='DF raw data'!H107 -> -9.0625254e-06 | D102: ='DF raw data'!I107 -> 2.503119e-06 | F102: 7.977592651e-06 | G102: -9.089902671e-06 | H102: 2.505762294e-06 | J102: -0.000158646175 | K102: -0.006830219428 | L102: 5.803739746e-05 | M102: 0.001271528872 | N102: 1.071227437e-06
A103: 49.62421667 | B103: ='DF raw data'!G108 -> 4.7736053e-06 | C103: ='DF raw data'!H108 -> -1.5220723e-05 | D103: ='DF raw data'!I108 -> 4.7240906e-06 | F103: 4.778646227e-06 | G103: -1.526670377e-05 | H103: 4.72907924e-06 | J103: -0.0001562561351 | K103: -0.006908370934 | L103: 5.040175557e-05 | M103: 0.00129673731 | N103: 1.084709639e-06
A104: 50.12436667 | B104: ='DF raw data'!G109 -> 3.5933433e-06 | C104: ='DF raw data'!H109 -> -5.0330516e-07 | D104: ='DF raw data'!I109 -> 3.1000968e-06 | F104: 3.597137871e-06 | G104: -5.048256105e-07 | H104: 3.103370502e-06 | J104: -0.0001544570266 | K104: -0.006985622616 | L104: 5.014926705e-05 | M104: 0.001321819466 | N104: 1.097899556e-06
A105: 50.62451667 | B105: ='DF raw data'!G110 -> 2.9618921e-06 | C105: ='DF raw data'!H110 -> -1.0739749e-06 | D105: ='DF raw data'!I110 -> 2.7637439e-06 | F105: 2.965019858e-06 | G105: -1.077219305e-06 | H105: 2.766662414e-06 | J105: -0.0001529740719 | K105: -0.007062132598 | L105: 4.961049581e-05 | M105: 0.001346632155 | N105: 1.110834569e-06
A106: 51.12466667 | B106: ='DF raw data'!G111 -> 2.8900783e-06 | C106: ='DF raw data'!H111 -> -8.2033876e-06 | D106: ='DF raw data'!I111 -> 7.2950065e-06 | F106: 2.893130223e-06 | G106: -8.228169474e-06 | H106: 7.302710027e-06 | J106: -0.0001515270728 | K106: -0.007137918863 | L106: 4.549517685e-05 | M106: 0.001369386568 | N106: 1.123353456e-06
A107: 51.62481667 | B107: ='DF raw data'!G112 -> 4.6330338e-06 | C107: ='DF raw data'!H112 -> -1.3253873e-05 | D107: ='DF raw data'!I112 -> 1.0735923e-05 | F107: 4.637926284e-06 | G107: -1.329391205e-05 | H107: 1.074726013e-05 | J107: -0.000149207414 | K107: -0.007212544952 | L107: 3.884622674e-05 | M107: 0.001388815508 | N107: 1.135242963e-06
A108: 52.12496667 | B108: ='DF raw data'!G113 -> 4.5718866e-06 | C108: ='DF raw data'!H113 -> 1.4021329e-07 | D108: ='DF raw data'!I113 -> 6.2773911e-06 | F108: 4.576714512e-06 | G108: 1.406368648e-07 | H108: 6.284020025e-06 | J108: -0.0001469183703 | K108: -0.007286026175 | L108: 3.891656627e-05 | M108: 0.001408279629 | N108: 1.146796181e-06
A109: 52.62511667 | B109: ='DF raw data'!G114 -> 3.0377948e-06 | C109: ='DF raw data'!H114 -> -3.7379812e-06 | D109: ='DF raw data'!I114 -> 5.5789137e-06 | F109: 3.041002711e-06 | G109: -3.749273386e-06 | H109: 5.584805033e-06 | J109: -0.0001453974127 | K109: -0.00735874669 | L109: 3.704136718e-05 | M109: 0.001426805869 | N109: 1.158055793e-06
A110: 53.12526667 | B110: ='DF raw data'!G115 -> 1.3979541e-06 | C110: ='DF raw data'!H115 -> -1.6461089e-06 | D110: ='DF raw data'!I115 -> 8.7528024e-06 | F110: 1.39943034e-06 | G110: -1.651081683e-06 | H110: 8.762045359e-06 | J110: -0.0001446974877 | K110: -0.007431117139 | L110: 3.621557868e-05 | M110: 0.00144491909 | N110: 1.169183596e-06
A111: 53.62541667 | B111: ='DF raw data'!G116 -> 1.1603213e-06 | C111: ='DF raw data'!H116 -> 3.5616861e-06 | D111: ='DF raw data'!I116 -> 7.3981651e-06 | F111: 1.161546599e-06 | G111: 3.572445711e-06 | H111: 7.405977562e-06 | J111: -0.0001441165401 | K111: -0.007503197026 | L111: 3.80023374e-05 | M111: 0.00146392596 | N111: 1.180293806e-06
A112: 54.12556667 | B112: ='DF raw data'!G117 -> 2.1800613e-06 | C112: ='DF raw data'!H117 -> -2.2876281e-06 | D112: ='DF raw data'!I117 -> 7.8217854e-06 | F112: 2.182363445e-06 | G112: -2.294538868e-06 | H112: 7.830045205e-06 | J112: -0.0001430250311 | K112: -0.007574730996 | L112: 3.685472379e-05 | M112: 0.00148235885 | N112: 1.191204293e-06
A113: 54.62571667 | B113: ='DF raw data'!G118 -> 2.0894615e-07 | C113: ='DF raw data'!H118 -> 7.3664951e-06 | D113: ='DF raw data'!I118 -> 1.0543445e-05 | F113: 2.091667971e-07 | G113: 7.388748779e-06 | H113: 1.055457888e-05 | J113: -0.0001429204163 | K113: -0.007646212642 | L113: 4.055020649e-05 | M113: 0.001502640035 | N113: 1.202242886e-06
A114: 55.12586667 | B114: ='DF raw data'!G119 -> -2.3926161e-06 | C114: ='DF raw data'!H119 -> 7.4751051e-06 | D114: ='DF raw data'!I119 -> 3.9451993e-06 | F114: -2.395142703e-06 | G114: 7.497686882e-06 | H114: 3.94936543e-06 | J114: -0.0001441183469 | K114: -0.007718293433 | L114: 4.430017458e-05 | M114: 0.001524796768 | N114: 1.213612597e-06
A115: 55.62601667 | B115: ='DF raw data'!G120 -> -2.6610844e-06 | C115: ='DF raw data'!H120 -> 7.2435807e-07 | D115: ='DF raw data'!I120 -> 5.2739097e-07 | F115: -2.663894505e-06 | G115: 7.265463063e-07 | H115: 5.279478949e-07 | J115: -0.0001454506937 | K115: -0.007791040598 | L115: 4.466355672e-05 | M115: 0.001547135246 | N115: 1.225191439e-06
A116: 56.12616667 | B116: ='DF raw data'!G121 -> -1.9834454e-06 | C116: ='DF raw data'!H121 -> -8.7888675e-06 | D116: ='DF raw data'!I121 -> 5.9947347e-06 | F116: -1.985539918e-06 | G116: -8.815418069e-06 | H116: 6.00106514e-06 | J116: -0.0001464437615 | K116: -0.007864284445 | L116: 4.025452537e-05 | M116: 0.001567268546 | N116: 1.236728e-06
A117: 56.62631667 | B117: ='DF raw data'!G122 -> -6.6776024e-06 | C117: ='DF raw data'!H122 -> -1.3319386e-05 | D117: ='DF raw data'!I122 -> 3.5815615e-06 | F117: -6.684653948e-06 | G117: -1.335962296e-05 | H117: 3.585343629e-06 | J117: -0.0001497870912 | K117: -0.007939200459 | L117: 3.357270995e-05 | M117: 0.001584059937 | N117: 1.248513184e-06
A118: 57.12646667 | B118: ='DF raw data'!G123 -> -1.0943889e-05 | C118: ='DF raw data'!H123 -> -4.2548781e-06 | D118: ='DF raw data'!I123 -> -9.3147537e-06 | F118: -1.095544575e-05 | G118: -4.267731796e-06 | H118: -9.32459008e-06 | J118: -0.0001552664574 | K118: -0.008016856977 | L118: 3.143820389e-05 | M118: 0.001599783755 | N118: 1.261064965e-06
A119: 57.62661667 | B119: ='DF raw data'!G124 -> -3.774466e-06 | C119: ='DF raw data'!H124 -> -1.0111264e-05 | D119: ='DF raw data'!I124 -> -1.1886004e-05 | F119: -3.778451836e-06 | G119: -1.014180944e-05 | H119: -1.189855562e-05 | J119: -0.0001571562501 | K119: -0.008095458676 | L119: 2.63657779e-05 | M119: 0.001612970599 | N119: 1.273765395e-06
A120: 58.12676667 | B120: ='DF raw data'!G125 -> 2.9175087e-06 | C120: ='DF raw data'!H125 -> -9.9081881e-06 | D120: ='DF raw data'!I125 -> -5.7644934e-06 | F120: 2.920589589e-06 | G120: -9.93812006e-06 | H120: -5.770580705e-06 | J120: -0.0001556955172 | K120: -0.008173329789 | L120: 2.139522715e-05 | M120: 0.001623671422 | N120: 1.286118524e-06
A121: 58.62691667 | B121: ='DF raw data'!G126 -> 3.4015054e-06 | C121: ='DF raw data'!H126 -> -3.1246161e-06 | D121: ='DF raw data'!I126 -> -1.1435181e-06 | F121: 3.40509739e-06 | G121: -3.134055352e-06 | H121: -1.144725655e-06 | J121: -0.0001539924577 | K121: -0.008250349116 | L121: 1.982772937e-05 | M121: 0.001633588261 | N121: 1.298175548e-06
A122: 59.12706667 | B122: ='DF raw data'!G127 -> 4.2034182e-07 | C122: ='DF raw data'!H127 -> -3.1175439e-06 | D122: ='DF raw data'!I127 -> 2.2239115e-06 | F122: 4.20785701e-07 | G122: -3.126961787e-06 | H122: 2.226259951e-06 | J122: -0.0001537820018 | K122: -0.008327263185 | L122: 1.826377943e-05 | M122: 0.00164272289 | N122: 1.310170381e-06
A123: 59.62721667 | B123: ='DF raw data'!G128 -> -6.4584788e-07 | C123: ='DF raw data'!H128 -> -6.9421003e-06 | D123: ='DF raw data'!I128 -> -1.6863337e-06 | F123: -6.465298954e-07 | G123: -6.963071911e-06 | H123: -1.688114468e-06 | J123: -0.0001541053637 | K123: -0.008404338982 | L123: 1.478119901e-05 | M123: 0.001650115707 | N123: 1.322157449e-06
A124: 60.12736667 | B124: ='DF raw data'!G129 -> 2.5969009e-06 | C124: ='DF raw data'!H129 -> 5.6336767e-06 | D124: ='DF raw data'!I129 -> -4.345638e-06 | F124: 2.599643227e-06 | G124: 5.650695653e-06 | H124: -4.350226994e-06 | J124: -0.0001528051521 | K124: -0.008480764479 | L124: 1.760739444e-05 | M124: 0.001658922045 | N124: 1.333990715e-06
A125: 60.62751667 | B125: ='DF raw data'!G130 -> 9.7358379e-06 | C125: ='DF raw data'!H130 -> 3.9875858e-06 | D125: ='DF raw data'!I130 -> -2.0458533e-06 | F125: 9.746118945e-06 | G125: 3.999632024e-06 | H125: -2.048013721e-06 | J125: -0.0001479306307 | K125: -0.008554751984 | L125: 1.96078104e-05 | M125: 0.001668728891 | N125: 1.345128025e-06
A126: 61.12766667 | B126: ='DF raw data'!G131 -> 1.2774802e-05 | C126: ='DF raw data'!H131 -> -1.9295092e-06 | D126: ='DF raw data'!I131 -> 4.0442396e-06 | F126: 1.278829219e-05 | G126: -1.935338116e-06 | H126: 4.048510317e-06 | J126: -0.0001415345664 | K126: -0.008625540497 | L126: 1.863985104e-05 | M126: 0.001678051613 | N126: 1.35532082e-06
A127: 61.62781667 | B127: ='DF raw data'!G132 -> 5.9255058e-06 | C127: ='DF raw data'!H132 -> -8.8852012e-06 | D127: ='DF raw data'!I132 -> 6.5105314e-07 | F127: 5.931763134e-06 | G127: -8.912042786e-06 | H127: 6.517406521e-07 | J127: -0.0001385677951 | K127: -0.00869484518 | L127: 1.418249284e-05 | M127: 0.001685144987 | N127: 1.365024819e-06
A128: 62.12796667 | B128: ='DF raw data'!G133 -> -3.5641326e-06 | C128: ='DF raw data'!H133 -> -6.4050564e-06 | D128: ='DF raw data'!I133 -> -5.2921673e-06 | F128: -3.567896324e-06 | G128: -6.424405638e-06 | H128: -5.297755829e-06 | J128: -0.0001403522784 | K128: -0.008765042372 | L128: 1.096932636e-05 | M128: 0.001690631295 | N128: 1.374937336e-06
A129: 62.62811667 | B129: ='DF raw data'!G134 -> -5.2210576e-06 | C129: ='DF raw data'!H134 -> 8.8233548e-07 | D129: ='DF raw data'!I134 -> -4.2588504e-06 | F129: -5.226571037e-06 | G129: 8.850009552e-07 | H129: -4.263347746e-06 | J129: -0.0001429663479 | K129: -0.008836546991 | L129: 1.141195959e-05 | M129: 0.001696338987 | N129: 1.385225226e-06
A130: 63.12826667 | B130: ='DF raw data'!G135 -> 4.2801068e-07 | C130: ='DF raw data'!H135 -> -6.434544e-06 | D130: ='DF raw data'!I135 -> -4.6796044e-06 | F130: 4.284626593e-07 | G130: -6.453982318e-06 | H130: -4.684546062e-06 | J130: -0.0001427520523 | K130: -0.00890794443 | L130: 8.184000335e-06 | M130: 0.001700432214 | N130: 1.395450856e-06
A131: 63.62841667 | B131: ='DF raw data'!G136 -> 2.1726544e-06 | C131: ='DF raw data'!H136 -> 5.1342586e-06 | D131: ='DF raw data'!I136 -> -3.2386447e-06 | F131: 2.174948723e-06 | G131: 5.149768845e-06 | H131: -3.242064709e-06 | J131: -0.0001416642517 | K131: -0.008978797806 | L131: 1.075965722e-05 | M131: 0.001705813657 | N131: 1.405546149e-06
A132: 64.12856667 | B132: ='DF raw data'!G137 -> -3.4248999e-06 | C132: ='DF raw data'!H137 -> 4.3938717e-06 | D132: ='DF raw data'!I137 -> 3.0656562e-07 | F132: -3.428516594e-06 | G132: 4.407145286e-06 | H132: 3.068893533e-07 | J132: -0.0001433790243 | K132: -0.009050508825 | L132: 1.296389094e-05 | M132: 0.001712297547 | N132: 1.415912061e-06
A133: 64.62871667 | B133: ='DF raw data'!G138 -> -7.3627211e-06 | C133: ='DF raw data'!H138 -> 7.1168154e-07 | D133: ='DF raw data'!I138 -> -5.8420073e-07 | F133: -7.370496133e-06 | G133: 7.138314813e-07 | H133: -5.84817646e-07 | J133: -0.0001470653779 | K133: -0.009124063573 | L133: 1.332091375e-05 | M133: 0.001718960002 | N133: 1.426818168e-06
A134: 65.12886667 | B134: ='DF raw data'!G139 -> -4.6207765e-06 | C134: ='DF raw data'!H139 -> 8.4940884e-06 | D134: ='DF raw data'!I139 -> -2.9224461e-06 | F134: -4.62565604e-06 | G134: 8.519748461e-06 | H134: -2.925532203e-06 | J134: -0.0001493788998 | K134: -0.00919877543 | L134: 1.758206595e-05 | M134: 0.001727753672 | N134: 1.438133154e-06
A135: 65.62901667 | B135: ='DF raw data'!G140 -> -4.5300592e-07 | C135: ='DF raw data'!H140 -> 1.7823023e-06 | D135: ='DF raw data'!I140 -> 1.3978429e-06 | F135: -4.534842943e-07 | G135: =(1-$G$1*($B$2-$G$2))*C135*$M$2/$M$1 -> 1.787686514e-06 | H135: 1.399319022e-06 | J135: -0.00014960571 | K135: -0.009273600726 | L135: 1.847617736e-05 | M135: 0.001736994532 | N135: 1.449498181e-06
A136: =A135+$B$1 -> 66.12916667 | B136: ='DF raw data'!G141 -> -4.2672086e-06 | C136: ='DF raw data'!H141 -> -5.0562412e-06 | D136: ='DF raw data'!I141 -> 4.774804e-06 | F136: -4.271714772e-06 | G136: -5.071515759e-06 | H136: 4.779846193e-06 | J136: =F136*$B$1+J135 -> -0.0001517422081 | K136: =J136*$B$1+K135 -> -0.009349494591 | L136: =G136*$B$1+L135 -> 1.593965875e-05 | M136: =L136*$B$1+M135 -> 0.001744966753 | N136: =(J136^2+L136^2)*$B$1+N135 -> 1.461141559e-06
A137: 66.62931667 | B137: ='DF raw data'!G142 -> -1.4121838e-05 | C137: ='DF raw data'!H142 -> 1.8997172e-06 | D137: ='DF raw data'!I142 -> 6.4069031e-06 | F137: -1.413675066e-05 | G137: 1.905456116e-06 | H137: 6.41366879e-06 | J137: -0.000158812704 | K137: -0.009428924765 | L137: 1.689267262e-05 | M137: 0.001753415623 | N137: 1.473898803e-06
A138: 67.12946667 | B138: ='DF raw data'!G143 -> -1.5336735e-05 | C138: ='DF raw data'!H143 -> 2.5246902e-06 | D138: ='DF raw data'!I143 -> 1.7649586e-06 | F138: -1.535293059e-05 | G138: 2.532317117e-06 | H138: 1.766822396e-06 | J138: -0.0001664914722 | K138: -0.009512195475 | L138: 1.815921103e-05 | M138: 0.001762497952 | N138: 1.487927594e-06
A139: 67.62961667 | B139: ='DF raw data'!G144 -> -7.3708557e-06 | C139: ='DF raw data'!H144 -> -9.1874135e-06 | D139: ='DF raw data'!I144 -> -5.9624972e-07 | F139: -7.378639324e-06 | G139: -9.215168049e-06 | H139: -5.968793597e-07 | J139: -0.0001701818987 | K139: -0.009597311952 | L139: 1.355024473e-05 | M139: 0.001769275107 | N139: 1.50250471e-06
A140: 68.12976667 | B140: ='DF raw data'!G145 -> 6.3147559e-07 | C140: ='DF raw data'!H145 -> -1.0860191e-05 | D140: ='DF raw data'!I145 -> 6.2577606e-06 | F140: 6.321424282e-07 | G140: -1.08929989e-05 | H140: 6.264368795e-06 | J140: -0.0001698657326 | K140: -0.009682270298 | L140: 8.102111333e-06 | M140: 0.001773327378 | N140: 1.516969054e-06
A141: 68.62991667 | B141: ='DF raw data'!G146 -> 7.3897922e-06 | C141: ='DF raw data'!H146 -> -1.1880908e-05 | D141: ='DF raw data'!I146 -> 1.1383294e-05 | F141: 7.397595821e-06 | G141: -1.191679941e-05 | H141: 1.139531476e-05 | J141: -0.0001661658251 | K141: -0.009765378135 | L141: 2.141924107e-06 | M141: 0.001774398662 | N141: 1.530781031e-06
A142: 69.13006667 | B142: ='DF raw data'!G147 -> 6.9224138e-06 | C142: ='DF raw data'!H147 -> -3.9513307e-06 | D142: ='DF raw data'!I147 -> 1.0579519e-05 | F142: 6.929723869e-06 | G142: -3.9632674e-06 | H142: 1.059069097e-05 | J142: -0.0001626999237 | K142: -0.009846752502 | L142: 1.596959171e-07 | M142: 0.001774478534 | N142: 1.544020647e-06
A143: 69.63021667 | B143: ='DF raw data'!G148 -> 1.5381327e-06 | C143: ='DF raw data'!H148 -> -3.9882907e-06 | D143: ='DF raw data'!I148 -> 1.7497227e-06 | F143: 1.539756968e-06 | G143: -4.000339054e-06 | H143: 1.751570407e-06 | J143: -0.0001619298142 | K143: -0.009927741699 | L143: -1.841073661e-06 | M143: 0.001773557721 | N143: 1.557136908e-06
A144: 70.13036667 | B144: ='DF raw data'!G149 -> -2.6081445e-06 | C144: ='DF raw data'!H149 -> -7.7153109e-06 | D144: ='DF raw data'!I149 -> 1.6718554e-06 | F144: -2.610898701e-06 | G144: -7.738618328e-06 | H144: 1.673620879e-06 | J144: -0.0001632356552 | K144: -0.01000938401 | L144: -5.711543617e-06 | M144: 0.001770701092 | N144: 1.57048016e-06
A145: 70.63051667 | B145: ='DF raw data'!G150 -> -4.7122935e-06 | C145: ='DF raw data'!H150 -> 7.0394356e-07 | D145: ='DF raw data'!I150 -> 1.0794756e-05 | F145: -4.717269682e-06 | G145: 7.060701254e-07 | H145: 1.080615526e-05 | J145: -0.0001655949976 | K145: -0.01009220635 | L145: -5.358402644e-06 | M145: 0.001768021087 | N145: 1.584209485e-06
A146: 71.13066667 | B146: ='DF raw data'!G151 -> 7.8982993e-08 | C146: ='DF raw data'!H151 -> -1.2238123e-06 | D146: ='DF raw data'!I151 -> 1.5303856e-05 | F146: 7.906639904e-08 | G146: -1.227509353e-06 | H146: 1.532001687e-05 | J146: -0.0001655554526 | K146: -0.01017500891 | L146: -5.972341447e-06 | M146: 0.00176503402 | N146: 1.59793574e-06
A147: 71.63081667 | B147: ='DF raw data'!G152 -> 9.2961518e-06 | C147: ='DF raw data'!H152 -> -1.1627129e-05 | D147: ='DF raw data'!I152 -> 1.3939425e-05 | F147: 9.305968536e-06 | G147: -1.166225376e-05 | H147: 1.395414503e-05 | J147: -0.0001609010724 | K147: -0.01025548358 | L147: -1.180521767e-05 | M147: 0.001759129641 | N147: 1.610953904e-06
A148: 72.13096667 | B148: ='DF raw data'!G153 -> 1.0875719e-05 | C148: ='DF raw data'!H153 -> -1.3218782e-05 | D148: ='DF raw data'!I153 -> 3.9320298e-06 | F148: 1.088720376e-05 | G148: -1.325871504e-05 | H148: 3.936182023e-06 | J148: -0.0001554558375 | K148: -0.01033323482 | L148: -1.843656399e-05 | M148: 0.001749908593 | N148: 1.623210792e-06
A149: 72.63111667 | B149: ='DF raw data'!G154 -> 8.660757e-06 | C149: ='DF raw data'!H154 -> -2.0015593e-06 | D149: ='DF raw data'!I154 -> 1.3171234e-06 | F149: 8.669902759e-06 | G149: -2.007605874e-06 | H149: 1.318514282e-06 | J149: -0.0001511195856 | K149: -0.01040881728 | L149: -1.944066807e-05 | M149: 0.001740185343 | N149: 1.634821808e-06
A150: 73.13126667 | B150: ='DF raw data'!G155 -> 9.7258117e-06 | C150: ='DF raw data'!H155 -> -1.3974021e-06 | D150: ='DF raw data'!I155 -> 5.6658905e-06 | F150: 9.736082157e-06 | G150: -1.401623556e-06 | H150: 5.67187368e-06 | J150: -0.0001462500841 | K150: -0.01048196426 | L150: -2.014169009e-05 | M150: 0.001730111477 | N150: 1.645722465e-06
A151: 73.63141667 | B151: ='DF raw data'!G156 -> 9.5016685e-06 | C151: ='DF raw data'!H156 -> -2.8655011e-06 | D151: ='DF raw data'!I156 -> 5.5316491e-06 | F151: =(1-$G$1*($B$2-$G$2))*B151 -> 9.511702262e-06 | G151: -2.874157583e-06 | H151: 5.537490521e-06 | J151: -0.0001414928062 | K151: -0.01055273189 | L151: -2.157920001e-05 | M151: 0.00171931864 | N151: 1.655968476e-06
A152: 74.13156667 | B152: ='DF raw data'!G157 -> 5.0869371e-06 | C152: ='DF raw data'!H157 -> -5.0434319e-06 | D152: ='DF raw data'!I157 -> 7.3791311e-06 | F152: 5.092308906e-06 | G152: -5.058667763e-06 | H152: 7.386923462e-06 | J152: -0.0001389458879 | K152: -0.01062222567 | L152: -2.410929269e-05 | M152: 0.001707260377 | N152: 1.665915068e-06
A153: 74.63171667 | B153: ='DF raw data'!G158 -> -3.5382007e-07 | C153: ='DF raw data'!H158 -> -4.9300197e-06 | D153: ='DF raw data'!I158 -> 8.8957604e-06 | F153: -3.54193704e-07 | G153: -4.944912953e-06 | H153: 8.905154323e-06 | J153: -0.0001391230379 | K153: -0.01069180806 | L153: -2.65824909e-05 | M153: 0.001693965144 | N153: 1.675949001e-06
A154: 75.13186667 | B154: ='DF raw data'!G159 -> 4.788842e-07 | C154: ='DF raw data'!H159 -> -4.253543e-06 | D154: ='DF raw data'!I159 -> 6.034345e-06 | F154: 4.793899017e-07 | G154: -4.266392663e-06 | H154: 6.040717268e-06 | J154: -0.000138883271 | K154: -0.01076127053 | L154: -2.871632719e-05 | M154: 0.001679602673 | N154: 1.686008614e-06
A155: 75.63201667 | B155: ='DF raw data'!G160 -> 1.9414972e-06 | C155: ='DF raw data'!H160 -> -6.1795654e-06 | D155: ='DF raw data'!I160 -> 1.0162335e-06 | F155: 1.943547421e-06 | G155: -6.198233445e-06 | H155: 1.017306643e-06 | J155: -0.0001379112058 | K155: -0.01083024682 | L155: -3.181637365e-05 | M155: 0.001663689714 | N155: 1.696027509e-06
A156: 76.13216667 | B156: ='DF raw data'!G161 -> -3.7301409e-06 | C156: ='DF raw data'!H161 -> -9.4341212e-06 | D156: ='DF raw data'!I161 -> 6.047926e-07 | F156: -3.734079929e-06 | G156: -9.462621036e-06 | H156: 6.05431261e-07 | J156: -0.0001397788059 | K156: -0.01090015719 | L156: -3.654910356e-05 | M156: 0.00164540968 | N156: 1.706467616e-06
A157: 76.63231667 | B157: ='DF raw data'!G162 -> -8.4325047e-06 | C157: ='DF raw data'!H162 -> -5.8175774e-06 | D157: ='DF raw data'!I162 -> -1.9829017e-06 | F157: -8.441409425e-06 | G157: -5.835151904e-06 | H157: -1.984995644e-06 | J157: -0.0001440007768 | K157: -0.01097217917 | L157: -3.946755479e-05 | M157: 0.001625669982 | N157: 1.717617916e-06
A158: 77.13246667 | B158: ='DF raw data'!G163 -> -7.6773767e-06 | C158: ='DF raw data'!H163 -> 1.192686e-06 | D158: ='DF raw data'!I163 -> -3.8661815e-06 | F158: -7.68548401e-06 | G158: 1.196289023e-06 | H158: -3.870264188e-06 | J158: -0.0001478446716 | K158: -0.01104612369 | L158: -3.886923083e-05 | M158: 0.001606229537 | N158: 1.729305854e-06
A159: 77.63261667 | B159: ='DF raw data'!G164 -> -1.8375333e-06 | C159: ='DF raw data'!H164 -> -7.1350369e-06 | D159: ='DF raw data'!I164 -> 8.1738541e-08 | F159: -1.839473735e-06 | G159: -7.156591359e-06 | H159: 8.18248569e-08 | J159: -0.0001487646844 | K159: -0.01112052834 | L159: -4.24486e-05 | M159: 0.001584998869 | N159: 1.741275851e-06
A160: 78.13276667 | B160: ='DF raw data'!G165 -> 3.2591295e-06 | C160: ='DF raw data'!H165 -> -7.3413157e-06 | D160: ='DF raw data'!I165 -> -1.3643435e-06 | F160: 3.262571141e-06 | G160: -7.363493314e-06 | H160: -1.365784247e-06 | J160: -0.0001471329095 | K160: -0.01119411687 | L160: -4.613145118e-05 | M160: 0.001561926224 | N160: 1.753167519e-06
A161: 78.63291667 | B161: ='DF raw data'!G166 -> 2.1217809e-06 | C161: ='DF raw data'!H166 -> -7.6456636e-06 | D161: ='DF raw data'!I166 -> -6.7982178e-06 | F161: 2.124021501e-06 | G161: -7.668760628e-06 | H161: -6.805396718e-06 | J161: -0.0001460705801 | K161: -0.01126717407 | L161: -4.996698181e-05 | M161: 0.001536935238 | N161: 1.765087751e-06
A162: 79.13306667 | B162: ='DF raw data'!G167 -> -9.8039641e-07 | C162: ='DF raw data'!H167 -> -6.861912e-06 | D162: ='DF raw data'!I167 -> -7.8960875e-06 | F162: -9.814317086e-07 | G162: -6.882641368e-06 | H162: -7.904425768e-06 | J162: -0.0001465614432 | K162: -0.01134047677 | L162: -5.340933489e-05 | M162: 0.001510222559 | N162: 1.777257808e-06
A163: 79.63321667 | B163: ='DF raw data'!G168 -> -2.4737139e-06 | C163: ='DF raw data'!H168 -> -4.8643724e-06 | D163: ='DF raw data'!I168 -> -8.2923507e-06 | F163: -2.476326142e-06 | G163: -4.879067337e-06 | H163: -8.301107422e-06 | J163: -0.0001477999777 | K163: -0.01141439893 | L163: -5.584960042e-05 | M163: 0.001482289382 | N163: 1.789743558e-06
A164: 80.13336667 | B164: ='DF raw data'!G169 -> -2.7205581e-06 | C164: ='DF raw data'!H169 -> -1.1475557e-05 | D164: ='DF raw data'!I169 -> -3.2239327e-06 | F164: -2.723431009e-06 | G164: -1.151022387e-05 | H164: -3.227337173e-06 | J164: -0.0001491621017 | K164: -0.01148900236 | L164: -6.160643889e-05 | M164: 0.001451476921 | N164: 1.802769808e-06
A165: 80.63351667 | B165: ='DF raw data'!G170 -> -2.6103564e-06 | C165: ='DF raw data'!H170 -> -1.0794811e-05 | D165: ='DF raw data'!I170 -> 2.3755279e-06 | F165: -2.613112936e-06 | G165: -1.082742139e-05 | H165: 2.378036457e-06 | J165: -0.0001504690502 | K165: -0.01156425945 | L165: -6.70217737e-05 | M165: 0.001417955981 | N165: 1.816340304e-06
A166: 81.13366667 | B166: ='DF raw data'!G171 -> -4.7470283e-07 | C166: ='DF raw data'!H171 -> -7.5193075e-06 | D166: ='DF raw data'!I171 -> -1.0034851e-06 | F166: -4.752041162e-07 | G166: -7.542022815e-06 | H166: -1.00454478e-06 | J166: -0.0001507067235 | K166: -0.01163963542 | L166: -7.079391641e-05 | M166: 0.001382548404 | N166: 1.83020661e-06
A167: 81.63381667 | B167: ='DF raw data'!G172 -> 2.953612e-06 | C167: ='DF raw data'!H172 -> -1.0195787e-07 | D167: ='DF raw data'!I172 -> 5.1325042e-08 | F167: 2.956731014e-06 | G167: -1.022658778e-07 | H167: 5.137924124e-08 | J167: -0.0001492279145 | K167: -0.01171427176 | L167: -7.084506468e-05 | M167: 0.001347115245 | N167: 1.843854701e-06
A168: 82.13396667 | B168: ='DF raw data'!G173 -> 7.223814e-07 | C168: ='DF raw data'!H173 -> 3.0108988e-06 | D168: ='DF raw data'!I173 -> 6.32192e-06 | F168: 7.231442348e-07 | G168: 3.01999452e-06 | H168: 6.328595948e-06 | J168: -0.0001488662339 | K168: -0.01178872721 | L168: -6.933461443e-05 | M168: 0.001312437537 | N168: 1.857342968e-06
A169: 82.63411667 | B169: ='DF raw data'!G174 -> -8.5885013e-06 | C169: ='DF raw data'!H174 -> 4.1880972e-07 | D169: ='DF raw data'!I174 -> 8.196148e-06 | F169: -8.597570757e-06 | G169: 4.200749156e-07 | H169: 8.204803132e-06 | J169: -0.0001531663089 | K169: -0.01186533334 | L169: -6.912451396e-05 | M169: 0.001277864912 | N169: 1.871466262e-06
A170: 83.13426667 | B170: ='DF raw data'!G175 -> -1.3377376e-05 | C170: ='DF raw data'!H175 -> 3.5837022e-06 | D170: ='DF raw data'!I175 -> 2.292742e-06 | F170: -1.339150251e-05 | G170: 3.59452832e-06 | H170: 2.295163136e-06 | J170: -0.0001598640689 | K170: -0.01194528935 | L170: -6.732671062e-05 | M170: 0.001244191457 | N170: 1.886515479e-06
A171: 83.63441667 | B171: ='DF raw data'!G176 -> -1.0347886e-05 | C171: ='DF raw data'!H176 -> 4.5306342e-06 | D171: ='DF raw data'!I176 -> 4.9247469e-06 | F171: -1.035881337e-05 | G171: 4.544320937e-06 | H171: 4.929947433e-06 | J171: -0.0001650450294 | K171: -0.01202783663 | L171: -6.50538685e-05 | M171: 0.001211654765 | N171: 1.902256133e-06
A172: 84.13456667 | B172: ='DF raw data'!G177 -> -6.1355872e-06 | C172: ='DF raw data'!H177 -> 1.3767762e-07 | D172: ='DF raw data'!I177 -> 7.357507e-06 | F172: -6.14206638e-06 | G172: 1.380935347e-07 | H172: 7.365276527e-06 | J172: -0.0001681169839 | K172: -0.01211192033 | L172: -6.498480102e-05 | M172: 0.001179152617 | N172: 1.918504178e-06
A173: 84.63471667 | B173: ='DF raw data'!G178 -> -4.8341803e-06 | C173: ='DF raw data'!H178 -> 6.0054044e-06 | D173: ='DF raw data'!I178 -> 6.8402446e-06 | F173: -4.839285194e-06 | G173: 6.023546317e-06 | H173: 6.847467898e-06 | J173: -0.0001705373524 | K173: -0.01219721459 | L173: -6.197212433e-05 | M173: 0.001148157259 | N173: 1.934970883e-06
A174: 85.13486667 | B174: ='DF raw data'!G179 -> -4.7691042e-06 | C174: ='DF raw data'!H179 -> 5.4756993e-06 | D174: ='DF raw data'!I179 -> 5.8877927e-06 | F174: -4.774140374e-06 | G174: 5.492241014e-06 | H174: 5.894010209e-06 | J174: -0.0001729251387 | K174: -0.0122837031 | L174: -5.922517999e-05 | M174: 0.001118535785 | N174: 1.951681258e-06
A175: 85.63501667 | B175: ='DF raw data'!G180 -> -2.1965e-06 | C175: ='DF raw data'!H180 -> -1.384993e-06 | D175: ='DF raw data'!I180 -> 3.768379e-06 | F175: -2.198819504e-06 | G175: -1.389176969e-06 | H175: 3.772358408e-06 | J175: -0.0001740248783 | K175: -0.01237074164 | L175: -5.991997685e-05 | M175: 0.001088566809 | N175: 1.96862387e-06
A176: 86.13516667 | B176: ='DF raw data'!G181 -> 1.9123934e-06 | C176: ='DF raw data'!H181 -> 3.8732119e-07 | D176: ='DF raw data'!I181 -> -4.8815809e-07 | F176: 1.914412887e-06 | G176: 3.884912609e-07 | H176: -4.886735849e-07 | J176: -0.0001730673847 | K176: -0.01245730129 | L176: -5.972567294e-05 | M176: 0.001058695013 | N176: 1.985388636e-06
A177: 86.63531667 | B177: ='DF raw data'!G182 -> 1.9504466e-06 | C177: ='DF raw data'!H182 -> -7.8325938e-06 | D177: ='DF raw data'!I182 -> -3.8894063e-06 | F177: 1.952506272e-06 | G177: -7.856255531e-06 | H177: -3.893513513e-06 | J177: -0.0001720908386 | K177: -0.01254337253 | L177: -6.365497915e-05 | M177: 0.001026857975 | N177: 2.002227292e-06
A178: 87.13546667 | B178: ='DF raw data'!G183 -> -6.9211724e-06 | C178: ='DF raw data'!H183 -> -5.4740012e-06 | D178: ='DF raw data'!I183 -> 2.3869075e-06 | F178: -6.928481158e-06 | G178: -5.490537784e-06 | H178: 2.389428074e-06 | J178: -0.0001755561185 | K178: -0.01263117692 | L178: -6.640107162e-05 | M178: 0.0009936474794 | N178: 2.019847103e-06
A179: 87.63561667 | B179: ='DF raw data'!G184 -> -1.4866489e-05 | C179: ='DF raw data'!H184 -> 1.6975756e-06 | D179: ='DF raw data'!I184 -> 7.2498083e-06 | F179: -1.488218801e-05 | G179: 1.70270386e-06 | H179: 7.257464098e-06 | J179: -0.0001829994448 | K179: -0.01272270409 | L179: -6.554946428e-05 | M179: 0.0009608629148 | N179: 2.038745536e-06
A180: 88.13576667 | B180: ='DF raw data'!G185 -> -1.4026843e-05 | C180: ='DF raw data'!H185 -> -2.0832174e-06 | D180: ='DF raw data'!I185 -> 2.2161262e-06 | F180: -1.404165535e-05 | G180: -2.089510658e-06 | H180: 2.218466429e-06 | J180: -0.0001900223787 | K180: -0.01281774379 | L180: -6.659453304e-05 | M180: 0.0009275556591 | N180: 2.059023285e-06
A181: 88.63591667 | B181: ='DF raw data'!G186 -> -8.0234067e-06 | C181: ='DF raw data'!H186 -> 2.5721904e-06 | D181: ='DF raw data'!I186 -> -2.1505543e-06 | F181: -8.031879417e-06 | G181: 2.579960812e-06 | H181: -2.152825285e-06 | J181: -0.0001940395232 | K181: -0.01291479265 | L181: -6.530416564e-05 | M181: 0.0008948937807 | N181: 2.079987558e-06
A182: 89.13606667 | B182: ='DF raw data'!G187 -> 1.4807254e-06 | C182: ='DF raw data'!H187 -> 1.931073e-06 | D182: ='DF raw data'!I187 -> 1.104811e-06 | F182: 1.482289046e-06 | G182: 1.93690664e-06 | H182: 1.10597768e-06 | J182: -0.0001932981564 | K182: -0.01301147073 | L182: -6.433542178e-05 | M182: 0.0008627164195 | N182: 2.100745395e-06
A183: 89.63621667 | B183: ='DF raw data'!G188 -> 5.1799821e-06 | C183: ='DF raw data'!H188 -> 6.6060938e-06 | D183: ='DF raw data'!I188 -> -7.2991973e-08 | F183: 5.185452161e-06 | G183: 6.626050358e-06 | H183: -7.306905252e-08 | J183: -0.0001907046525 | K183: -0.01310685166 | L183: -6.10214027e-05 | M183: 0.0008321965649 | N183: 2.120797347e-06
A184: 90.13636667 | B184: ='DF raw data'!G189 -> -1.8407198e-07 | C184: ='DF raw data'!H189 -> 4.7593285e-06 | D184: ='DF raw data'!I189 -> -4.5336487e-06 | F184: -1.8426636e-07 | G184: 4.773706106e-06 | H184: -4.538436233e-06 | J184: -0.0001907968133 | K184: -0.01320227868 | L184: -5.863383359e-05 | M184: 0.000802870853 | N184: 2.140723998e-06
A185: 90.63651667 | B185: ='DF raw data'!G190 -> -4.4577077e-06 | C185: ='DF raw data'!H190 -> -4.0123436e-07 | D185: ='DF raw data'!I190 -> -5.1277993e-07 | F185: -4.462415039e-06 | G185: -4.024464616e-07 | H185: -5.133214256e-07 | J185: -0.0001930286902 | K185: -0.01329882198 | L185: -5.883511719e-05 | M185: 0.0007734444692 | N185: 2.16109093e-06
A186: 91.13666667 | B186: ='DF raw data'!G191 -> -6.2423983e-06 | C186: ='DF raw data'!H191 -> 1.5117113e-06 | D186: ='DF raw data'!I191 -> 4.5941711e-06 | F186: -6.248990273e-06 | G186: 1.516278077e-06 | H186: 4.599022545e-06 | J186: -0.0001961541227 | K186: -0.01339692847 | L186: -5.807675071e-05 | M186: 0.0007443973823 | N186: 2.182021882e-06
A187: 91.63681667 | B187: ='DF raw data'!G192 -> -8.6459086e-06 | C187: ='DF raw data'!H192 -> 1.9688325e-06 | D187: ='DF raw data'!I192 -> -3.4125401e-06 | F187: -8.655038679e-06 | G187: 1.974780209e-06 | H187: -3.416143742e-06 | J187: -0.0002004829403 | K187: -0.01349720001 | L187: -5.708906438e-05 | M187: 0.0007158442868 | N187: 2.203754685e-06
A188: 92.13696667 | B188: ='DF raw data'!G193 -> -1.1022993e-05 | C188: ='DF raw data'!H193 -> 1.8757977e-07 | D188: ='DF raw data'!I193 -> -6.7783108e-06 | F188: -1.103463328e-05 | G188: 1.881464357e-07 | H188: -6.785468696e-06 | J188: -0.0002060019121 | K188: -0.01360023187 | L188: -5.699496294e-05 | M188: 0.0006873382561 | N188: 2.226604144e-06
A189: 92.63711667 | B189: ='DF raw data'!G194 -> -1.343311e-05 | C189: ='DF raw data'!H194 -> 3.570332e-07 | D189: ='DF raw data'!I194 -> -4.6700147e-06 | F189: -1.344729536e-05 | G189: 3.581117729e-07 | H189: -4.674946236e-06 | J189: -0.0002127275769 | K189: -0.01370662756 | L189: -5.681585334e-05 | M189: 0.000658921807 | N189: 2.250851948e-06
A190: 93.13726667 | B190: ='DF raw data'!G195 -> -1.3593516e-05 | C190: ='DF raw data'!H195 -> 3.3726203e-06 | D190: ='DF raw data'!I195 -> -1.0663784e-06 | F190: -1.360787075e-05 | G190: 3.382808756e-06 | H190: -1.067504496e-06 | J190: -0.0002195335534 | K190: -0.01381642727 | L190: -5.512394154e-05 | M190: 0.0006313515676 | N190: 2.276476448e-06
A191: 93.63741667 | B191: ='DF raw data'!G196 -> -9.0637523e-06 | C191: ='DF raw data'!H196 -> 2.8858463e-07 | D191: ='DF raw data'!I196 -> -3.0819459e-07 | F191: -9.073323622e-06 | G191: 2.894564245e-07 | H191: -3.085200435e-07 | J191: -0.0002240715762 | K191: -0.01392849667 | L191: -5.497916991e-05 | M191: 0.0006038537358 | N191: 2.303099823e-06
A192: 94.13756667 | B192: ='DF raw data'!G197 -> -3.8033661e-06 | C192: ='DF raw data'!H197 -> -1.7783061e-05 | D192: ='DF raw data'!I197 -> -6.0884918e-06 | F192: -3.807382455e-06 | G192: -1.783678241e-05 | H192: -6.094921247e-06 | J192: -0.0002259758386 | K192: -0.01404151849 | L192: -6.390023664e-05 | M192: 0.0005718940325 | N192: 2.330682255e-06
A193: 94.63771667 | B193: ='DF raw data'!G198 -> -2.5189704e-06 | C193: ='DF raw data'!H198 -> -1.2882945e-05 | D193: ='DF raw data'!I198 -> -1.0874253e-05 | F193: -2.521630433e-06 | G193: -1.29218635e-05 | H193: -1.088573621e-05 | J193: -0.000227237032 | K193: -0.01415517109 | L193: -7.036310666e-05 | M193: 0.0005367019247 | N193: 2.358984561e-06
A194: 95.13786667 | B194: ='DF raw data'!G199 -> -3.3341105e-06 | C194: ='DF raw data'!H199 -> 1.0660643e-06 | D194: ='DF raw data'!I199 -> -6.5654162e-06 | F194: -3.337631321e-06 | G194: 1.069284807e-06 | H194: -6.57234928e-06 | J194: -0.0002289063483 | K194: -0.0142696586 | L194: -6.982830387e-05 | M194: 0.0005017772985 | N194: 2.387630206e-06
A195: 95.63801667 | B195: ='DF raw data'!G200 -> -3.3539447e-06 | C195: ='DF raw data'!H200 -> -4.4351382e-06 | D195: ='DF raw data'!I200 -> 2.3511097e-06 | F195: -3.357486466e-06 | G195: -4.44853645e-06 | H195: 2.353592472e-06 | J195: -0.0002305855952 | K195: -0.01438498598 | L195: -7.205323937e-05 | M195: 0.0004657398708 | N195: 2.416819654e-06
A196: 96.13816667 | B196: ='DF raw data'!G201 -> -2.6515384e-06 | C196: ='DF raw data'!H201 -> -2.3371283e-06 | D196: ='DF raw data'!I201 -> 3.0656562e-07 | F196: -2.654338425e-06 | G196: -2.344188605e-06 | H196: 3.068893533e-07 | J196: -0.0002319131626 | K196: -0.01450097735 | L196: -7.32256853e-05 | M196: 0.0004291160443 | N196: 2.446401383e-06
A197: 96.63831667 | B197: ='DF raw data'!G202 -> -6.9884595e-07 | C197: ='DF raw data'!H202 -> -5.7108616e-07 | D197: ='DF raw data'!I202 -> -3.0173537e-06 | F197: -6.995839313e-07 | G197: -5.728113723e-07 | H197: -3.020540026e-06 | J197: -0.0002322630595 | K197: -0.01461714372 | L197: -7.351217691e-05 | M197: 0.000392348929 | N197: 2.47608537e-06
A198: 97.13846667 | B198: ='DF raw data'!G203 -> -7.0478313e-07 | C198: ='DF raw data'!H203 -> -4.4284661e-06 | D198: ='DF raw data'!I203 -> 1.6424315e-06 | F198: -7.05527381e-07 | G198: -4.441844194e-06 | H198: 1.644165908e-06 | J198: -0.000232615929 | K198: -0.01473348658 | L198: -7.573376529e-05 | M198: 0.0003544706863 | N198: 2.506017234e-06
A199: 97.63861667 | B199: ='DF raw data'!G204 -> -5.1816073e-06 | C199: ='DF raw data'!H204 -> -5.835589e-06 | D199: ='DF raw data'!I204 -> -2.7842757e-06 | F199: -5.187079077e-06 | G199: =(1-$G$1*($B$2-$G$2))*C199*$M$2/$M$1 -> -5.853217916e-06 | H199: -2.787215895e-06 | J199: -0.0002352102466 | K199: -0.01485112698 | L199: -7.866125223e-05 | M199: 0.000315128261 | N199: 2.536782187e-06
A200: =A199+$B$1 -> 98.13876667 | B200: ='DF raw data'!G205 -> -7.3672468e-06 | C200: ='DF raw data'!H205 -> -3.4491111e-06 | D200: ='DF raw data'!I205 -> -1.2034419e-05 | F200: -7.375026613e-06 | G200: -3.459530629e-06 | H200: -1.204712735e-05 | J200: =F200*$B$1+J199 -> -0.0002388988661 | K200: =J200*$B$1+K199 -> -0.01497061225 | L200: =G200*$B$1+L199 -> -8.039153647e-05 | M200: =L200*$B$1+M199 -> 0.000274920434 | N200: =(J200^2+L200^2)*$B$1+N199 -> 2.568559451e-06
A201: 98.63891667 | B201: ='DF raw data'!G206 -> -4.3489758e-06 | C201: ='DF raw data'!H206 -> -2.7909152e-06 | D201: ='DF raw data'!I206 -> -9.6045405e-06 | F201: -4.353568318e-06 | G201: -2.799346364e-06 | H201: -9.614682895e-06 | J201: -0.0002410763033 | K201: -0.01509118656 | L201: -8.179162955e-05 | M201: 0.0002340123505 | N201: 2.600973e-06
... 1002 more rows

Sheet 10 y=0.1
A1: dz | B1: ='DF raw data'!K7 -> 0.50013 | C1: mm | F1: T_coeff | G1: -0.0008 | H1: /degC | L1: Hallref | M1: ='PI vs y'!B44 -> 0.50564 | N1: T | P1: IBy total | Q1: =L1203*1000 -> 11.53096201 | R1: muTm | X1: DF ref | Y1: 20
A2: Tref | B2: ='DF raw data'!K8 -> 21.35 | C2: degC | F2: Tcorr | G2: 20 | H2: degC | L2: NMRref | M2: ='PI vs y'!B45 -> 0.5066325 | N2: T | P2: JBy total | Q2: =M1203 -> 0.8388323605 | R2: muTm^2
A3: Encoder | B3: ='DF raw data'!K9 -> 1635125 | P3: PI total | Q3: =N1203 -> 702.7692193 | R3: T^2mm^3
A5: z [mm] | B5: Bx | C5: By | D5: Bz | F5: Bx_corr | G5: By_corr | H5: Bz_corr | J5: Ix | K5: Jx | L5: Iy | M5: Jy | N5: PI
A6: ='PI vs y'!B53 -> 1.109666667 | B6: ='DF raw data'!J11 -> -1.535993e-05 | C6: ='DF raw data'!K11 -> 4.9836785e-06 | D6: ='DF raw data'!L11 -> 2.0850696e-06 | F6: =(1-$G$1*($B$2-$G$2))*B6 -> -1.537651872e-05 | G6: =(1-$G$1*($B$2-$G$2))*C6*$M$2/$M$1 -> 4.998853696e-06 | H6: =(1-$G$1*($B$2-$G$2))*D6 -> 2.087321475e-06 | J6: =F6*$B$1 -> -7.69025831e-06 | K6: =J6*$B$1 -> -3.846128888e-06 | L6: =G6*$B$1 -> 2.500076699e-06 | M6: =L6*$B$1 -> 1.250363359e-06 | N6: =(J6^2+L6^2)*$B$1 -> 3.270372894e-11
A7: =A6+$B$1 -> 1.609796667 | B7: ='DF raw data'!J12 -> -1.5158081e-05 | C7: ='DF raw data'!K12 -> -7.013864e-07 | D7: ='DF raw data'!L12 -> 7.4007971e-07 | F7: =(1-$G$1*($B$2-$G$2))*B7 -> -1.517445173e-05 | G7: =(1-$G$1*($B$2-$G$2))*C7*$M$2/$M$1 -> -7.035221067e-07 | H7: 7.408789961e-07 | J7: =F7*$B$1+J6 -> -1.527945685e-05 | K7: =J7*$B$1+K6 -> -1.148784364e-05 | L7: =G7*$B$1+L6 -> 2.148224188e-06 | M7: =L7*$B$1+M6 -> 2.324754722e-06 | N7: =(J7^2+L7^2)*$B$1+N6 -> 1.517730133e-10
A8: =A7+$B$1 -> 2.109926667 | B8: ='DF raw data'!J13 -> -1.5289645e-05 | C8: ='DF raw data'!K13 -> 2.8632544e-06 | D8: ='DF raw data'!L13 -> 2.6893235e-07 | F8: -1.530615782e-05 | G8: 2.871972949e-06 | H8: 2.692227969e-07 | J8: =F8*$B$1+J7 -> -2.293452556e-05 | K8: =J8*$B$1+K7 -> -2.295808791e-05 | L8: =G8*$B$1+L7 -> 3.584584019e-06 | M8: =L8*$B$1+M7 -> 4.117512727e-06 | N8: =(J8^2+L8^2)*$B$1+N7 -> 4.212639154e-10
A9: 2.610056667 | B9: ='DF raw data'!J14 -> -1.5475865e-05 | C9: ='DF raw data'!K14 -> 7.4056484e-06 | D9: ='DF raw data'!L14 -> -2.7313815e-06 | F9: -1.549257893e-05 | G9: 7.428198443e-06 | H9: -2.734331392e-06 | J9: -3.068282906e-05 | K9: -3.830349121e-05 | L9: 7.299648906e-06 | M9: 7.768286135e-06 | N9: 9.187536659e-10
A10: 3.110186667 | B10: ='DF raw data'!J15 -> -1.5311472e-05 | C10: ='DF raw data'!K15 -> 3.1423838e-06 | D10: ='DF raw data'!L15 -> -1.1406098e-06 | F10: -1.532800839e-05 | G10: 3.151952292e-06 | H10: -1.141841659e-06 | J10: -3.83488259e-05 | K10: -5.748288951e-05 | L10: 8.876034806e-06 | M10: 1.220745742e-05 | N10: 1.693663311e-09
A11: 3.610316667 | B11: ='DF raw data'!J16 -> -1.5070973e-05 | C11: ='DF raw data'!K16 -> -3.4605278e-06 | D11: ='DF raw data'!L16 -> -1.6233259e-06 | F11: -1.508724965e-05 | G11: -3.471065034e-06 | H11: -1.625079092e-06 | J11: -4.589441207e-05 | K11: -8.043606182e-05 | L11: 7.14005105e-06 | M11: 1.577841115e-05 | N11: 2.772582451e-09
A12: 4.110446667 | B12: ='DF raw data'!J17 -> -1.5253192e-05 | C12: ='DF raw data'!K17 -> 2.9046164e-06 | D12: ='DF raw data'!L17 -> 6.2906893e-06 | F12: -1.526966545e-05 | G12: 2.913460895e-06 | H12: 6.297483244e-06 | J12: -5.353122985e-05 | K12: -0.0001072086358 | L12: 8.597160248e-06 | M12: 2.007810891e-05 | N12: 4.242716453e-09
A13: 4.610576667 | B13: ='DF raw data'!J18 -> -1.5261399e-05 | C13: ='DF raw data'!K18 -> 2.8844693e-06 | D13: ='DF raw data'!L18 -> 4.7268677e-06 | F13: -1.527788131e-05 | G13: 2.893252448e-06 | H13: 4.731972717e-06 | J13: -6.117215663e-05 | K13: -0.0001378026665 | L13: 1.004416259e-05 | M13: 2.510149595e-05 | N13: 6.164675007e-09
A14: 5.110706667 | B14: ='DF raw data'!J19 -> -1.535686e-05 | C14: ='DF raw data'!K19 -> 5.7336724e-06 | D14: ='DF raw data'!L19 -> 6.5144977e-06 | F14: -1.537344541e-05 | G14: 5.751131311e-06 | H14: 6.521533358e-06 | J14: -6.886087788e-05 | K14: -0.0001722420573 | L14: 1.29204759e-05 | M14: 3.156341356e-05 | N14: 8.619692745e-09
A15: 5.610836667 | B15: ='DF raw data'!J20 -> -1.5492964e-05 | C15: ='DF raw data'!K20 -> 9.4047882e-06 | D15: ='DF raw data'!L20 -> 6.7342025e-06 | F15: -1.55096964e-05 | G15: 9.433425581e-06 | H15: 6.741475439e-06 | J15: -7.661774234e-05 | K15: -0.0002105608888 | L15: 1.763841503e-05 | M15: 4.038491407e-05 | N15: 1.171119239e-08
A16: 6.110966667 | B16: ='DF raw data'!J21 -> -1.5044343e-05 | C16: ='DF raw data'!K21 -> -3.1841996e-06 | D16: ='DF raw data'!L21 -> 4.68912e-06 | F16: -1.506059089e-05 | G16: -3.19389542e-06 | H16: 4.69418425e-06 | J16: -8.414999566e-05 | K16: -0.0002526468262 | L16: 1.604105212e-05 | M16: 4.840752546e-05 | N16: 1.538141496e-08
A17: 6.611096667 | B17: ='DF raw data'!J22 -> -1.5159419e-05 | C17: ='DF raw data'!K22 -> 2.5925619e-08 | D17: ='DF raw data'!L22 -> 4.7979393e-06 | F17: -1.517579117e-05 | G17: 2.600456196e-08 | H17: 4.803121074e-06 | J17: -9.17398641e-05 | K17: -0.0002985286844 | L17: 1.605405778e-05 | M17: 5.643664138e-05 | N17: 1.971951029e-08
A18: 7.111226667 | B18: ='DF raw data'!J23 -> -1.525587e-05 | C18: ='DF raw data'!K23 -> 1.9979793e-06 | D18: ='DF raw data'!L23 -> 7.6689889e-07 | F18: -1.527234634e-05 | G18: 2.004063105e-06 | H18: 7.677271408e-07 | J18: -9.937802268e-05 | K18: -0.0003482306149 | L18: 1.705634986e-05 | M18: 6.496703363e-05 | N18: 2.480428722e-08
A19: 7.611356667 | B19: ='DF raw data'!J24 -> -1.5219548e-05 | C19: ='DF raw data'!K24 -> 3.1519588e-07 | D19: ='DF raw data'!L24 -> -3.2903788e-06 | F19: -1.523598511e-05 | G19: 3.161556448e-07 | H19: -3.293932409e-06 | J19: -0.0001069979959 | K19: -0.0004017435226 | L19: 1.721446878e-05 | M19: 7.357650591e-05 | N19: 3.067826859e-08
A20: 8.111486667 | B20: ='DF raw data'!J25 -> -1.5141593e-05 | C20: ='DF raw data'!K25 -> -2.4304686e-06 | D20: ='DF raw data'!L25 -> -7.0498081e-06 | F20: -1.515794592e-05 | G20: -2.437869325e-06 | H20: -7.057421893e-06 | J20: -0.0001145789394 | K20: -0.0004590478875 | L20: 1.59952172e-05 | M20: 8.157619388e-05 | N20: 3.73720987e-08
A21: 8.611616667 | B21: ='DF raw data'!J26 -> -1.5228832e-05 | C21: ='DF raw data'!K26 -> -2.5444461e-08 | D21: ='DF raw data'!L26 -> -6.8880199e-06 | F21: -1.524527914e-05 | G21: -2.552193885e-08 | H21: -6.895458961e-06 | J21: -0.0001222035609 | K21: -0.0005201655544 | L21: 1.598245291e-05 | M21: 8.956949805e-05 | N21: 4.496864783e-08
A22: 9.111746667 | B22: ='DF raw data'!J27 -> -1.1547925e-05 | C22: ='DF raw data'!K27 -> 2.6256198e-06 | D22: ='DF raw data'!L27 -> -3.2857222e-06 | F22: -1.156039676e-05 | G22: 2.633614757e-06 | H22: -3.28927078e-06 | J22: -0.0001279852621 | K22: -0.0005841748236 | L22: 1.729960266e-05 | M22: 9.822154833e-05 | N22: 5.331056795e-08
A23: 9.611876667 | B23: ='DF raw data'!J28 -> -1.7910257e-06 | C23: ='DF raw data'!K28 -> -7.2239732e-06 | D23: ='DF raw data'!L28 -> -4.1454641e-06 | F23: =(1-$G$1*($B$2-$G$2))*B23 -> -1.792960008e-06 | G23: -7.245970046e-06 | H23: -4.149941201e-06 | J23: -0.0001288819752 | K23: -0.0006486325658 | L23: 1.367567566e-05 | M23: 0.000105061164 | N23: 6.171154545e-08
A24: 10.11200667 | B24: ='DF raw data'!J29 -> 4.7560266e-06 | C24: ='DF raw data'!K29 -> -1.0416265e-06 | D24: ='DF raw data'!L29 -> -7.8603061e-06 | F24: 4.761163109e-06 | G24: -1.044798231e-06 | H24: -7.868795231e-06 | J24: -0.0001265007747 | K24: -0.0007118993982 | L24: 1.315314072e-05 | M24: 0.0001116394443 | N24: 6.980137381e-08
A25: 10.61213667 | B25: ='DF raw data'!J30 -> 6.8747272e-06 | C25: ='DF raw data'!K30 -> 3.6550114e-06 | D25: ='DF raw data'!L30 -> 3.1358197e-06 | F25: 6.882151905e-06 | G25: 3.666140832e-06 | H25: 3.139206385e-06 | J25: -0.000123058804 | K25: -0.0007734447979 | L25: 1.498668773e-05 | M25: 0.0001191347364 | N25: 7.748740669e-08
A26: 11.11226667 | B26: ='DF raw data'!J31 -> 2.7843148e-06 | C26: ='DF raw data'!K31 -> 9.8541705e-06 | D26: ='DF raw data'!L31 -> -1.6890133e-06 | F26: 2.78732186e-06 | G26: 9.884176241e-06 | H26: -1.690837434e-06 | J26: -0.0001216647808 | K26: -0.0008342930047 | L26: 1.99300608e-05 | M26: 0.0001291023577 | N26: 8.508914573e-08
A27: 11.61239667 | B27: ='DF raw data'!J32 -> -3.0678834e-06 | C27: ='DF raw data'!K32 -> -4.8439001e-06 | D27: ='DF raw data'!L32 -> 1.9079582e-06 | F27: -3.071196714e-06 | G27: -4.858649673e-06 | H27: 1.910018795e-06 | J27: -0.0001232007784 | K27: -0.00089590941 | L27: 1.750010434e-05 | M27: 0.0001378546849 | N27: 9.283350146e-08
A28: 12.11252667 | B28: ='DF raw data'!J33 -> -7.7074274e-06 | C28: ='DF raw data'!K33 -> 1.5926307e-05 | D28: ='DF raw data'!L33 -> 7.970315e-06 | F28: -7.715751422e-06 | G28: 1.597480227e-05 | H28: 7.97892294e-06 | J28: -0.0001270596571 | K28: -0.0009594557563 | L28: 2.548958219e-05 | M28: 0.0001506027896 | N28: 1.012326223e-07
A29: 12.61265667 | B29: ='DF raw data'!J34 -> -5.9281642e-06 | C29: ='DF raw data'!K34 -> 1.3081373e-05 | D29: ='DF raw data'!L34 -> -4.0685859e-07 | F29: -5.934566617e-06 | G29: 1.31212055e-05 | H29: -4.072979973e-07 | J29: -0.0001300277119 | K29: -0.001024486516 | L29: 3.20518907e-05 | M29: 0.0001666329017 | N29: 1.102022186e-07
A30: 13.11278667 | B30: ='DF raw data'!J35 -> -1.2866709e-06 | C30: ='DF raw data'!K35 -> 6.181454e-06 | D30: ='DF raw data'!L35 -> -1.1543076e-05 | F30: -1.288060505e-06 | G30: 6.200276397e-06 | H30: -1.155554252e-05 | J30: -0.0001306719096 | K30: -0.001089839458 | L30: 3.515283494e-05 | M30: 0.0001842138891 | N30: 1.193600339e-07
A31: 13.61291667 | B31: ='DF raw data'!J36 -> 3.0377655e-06 | C31: ='DF raw data'!K36 -> 1.4178363e-06 | D31: ='DF raw data'!L36 -> -3.072071e-06 | F31: 3.041046287e-06 | G31: 1.422153582e-06 | H31: -3.075388837e-06 | J31: -0.0001291509912 | K31: -0.001154431743 | L31: 3.586409661e-05 | M31: 0.0002021505997 | N31: 1.283454754e-07
A32: 14.11304667 | B32: ='DF raw data'!J37 -> 1.7263322e-06 | C32: ='DF raw data'!K37 -> 7.9023985e-06 | D32: ='DF raw data'!L37 -> 5.7457346e-06 | F32: 1.728196639e-06 | G32: 7.926461136e-06 | H32: 5.751939993e-06 | J32: -0.0001282866682 | K32: -0.001218591755 | L32: 3.982835762e-05 | M32: 0.0002220699562 | N32: 1.373697048e-07
A33: 14.61317667 | B33: ='DF raw data'!J38 -> -9.0699689e-07 | C33: ='DF raw data'!K38 -> 1.3856052e-05 | D33: ='DF raw data'!L38 -> 2.6425826e-06 | F33: -9.079764466e-07 | G33: 1.389824339e-05 | H33: 2.645436589e-06 | J33: -0.0001287407744 | K33: -0.001282978878 | L33: 4.677928608e-05 | M33: 0.0002454656805 | N33: 1.467533882e-07
A34: 15.11330667 | B34: ='DF raw data'!J39 -> 3.5853104e-06 | C34: ='DF raw data'!K39 -> 8.9799137e-09 | D34: ='DF raw data'!L39 -> 3.2880328e-06 | F34: 3.589182535e-06 | G34: 9.007257347e-09 | H34: 3.291583875e-06 | J34: -0.0001269457166 | K34: -0.001346468239 | L34: 4.678379088e-05 | M34: 0.0002688636579 | N34: 1.559077367e-07
A35: 15.61343667 | B35: ='DF raw data'!J40 -> 6.7396272e-06 | C35: ='DF raw data'!K40 -> 1.4922894e-06 | D35: ='DF raw data'!L40 -> 9.7342545e-06 | F35: 6.746905997e-06 | G35: 1.49683339e-06 | H35: 9.744767495e-06 | J35: -0.0001235713865 | K35: -0.001408269997 | L35: 4.753240216e-05 | M35: 0.0002926360382 | N35: 1.64674624e-07
A36: 16.11356667 | B36: ='DF raw data'!J41 -> 2.6071016e-06 | C36: ='DF raw data'!K41 -> 7.3949745e-06 | D36: ='DF raw data'!L41 -> 3.2206137e-06 | F36: 2.60991727e-06 | G36: 7.417492041e-06 | H36: 3.224091963e-06 | J36: -0.0001222660885 | K36: -0.001469418936 | L36: 5.124211246e-05 | M36: 0.0003182637559 | N36: 1.734642839e-07
A37: 16.61369667 | B37: ='DF raw data'!J42 -> -1.1121083e-07 | C37: ='DF raw data'!K42 -> -4.7962976e-07 | D37: ='DF raw data'!L42 -> -3.5645078e-06 | F37: -1.113309377e-07 | G37: -4.810902225e-07 | H37: -3.568357468e-06 | J37: -0.0001223217685 | K37: -0.001530595722 | L37: 5.10015048e-05 | M37: 0.0003437711385 | N37: 1.822484515e-07
A38: 17.11382667 | B38: ='DF raw data'!J43 -> 1.5254139e-06 | C38: ='DF raw data'!K43 -> -1.9509321e-06 | D38: ='DF raw data'!L43 -> -2.5240022e-06 | F38: 1.527061347e-06 | G38: -1.956872647e-06 | H38: -2.526728122e-06 | J38: -0.0001215580393 | K38: -0.001591390544 | L38: 5.002281409e-05 | M38: 0.0003687890485 | N38: 1.908900171e-07
A39: 17.61395667 | B39: ='DF raw data'!J44 -> 4.7778544e-06 | C39: ='DF raw data'!K44 -> 6.7917504e-06 | D39: ='DF raw data'!L44 -> -2.4883936e-06 | F39: 4.783014483e-06 | G39: 6.812431136e-06 | H39: -2.491081065e-06 | J39: -0.0001191659103 | K39: -0.001650988991 | L39: 5.342991527e-05 | M39: 0.000395510952 | N39: 1.994198693e-07
A40: 18.11408667 | B40: ='DF raw data'!J45 -> 9.0873309e-06 | C40: ='DF raw data'!K45 -> -2.054371e-07 | D40: ='DF raw data'!L45 -> -3.4180282e-06 | F40: 9.097145217e-06 | G40: -2.060626516e-07 | H40: -3.42171967e-06 | J40: -0.000114616155 | K40: -0.001708311968 | L40: 5.332685716e-05 | M40: 0.0004221813131 | N40: 2.074122551e-07
A41: 18.61421667 | B41: ='DF raw data'!J46 -> 1.2190658e-05 | C41: ='DF raw data'!K46 -> -1.2376299e-06 | D41: ='DF raw data'!L46 -> -4.8464735e-06 | F41: 1.220382391e-05 | G41: -1.241398457e-06 | H41: -4.851707691e-06 | J41: -0.0001085126566 | K41: -0.001762582403 | L41: 5.270599655e-05 | M41: 0.0004485411631 | N41: 2.146906064e-07
A42: 19.11434667 | B42: ='DF raw data'!J47 -> 1.0932892e-05 | C42: ='DF raw data'!K47 -> 6.4890032e-06 | D42: ='DF raw data'!L47 -> -6.9957041e-06 | F42: 1.094469952e-05 | G42: 6.508762077e-06 | H42: -7.00325946e-06 | J42: -0.000103038884 | K42: -0.00181411524 | L42: 5.596122372e-05 | M42: 0.0004765290499 | N42: 2.215667288e-07
A43: 19.61447667 | B43: ='DF raw data'!J48 -> 4.6458977e-06 | C43: ='DF raw data'!K48 -> -5.9878084e-07 | D43: ='DF raw data'!L48 -> -3.0394019e-06 | F43: 4.65091527e-06 | G43: -6.00604115e-07 | H43: -3.042684454e-06 | J43: -0.0001007128217 | K43: -0.001864484744 | L43: 5.566084359e-05 | M43: 0.0005043667076 | N43: 2.281890511e-07
A44: 20.11460667 | B44: ='DF raw data'!J49 -> -1.5690799e-06 | C44: ='DF raw data'!K49 -> -2.416326e-06 | D44: ='DF raw data'!L49 -> 3.7654229e-06 | F44: -1.570774506e-06 | G44: -2.423683662e-06 | H44: 3.769489557e-06 | J44: -0.0001014984132 | K44: -0.001915247145 | L44: 5.444868668e-05 | M44: 0.0005315981293 | N44: 2.348240695e-07
A45: 20.61473667 | B45: ='DF raw data'!J50 -> -1.8587067e-06 | C45: ='DF raw data'!K50 -> 3.2133315e-07 | D45: ='DF raw data'!L50 -> 1.5944227e-06 | F45: -1.860714103e-06 | G45: 3.223116026e-07 | H45: 1.596144677e-06 | J45: -0.0001024290121 | K45: -0.001966474967 | L45: 5.460988438e-05 | M45: 0.0005589101708 | N45: 2.415627921e-07
A46: 21.11486667 | B46: ='DF raw data'!J51 -> 1.458868e-06 | C46: ='DF raw data'!K51 -> 3.5133103e-06 | D46: ='DF raw data'!L51 -> -9.4882871e-06 | F46: 1.460443577e-06 | G46: 3.524008256e-06 | H46: -9.49853445e-06 | J46: -0.0001016986005 | K46: -0.002017337488 | L46: 5.637234663e-05 | M46: 0.0005871036725 | N46: 2.483247731e-07
A47: 21.61499667 | B47: ='DF raw data'!J52 -> 3.0658653e-06 | C47: ='DF raw data'!K52 -> -6.7003066e-07 | D47: ='DF raw data'!L52 -> -3.6075669e-06 | F47: 3.069176435e-06 | G47: -6.720708892e-07 | H47: -3.611463072e-06 | J47: -0.0001001636133 | K47: -0.002067432316 | L47: 5.603622382e-05 | M47: 0.0006151290691 | N47: 2.549128895e-07
A48: 22.11512667 | B48: ='DF raw data'!J53 -> 3.3946076e-06 | C48: ='DF raw data'!K53 -> -5.7319908e-06 | D48: ='DF raw data'!L53 -> 2.359737e-06 | F48: 3.398273776e-06 | G48: -5.749444591e-06 | H48: 2.362285516e-06 | J48: -9.846403463e-05 | K48: -0.002116677134 | L48: 5.316075409e-05 | M48: 0.0006417163571 | N48: 2.611751332e-07
A49: 22.61525667 | B49: ='DF raw data'!J54 -> 1.7665828e-06 | C49: ='DF raw data'!K54 -> 3.7079803e-06 | D49: ='DF raw data'!L54 -> 8.3364266e-06 | F49: 1.768490709e-06 | G49: 3.719271022e-06 | H49: 8.345429941e-06 | J49: -9.757955937e-05 | K49: -0.002165479599 | L49: 5.502087311e-05 | M49: 0.0006692339463 | N49: 2.67451298e-07
A50: 23.11538667 | B50: ='DF raw data'!J55 -> -1.6240862e-06 | C50: ='DF raw data'!K55 -> 1.3197673e-06 | D50: ='DF raw data'!L55 -> 3.6983386e-06 | F50: -1.625840213e-06 | G50: 1.323785964e-06 | H50: 3.702332806e-06 | J50: -9.839269083e-05 | K50: -0.002214688735 | L50: 5.568293818e-05 | M50: 0.0006970826542 | N50: 2.738438153e-07
A51: 23.61551667 | B51: ='DF raw data'!J56 -> -2.5029781e-06 | C51: ='DF raw data'!K56 -> 5.3059052e-06 | D51: ='DF raw data'!L56 -> 4.2115989e-06 | F51: -2.505681316e-06 | G51: 5.322061569e-06 | H51: 4.216147427e-06 | J51: -9.964585723e-05 | K51: -0.002264524618 | L51: 5.834466083e-05 | M51: 0.0007262625694 | N51: 2.805122468e-07
A52: 24.11564667 | B52: ='DF raw data'!J57 -> -1.0411655e-06 | C52: ='DF raw data'!K57 -> 8.0248847e-06 | D52: ='DF raw data'!L57 -> 4.6015466e-06 | F52: -1.042289959e-06 | G52: 8.049320304e-06 | H52: 4.60651627e-06 | J52: -0.0001001671377 | K52: -0.002314621208 | L52: 6.23703674e-05 | M52: 0.0007574558613 | N52: 2.874758159e-07
A53: 24.61577667 | B53: ='DF raw data'!J58 -> 4.7184076e-07 | C53: ='DF raw data'!K58 -> 9.9523731e-06 | D53: ='DF raw data'!L58 -> 6.3097814e-06 | F53: 4.72350348e-07 | G53: 9.982677865e-06 | H53: 6.316595964e-06 | J53: -9.993090113e-05 | K53: -0.00236459965 | L53: 6.736300408e-05 | M53: 0.0007911461205 | N53: 2.947396837e-07
A54: 25.11590667 | B54: ='DF raw data'!J59 -> 1.1546894e-06 | C54: ='DF raw data'!K59 -> 2.1562223e-06 | D54: ='DF raw data'!L59 -> -6.8950044e-07 | F54: 1.155936465e-06 | G54: 2.162787951e-06 | H54: -6.902451005e-07 | J54: -9.935278262e-05 | K54: -0.002414288957 | L54: 6.844467922e-05 | M54: 0.0008253773579 | N54: 3.020194007e-07
A55: 25.61603667 | B55: ='DF raw data'!J60 -> -5.5983185e-07 | C55: ='DF raw data'!K60 -> -3.3640595e-06 | D55: ='DF raw data'!L60 -> 5.384818e-06 | F55: -5.604364684e-07 | G55: -3.37430299e-06 | H55: 5.390633603e-06 | J55: -9.963307371e-05 | K55: -0.002464118446 | L55: 6.675708906e-05 | M55: 0.0008587645809 | N55: 3.092128997e-07
A56: 26.11616667 | B56: ='DF raw data'!J61 -> -3.0777496e-06 | C56: ='DF raw data'!K61 -> -1.0028079e-05 | D56: ='DF raw data'!L61 -> 2.4550377e-07 | F56: -3.08107357e-06 | G56: -1.005861429e-05 | H56: 2.457689141e-07 | J56: -0.000101174011 | K56: -0.002514718604 | L56: 6.17264743e-05 | M56: 0.0008896358425 | N56: 3.162378948e-07
A57: 26.61629667 | B57: ='DF raw data'!J62 -> -4.3113591e-06 | C57: ='DF raw data'!K62 -> -6.2640997e-06 | D57: ='DF raw data'!L62 -> -6.7111268e-06 | F57: -4.316015368e-06 | G57: -6.283173751e-06 | H57: -6.718374817e-06 | J57: -0.0001033325798 | K57: -0.002566398328 | L57: 5.858407061e-05 | M57: 0.0009189354937 | N57: 3.232945867e-07
A58: 27.11642667 | B58: ='DF raw data'!J63 -> -5.6879267e-06 | C58: ='DF raw data'!K63 -> 3.6209872e-06 | D58: ='DF raw data'!L63 -> -7.7630702e-06 | F58: -5.694069661e-06 | G58: 3.632013029e-06 | H58: -7.771454316e-06 | J58: -0.0001061803549 | K58: -0.002619502308 | L58: 6.040054929e-05 | M58: 0.0009491436204 | N58: 3.307577737e-07
A59: 27.61655667 | B59: ='DF raw data'!J64 -> -4.1169747e-06 | C59: ='DF raw data'!K64 -> 5.8125283e-06 | D59: ='DF raw data'!L64 -> -2.8835946e-06 | F59: -4.121421033e-06 | G59: 5.830227326e-06 | H59: -2.886708882e-06 | J59: -0.0001082416012 | K59: -0.00267363718 | L59: 6.331642088e-05 | M59: 0.000980810062 | N59: 3.386224247e-07
A60: 28.11668667 | B60: ='DF raw data'!J65 -> 2.0064131e-06 | C60: ='DF raw data'!K65 -> 7.9122719e-06 | D60: ='DF raw data'!L65 -> -1.0710662e-06 | F60: 2.008580026e-06 | G60: 7.936364601e-06 | H60: -1.072222951e-06 | J60: -0.00010723705 | K60: -0.002727269646 | L60: 6.728563491e-05 | M60: 0.001014461627 | N60: 3.46638079e-07
A61: 28.61681667 | B61: ='DF raw data'!J66 -> 6.2011482e-06 | C61: ='DF raw data'!K66 -> 5.9841154e-06 | D61: ='DF raw data'!L66 -> 2.0026039e-06 | F61: 6.20784544e-06 | G61: 6.002336905e-06 | H61: 2.004766712e-06 | J61: -0.0001041323203 | K61: -0.002779349344 | L61: 7.028758366e-05 | M61: 0.001049614556 | N61: 3.545320732e-07
A62: 29.11694667 | B62: ='DF raw data'!J67 -> 8.0766131e-06 | C62: ='DF raw data'!K67 -> 1.9911342e-07 | D62: ='DF raw data'!L67 -> 8.8246579e-06 | F62: 8.085335842e-06 | G62: 1.997197162e-07 | H62: 8.834188531e-06 | J62: -0.0001000886013 | K62: -0.002829406656 | L62: 7.038746949e-05 | M62: 0.001084817441 | N62: 3.620200815e-07
A63: 29.61707667 | B63: ='DF raw data'!J68 -> 6.4293076e-06 | C63: ='DF raw data'!K68 -> 1.3032236e-06 | D63: ='DF raw data'!L68 -> 4.117288e-06 | F63: 6.436251252e-06 | G63: 1.307191888e-06 | H63: 4.121734671e-06 | J63: -9.686963894e-05 | K63: -0.002877854068 | L63: 7.104123536e-05 | M63: 0.001120347294 | N63: 3.692372495e-07
A64: 30.11720667 | B64: ='DF raw data'!J69 -> 6.2617835e-07 | C64: ='DF raw data'!K69 -> -4.0416021e-06 | D64: ='DF raw data'!L69 -> -3.3950653e-06 | F64: 6.268546226e-07 | G64: -4.053908693e-06 | H64: -3.398731971e-06 | J64: -9.655613014e-05 | K64: -0.002926144686 | L64: 6.901375401e-05 | M64: 0.001154863143 | N64: 3.76282073e-07
A65: 30.61733667 | B65: ='DF raw data'!J70 -> -3.4013551e-06 | C65: ='DF raw data'!K70 -> 7.1067325e-07 | D65: ='DF raw data'!L70 -> 4.6358891e-06 | F65: -3.405028564e-06 | G65: 7.12837235e-07 | H65: 4.64089586e-06 | J65: -9.825908708e-05 | K65: -0.002975287003 | L65: 6.93702653e-05 | M65: 0.001189557294 | N65: 3.835174946e-07
A66: 31.11746667 | B66: ='DF raw data'!J71 -> -5.1742877e-06 | C66: ='DF raw data'!K71 -> -9.3461331e-06 | D66: ='DF raw data'!L71 -> 9.2168029e-06 | F66: -5.179875931e-06 | G66: -9.374591878e-06 | H66: 9.226757047e-06 | J66: -0.0001008496984 | K66: -0.003025724963 | L66: 6.468175066e-05 | M66: 0.001221906577 | N66: 3.90696556e-07
A67: 31.61759667 | B67: ='DF raw data'!J72 -> -9.5252235e-06 | C67: ='DF raw data'!K72 -> 6.9959924e-07 | D67: ='DF raw data'!L72 -> -6.4126084e-07 | F67: -9.535510741e-06 | G67: 7.017295049e-07 | H67: -6.419534017e-07 | J67: -0.0001056186934 | K67: -0.00307854804 | L67: 6.503270664e-05 | M67: 0.001254431385 | N67: 3.983908366e-07
A68: 32.11772667 | B68: ='DF raw data'!J73 -> -8.7194258e-06 | C68: ='DF raw data'!K73 -> 1.2480551e-05 | D68: ='DF raw data'!L73 -> -1.0780032e-05 | F68: -8.72884278e-06 | G68: 1.251855401e-05 | H68: -1.079167443e-05 | J68: -0.0001099842496 | K68: -0.003133554462 | L68: 7.129361106e-05 | M68: 0.001290087459 | N68: 4.06982727e-07
A69: 32.61785667 | B69: ='DF raw data'!J74 -> -7.1709439e-07 | C69: ='DF raw data'!K74 -> 2.8309637e-06 | D69: ='DF raw data'!L74 -> -1.6733118e-06 | F69: -7.178688519e-07 | G69: 2.839583925e-06 | H69: -1.675118977e-06 | J69: -0.0001103432773 | K69: -0.003188740446 | L69: 7.271377216e-05 | M69: 0.001326453798 | N69: 4.157164629e-07
A70: 33.11798667 | B70: ='DF raw data'!J75 -> 3.8651874e-06 | C70: ='DF raw data'!K75 -> 1.5080345e-06 | D70: ='DF raw data'!L75 -> -5.2471455e-07 | F70: 3.869361802e-06 | G70: 1.512626433e-06 | H70: -5.252812417e-07 | J70: -0.0001084080934 | K70: -0.003242958585 | L70: 7.347028202e-05 | M70: 0.00136319849 | N70: 4.24293791e-07
A71: 33.61811667 | B71: ='DF raw data'!J76 -> 1.5495847e-06 | C71: ='DF raw data'!K76 -> -9.4995739e-06 | D71: ='DF raw data'!L76 -> -2.8872616e-06 | F71: 1.551258251e-06 | G71: =(1-$G$1*($B$2-$G$2))*C71*$M$2/$M$1 -> -9.528499902e-06 | H71: -2.890379843e-06 | J71: -0.0001076322626 | K71: -0.003296788709 | L71: 6.870479337e-05 | M71: 0.001397559818 | N71: 4.324484369e-07
A72: =A71+$B$1 -> 34.11824667 | B72: ='DF raw data'!J77 -> -4.3374507e-06 | C72: ='DF raw data'!K77 -> 4.2514307e-06 | D72: ='DF raw data'!L77 -> -4.9217506e-06 | F72: -4.342135147e-06 | G72: 4.264376217e-06 | H72: -4.927066091e-06 | J72: =F72*$B$1+J71 -> -0.0001098038946 | K72: =J72*$B$1+K71 -> -0.003351704931 | L72: =G72*$B$1+L71 -> 7.083753584e-05 | M72: =L72*$B$1+M71 -> 0.001432987795 | N72: =(J72^2+L72^2)*$B$1+N71 -> 4.409880826e-07
A73: 34.61837667 | B73: ='DF raw data'!J78 -> -7.8200446e-06 | C73: ='DF raw data'!K78 -> 1.1216284e-06 | D73: ='DF raw data'!L78 -> -1.3073311e-06 | F73: -7.828490248e-06 | G73: 1.125043735e-06 | H73: -1.308743018e-06 | J73: -0.0001137191575 | K73: -0.003408579293 | L73: 7.140020397e-05 | M73: 0.001468697179 | N73: 4.500054444e-07
A74: 35.11850667 | B74: ='DF raw data'!J79 -> -8.7626158e-06 | C74: ='DF raw data'!K79 -> 1.0326503e-05 | D74: ='DF raw data'!L79 -> 2.6325417e-06 | F74: -8.772079425e-06 | G74: 1.035794698e-05 | H74: 2.635384845e-06 | J74: -0.0001181063376 | K74: -0.003467647816 | L74: 7.658052399e-05 | M74: 0.001506997396 | N74: 4.59914862e-07
A75: 35.61863667 | B75: ='DF raw data'!J80 -> -6.8418208e-06 | C75: ='DF raw data'!K80 -> 2.8984791e-06 | D75: ='DF raw data'!L80 -> 2.7484768e-06 | F75: -6.849209966e-06 | G75: 2.907304908e-06 | H75: 2.751445155e-06 | J75: -0.0001215318329 | K75: -0.003528429531 | L75: 7.80345544e-05 | M75: 0.001546024818 | N75: 4.703472628e-07
A76: 36.11876667 | B76: ='DF raw data'!J81 -> -6.1159276e-06 | C76: ='DF raw data'!K81 -> -1.5201584e-05 | D76: ='DF raw data'!L81 -> -3.9812744e-07 | F76: -6.122532802e-06 | G76: -1.52478725e-05 | H76: -3.985574176e-07 | J76: -0.0001245938953 | K76: -0.003590742676 | L76: 7.040863592e-05 | M76: 0.001581238289 | N76: 4.805904327e-07
A77: 36.61889667 | B77: ='DF raw data'!J82 -> -7.9622168e-06 | C77: ='DF raw data'!K82 -> -9.4115112e-06 | D77: ='DF raw data'!L82 -> -1.6902793e-06 | F77: -7.970815994e-06 | G77: -9.440169052e-06 | H77: -1.692104802e-06 | J77: -0.0001285803395 | K77: -0.003655049561 | L77: 6.568732417e-05 | M77: 0.001614090491 | N77: 4.91017007e-07
A78: 37.11902667 | B78: ='DF raw data'!J83 -> -8.8364959e-06 | C78: ='DF raw data'!K83 -> -3.858006e-06 | D78: ='DF raw data'!L83 -> -3.8689923e-06 | F78: -8.846039316e-06 | G78: -3.869753547e-06 | H78: -3.873170812e-06 | J78: -0.0001330045091 | K78: -0.003721569106 | L78: 6.375194433e-05 | M78: 0.00164597475 | N78: 5.0189709e-07
A79: 37.61915667 | B79: ='DF raw data'!J84 -> -5.8333148e-06 | C79: ='DF raw data'!K84 -> 7.8821176e-06 | D79: ='DF raw data'!L84 -> 7.1486993e-06 | F79: -5.83961478e-06 | G79: 7.906118481e-06 | H79: 7.156419895e-06 | J79: -0.0001359250757 | K79: -0.003789549314 | L79: 6.770603137e-05 | M79: 0.001679836568 | N79: 5.134299542e-07
A80: 38.11928667 | B80: ='DF raw data'!J85 -> 1.7781932e-07 | C80: ='DF raw data'!K85 -> -4.6257469e-06 | D80: ='DF raw data'!L85 -> 6.0607399e-06 | F80: 1.780113649e-07 | G80: -4.639832201e-06 | H80: 6.067285499e-06 | J80: -0.0001358360468 | K80: -0.003857484997 | L80: 6.538551209e-05 | M80: 0.001712537824 | N80: 5.247962571e-07
A81: 38.61941667 | B81: ='DF raw data'!J86 -> 5.7143404e-07 | C81: ='DF raw data'!K86 -> -5.8180526e-06 | D81: ='DF raw data'!L86 -> -3.2456462e-06 | F81: 5.720511888e-07 | G81: -5.835768447e-06 | H81: -3.249151498e-06 | J81: -0.0001355499469 | K81: -0.003925277591 | L81: 6.246686922e-05 | M81: 0.001743779379 | N81: 5.359371019e-07
A82: 39.11954667 | B82: ='DF raw data'!J87 -> -3.1438444e-06 | C82: ='DF raw data'!K87 -> 3.5674816e-06 | D82: ='DF raw data'!L87 -> 2.1365106e-06 | F82: -3.147239752e-06 | G82: 3.578344506e-06 | H82: 2.138818031e-06 | J82: -0.0001371239759 | K82: -0.003993857405 | L82: 6.425650665e-05 | M82: 0.001775915986 | N82: 5.474060247e-07
A83: 39.61967667 | B83: ='DF raw data'!J88 -> -3.800325e-06 | C83: ='DF raw data'!K88 -> 1.0233905e-05 | D83: ='DF raw data'!L88 -> 7.883993e-06 | F83: -3.804429351e-06 | G83: 1.026506702e-05 | H83: 7.892507712e-06 | J83: -0.0001390266851 | K83: -0.004063388822 | L83: 6.939037462e-05 | M83: 0.001810620194 | N83: 5.59480885e-07
A84: 40.11980667 | B84: ='DF raw data'!J89 -> -4.9989251e-07 | C84: ='DF raw data'!K89 -> 1.0085133e-05 | D84: ='DF raw data'!L89 -> 4.1381845e-06 | F84: -5.004323939e-07 | G84: 1.011584202e-05 | H84: 4.142653739e-06 | J84: -0.0001392769664 | K84: -0.004133045411 | L84: 7.444961069e-05 | M84: 0.001847854678 | N84: 5.719545363e-07
A85: 40.61993667 | B85: ='DF raw data'!J90 -> 2.7789742e-06 | C85: ='DF raw data'!K90 -> -5.9024251e-07 | D85: ='DF raw data'!L90 -> 6.1507876e-07 | F85: 2.781975492e-06 | G85: -5.92039786e-07 | H85: 6.157430451e-07 | J85: -0.000137885617 | K85: -0.004202006144 | L85: 7.415351383e-05 | M85: 0.001884941075 | N85: 5.842133162e-07
A86: 41.12006667 | B86: ='DF raw data'!J91 -> 5.2600467e-06 | C86: ='DF raw data'!K91 -> -5.6241829e-06 | D86: ='DF raw data'!L91 -> -1.3084662e-06 | F86: 5.26572755e-06 | G86: -5.641308418e-06 | H86: -1.309879343e-06 | J86: -0.0001352520687 | K86: -0.004269649761 | L86: 7.133212625e-05 | M86: 0.001920616411 | N86: 5.95907053e-07
A87: 41.62019667 | B87: ='DF raw data'!J92 -> 7.1412601e-06 | C87: ='DF raw data'!K92 -> -6.8176873e-06 | D87: ='DF raw data'!L92 -> -2.865361e-06 | F87: =(1-$G$1*($B$2-$G$2))*B87 -> 7.148972661e-06 | G87: -6.838447014e-06 | H87: -2.86845559e-06 | J87: -0.000131676653 | K87: -0.004335505206 | L87: 6.791201375e-05 | M87: 0.001954581247 | N87: 6.068852978e-07
A88: 42.12032667 | B88: ='DF raw data'!J93 -> 7.6977394e-06 | C88: ='DF raw data'!K93 -> 4.0721038e-06 | D88: ='DF raw data'!L93 -> -1.9376619e-06 | F88: 7.706052959e-06 | G88: 4.08450327e-06 | H88: -1.939754575e-06 | J88: -0.0001278226247 | K88: -0.004399433135 | L88: 6.995479637e-05 | M88: 0.001989567739 | N88: 6.175042065e-07
A89: 42.62045667 | B89: ='DF raw data'!J94 -> 8.9818004e-06 | C89: ='DF raw data'!K94 -> 8.114107e-07 | D89: ='DF raw data'!L94 -> 7.4827967e-06 | F89: 8.991500744e-06 | G89: 8.138814284e-07 | H89: 7.49087812e-06 | J89: -0.0001233257054 | K89: -0.00446111202 | L89: 7.036184289e-05 | M89: 0.002024757807 | N89: 6.275868366e-07
A90: 43.12058667 | B90: ='DF raw data'!J95 -> 1.1713326e-05 | C90: ='DF raw data'!K95 -> -4.2092185e-07 | D90: ='DF raw data'!L95 -> 7.4924446e-06 | F90: 1.172597639e-05 | G90: -4.222035481e-07 | H90: 7.50053644e-06 | J90: -0.0001174611929 | K90: -0.004519857887 | L90: 7.015068623e-05 | M90: 0.00205984227 | N90: 6.369483953e-07
A91: 43.62071667 | B91: ='DF raw data'!J96 -> 1.0611557e-05 | C91: ='DF raw data'!K96 -> -1.8110162e-05 | D91: ='DF raw data'!L96 -> -1.4176055e-06 | F91: 1.062301748e-05 | G91: -1.816530706e-05 | H91: -1.419136514e-06 | J91: -0.0001121483031 | K91: -0.004575946617 | L91: 6.106567121e-05 | M91: 0.002090383044 | N91: 6.451036441e-07
A92: 44.12084667 | B92: ='DF raw data'!J97 -> 3.4377977e-06 | C92: ='DF raw data'!K97 -> -3.266658e-06 | D92: ='DF raw data'!L97 -> 6.6160123e-07 | F92: 3.441510522e-06 | G92: -3.276604904e-06 | H92: 6.623157593e-07 | J92: -0.0001104271005 | K92: -0.004631174523 | L92: 5.94269428e-05 | M92: 0.002120104241 | N92: 6.529685415e-07
A93: 44.62097667 | B93: ='DF raw data'!J98 -> -1.9967461e-06 | C93: ='DF raw data'!K98 -> -2.1905676e-06 | D93: ='DF raw data'!L98 -> 4.590298e-06 | F93: -1.998902586e-06 | G93: -2.197237832e-06 | H93: 4.595255522e-06 | J93: -0.0001114268116 | K93: -0.004686902415 | L93: 5.832803824e-05 | M93: 0.002149275843 | N93: 6.60879645e-07
A94: 45.12110667 | B94: ='DF raw data'!J99 -> -3.263985e-06 | C94: ='DF raw data'!K99 -> -9.4994411e-06 | D94: ='DF raw data'!L99 -> 5.5137334e-06 | F94: -3.267510104e-06 | G94: -9.528366697e-06 | H94: 5.519688232e-06 | J94: -0.0001130609915 | K94: -0.004743447608 | L94: 5.35626162e-05 | M94: 0.002176064114 | N94: 6.687075506e-07
A95: 45.62123667 | B95: ='DF raw data'!J100 -> -5.8299097e-06 | C95: ='DF raw data'!K100 -> -5.6611411e-06 | D95: ='DF raw data'!L100 -> -3.5588471e-06 | F95: -5.836206002e-06 | G95: -5.678379155e-06 | H95: -3.562690655e-06 | J95: -0.0001159798532 | K95: -0.004801452612 | L95: 5.072268844e-05 | M95: 0.002201432052 | N95: 6.767216924e-07
A96: 46.12136667 | B96: ='DF raw data'!J101 -> -1.03369e-05 | C96: ='DF raw data'!K101 -> -4.2250654e-06 | D96: ='DF raw data'!L101 -> -5.0154504e-06 | F96: -1.034806385e-05 | G96: -4.237930635e-06 | H96: -5.020867086e-06 | J96: -0.0001211552303 | K96: -0.004862045978 | L96: 4.860317219e-05 | M96: 0.002225739957 | N96: 6.852443368e-07
A97: 46.62149667 | B97: ='DF raw data'!J102 -> -1.0300389e-05 | C97: ='DF raw data'!K102 -> -9.7205284e-06 | D97: ='DF raw data'!L102 -> -1.3411352e-06 | F97: -1.031151342e-05 | G97: -9.750127203e-06 | H97: -1.342583626e-06 | J97: -0.0001263123275 | K97: -0.004925218562 | L97: 4.372684107e-05 | M97: 0.002247609062 | N97: 6.941800799e-07
A98: 47.12162667 | B98: ='DF raw data'!J103 -> -3.870276e-06 | C98: ='DF raw data'!K103 -> -1.6056224e-06 | D98: ='DF raw data'!L103 -> -2.3929622e-06 | F98: -3.874455898e-06 | G98: -1.610511486e-06 | H98: -2.395546599e-06 | J98: -0.0001282500592 | K98: -0.004989360264 | L98: 4.292137596e-05 | M98: 0.00226907533 | N98: 7.033276187e-07
A99: 47.62175667 | B99: ='DF raw data'!J104 -> 4.9263713e-06 | C99: ='DF raw data'!K104 -> -4.3476853e-06 | D99: ='DF raw data'!L104 -> -1.2510297e-06 | F99: 4.931691781e-06 | G99: -4.36092391e-06 | H99: -1.252380812e-06 | J99: -0.0001257835722 | K99: -0.005052268402 | L99: 4.074034709e-05 | M99: 0.002289450799 | N99: 7.120705328e-07
A100: 48.12188667 | B100: ='DF raw data'!J105 -> 9.3228973e-06 | C100: ='DF raw data'!K105 -> -3.3317706e-06 | D100: ='DF raw data'!L105 -> 1.583174e-06 | F100: 9.332966029e-06 | G100: -3.341915771e-06 | H100: 1.584883828e-06 | J100: -0.0001211158759 | K100: -0.005112842085 | L100: 3.906895475e-05 | M100: 0.002308990356 | N100: 7.201703575e-07
A101: 48.62201667 | B101: ='DF raw data'!J106 -> 6.5112058e-06 | C101: ='DF raw data'!K106 -> -3.496953e-06 | D101: ='DF raw data'!L106 -> -1.7710133e-06 | F101: 6.518237902e-06 | G101: -3.507601148e-06 | H101: -1.772925994e-06 | J101: -0.0001178559095 | K101: -0.005171785361 | L101: 3.731469819e-05 | M101: 0.002327652556 | N101: 7.278135452e-07
A102: 49.12214667 | B102: ='DF raw data'!J107 -> -6.9439341e-07 | C102: ='DF raw data'!K107 -> -1.088993e-06 | D102: ='DF raw data'!L107 -> -4.2700431e-06 | F102: -6.951433549e-07 | G102: -1.092308961e-06 | H102: -4.274654747e-06 | J102: -0.0001182035716 | K102: -0.005230902513 | L102: 3.676840171e-05 | M102: 0.002346041536 | N102: 7.354775372e-07
A103: 49.62227667 | B103: ='DF raw data'!J108 -> -3.5544849e-06 | C103: ='DF raw data'!K108 -> 2.6220182e-06 | D103: ='DF raw data'!L108 -> -3.9089227e-06 | F103: -3.558323744e-06 | G103: 2.63000219e-06 | H103: -3.913144337e-06 | J103: -0.000119983196 | K103: -0.005290909709 | L103: 3.80837447e-05 | M103: 0.00236508836 | N103: 7.434027667e-07
A104: 50.12240667 | B104: ='DF raw data'!J109 -> 7.9745439e-07 | C104: ='DF raw data'!K109 -> 7.8045514e-07 | D104: ='DF raw data'!L109 -> -6.5402728e-06 | F104: 7.983156407e-07 | G104: 7.828316094e-07 | H104: -6.547336295e-06 | J104: -0.0001195839344 | K104: -0.005350717222 | L104: 3.847526228e-05 | M104: 0.002384330993 | N104: 7.512951498e-07
A105: 50.62253667 | B105: ='DF raw data'!J110 -> 1.636285e-06 | C105: ='DF raw data'!K110 -> -9.0912872e-06 | D105: ='DF raw data'!L110 -> -2.7324584e-06 | F105: 1.638052188e-06 | G105: -9.118969977e-06 | H105: -2.735409455e-06 | J105: -0.0001187646954 | K105: -0.005410115009 | L105: 3.391459182e-05 | M105: 0.002401292697 | N105: 7.589247592e-07
A106: 51.12266667 | B106: ='DF raw data'!J111 -> -1.5258316e-06 | C106: ='DF raw data'!K111 -> -8.2184069e-06 | D106: ='DF raw data'!L111 -> 4.1688168e-07 | F106: -1.527479498e-06 | G106: -8.243431775e-06 | H106: 4.173319122e-07 | J106: -0.0001195286337 | K106: -0.005469894865 | L106: 2.979180429e-05 | M106: 0.002416192473 | N106: 7.665140548e-07
A107: 51.62279667 | B107: ='DF raw data'!J112 -> -1.9655758e-06 | C107: ='DF raw data'!K112 -> -8.1085964e-06 | D107: ='DF raw data'!L112 -> -6.9589023e-06 | F107: -1.967698622e-06 | G107: -8.133286904e-06 | H107: -6.966417914e-06 | J107: -0.0001205127388 | K107: -0.005530166901 | L107: 2.572410351e-05 | M107: 0.002429057868 | N107: 7.741085537e-07
A108: 52.12292667 | B108: ='DF raw data'!J113 -> -3.7348996e-06 | C108: ='DF raw data'!K113 -> 1.9811664e-06 | D108: ='DF raw data'!L113 -> -3.2755941e-06 | F108: -3.738933292e-06 | G108: 1.98719901e-06 | H108: -3.279131742e-06 | J108: -0.0001223826915 | K108: -0.005591374156 | L108: 2.671796135e-05 | M108: 0.002442420322 | N108: 7.819562799e-07
A109: 52.62305667 | B109: ='DF raw data'!J114 -> -4.1948711e-06 | C109: ='DF raw data'!K114 -> -1.9968306e-06 | D109: ='DF raw data'!L114 -> 3.1971124e-06 | F109: -4.199401561e-06 | G109: -2.002910907e-06 | H109: 3.200565281e-06 | J109: -0.0001244829382 | K109: -0.005653631808 | L109: 2.571624552e-05 | M109: 0.002455281788 | N109: 7.90037044e-07
A110: 53.12318667 | B110: ='DF raw data'!J115 -> -3.3545707e-06 | C110: ='DF raw data'!K115 -> -5.59296e-06 | D110: ='DF raw data'!L115 -> -3.4646816e-06 | F110: -3.358193636e-06 | G110: -5.609990445e-06 | H110: -3.468423456e-06 | J110: -0.0001261624716 | K110: -0.005716729445 | L110: 2.2910521e-05 | M110: 0.002466740027 | N110: 7.98260112e-07
A111: 53.62331667 | B111: ='DF raw data'!J116 -> -3.2402218e-06 | C111: ='DF raw data'!K116 -> -5.200151e-06 | D111: ='DF raw data'!L116 -> -5.164331e-06 | F111: -3.24372124e-06 | G111: -5.21598535e-06 | H111: -5.169908477e-06 | J111: -0.0001277847539 | K111: -0.005780638434 | L111: 2.030185024e-05 | M111: 0.002476893591 | N111: 8.066328426e-07
A112: 54.12344667 | B112: ='DF raw data'!J117 -> -3.564031e-06 | C112: ='DF raw data'!K117 -> -6.3268094e-06 | D112: ='DF raw data'!L117 -> 3.8498092e-06 | F112: -3.567880153e-06 | G112: -6.346074401e-06 | H112: 3.853966994e-06 | J112: -0.0001295691578 | K112: -0.005845439857 | L112: 1.712798805e-05 | M112: 0.002485459812 | N112: 8.151758305e-07
A113: 54.62357667 | B113: ='DF raw data'!J118 -> -4.3959203e-06 | C113: ='DF raw data'!K118 -> -1.20032e-05 | D113: ='DF raw data'!L118 -> 6.2812305e-06 | F113: -4.400667894e-06 | G113: -1.203974949e-05 | H113: 6.288014229e-06 | J113: -0.0001317700639 | K113: -0.005911342019 | L113: 1.110654814e-05 | M113: 0.00249101453 | N113: 8.239214564e-07
A114: 55.12370667 | B114: ='DF raw data'!J119 -> -5.569314e-06 | C114: ='DF raw data'!K119 -> 3.5842598e-07 | D114: ='DF raw data'!L119 -> 2.7225162e-06 | F114: -5.575328859e-06 | G114: 3.595173795e-07 | H114: 2.725456517e-06 | J114: -0.0001345584531 | K114: -0.005978638738 | L114: 1.128635357e-05 | M114: 0.002496659174 | N114: 8.330405062e-07
A115: 55.62383667 | B115: ='DF raw data'!J120 -> -3.5909229e-06 | C115: ='DF raw data'!K120 -> 3.9071486e-07 | D115: ='DF raw data'!L120 -> 8.6006457e-06 | F115: -3.594801097e-06 | G115: 3.919045785e-07 | H115: 8.609934397e-06 | J115: -0.000136356321 | K115: -0.006046834625 | L115: 1.148235681e-05 | M115: 0.002502401845 | N115: 8.424053859e-07
A116: 56.12396667 | B116: ='DF raw data'!J121 -> 2.1216206e-06 | C116: ='DF raw data'!K121 -> -6.489458e-06 | D116: ='DF raw data'!L121 -> 5.4493703e-06 | F116: 2.12391195e-06 | G116: -6.509218262e-06 | H116: 5.45525562e-06 | J116: -0.0001352940889 | K116: -0.006114499258 | L116: 8.226901476e-06 | M116: 0.002506516365 | N116: 8.515938604e-07
A117: 56.62409667 | B117: ='DF raw data'!J122 -> 6.0470288e-06 | C117: ='DF raw data'!K122 -> 3.8021803e-06 | D117: ='DF raw data'!L122 -> 6.697212e-07 | F117: 6.053559591e-06 | G117: 3.813757859e-06 | H117: 6.704444989e-07 | J117: -0.0001322665221 | K117: -0.006180649713 | L117: 1.013427619e-05 | M117: 0.002511584821 | N117: 8.603947163e-07
A118: 57.12422667 | B118: ='DF raw data'!J123 -> 4.1394037e-06 | C118: ='DF raw data'!K123 -> 1.2252524e-05 | D118: ='DF raw data'!L123 -> 3.9017305e-06 | F118: 4.143874256e-06 | G118: 1.228983268e-05 | H118: 3.905944369e-06 | J118: -0.0001301940463 | K118: -0.006245763662 | L118: 1.628079021e-05 | M118: 0.002519727333 | N118: 8.690047312e-07
A119: 57.62435667 | B119: ='DF raw data'!J124 -> 2.6986768e-06 | C119: ='DF raw data'!K124 -> -7.8557514e-06 | D119: ='DF raw data'!L124 -> 4.6223704e-06 | F119: 2.701591371e-06 | G119: -7.879671997e-06 | H119: 4.62736256e-06 | J119: -0.0001288428994 | K119: -0.006310201861 | L119: 1.233992985e-05 | M119: 0.002525898902 | N119: 8.773832924e-07
A120: 58.12448667 | B120: ='DF raw data'!J125 -> 2.9826283e-06 | C120: ='DF raw data'!K125 -> -8.5214197e-06 | D120: ='DF raw data'!L125 -> 6.9494399e-06 | F120: 2.985849539e-06 | G120: -8.547367243e-06 | H120: 6.956945295e-06 | J120: -0.0001273495865 | K120: -0.00637389321 | L120: 8.065135075e-06 | M120: 0.002529932518 | N120: 8.855268909e-07
A121: 58.62461667 | B121: ='DF raw data'!J126 -> 3.7025843e-06 | C121: ='DF raw data'!K126 -> -3.2645627e-07 | D121: ='DF raw data'!L126 -> -2.3101618e-06 | F121: 3.706583091e-06 | G121: -3.274503224e-07 | H121: -2.312656775e-06 | J121: -0.0001254958131 | K121: -0.006436657431 | L121: 7.901367346e-06 | M121: 0.002533884229 | N121: 8.934347618e-07
A122: 59.12474667 | B122: ='DF raw data'!J127 -> 3.4642967e-06 | C122: ='DF raw data'!K127 -> -1.0052763e-05 | D122: ='DF raw data'!L127 -> -7.9188048e-06 | F122: 3.46803814e-06 | G122: -1.008337345e-05 | H122: -7.927357109e-06 | J122: -0.0001237613431 | K122: -0.006498554191 | L122: 2.858369782e-06 | M122: 0.002535313785 | N122: 9.010992742e-07
A123: 59.62487667 | B123: ='DF raw data'!J128 -> 1.9622335e-06 | C123: ='DF raw data'!K128 -> 3.9808397e-06 | D123: ='DF raw data'!L128 -> -1.3549756e-05 | F123: 1.964352712e-06 | G123: 3.992961273e-06 | H123: -1.356438974e-05 | J123: -0.0001227789114 | K123: -0.006559959608 | L123: 4.855369503e-06 | M123: 0.002537742101 | N123: 9.086503548e-07
A124: 60.12500667 | B124: ='DF raw data'!J129 -> 1.3945195e-06 | C124: ='DF raw data'!K129 -> 1.0317163e-05 | D124: ='DF raw data'!L129 -> -1.5152635e-05 | F124: 1.396025581e-06 | G124: 1.034857854e-05 | H124: -1.516899985e-05 | J124: -0.0001220807171 | K124: -0.006621015837 | L124: 1.003100409e-05 | M124: 0.002542758907 | N124: 9.161544667e-07
A125: 60.62513667 | B125: ='DF raw data'!J130 -> -1.953556e-06 | C125: ='DF raw data'!K130 -> 9.8787214e-06 | D125: ='DF raw data'!L130 -> -1.9218294e-06 | F125: -1.95566584e-06 | G125: 9.908801898e-06 | H125: -1.923904976e-06 | J125: -0.0001230588043 | K125: -0.006682561237 | L125: 1.498669318e-05 | M125: 0.002550254202 | N125: 9.238404997e-07
A126: 61.12526667 | B126: ='DF raw data'!J131 -> -1.0476411e-06 | C126: ='DF raw data'!K131 -> 4.2731785e-06 | D126: ='DF raw data'!L131 -> 6.5176991e-06 | F126: -1.048772552e-06 | G126: 4.286190238e-06 | H126: 6.524738215e-06 | J126: -0.0001235833269 | K126: -0.006744368966 | L126: 1.713034551e-05 | M126: 0.002558821602 | N126: 9.31625667e-07
A127: 61.62539667 | B127: ='DF raw data'!J132 -> 3.5686194e-06 | C127: ='DF raw data'!K132 -> 8.57754e-06 | D127: ='DF raw data'!L132 -> 6.5526383e-06 | F127: 3.572473509e-06 | G127: 8.603658428e-06 | H127: 6.559715149e-06 | J127: -0.0001217966257 | K127: -0.006805283113 | L127: 2.14332932e-05 | M127: 0.002569541035 | N127: 9.392745572e-07
A128: 62.12552667 | B128: ='DF raw data'!J133 -> 5.695862e-06 | C128: ='DF raw data'!K133 -> 5.4850975e-06 | D128: ='DF raw data'!L133 -> 4.0215946e-06 | F128: 5.702013531e-06 | G128: 5.501799506e-06 | H128: 4.025937922e-06 | J128: -0.0001189448777 | K128: -0.006864771015 | L128: 2.418490818e-05 | M128: 0.002581636633 | N128: 9.466428694e-07
A129: 62.62565667 | B129: ='DF raw data'!J134 -> 3.8441017e-06 | C129: ='DF raw data'!K134 -> 4.8889447e-06 | D129: ='DF raw data'!L134 -> 6.9867951e-07 | F129: 3.84825333e-06 | G129: 4.903831433e-06 | H129: 6.994340839e-07 | J129: -0.0001170202508 | K129: -0.006923296353 | L129: 2.66374614e-05 | M129: 0.002594958826 | N129: 9.538463885e-07
A130: 63.12578667 | B130: ='DF raw data'!J135 -> 4.0144464e-06 | C130: ='DF raw data'!K135 -> -3.381138e-06 | D130: ='DF raw data'!L135 -> -2.1293397e-06 | F130: 4.018782002e-06 | G130: -3.391433494e-06 | H130: -2.131639387e-06 | J130: -0.0001150103373 | K130: -0.006980816473 | L130: 2.494130376e-05 | M130: 0.002607432721 | N130: 9.607729121e-07
A131: 63.62591667 | B131: ='DF raw data'!J136 -> 6.3506691e-06 | C131: ='DF raw data'!K136 -> 1.7514044e-06 | D131: ='DF raw data'!L136 -> 3.6037657e-06 | F131: 6.357527823e-06 | G131: 1.756737389e-06 | H131: 3.607657767e-06 | J131: -0.0001118307469 | K131: -0.007036746384 | L131: 2.581990083e-05 | M131: 0.002620346028 | N131: 9.673610162e-07
A132: 64.12604667 | B132: ='DF raw data'!J137 -> 1.0017155e-05 | C132: ='DF raw data'!K137 -> 6.5126201e-06 | D132: ='DF raw data'!L137 -> 7.3853721e-07 | F132: 1.002797353e-05 | G132: 6.53245089e-06 | H132: 7.393348302e-07 | J132: -0.0001068154565 | K132: -0.007090167998 | L132: 2.90869755e-05 | M132: 0.002634893297 | N132: 9.734904064e-07
A133: 64.62617667 | B133: ='DF raw data'!J138 -> 1.2182174e-05 | C133: ='DF raw data'!K138 -> -2.8112704e-06 | D133: ='DF raw data'!L138 -> -3.8609301e-07 | F133: 1.219533075e-05 | G133: -2.819830659e-06 | H133: -3.865099905e-07 | J133: -0.0001007162058 | K133: -0.007140539194 | L133: 2.767669359e-05 | M133: 0.002648735241 | N133: 9.789467014e-07
A134: 65.12630667 | B134: ='DF raw data'!J139 -> 9.898542e-06 | C134: ='DF raw data'!K139 -> -1.6313738e-06 | D134: ='DF raw data'!L139 -> 4.1330622e-06 | F134: 9.909232425e-06 | G134: -1.636341299e-06 | H134: 4.137525907e-06 | J134: -9.576030136e-05 | K134: -0.007188431794 | L134: 2.685831022e-05 | M134: 0.002662167888 | N134: 9.838936893e-07
A135: 65.62643667 | B135: ='DF raw data'!J140 -> 2.964744e-06 | C135: ='DF raw data'!K140 -> 1.0665141e-05 | D135: ='DF raw data'!L140 -> 5.5315741e-06 | F135: 2.967945924e-06 | G135: =(1-$G$1*($B$2-$G$2))*C135*$M$2/$M$1 -> 1.069761613e-05 | H135: 5.5375482e-06 | J135: -9.427594257e-05 | K135: -0.007235582021 | L135: 3.220850897e-05 | M135: 0.00267827633 | N135: 9.888576503e-07
A136: =A135+$B$1 -> 66.12656667 | B136: ='DF raw data'!J141 -> -4.3193627e-06 | C136: ='DF raw data'!K141 -> 4.5006723e-06 | D136: ='DF raw data'!L141 -> -4.1663748e-07 | F136: -4.324027612e-06 | G136: 4.514376752e-06 | H136: -4.170874485e-07 | J136: =F136*$B$1+J135 -> -9.64385185e-05 | K136: =J136*$B$1+K135 -> -0.007283813817 | L136: =G136*$B$1+L135 -> 3.446628422e-05 | M136: =L136*$B$1+M135 -> 0.002695513952 | N136: =(J136^2+L136^2)*$B$1+N135 -> 9.941031701e-07
A137: 66.62669667 | B137: ='DF raw data'!J142 -> -5.0588765e-06 | C137: ='DF raw data'!K142 -> -4.5027268e-06 | D137: ='DF raw data'!L142 -> 3.5191026e-06 | F137: -5.064340087e-06 | G137: -4.516437508e-06 | H137: 3.522903231e-06 | J137: -9.897134691e-05 | K137: -0.007333312357 | L137: 3.220747833e-05 | M137: 0.002711621878 | N137: 9.995209029e-07
A138: 67.12682667 | B138: ='DF raw data'!J143 -> -3.9116057e-07 | C138: ='DF raw data'!K143 -> -3.1151328e-07 | D138: ='DF raw data'!L143 -> 8.0668815e-06 | F138: -3.915830234e-07 | G138: -3.124618313e-07 | H138: 8.075593732e-06 | J138: -9.916718932e-05 | K138: -0.007382908843 | L138: 3.205120679e-05 | M138: 0.002727651649 | N138: 1.004953021e-06
A139: 67.62695667 | B139: ='DF raw data'!J144 -> 3.0185424e-06 | C139: ='DF raw data'!K144 -> -1.3785289e-06 | D139: ='DF raw data'!L144 -> 4.6838086e-06 | F139: 3.021802426e-06 | G139: -1.382726491e-06 | H139: 4.688867113e-06 | J139: -9.765589528e-05 | K139: -0.007431749486 | L139: 3.135966379e-05 | M139: 0.002743335557 | N139: 1.010214439e-06
A140: 68.12708667 | B140: ='DF raw data'!J145 -> 4.7284652e-06 | C140: ='DF raw data'!K145 -> -1.7845491e-06 | D140: ='DF raw data'!L145 -> 7.3695105e-07 | F140: 4.733571942e-06 | G140: -1.789983014e-06 | H140: 7.377469571e-07 | J140: -9.528849394e-05 | K140: -0.007479406121 | L140: 3.046443959e-05 | M140: 0.002758571737 | N140: 1.01521973e-06
A141: 68.62721667 | B141: ='DF raw data'!J146 -> 8.7087337e-06 | C141: ='DF raw data'!K146 -> 2.1247338e-06 | D141: ='DF raw data'!L146 -> -5.7984016e-06 | F141: 8.718139132e-06 | G141: 2.131203569e-06 | H141: -5.804663874e-06 | J141: -9.092829102e-05 | K141: -0.007524882087 | L141: 3.153031843e-05 | M141: 0.002774340996 | N141: 1.019851992e-06
A142: 69.12734667 | B142: ='DF raw data'!J147 -> 1.0507089e-05 | C142: ='DF raw data'!K147 -> 7.2747566e-06 | D142: ='DF raw data'!L147 -> -8.86628e-06 | F142: 1.051843666e-05 | G142: 7.29690808e-06 | H142: -8.875855582e-06 | J142: -8.566770529e-05 | K142: -0.007567727076 | L142: 3.517972106e-05 | M142: 0.002791935429 | N142: 1.024141391e-06
A143: 69.62747667 | B143: ='DF raw data'!J148 -> 4.5074507e-06 | C143: ='DF raw data'!K148 -> -7.0773372e-06 | D143: ='DF raw data'!L148 -> -8.2025963e-06 | F143: 4.512318747e-06 | G143: -7.098887542e-06 | H143: -8.211455104e-06 | J143: -8.341095932e-05 | K143: -0.0076094434 | L143: 3.162935444e-05 | M143: 0.002807754218 | N143: 1.028121327e-06
A144: 70.12760667 | B144: ='DF raw data'!J149 -> -4.1777143e-06 | C144: ='DF raw data'!K149 -> -1.067013e-05 | D144: ='DF raw data'!L149 -> -8.8419201e-06 | F144: -4.182226231e-06 | G144: -1.070262032e-05 | H144: -8.851469374e-06 | J144: -8.550261612e-05 | K144: -0.007652205823 | L144: 2.627665294e-05 | M144: 0.002820895961 | N144: 1.032122948e-06
A145: 70.62773667 | B145: ='DF raw data'!J150 -> -6.5563995e-06 | C145: ='DF raw data'!K150 -> -9.1224571e-08 | D145: ='DF raw data'!L150 -> 3.2077644e-06 | F145: -6.563480411e-06 | G145: -9.150234789e-08 | H145: 3.211228786e-06 | J145: -8.878520958e-05 | K145: -0.00769660997 | L145: 2.623088987e-05 | M145: 0.002834014816 | N145: 1.036409498e-06
A146: 71.12786667 | B146: ='DF raw data'!J151 -> -1.8394254e-06 | C146: ='DF raw data'!K151 -> 5.7125912e-06 | D146: ='DF raw data'!L151 -> 1.5289987e-05 | F146: -1.841411979e-06 | G146: 5.729985919e-06 | H146: 1.530650019e-05 | J146: -8.970615495e-05 | K146: -0.007741474709 | L146: 2.909662773e-05 | M146: 0.002848566912 | N146: 1.040857558e-06
A147: 71.62799667 | B147: ='DF raw data'!J152 -> 3.3536148e-06 | C147: ='DF raw data'!K152 -> 2.6037374e-06 | D147: ='DF raw data'!L152 -> 2.4388703e-06 | F147: 3.357236704e-06 | G147: 2.611665725e-06 | H147: 2.44150428e-06 | J147: -8.802710016e-05 | K147: -0.007785499703 | L147: 3.040280011e-05 | M147: 0.002863772265 | N147: 1.045195236e-06
A148: 72.12812667 | B148: ='DF raw data'!J153 -> 2.4898859e-06 | C148: ='DF raw data'!K153 -> 1.7035049e-06 | D148: ='DF raw data'!L153 -> -9.2720602e-06 | F148: 2.492574977e-06 | G148: 1.708692036e-06 | H148: -9.282074025e-06 | J148: -8.678048864e-05 | K148: -0.007828901228 | L148: 3.125736825e-05 | M148: 0.002879405012 | N148: 1.04945028e-06
A149: 72.62825667 | B149: ='DF raw data'!J154 -> -3.6387842e-06 | C149: ='DF raw data'!K154 -> 4.6379687e-06 | D149: ='DF raw data'!L154 -> -5.8489113e-06 | F149: -3.642714087e-06 | G149: 4.652091217e-06 | H149: -5.855228124e-06 | J149: -8.860231923e-05 | K149: -0.007873213906 | L149: 3.358401863e-05 | M149: 0.002896201387 | N149: 1.053940576e-06
A150: 73.12838667 | B150: ='DF raw data'!J155 -> -8.4881376e-06 | C150: ='DF raw data'!K155 -> 5.36995e-06 | D150: ='DF raw data'!L155 -> 3.1844086e-06 | F150: -8.497304789e-06 | G150: 5.386301384e-06 | H150: 3.187847761e-06 | J150: -9.285207628e-05 | K150: -0.007919652015 | L150: 3.627786954e-05 | M150: 0.002914345038 | N150: 1.058910664e-06
A151: 73.62851667 | B151: ='DF raw data'!J156 -> -5.9837671e-06 | C151: ='DF raw data'!K156 -> 1.9700924e-06 | D151: ='DF raw data'!L156 -> 5.4044485e-06 | F151: =(1-$G$1*($B$2-$G$2))*B151 -> -5.990229568e-06 | G151: 1.97609129e-06 | H151: 5.410285304e-06 | J151: -9.584796979e-05 | K151: -0.00796758846 | L151: 3.726617208e-05 | M151: 0.002932982969 | N151: 1.064199839e-06
A152: 74.12864667 | B152: ='DF raw data'!J157 -> -1.8439656e-06 | C152: ='DF raw data'!K157 -> -1.8975611e-06 | D152: ='DF raw data'!L157 -> -6.2231429e-06 | F152: -1.845957083e-06 | G152: -1.903339133e-06 | H152: -6.229863894e-06 | J152: -9.677118831e-05 | K152: -0.008015986635 | L152: 3.631425508e-05 | M152: 0.002951144817 | N152: 1.069542922e-06
A153: 74.62877667 | B153: ='DF raw data'!J158 -> -5.6566255e-06 | C153: ='DF raw data'!K158 -> 1.4358498e-06 | D153: ='DF raw data'!L158 -> -3.8256712e-06 | F153: -5.662734656e-06 | G153: 1.440221932e-06 | H153: -3.829802925e-06 | J153: -9.960329179e-05 | K153: -0.008065801229 | L153: 3.703455328e-05 | M153: 0.002969666909 | N153: 1.075190577e-06
A154: 75.12890667 | B154: ='DF raw data'!J159 -> -1.2742274e-05 | C154: ='DF raw data'!K159 -> -6.9074737e-08 | D154: ='DF raw data'!L159 -> 3.7643606e-06 | F154: -1.275603566e-05 | G154: -6.928506811e-08 | H154: 3.768426109e-06 | J154: -0.0001059829679 | K154: -0.008118806491 | L154: 3.699990173e-05 | M154: 0.002988171669 | N154: 1.081492906e-06
A155: 75.62903667 | B155: ='DF raw data'!J160 -> -1.1418835e-05 | C155: ='DF raw data'!K160 -> -6.47358e-06 | D155: ='DF raw data'!L160 -> 5.7721468e-07 | F155: -1.143116734e-05 | G155: -6.493291914e-06 | H155: 5.778380719e-07 | J155: -0.0001117000376 | K155: -0.008174671031 | L155: 3.375241165e-05 | M155: 0.003005052263 | N155: 1.088302738e-06
A156: 76.12916667 | B156: ='DF raw data'!J161 -> -3.8550547e-06 | C156: ='DF raw data'!K161 -> -3.271995e-06 | D156: ='DF raw data'!L161 -> -2.100585e-07 | F156: -3.859218159e-06 | G156: -3.281958156e-06 | H156: -2.102853632e-07 | J156: -0.0001136301484 | K156: -0.008231500877 | L156: 3.211100592e-05 | M156: 0.00302111194 | N156: 1.095276015e-06
A157: 76.62929667 | B157: ='DF raw data'!J162 -> 3.661211e-07 | C157: ='DF raw data'!K162 -> -5.8646187e-06 | D157: ='DF raw data'!L162 -> -1.2317194e-06 | F157: 3.665165108e-07 | G157: -5.88247634e-06 | H157: -1.233049657e-06 | J157: -0.0001134468425 | K157: -0.008288239046 | L157: 2.916900303e-05 | M157: 0.003035700234 | N157: 1.102138307e-06
A158: 77.12942667 | B158: ='DF raw data'!J163 -> 7.1234024e-07 | C158: ='DF raw data'!K163 -> -1.8914238e-06 | D158: ='DF raw data'!L163 -> 2.5442409e-07 | F158: 7.131095675e-07 | G158: -1.897183145e-06 | H158: 2.54698868e-07 | J158: -0.000113090195 | K158: -0.008344798845 | L158: 2.822016482e-05 | M158: 0.003049813985 | N158: 1.108932958e-06
A159: 77.62955667 | B159: ='DF raw data'!J164 -> -3.0300921e-06 | C159: ='DF raw data'!K164 -> 2.9075522e-06 | D159: ='DF raw data'!L164 -> 1.7167606e-06 | F159: -3.033364599e-06 | G159: 2.916405635e-06 | H159: 1.718614701e-06 | J159: -0.0001146072717 | K159: -0.00840211738 | L159: 2.967874677e-05 | M159: 0.003064657217 | N159: 1.115942607e-06
A160: 78.12968667 | B160: ='DF raw data'!J165 -> -7.3996539e-06 | C160: ='DF raw data'!K165 -> 1.2166288e-06 | D160: ='DF raw data'!L165 -> 2.7654444e-06 | F160: -7.407645526e-06 | G160: 1.220333409e-06 | H160: 2.76843108e-06 | J160: -0.0001183120574 | K160: -0.008461288789 | L160: 3.028907212e-05 | M160: 0.00307980569 | N160: 1.123402132e-06
A161: 78.62981667 | B161: ='DF raw data'!J166 -> -5.4949537e-06 | C161: ='DF raw data'!K166 -> 6.7115602e-06 | D161: ='DF raw data'!L166 -> 1.6374236e-06 | F161: -5.50088825e-06 | G161: 6.731996759e-06 | H161: 1.639192017e-06 | J161: -0.0001210632166 | K161: -0.008521836136 | L161: 3.365594566e-05 | M161: 0.003096638038 | N161: 1.131298697e-06
A162: 79.12994667 | B162: ='DF raw data'!J167 -> -1.4428566e-06 | C162: ='DF raw data'!K167 -> 8.7867538e-06 | D162: ='DF raw data'!L167 -> -2.1497706e-06 | F162: -1.444414885e-06 | G162: 8.813509279e-06 | H162: -2.152092352e-06 | J162: -0.0001217856119 | K162: -0.008582744774 | L162: 3.806384605e-05 | M162: 0.00311567491 | N162: 1.139441109e-06
A163: 79.63007667 | B163: ='DF raw data'!J168 -> 1.2252516e-06 | C163: ='DF raw data'!K168 -> 9.7432485e-07 | D163: ='DF raw data'!L168 -> 2.6737964e-06 | F163: 1.226574872e-06 | G163: 9.772916486e-07 | H163: 2.6766841e-06 | J163: -0.000121172165 | K163: -0.008643346609 | L163: 3.855261892e-05 | M163: 0.003134956231 | N163: 1.14752771e-06
A164: 80.13020667 | B164: ='DF raw data'!J169 -> -1.1563731e-06 | C164: ='DF raw data'!K169 -> 7.5363596e-07 | D164: ='DF raw data'!L169 -> 9.4783591e-06 | F164: -1.157621983e-06 | G164: 7.559307656e-07 | H164: 9.488595728e-06 | J164: -0.0001217511265 | K164: -0.008704238 | L164: 3.893068258e-05 | M164: 0.003154426633 | N164: 1.155699301e-06
A165: 80.63033667 | B165: ='DF raw data'!J170 -> -5.0483991e-06 | C165: ='DF raw data'!K170 -> 8.1554708e-07 | D165: ='DF raw data'!L170 -> 6.8681675e-06 | F165: -5.053851371e-06 | G165: 8.180304036e-07 | H165: 6.875585121e-06 | J165: -0.0001242787091 | K165: -0.008766393511 | L165: 3.933980412e-05 | M165: 0.003174101649 | N165: 1.164197919e-06
A166: 81.13046667 | B166: ='DF raw data'!J171 -> -4.0833306e-06 | C166: ='DF raw data'!K171 -> 5.947823e-06 | D166: ='DF raw data'!L171 -> 2.5127358e-06 | F166: -4.087740597e-06 | G166: 5.965933995e-06 | H166: 2.515449555e-06 | J166: -0.0001263231108 | K166: -0.008829571488 | L166: 4.232354669e-05 | M166: 0.003195268925 | N166: 1.173074632e-06
A167: 81.63059667 | B167: ='DF raw data'!J172 -> -8.6614966e-07 | C167: ='DF raw data'!K172 -> -2.5373853e-07 | D167: ='DF raw data'!L172 -> 1.4444215e-06 | F167: -8.670851016e-07 | G167: -2.545111585e-07 | H167: 1.445981475e-06 | J167: -0.0001267567661 | K167: -0.008892966349 | L167: 4.219625803e-05 | M167: 0.003216372539 | N167: 1.182000853e-06
A168: 82.13072667 | B168: ='DF raw data'!J173 -> -1.316968e-06 | C168: ='DF raw data'!K173 -> 5.4801608e-06 | D168: ='DF raw data'!L173 -> 5.5611144e-06 | F168: -1.318390325e-06 | G168: 5.496847774e-06 | H168: 5.567120404e-06 | J168: -0.0001274161327 | K168: -0.00895669098 | L168: 4.49453965e-05 | M168: 0.003238851081 | N168: 1.191130706e-06
A169: 82.63085667 | B169: ='DF raw data'!J174 -> -3.9920901e-06 | C169: ='DF raw data'!K174 -> 4.7357703e-06 | D169: ='DF raw data'!L174 -> 4.6441401e-06 | F169: -3.996401557e-06 | G169: 4.75019062e-06 | H169: 4.649155771e-06 | J169: -0.000129414853 | K169: -0.00902141523 | L169: 4.732110934e-05 | M169: 0.003262517787 | N169: 1.20062692e-06
A170: 83.13098667 | B170: ='DF raw data'!J175 -> -6.4905958e-06 | C170: ='DF raw data'!K175 -> -2.3295984e-06 | D170: ='DF raw data'!L175 -> 5.9939175e-06 | F170: -6.497605643e-06 | G170: -2.336691978e-06 | H170: 6.000390931e-06 | J170: -0.0001326645005 | K170: -0.009087764727 | L170: 4.615245958e-05 | M170: 0.003285600017 | N170: 1.210494445e-06
A171: 83.63111667 | B171: ='DF raw data'!J176 -> -9.554662e-06 | C171: ='DF raw data'!K176 -> 8.5755382e-06 | D171: ='DF raw data'!L176 -> 7.9452129e-06 | F171: -9.564981035e-06 | G171: 8.601650532e-06 | H171: 7.95379373e-06 | J171: -0.0001374482345 | K171: -0.009156506712 | L171: 5.045440306e-05 | M171: 0.003310833777 | N171: 1.221216064e-06
A172: 84.13124667 | B172: ='DF raw data'!J177 -> -9.9584922e-06 | C172: ='DF raw data'!K177 -> 1.2796239e-05 | D172: ='DF raw data'!L177 -> 3.9311399e-06 | F172: -9.969247372e-06 | G172: 1.283520328e-05 | H172: 3.935385531e-06 | J172: -0.0001424341541 | K172: -0.009227742306 | L172: 5.687367328e-05 | M172: 0.003339278007 | N172: 1.232980173e-06
A173: 84.63137667 | B173: ='DF raw data'!J178 -> -7.3644819e-06 | C173: ='DF raw data'!K178 -> 4.1590988e-06 | D173: ='DF raw data'!L178 -> 3.5419203e-07 | F173: -7.37243554e-06 | G173: 4.171763168e-06 | H173: 3.545745574e-07 | J173: -0.0001461213303 | K173: -0.009300821967 | L173: 5.896009719e-05 | M173: 0.003368765721 | N173: 1.245397269e-06
A174: 85.13150667 | B174: ='DF raw data'!J179 -> -7.775312e-06 | C174: ='DF raw data'!K179 -> 1.1026818e-06 | D174: ='DF raw data'!L179 -> 3.9127754e-06 | F174: -7.783709337e-06 | G174: 1.106039443e-06 | H174: 3.917001197e-06 | J174: -0.0001500141969 | K174: -0.009375848567 | L174: 5.95132607e-05 | M174: 0.003398530088 | N174: 1.258423699e-06
A175: 85.63163667 | B175: ='DF raw data'!J180 -> -9.8353394e-06 | C175: ='DF raw data'!K180 -> 9.922037e-07 | D175: ='DF raw data'!L180 -> 3.8013661e-06 | F175: -9.845961567e-06 | G175: 9.952249393e-07 | H175: 3.805471575e-06 | J175: -0.0001549384576 | K175: -0.009453337938 | L175: 6.001100254e-05 | M175: 0.003428543391 | N175: 1.272230911e-06
A176: 86.13176667 | B176: ='DF raw data'!J181 -> -7.0620349e-06 | C176: ='DF raw data'!K181 -> -1.5878763e-06 | D176: ='DF raw data'!L181 -> 2.5547326e-06 | F176: -7.069661898e-06 | G176: -1.59271135e-06 | H176: 2.557491711e-06 | J176: -0.0001584742076 | K176: -0.009532595643 | L176: 5.921443982e-05 | M176: 0.003458158308 | N176: 1.286544843e-06
A177: 86.63189667 | B177: ='DF raw data'!J182 -> -7.8297091e-07 | C177: ='DF raw data'!K182 -> 6.0873526e-07 | D177: ='DF raw data'!L182 -> 4.2750307e-06 | F177: -7.838165186e-07 | G177: 6.10588846e-07 | H177: 4.279647733e-06 | J177: -0.0001588662178 | K177: -0.009612049405 | L177: 5.951981362e-05 | M177: 0.003487925953 | N177: 1.300939127e-06
A178: 87.13202667 | B178: ='DF raw data'!J183 -> 2.7120209e-06 | C178: ='DF raw data'!K183 -> 5.1747461e-06 | D178: ='DF raw data'!L183 -> 7.733046e-06 | F178: 2.714949883e-06 | G178: 5.190503092e-06 | H178: 7.74139769e-06 | J178: -0.0001575083899 | K178: -0.009690824076 | L178: 6.211573993e-05 | M178: 0.003518991898 | N178: 1.315276482e-06
A179: 87.63215667 | B179: ='DF raw data'!J184 -> 7.9505332e-07 | C179: ='DF raw data'!K184 -> -5.4935576e-06 | D179: ='DF raw data'!L184 -> 5.0038634e-06 | F179: 7.959119776e-07 | G179: -5.510285367e-06 | H179: 5.009267572e-06 | J179: -0.0001571103305 | K179: -0.009769399666 | L179: 5.935988091e-05 | M179: 0.003548679555 | N179: 1.329383775e-06
A180: 88.13228667 | B180: ='DF raw data'!J185 -> -2.9588023e-06 | C180: ='DF raw data'!K185 -> -1.9768163e-06 | D180: ='DF raw data'!L185 -> -5.6674926e-06 | F180: -2.961997806e-06 | G180: -1.982835664e-06 | H180: -5.673613492e-06 | J180: -0.0001585917144 | K180: -0.00984871614 | L180: 5.836820531e-05 | M180: 0.003577871246 | N180: 1.343666577e-06
A181: 88.63241667 | B181: ='DF raw data'!J186 -> -2.7467249e-07 | C181: ='DF raw data'!K186 -> 4.7570714e-07 | D181: ='DF raw data'!L186 -> -5.4967113e-06 | F181: -2.749691363e-07 | G181: 4.771556582e-07 | H181: -5.502647748e-06 | J181: -0.0001587292347 | K181: -0.009928101392 | L181: 5.860684517e-05 | M181: 0.003607182287 | N181: 1.357985165e-06
A182: 89.13254667 | B182: ='DF raw data'!J187 -> 3.5600046e-06 | C182: ='DF raw data'!K187 -> -5.5960286e-06 | D182: ='DF raw data'!L187 -> -1.6914726e-06 | F182: 3.563849405e-06 | G182: -5.613068389e-06 | H182: -1.69329939e-06 | J182: -0.0001569468467 | K182: -0.01000659522 | L182: 5.579958127e-05 | M182: 0.003635089332 | N182: 1.371861725e-06
A183: 89.63267667 | B183: ='DF raw data'!J188 -> -6.9500459e-07 | C183: ='DF raw data'!K188 -> 2.1456831e-06 | D183: ='DF raw data'!L188 -> -5.5910805e-06 | F183: -6.95755195e-07 | G183: 2.15221666e-06 | H183: -5.597118867e-06 | J183: -0.0001572948148 | K183: -0.01008526307 | L183: 5.687596939e-05 | M183: 0.00366353471 | N183: 1.38585363e-06
A184: 90.13280667 | B184: ='DF raw data'!J189 -> -6.7268898e-06 | C184: ='DF raw data'!K189 -> 1.4624015e-06 | D184: ='DF raw data'!L189 -> -3.0117096e-06 | F184: -6.734154841e-06 | G184: 1.466854482e-06 | H184: -3.014962246e-06 | J184: -0.0001606627676 | K184: -0.01016561534 | L184: 5.760958732e-05 | M184: 0.003692346993 | N184: 1.400423111e-06
A185: 90.63293667 | B185: ='DF raw data'!J190 -> -9.4579354e-06 | C185: ='DF raw data'!K190 -> -3.579677e-06 | D185: ='DF raw data'!L190 -> -3.3112753e-06 | F185: -9.46814997e-06 | G185: -3.590577041e-06 | H185: -3.314851477e-06 | J185: -0.0001653980735 | K185: -0.01024833588 | L185: 5.581383203e-05 | M185: 0.003720261165 | N185: 1.415662926e-06
A186: 91.13306667 | B186: ='DF raw data'!J191 -> -9.378773e-06 | C186: ='DF raw data'!K191 -> -1.7583975e-06 | D186: ='DF raw data'!L191 -> -8.9806144e-06 | F186: -9.388902075e-06 | G186: -1.763751783e-06 | H186: -8.990313464e-06 | J186: -0.0001700937451 | K186: -0.01033340487 | L186: 5.493172685e-05 | M186: 0.003747734169 | N186: 1.431641768e-06
A187: 91.63319667 | B187: ='DF raw data'!J192 -> -5.2640003e-06 | C187: ='DF raw data'!K192 -> -9.0489903e-06 | D187: ='DF raw data'!L192 -> -5.7300513e-06 | F187: -5.26968542e-06 | G187: -9.076544284e-06 | H187: -5.736239755e-06 | J187: -0.0001727292729 | K187: -0.01041979196 | L187: 5.039227476e-05 | M187: 0.003772936858 | N187: 1.447833368e-06
A188: 92.13332667 | B188: ='DF raw data'!J193 -> 8.3169505e-07 | C188: ='DF raw data'!K193 -> -3.2670582e-06 | D188: ='DF raw data'!L193 -> 8.8009824e-07 | F188: 8.325932807e-07 | G188: -3.277006323e-06 | H188: 8.810487461e-07 | J188: -0.000172312868 | K188: -0.01050597079 | L188: 4.875334558e-05 | M188: 0.003797319868 | N188: 1.463871843e-06
A189: 92.63345667 | B189: ='DF raw data'!J194 -> 3.9857355e-06 | C189: ='DF raw data'!K194 -> 3.6860997e-06 | D189: ='DF raw data'!L194 -> -2.2476031e-06 | F189: 3.990040094e-06 | G189: 3.697323796e-06 | H189: -2.250030511e-06 | J189: -0.0001703173292 | K189: -0.0105911516 | L189: 5.060248813e-05 | M189: 0.003822627691 | N189: 1.47966025e-06
A190: 93.13358667 | B190: ='DF raw data'!J195 -> 3.1406184e-06 | C190: ='DF raw data'!K195 -> 1.3257764e-05 | D190: ='DF raw data'!L195 -> -7.4210566e-06 | F190: 3.144010268e-06 | G190: 1.329813361e-05 | H190: -7.429071341e-06 | J190: -0.0001687449154 | K190: -0.01067554599 | L190: 5.72532837e-05 | M190: 0.003851261776 | N190: 1.49554077e-06
A191: 93.63371667 | B191: ='DF raw data'!J196 -> 2.5798022e-06 | C191: ='DF raw data'!K196 -> 4.5005377e-06 | D191: ='DF raw data'!L196 -> -4.4802891e-06 | F191: 2.582588386e-06 | G191: 4.514241742e-06 | H191: -4.485127812e-06 | J191: -0.0001674532854 | K191: -0.01075929441 | L191: 5.951099142e-05 | M191: 0.003881025008 | N191: 1.511335956e-06
A192: 94.13384667 | B192: ='DF raw data'!J197 -> 1.6427024e-06 | C192: ='DF raw data'!K197 -> 3.529723e-06 | D192: ='DF raw data'!L197 -> -1.9827146e-06 | F192: 1.644476519e-06 | G192: 3.540470932e-06 | H192: -1.984855932e-06 | J192: -0.0001666308334 | K192: -0.01084263148 | L192: 6.128168715e-05 | M192: 0.003911673818 | N192: 1.527100694e-06
A193: 94.63397667 | B193: ='DF raw data'!J198 -> -5.2164762e-07 | C193: ='DF raw data'!K198 -> 6.4592491e-06 | D193: ='DF raw data'!L198 -> 5.9071299e-06 | F193: -5.222109994e-07 | G193: 6.478917377e-06 | H193: 5.9135096e-06 | J193: -0.0001668920068 | K193: -0.01092609918 | L193: 6.452198809e-05 | M193: 0.0039439432 | N193: 1.54311287e-06
A194: 95.13410667 | B194: ='DF raw data'!J199 -> -1.5112797e-06 | C194: ='DF raw data'!K199 -> 6.8751419e-06 | D194: ='DF raw data'!L199 -> 1.3583076e-05 | F194: -1.512911882e-06 | G194: 6.896076562e-06 | H194: 1.359774572e-05 | J194: -0.0001676486594 | K194: -0.01100994531 | L194: 6.797092286e-05 | M194: 0.003977937498 | N194: 1.559480184e-06
A195: 95.63423667 | B195: ='DF raw data'!J200 -> -1.5212187e-06 | C195: ='DF raw data'!K200 -> 1.8330931e-05 | D195: ='DF raw data'!L200 -> 9.4870029e-06 | F195: -1.522861616e-06 | G195: 1.83867483e-05 | H195: 9.497248863e-06 | J195: -0.0001684102882 | K195: -0.01109417234 | L195: 7.716668729e-05 | M195: 0.004016530873 | N195: 1.576643007e-06
A196: 96.13436667 | B196: ='DF raw data'!J201 -> -8.2556437e-07 | C196: ='DF raw data'!K201 -> 2.9012804e-06 | D196: ='DF raw data'!L201 -> 6.5871845e-06 | F196: -8.264559795e-07 | G196: 2.910114737e-06 | H196: 6.594298659e-06 | J196: -0.0001688236236 | K196: -0.0111786061 | L196: 7.862212297e-05 | M196: 0.004055852155 | N196: 1.593988943e-06
A197: 96.63449667 | B197: ='DF raw data'!J202 -> 2.5184491e-07 | C197: ='DF raw data'!K202 -> -3.87722e-06 | D197: ='DF raw data'!L202 -> 9.0253288e-06 | F197: 2.521169025e-07 | G197: -3.889026053e-06 | H197: 9.035076155e-06 | J197: -0.0001686975324 | K197: -0.0112629768 | L197: 7.667710437e-05 | M197: 0.004094200675 | N197: 1.611162525e-06
A198: 97.13462667 | B198: ='DF raw data'!J203 -> -6.7758812e-08 | C198: ='DF raw data'!K203 -> 7.4271297e-06 | D198: ='DF raw data'!L203 -> -7.477372e-07 | F198: -6.783199152e-08 | G198: 7.449745153e-06 | H198: -7.485447562e-07 | J198: -0.0001687314572 | K198: -0.01134736446 | L198: 8.040294542e-05 | M198: 0.004134412601 | N198: 1.628634535e-06
A199: 97.63475667 | B199: ='DF raw data'!J204 -> -2.8297122e-06 | C199: ='DF raw data'!K204 -> 8.8656088e-06 | D199: ='DF raw data'!L204 -> -1.0576785e-05 | F199: -2.832768289e-06 | G199: =(1-$G$1*($B$2-$G$2))*C199*$M$2/$M$1 -> 8.892604391e-06 | H199: -1.058820793e-05 | J199: -0.0001701482096 | K199: -0.01143246069 | L199: 8.485040365e-05 | M199: 0.004176848833 | N199: 1.646714237e-06
A200: =A199+$B$1 -> 98.13488667 | B200: ='DF raw data'!J205 -> -7.3184106e-06 | C200: ='DF raw data'!K205 -> 8.3535151e-06 | D200: ='DF raw data'!L205 -> -1.268575e-05 | F200: -7.326314483e-06 | G200: 8.378951377e-06 | H200: -1.269945061e-05 | J200: =F200*$B$1+J199 -> -0.0001738123193 | K200: =J200*$B$1+K199 -> -0.01151938944 | L200: =G200*$B$1+L199 -> 8.90409686e-05 | M200: =L200*$B$1+M199 -> 0.004221380893 | N200: =(J200^2+L200^2)*$B$1+N199 -> 1.665788703e-06
A201: 98.63501667 | B201: ='DF raw data'!J206 -> -9.7459033e-06 | C201: ='DF raw data'!K206 -> 1.8213209e-06 | D201: ='DF raw data'!L206 -> -1.1419355e-05 | F201: -9.756428876e-06 | G201: 1.826866784e-06 | H201: -1.14316879e-05 | J201: -0.000178691802 | K201: -0.01160875857 | L201: 8.995463949e-05 | M201: 0.004266369906 | N201: 1.685805205e-06
... 1002 more rows

Sheet 10 y=0.2
A1: dz | B1: ='DF raw data'!N7 -> 0.50012 | C1: mm | F1: T_coeff | G1: -0.0008 | H1: /degC | L1: Hallref | M1: ='PI vs y'!B44 -> 0.50564 | N1: T | P1: IBy total | Q1: =L1203*1000 -> 10.62149736 | R1: muTm | X1: DF ref | Y1: 21
A2: Tref | B2: ='DF raw data'!N8 -> 21.36 | C2: degC | F2: Tcorr | G2: 20 | H2: degC | L2: NMRref | M2: ='PI vs y'!B45 -> 0.5066325 | N2: T | P2: JBy total | Q2: =M1203 -> 0.5345771303 | R2: muTm^2
A3: Encoder | B3: ='DF raw data'!N9 -> 1635118 | P3: PI total | Q3: =N1203 -> 703.2891294 | R3: T^2mm^3
A5: z [mm] | B5: Bx | C5: By | D5: Bz | F5: Bx_corr | G5: By_corr | H5: Bz_corr | J5: Ix | K5: Jx | L5: Iy | M5: Jy | N5: PI
A6: ='PI vs y'!B53 -> 1.109666667 | B6: ='DF raw data'!M11 -> -3.4713725e-07 | C6: ='DF raw data'!N11 -> -4.576882e-06 | D6: ='DF raw data'!O11 -> -1.0334988e-07 | F6: =(1-$G$1*($B$2-$G$2))*B6 -> -3.475149353e-07 | G6: =(1-$G$1*($B$2-$G$2))*C6*$M$2/$M$1 -> -4.590855196e-06 | H6: =(1-$G$1*($B$2-$G$2))*D6 -> -1.034623247e-07 | J6: =F6*$B$1 -> -1.737991695e-07 | K6: =J6*$B$1 -> -8.692044063e-08 | L6: =G6*$B$1 -> -2.295978501e-06 | M6: =L6*$B$1 -> -1.148264768e-06 | N6: =(J6^2+L6^2)*$B$1 -> 2.65149792e-12
A7: =A6+$B$1 -> 1.609786667 | B7: ='DF raw data'!M12 -> -4.345797e-07 | C7: ='DF raw data'!N12 -> -2.424568e-06 | D7: ='DF raw data'!O12 -> -1.3991543e-06 | F7: =(1-$G$1*($B$2-$G$2))*B7 -> -4.350525227e-07 | G7: =(1-$G$1*($B$2-$G$2))*C7*$M$2/$M$1 -> -2.431970193e-06 | H7: -1.40067658e-06 | J7: =F7*$B$1+J6 -> -3.913776371e-07 | K7: =J7*$B$1+K6 -> -2.826562245e-07 | L7: =G7*$B$1+L6 -> -3.512255433e-06 | M7: =L7*$B$1+M6 -> -2.904813955e-06 | N7: =(J7^2+L7^2)*$B$1+N6 -> 8.897553956e-12
A8: =A7+$B$1 -> 2.109906667 | B8: ='DF raw data'!M13 -> -4.9377689e-07 | C8: ='DF raw data'!N13 -> -1.2371992e-06 | D8: ='DF raw data'!O13 -> -3.7604937e-06 | F8: -4.943141193e-07 | G8: -1.240976362e-06 | H8: -3.764585117e-06 | J8: =F8*$B$1+J7 -> -6.385940144e-07 | K8: =J8*$B$1+K7 -> -6.02029863e-07 | L8: =G8*$B$1+L7 -> -4.132892532e-06 | M8: =L8*$B$1+M7 -> -4.971756168e-06 | N8: =(J8^2+L8^2)*$B$1+N7 -> 1.764395409e-11
A9: 2.610026667 | B9: ='DF raw data'!M14 -> -5.4137621e-07 | C9: ='DF raw data'!N14 -> -9.209769e-07 | D9: ='DF raw data'!O14 -> -9.5282612e-06 | F9: -5.419652273e-07 | G9: -9.237886374e-07 | H9: -9.538627948e-06 | J9: -9.096416639e-07 | K9: -1.056959852e-06 | L9: -4.594897705e-06 | M9: -7.269756408e-06 | N9: 2.861685339e-11
A10: 3.110146667 | B10: ='DF raw data'!M15 -> -3.2497468e-07 | C10: ='DF raw data'!N15 -> -5.7140815e-06 | D10: ='DF raw data'!O15 -> -2.8128293e-06 | F10: -3.253282525e-07 | G10: -5.73152656e-06 | H10: -2.815889658e-06 | J10: -1.07234483e-06 | K10: -1.593260948e-06 | L10: -7.461348768e-06 | M10: -1.100132615e-05 | N10: 5.703449642e-11
A11: 3.610266667 | B11: ='DF raw data'!M16 -> -6.738714e-07 | C11: ='DF raw data'!N16 -> 3.3578992e-06 | D11: ='DF raw data'!O16 -> -4.9114046e-06 | F11: -6.746045721e-07 | G11: 3.368150848e-06 | H11: -4.916748208e-06 | J11: -1.409728068e-06 | K11: -2.29829415e-06 | L11: -5.776869166e-06 | M11: -1.389045396e-05 | N11: 7.471851486e-11
A12: 4.110386667 | B12: ='DF raw data'!M17 -> -3.2717202e-07 | C12: ='DF raw data'!N17 -> -6.1354449e-06 | D12: ='DF raw data'!O17 -> -4.4761423e-06 | F12: -3.275279832e-07 | G12: -6.15417638e-06 | H12: -4.481012343e-06 | J12: -1.573531363e-06 | K12: -3.085248655e-06 | L12: -8.854695857e-06 | M12: -1.831886445e-05 | N12: 1.151690405e-10
A13: 4.610506667 | B13: ='DF raw data'!M18 -> 9.4688005e-08 | C13: ='DF raw data'!N18 -> -1.7617918e-05 | D13: ='DF raw data'!O18 -> -4.8719398e-06 | F13: 9.479102555e-08 | G13: -1.767170541e-05 | H13: -4.877240471e-06 | J13: -1.526124475e-06 | K13: -3.848494027e-06 | L13: -1.769266917e-05 | M13: -2.716732216e-05 | N13: 2.728866827e-10
A14: 5.110626667 | B14: ='DF raw data'!M19 -> 3.8831655e-07 | C14: ='DF raw data'!N19 -> -2.6777694e-05 | D14: ='DF raw data'!O19 -> -1.3452433e-05 | F14: 3.887390384e-07 | G14: -2.685944615e-05 | H14: -1.346706925e-05 | J14: -1.331708307e-06 | K14: -4.514507986e-06 | L14: -3.112561538e-05 | M14: -4.273386492e-05 | N14: 7.582918418e-10
A15: 5.610746667 | B15: ='DF raw data'!M20 -> -5.1554656e-07 | C15: ='DF raw data'!N20 -> -1.7951924e-06 | D15: ='DF raw data'!O20 -> -1.2536317e-05 | F15: -5.161074747e-07 | G15: -1.800673113e-06 | H15: -1.254995651e-05 | J15: -1.589823978e-06 | K15: -5.309610754e-06 | L15: -3.202616801e-05 | M15: -5.875079206e-05 | N15: 1.272516715e-09
A16: 6.110866667 | B16: ='DF raw data'!M21 -> -8.5355845e-07 | C16: ='DF raw data'!N21 -> 7.4413038e-06 | D16: ='DF raw data'!O21 -> -1.1789905e-05 | F16: -8.544871216e-07 | G16: 7.46402206e-06 | H16: -1.180273242e-05 | J16: -2.017170077e-06 | K16: -6.318437853e-06 | L16: -2.82932613e-05 | M16: -7.290081791e-05 | N16: 1.674902069e-09
A17: 6.610986667 | B17: ='DF raw data'!M22 -> -9.3733382e-07 | C17: ='DF raw data'!N22 -> 9.6137655e-06 | D17: ='DF raw data'!O22 -> -1.117222e-05 | F17: -9.383536392e-07 | G17: 9.643116274e-06 | H17: -1.118437538e-05 | J17: -2.486459499e-06 | K17: -7.561965977e-06 | L17: -2.347054599e-05 | M17: -8.463890737e-05 | N17: 1.95349342e-09
A18: 7.111106667 | B18: ='DF raw data'!M23 -> -7.1272501e-07 | C18: ='DF raw data'!N23 -> 3.9459128e-06 | D18: ='DF raw data'!O23 -> -7.7825553e-06 | F18: -7.135004548e-07 | G18: 3.95795965e-06 | H18: -7.79102272e-06 | J18: -2.843295346e-06 | K18: -8.983954846e-06 | L18: -2.149109121e-05 | M18: -9.53870319e-05 | N18: 2.188525479e-09
A19: 7.611226667 | B19: ='DF raw data'!M24 -> -4.7181805e-07 | C19: ='DF raw data'!N24 -> -2.0045397e-06 | D19: ='DF raw data'!O24 -> -4.1642074e-06 | F19: -4.72331388e-07 | G19: -2.010659549e-06 | H19: -4.168738058e-06 | J19: -3.07951772e-06 | K19: -1.052408325e-05 | L19: -2.249666226e-05 | M19: -0.0001066380626 | N19: 2.44637897e-09
A20: 8.111346667 | B20: ='DF raw data'!M25 -> -4.8389614e-07 | C20: ='DF raw data'!N25 -> -5.9781706e-07 | D20: ='DF raw data'!O25 -> 2.1505816e-06 | F20: -4.84422619e-07 | G20: -5.996421922e-07 | H20: 2.152921433e-06 | J20: -3.32178716e-06 | K20: -1.218537544e-05 | L20: -2.279655532e-05 | M20: -0.0001180390759 | N20: 2.711801259e-09
A21: 8.611466667 | B21: ='DF raw data'!M26 -> -5.4524702e-07 | C21: ='DF raw data'!N26 -> 1.4569624e-06 | D21: ='DF raw data'!O26 -> 4.5371976e-06 | F21: -5.458402488e-07 | G21: 1.461410498e-06 | H21: 4.542134071e-06 | J21: -3.594772786e-06 | K21: -1.398319321e-05 | L21: -2.20656747e-05 | M21: -0.0001290745611 | N21: 2.961769432e-09
A22: 9.111586667 | B22: ='DF raw data'!M27 -> 5.0238901e-07 | C22: ='DF raw data'!N27 -> -1.0759496e-05 | D22: ='DF raw data'!O27 -> 2.861239e-06 | F22: 5.029356092e-07 | G22: -1.079234468e-05 | H22: 2.864352028e-06 | J22: -3.343244629e-06 | K22: -1.565521671e-05 | L22: -2.746314212e-05 | M22: -0.0001428094277 | N22: 3.34456201e-09
A23: 9.611706667 | B23: ='DF raw data'!M28 -> 1.5681712e-06 | C23: ='DF raw data'!N28 -> -4.4546623e-06 | D23: ='DF raw data'!O28 -> 5.3283998e-06 | F23: =(1-$G$1*($B$2-$G$2))*B23 -> 1.56987737e-06 | G23: -4.46826236e-06 | H23: 5.334197099e-06 | J23: -2.558117558e-06 | K23: -1.693458247e-05 | L23: -2.969780949e-05 | M23: -0.0001576618962 | N23: 3.788920558e-09
A24: 10.11182667 | B24: ='DF raw data'!M29 -> 3.442909e-06 | C24: ='DF raw data'!N29 -> -7.7401737e-06 | D24: ='DF raw data'!O29 -> 2.3831212e-06 | F24: 3.446654885e-06 | G24: -7.763804408e-06 | H24: 2.385714036e-06 | J24: -8.343765173e-07 | K24: -1.735187085e-05 | L24: -3.358064335e-05 | M24: -0.0001744562476 | N24: 4.353233857e-09
A25: 10.61194667 | B25: ='DF raw data'!M30 -> 4.5825132e-06 | C25: ='DF raw data'!N30 -> -9.7226339e-06 | D25: ='DF raw data'!O30 -> 6.6244661e-06 | F25: 4.587498974e-06 | G25: -9.752317048e-06 | H25: 6.631673519e-06 | J25: 1.45992347e-06 | K25: -1.662173392e-05 | L25: -3.845797215e-05 | M25: -0.0001936898486 | N25: 5.093985094e-09
A26: 11.11206667 | B26: ='DF raw data'!M31 -> -2.0592269e-08 | C26: ='DF raw data'!N31 -> 8.4292986e-07 | D26: ='DF raw data'!O31 -> 7.3820534e-06 | F26: -2.061467339e-08 | G26: 8.455033203e-07 | H26: 7.390085074e-06 | J26: 1.449613659e-06 | K26: -1.589675314e-05 | L26: -3.803511903e-05 | M26: -0.0002127119723 | N26: 5.818544776e-09
A27: 11.61218667 | B27: ='DF raw data'!M32 -> -4.2119223e-06 | C27: ='DF raw data'!N32 -> -6.5999376e-07 | D27: ='DF raw data'!O32 -> 1.2728539e-06 | F27: -4.216504871e-06 | G27: -6.620087173e-07 | H27: 1.274238765e-06 | J27: -6.59144757e-07 | K27: -1.622640462e-05 | L27: -3.836620283e-05 | M27: -0.0002318996777 | N27: 6.55492146e-09
A28: 12.11230667 | B28: ='DF raw data'!M33 -> -8.0368054e-06 | C28: ='DF raw data'!N33 -> -1.5622289e-06 | D28: ='DF raw data'!O33 -> 1.5792008e-06 | F28: -8.045549444e-06 | G28: -1.566998376e-06 | H28: 1.58091897e-06 | J28: -4.682884945e-06 | K28: -1.856840904e-05 | L28: -3.914989006e-05 | M28: -0.0002514793207 | N28: 7.332429669e-09
A29: 12.61242667 | B29: ='DF raw data'!M34 -> -1.069691e-05 | C29: ='DF raw data'!N34 -> -2.0983377e-06 | D29: ='DF raw data'!O34 -> 6.3288439e-06 | F29: -1.070854824e-05 | G29: -2.104743914e-06 | H29: 6.335729682e-06 | J29: -1.003844409e-05 | K29: -2.358883569e-05 | L29: -4.020251459e-05 | M29: -0.0002715854023 | N29: 8.19114198e-09
A30: 13.11254667 | B30: ='DF raw data'!M35 -> -4.4912754e-06 | C30: ='DF raw data'!N35 -> 1.2556203e-06 | D30: ='DF raw data'!O35 -> 1.6928803e-06 | F30: -4.496161908e-06 | G30: 1.259453702e-06 | H30: 1.694722154e-06 | J30: -1.228706458e-05 | K30: -2.973384243e-05 | L30: -3.95726366e-05 | M30: -0.0002913764693 | N30: 9.049830777e-09
A31: 13.61266667 | B31: ='DF raw data'!M36 -> 5.227585e-06 | C31: ='DF raw data'!N36 -> 9.0192134e-06 | D31: ='DF raw data'!O36 -> -3.749507e-06 | F31: 5.233272612e-06 | G31: 9.046749009e-06 | H31: -3.753586464e-06 | J31: -9.669800284e-06 | K31: -3.456990295e-05 | L31: -3.504817649e-05 | M31: -0.0003089047634 | N31: 9.710929259e-09
A32: 14.11278667 | B32: ='DF raw data'!M37 -> 9.0559324e-06 | C32: ='DF raw data'!N37 -> 7.6182287e-06 | D32: ='DF raw data'!O37 -> -6.477962e-06 | F32: 9.065785254e-06 | G32: 7.641487111e-06 | H32: -6.485010023e-06 | J32: -5.135819763e-06 | K32: -3.713842913e-05 | L32: -3.122651595e-05 | M32: -0.0003245217685 | N32: 1.021178541e-08
A33: 14.61290667 | B33: ='DF raw data'!M38 -> 8.6207283e-06 | C33: ='DF raw data'!N38 -> -5.9610547e-06 | D33: ='DF raw data'!O38 -> 1.2489014e-06 | F33: 8.630107652e-06 | G33: -5.979253767e-06 | H33: 1.250260205e-06 | J33: -8.197303236e-07 | K33: -3.754839266e-05 | L33: -3.421686035e-05 | M33: -0.0003416343047 | N33: 1.079765873e-08
A34: 15.11302667 | B34: ='DF raw data'!M39 -> 6.8030045e-06 | C34: ='DF raw data'!N39 -> -6.9983189e-06 | D34: ='DF raw data'!O39 -> -4.8573734e-06 | F34: 6.810406169e-06 | G34: -7.019684729e-06 | H34: -4.862658222e-06 | J34: 2.58629001e-06 | K34: -3.62549373e-05 | L34: -3.772754507e-05 | M34: -0.0003605026046 | N34: 1.151285861e-08
A35: 15.61314667 | B35: ='DF raw data'!M40 -> 6.2950407e-06 | C35: ='DF raw data'!N40 -> -1.6344222e-05 | D35: ='DF raw data'!O40 -> -4.0941982e-06 | F35: 6.301889704e-06 | G35: -1.639412082e-05 | H35: -4.098652688e-06 | J35: 5.737991088e-06 | K35: -3.33852532e-05 | L35: -4.592657278e-05 | M35: -0.0003834714021 | N35: 1.258420299e-08
A36: 16.11326667 | B36: ='DF raw data'!M41 -> 4.0796281e-06 | C36: ='DF raw data'!N41 -> 3.2077935e-06 | D36: ='DF raw data'!O41 -> 4.2031002e-06 | F36: 4.084066735e-06 | G36: 3.217586876e-06 | H36: 4.207673173e-06 | J36: 7.780514544e-06 | K36: -2.949406226e-05 | L36: -4.431739323e-05 | M36: -0.0004056354168 | N36: 1.359672981e-08
A37: 16.61338667 | B37: ='DF raw data'!M42 -> 1.8616106e-06 | C37: ='DF raw data'!N42 -> 6.5625527e-06 | D37: ='DF raw data'!O42 -> 1.03935e-05 | F37: 1.863636032e-06 | G37: 6.582588138e-06 | H37: 1.040480813e-05 | J37: 8.712556197e-06 | K37: -2.513673866e-05 | L37: -4.102530925e-05 | M37: -0.0004261529945 | N37: 1.447643321e-08
A38: 17.11350667 | B38: ='DF raw data'!M43 -> -3.6528377e-06 | C38: ='DF raw data'!N43 -> 5.814426e-06 | D38: ='DF raw data'!O43 -> 1.4873976e-05 | F38: -3.656811987e-06 | G38: 5.832177411e-06 | H38: 1.489015889e-05 | J38: 6.883711386e-06 | K38: -2.169405692e-05 | L38: -3.810852069e-05 | M38: -0.0004452118279 | N38: 1.522643558e-08
A39: 17.61362667 | B39: ='DF raw data'!M44 -> -8.1786429e-06 | C39: ='DF raw data'!N44 -> -2.5425168e-06 | D39: ='DF raw data'!O44 -> 8.1367161e-06 | F39: -8.187541263e-06 | G39: -2.55027909e-06 | H39: 8.145568847e-06 | J39: 2.788958249e-06 | K39: -2.029924312e-05 | L39: -3.938396626e-05 | M39: -0.0004649085371 | N39: 1.600606019e-08
A40: 18.11374667 | B40: ='DF raw data'!M45 -> -6.6917432e-06 | C40: ='DF raw data'!N45 -> -4.3223035e-06 | D40: ='DF raw data'!O45 -> 5.8459823e-06 | F40: -6.699023817e-06 | G40: -4.335499469e-06 | H40: 5.852342729e-06 | J40: -5.613575423e-07 | K40: -2.057998925e-05 | L40: -4.155223626e-05 | M40: -0.0004856896415 | N40: 1.686971915e-08
A41: 18.61386667 | B41: ='DF raw data'!M46 -> -2.5171626e-06 | C41: ='DF raw data'!N46 -> -1.1429701e-05 | D41: ='DF raw data'!O46 -> 1.0593618e-05 | F41: -2.519901273e-06 | G41: -1.146459581e-05 | H41: 1.060514386e-05 | J41: -1.821610567e-06 | K41: -2.149101313e-05 | L41: -4.728590992e-05 | M41: -0.0005093382707 | N41: 1.798962563e-08
A42: 19.11398667 | B42: ='DF raw data'!M47 -> -7.5584234e-07 | C42: ='DF raw data'!N47 -> -3.8675835e-06 | D42: ='DF raw data'!O47 -> 7.4701798e-06 | F42: -7.566646965e-07 | G42: -3.879391211e-06 | H42: 7.478307356e-06 | J42: -2.200033715e-06 | K42: -2.259129399e-05 | L42: -4.922607105e-05 | M42: -0.0005339572134 | N42: 1.92039401e-08
A43: 19.61410667 | B43: ='DF raw data'!M48 -> 5.7280573e-07 | C43: ='DF raw data'!N48 -> -4.6832238e-06 | D43: ='DF raw data'!O48 -> 1.4118247e-06 | F43: 5.734289426e-07 | G43: -4.697521657e-06 | H43: 1.413360765e-06 | J43: -1.913250432e-06 | K43: -2.35481488e-05 | L43: -5.157539558e-05 | M43: -0.0005597511002 | N43: 2.053610072e-08
A44: 20.11422667 | B44: ='DF raw data'!M49 -> 1.627383e-06 | C44: ='DF raw data'!N49 -> 1.0013379e-05 | D44: ='DF raw data'!O49 -> -7.3896249e-06 | F44: 1.629153593e-06 | G44: 1.004394979e-05 | H44: -7.397664812e-06 | J44: -1.098478137e-06 | K44: -2.409751969e-05 | L44: -4.655221541e-05 | M44: -0.0005830327942 | N44: 2.162051863e-08
A45: 20.61434667 | B45: ='DF raw data'!M50 -> 3.8800486e-06 | C45: ='DF raw data'!N50 -> 2.8075121e-06 | D45: ='DF raw data'!O50 -> -5.954777e-06 | F45: 3.884270093e-06 | G45: 2.816083419e-06 | H45: -5.961255797e-06 | J45: 8.441230215e-07 | K45: -2.367535688e-05 | L45: -4.514383577e-05 | M45: -0.0006056101294 | N45: 2.26401025e-08
A46: 21.11446667 | B46: ='DF raw data'!M51 -> -3.0647919e-07 | C46: ='DF raw data'!N51 -> -1.0120782e-05 | D46: ='DF raw data'!O51 -> -3.4996651e-06 | F46: -3.068126394e-07 | G46: -1.015168069e-05 | H46: -3.503472736e-06 | J46: 6.906798843e-07 | K46: -2.332993406e-05 | L46: -5.022089432e-05 | M46: -0.000630726603 | N46: 2.390171284e-08
A47: 21.61458667 | B47: ='DF raw data'!M52 -> -4.3341438e-06 | C47: ='DF raw data'!N52 -> -8.9314117e-06 | D47: ='DF raw data'!O52 -> -2.5619834e-06 | F47: -4.338859348e-06 | G47: -8.958679251e-06 | H47: -2.564770838e-06 | J47: -1.479270453e-06 | K47: -2.406974679e-05 | L47: -5.470130899e-05 | M47: -0.0006580838217 | N47: 2.53992829e-08
A48: 22.11470667 | B48: ='DF raw data'!M53 -> 2.1495958e-07 | C48: ='DF raw data'!N53 -> 2.6887622e-06 | D48: ='DF raw data'!O53 -> -1.8546635e-07 | F48: 2.15193456e-07 | G48: 2.696970976e-06 | H48: -1.856681374e-07 | J48: -1.371647902e-06 | K48: -2.475573534e-05 | L48: -5.335249986e-05 | M48: -0.0006847664739 | N48: 2.682381003e-08
A49: 22.61482667 | B49: ='DF raw data'!M54 -> 2.3374e-06 | C49: ='DF raw data'!N54 -> -6.7613729e-07 | D49: ='DF raw data'!O54 -> 5.3352537e-06 | F49: 2.339943091e-06 | G49: -6.782015335e-07 | H49: 5.341058456e-06 | J49: -2.01395563e-07 | K49: -2.485645729e-05 | L49: -5.369168201e-05 | M49: -0.0007116187579 | N49: 2.826557461e-08
A50: 23.11494667 | B50: ='DF raw data'!M55 -> -9.4714181e-07 | C50: ='DF raw data'!N55 -> -6.5357262e-06 | D50: ='DF raw data'!O55 -> 8.0043374e-06 | F50: -9.481723003e-07 | G50: -6.555679736e-06 | H50: 8.013046119e-06 | J50: -6.755954939e-07 | K50: -2.519433611e-05 | L50: -5.697030856e-05 | M50: -0.0007401107486 | N50: 2.988900038e-08
A51: 23.61506667 | B51: ='DF raw data'!M56 -> -3.1771792e-06 | C51: ='DF raw data'!N56 -> -1.1042229e-05 | D51: ='DF raw data'!O56 -> 4.1434082e-06 | F51: -3.180635971e-06 | G51: -1.107594086e-05 | H51: 4.147916228e-06 | J51: -2.266295156e-06 | K51: -2.632775564e-05 | L51: -6.250960811e-05 | M51: -0.0007713730538 | N51: 3.184576349e-08
A52: 24.11518667 | B52: ='DF raw data'!M57 -> -3.3163537e-06 | C52: ='DF raw data'!N57 -> -1.4781698e-06 | D52: ='DF raw data'!O57 -> -2.2932386e-06 | F52: -3.319961893e-06 | G52: -1.482682644e-06 | H52: -2.295733644e-06 | J52: -3.926674498e-06 | K52: -2.829156409e-05 | L52: -6.325112735e-05 | M52: -0.0008030062076 | N52: 3.385430737e-08
A53: 24.61530667 | B53: ='DF raw data'!M58 -> -1.8285659e-06 | C53: ='DF raw data'!N58 -> 2.1506505e-06 | D53: ='DF raw data'!O58 -> 1.9383274e-06 | F53: -1.83055538e-06 | G53: 2.157216424e-06 | H53: 1.9404363e-06 | J53: -4.842171854e-06 | K53: -3.071323108e-05 | L53: -6.217226027e-05 | M53: -0.0008340997985 | N53: 3.579919232e-08
A54: 25.11542667 | B54: ='DF raw data'!M59 -> -3.5581775e-06 | C54: ='DF raw data'!N59 -> 1.19857e-05 | D54: ='DF raw data'!O59 -> -1.1697433e-06 | F54: -3.562048797e-06 | G54: 1.202229228e-05 | H54: -1.171015981e-06 | J54: -6.623623698e-06 | K54: -3.402583777e-05 | L54: -5.615967146e-05 | M54: -0.0008621863733 | N54: 3.73984666e-08
A55: 25.61554667 | B55: ='DF raw data'!M60 -> -3.9929159e-06 | C55: ='DF raw data'!N60 -> 6.7478832e-06 | D55: ='DF raw data'!O60 -> -7.7597233e-06 | F55: -3.997260192e-06 | G55: 6.768484451e-06 | H55: -7.768165879e-06 | J55: -8.622733466e-06 | K55: -3.833823923e-05 | L55: -5.277461702e-05 | M55: -0.0008885800148 | N55: 3.88285656e-08
A56: 26.11566667 | B56: ='DF raw data'!M61 -> -1.5736572e-07 | C56: ='DF raw data'!N61 -> -3.5278779e-06 | D56: ='DF raw data'!O61 -> -7.9819456e-06 | F56: -1.575369339e-07 | G56: -3.538648492e-06 | H56: -7.990629957e-06 | J56: -8.701520837e-06 | K56: -4.269004383e-05 | L56: -5.45443659e-05 | M56: -0.0009158587431 | N56: 4.035433386e-08
A57: 26.61578667 | B57: ='DF raw data'!M62 -> 3.5466933e-06 | C57: ='DF raw data'!N62 -> 6.1267792e-06 | D57: ='DF raw data'!O62 -> -6.8560498e-06 | F57: 3.550552102e-06 | G57: 6.145484223e-06 | H57: -6.863509182e-06 | J57: -6.92581872e-06 | K57: -4.615378429e-05 | L57: -5.147088633e-05 | M57: -0.0009416003627 | N57: 4.170326708e-08
A58: 27.11590667 | B58: ='DF raw data'!M63 -> 4.9000359e-06 | C58: ='DF raw data'!N63 -> -3.5121327e-06 | D58: ='DF raw data'!O63 -> -3.6211882e-06 | F58: 4.905367139e-06 | G58: -3.522855222e-06 | H58: -3.625128053e-06 | J58: -4.472546506e-06 | K58: -4.839059424e-05 | L58: -5.323273668e-05 | M58: -0.000968223119 | N58: 4.313047349e-08
A59: 27.61602667 | B59: ='DF raw data'!M64 -> 1.9726854e-06 | C59: ='DF raw data'!N64 -> 8.8816267e-07 | D59: ='DF raw data'!O64 -> -7.0808769e-06 | F59: 1.974831682e-06 | G59: 8.908742258e-07 | H59: -7.088580894e-06 | J59: -3.484893686e-06 | K59: -5.013345927e-05 | L59: -5.278719267e-05 | M59: -0.0009946230498 | N59: 4.453012542e-08
A60: 28.11614667 | B60: ='DF raw data'!M65 -> 9.4987496e-07 | C60: ='DF raw data'!N65 -> 3.575786e-06 | D60: ='DF raw data'!O65 -> -7.3603319e-06 | F60: 9.50908424e-07 | G60: 3.586702855e-06 | H60: -7.368339941e-06 | J60: -3.009325365e-06 | K60: -5.163848308e-05 | L60: -5.099341083e-05 | M60: -0.001020125874 | N60: 4.583513054e-08
A61: 28.61626667 | B61: ='DF raw data'!M66 -> -1.2726828e-06 | C61: ='DF raw data'!N66 -> -5.5717146e-06 | D61: ='DF raw data'!O66 -> -8.0928894e-06 | F61: -1.274067479e-06 | G61: -5.588725014e-06 | H61: -8.101694464e-06 | J61: -3.646511992e-06 | K61: -5.346217665e-05 | L61: -5.378844399e-05 | M61: -0.001047026551 | N61: 4.72887262e-08
A62: 29.11638667 | B62: ='DF raw data'!M67 -> -8.3830391e-06 | C62: ='DF raw data'!N67 -> 4.5349934e-06 | D62: ='DF raw data'!O67 -> -6.0639891e-06 | F62: -8.392159847e-06 | G62: 4.54883871e-06 | H62: -6.07058672e-06 | J62: -7.843598975e-06 | K62: -5.738491737e-05 | L62: -5.151347877e-05 | M62: -0.001072789472 | N62: 4.864663229e-08
A63: 29.61650667 | B63: ='DF raw data'!M68 -> -1.5691565e-05 | C63: ='DF raw data'!N68 -> 1.1168569e-06 | D63: ='DF raw data'!O68 -> -9.0725587e-07 | F63: -1.570863742e-05 | G63: 1.120266658e-06 | H63: -9.082429644e-07 | J63: -1.569980272e-05 | K63: -6.523670271e-05 | L63: -5.095321101e-05 | M63: -0.001098272192 | N63: 5.006833017e-08
A64: 30.11662667 | B64: ='DF raw data'!M69 -> -1.5400541e-05 | C64: ='DF raw data'!N69 -> -6.3239777e-06 | D64: ='DF raw data'!O69 -> 1.5077218e-06 | F64: -1.541729679e-05 | G64: -6.343284769e-06 | H64: 1.509362201e-06 | J64: -2.341030119e-05 | K64: -7.694466254e-05 | L64: -5.412561459e-05 | M64: -0.001125341494 | N64: 5.180755967e-08
A65: 30.61674667 | B65: ='DF raw data'!M70 -> -8.2628258e-06 | C65: ='DF raw data'!N70 -> 9.2725639e-07 | D65: ='DF raw data'!O70 -> -7.8948233e-06 | F65: -8.271815754e-06 | G65: 9.300872987e-07 | H65: -7.903412868e-06 | J65: -2.754720169e-05 | K65: -9.072156905e-05 | L65: -5.366045933e-05 | M65: -0.001152178163 | N65: 5.362714287e-08
A66: 31.11686667 | B66: ='DF raw data'!M71 -> -1.7100842e-06 | C66: ='DF raw data'!N71 -> -2.387075e-06 | D66: ='DF raw data'!O71 -> -2.8369273e-06 | F66: -1.711944772e-06 | G66: -2.394362727e-06 | H66: -2.840013877e-06 | J66: -2.840337951e-05 | K66: -0.0001049266672 | L66: -5.485792802e-05 | M66: -0.00117961371 | N66: 5.553567292e-08
A67: 31.61698667 | B67: ='DF raw data'!M72 -> -2.6280918e-06 | C67: ='DF raw data'!N72 -> 2.8559464e-06 | D67: ='DF raw data'!O72 -> 7.4034883e-06 | F67: -2.630951164e-06 | G67: 2.864665589e-06 | H67: 7.411543295e-06 | J67: -2.97191708e-05 | K67: -0.0001197898189 | L67: -5.342525146e-05 | M67: -0.001206332747 | N67: 5.740486473e-08
A68: 32.11710667 | B68: ='DF raw data'!M73 -> -4.4622443e-06 | C68: ='DF raw data'!N73 -> 7.9609816e-07 | D68: ='DF raw data'!O73 -> 1.5796082e-06 | F68: -4.467099222e-06 | G68: 7.985286433e-07 | H68: 1.581326814e-06 | J68: -3.195325647e-05 | K68: -0.0001357702815 | L68: -5.302589132e-05 | M68: -0.001232852056 | N68: 5.932170253e-08
A69: 32.61722667 | B69: ='DF raw data'!M74 -> -2.8881491e-06 | C69: ='DF raw data'!N74 -> 8.3038793e-07 | D69: ='DF raw data'!O74 -> -8.1740309e-06 | F69: -2.891291406e-06 | G69: 8.329230998e-07 | H69: -8.182924246e-06 | J69: -3.339924912e-05 | K69: -0.000152473914 | L69: -5.260932982e-05 | M69: -0.001259163034 | N69: 6.126379423e-08
A70: 33.11734667 | B70: ='DF raw data'!M75 -> -5.0151851e-07 | C70: ='DF raw data'!N75 -> 5.8327059e-06 | D70: ='DF raw data'!O75 -> -4.0165928e-06 | F70: -5.020641621e-07 | G70: 5.850513119e-06 | H70: -4.020962853e-06 | J70: -3.365034145e-05 | K70: -0.0001693031228 | L70: -4.96833712e-05 | M70: -0.001284010681 | N70: 6.306461775e-08
A71: 33.61746667 | B71: ='DF raw data'!M76 -> 4.8509087e-06 | C71: ='DF raw data'!N76 -> -4.6450632e-06 | D71: ='DF raw data'!O76 -> -5.0853339e-07 | F71: 4.856186489e-06 | G71: =(1-$G$1*($B$2-$G$2))*C71*$M$2/$M$1 -> -4.659244553e-06 | H71: -5.090866743e-07 | J71: -3.122166547e-05 | K71: -0.0001849177021 | L71: -5.201355258e-05 | M71: -0.001310023699 | N71: 6.49051604e-08
A72: =A71+$B$1 -> 34.11758667 | B72: ='DF raw data'!M77 -> 7.3536926e-06 | C72: ='DF raw data'!N77 -> 3.9938122e-06 | D72: ='DF raw data'!O77 -> 1.5991806e-06 | F72: 7.361693418e-06 | G72: 4.006005287e-06 | H72: 1.600920508e-06 | J72: =F72*$B$1+J71 -> -2.753993535e-05 | K72: =J72*$B$1+K71 -> -0.0001986909746 | L72: =G72*$B$1+L71 -> -5.001006922e-05 | M72: =L72*$B$1+M71 -> -0.001335034735 | N72: =(J72^2+L72^2)*$B$1+N71 -> 6.653527907e-08
A73: 34.61770667 | B73: ='DF raw data'!M78 -> 4.5383917e-06 | C73: ='DF raw data'!N78 -> 4.8951133e-06 | D73: ='DF raw data'!O78 -> 2.2090803e-06 | F73: 4.54332947e-06 | G73: 4.910058054e-06 | H73: 2.211483779e-06 | J73: -2.526772542e-05 | K73: -0.0002113278694 | L73: -4.755445098e-05 | M73: -0.001358817667 | N73: 6.798556893e-08
A74: 35.11782667 | B74: ='DF raw data'!M79 -> 1.9292188e-06 | C74: ='DF raw data'!N79 -> 3.8048804e-06 | D74: ='DF raw data'!O79 -> 6.8286586e-06 | F74: 1.93131779e-06 | G74: 3.816496679e-06 | H74: 6.836088181e-06 | J74: -2.430183477e-05 | K74: -0.000223481703 | L74: -4.564574466e-05 | M74: -0.001381646017 | N74: 6.932294641e-08
